Workbook

Sheet NSSCalc (hidden)
B1: Actual (Prior Year) | H1: Actual School Committee | Z1: Actual City/Town | AR1: Actual Total | BH1: Budgeted (Current Year) | BI1: Budgeted School Committee | CB1: Budgeted City/Town | CT1: Budgeted Total
C2: From EOYLog | E2: 2025 actual | F2: 2026 budget | G2: 2025 budget | H2: (DayPct x SCAdmin) + 1435 | I2: Total instructional services for reg, sped, voc and undistributed | J2: 3100 and 3200 totals | K2: 3400 total less supplies and materials | L2: 3510 + 3520 + 3600 | M2: (4000 series) x daypct | N2: (5100 + 5150) x daypct | O2: (5200 + 5260) x daypct | P2: 5250 x daypct for districts that can count this | Q2: (5300 + 5350) x daypct | R2: 5400 x daypct | S2: 9100 through 9400 All payments to other districts, reg, sped and voc LESS charter facilities aid for regional districts. | T2: SUM of 1 - 12 | V2: Allowable carryforward + SC budgeted revenues from PY Sch 19 (tuition, earnings on investments, rental of school facs and other gf rev) | W2: Only on municipal side | X2: 14a+14b | Y2: 13-14c | Z2: PY Sch 19*daypctbudget | AA2: PY Sch 19, "Educational Media" | AB2: PY Sch 19 | AC2: Only on school committee side | AD2: 3510 + 3520 + 3600 x daypct | AE2: PY Sch 19*daypct, maintenance + extraordinary maintenance | AF2: (5100 + 5150) x daypct | AG2: (5200 + 5260) x daypct | AH2: 5251 x daypct for districts that can count this | AI2: PY Sch 19*daypct | AJ2: 5400 x daypct | AK2: 9100 through 9400 formunicipal districts less their fac aid. | AL2: SUM of 1 - 12 | AN2: I don't think anything goes in here… | AO2: Only for municipal districts | AP2: 14a+14b | AQ2: 13 - 14c | AR2: 15. Sch Comm + 15. Muni | AS2: From that year's C70 (ESE fills in) | AT2: From ESE calculation of PY NSS compliance | AU2: 16 + 17 less waiver | AV2: 18 - 15 | AW2: 19 / 16 | AX2: 19 or 5% of 16 or 0 if 17 > 0 | AY2: 19 - 21 | BA2: Rev code 60 (PY Unexpended Encumbrances) | BB2: Prepop from NSS2425 | BC2: Prepop from NSS2425 | BD2: Actual 15 - Reqd 15 | BE2: Amt over/under less Carryforward | BF2: If "New Amt Over/Under" is <0, this is the smaller of that abs(number) or "Carryforward" | BG2: From PY Sch 19 x daypctbudget20 (col. G) | BI2: 1000 x daypctbudget | BJ2: 2000 not including other programs | BK2: 3100 and 3200 | BL2: 3400 | BM2: 3500 and 3600 | BN2: Maint and Extra Maint x daypctbudget | BO2: 5100 and 5150 x daypctbudget | BP2: 5200 and 5260 x daypctbudget | BQ2: 5250 for eligible districts x daypct budget | BR2: 5300 x daypctbudget | BS2: 5400 x daypctbudget | BT2: 9000s less other programs (For Regionals - less projected charter facilities aid, using most current charter and choice tuition) | BU2: 23 through 34 | BW2: Rev code 03, 04, 05, 08, 09, 10 x daypct | BX2: No data in here, only on muni side | CB2: 1000 x daypctbudget | CC2: 2000 not including other programs | CD2: 3100 and 3200 | CE2: Nothing reported here | CF2: 3500 and 3600 | CG2: Maint and Extra Maint x daypctbudget | CH2: 5100 and 5150 x daypctbudget | CI2: 5200 and 5260 x daypctbudget | CJ2: 5250 for eligible districts x daypct budget | CK2: 5300 x daypctbudget | CL2: 5400 x daypctbudget | CM2: 9000s less other programs (For Municipal - less projected charter facilities aid, using most current charter and choice tuition) | CN2: 23 through 34 | CP2: Nothing reported here for municipal | CQ2: if LEA <400, include proj charter reimbursement | CT2: 37. Sch Comm + 37. Muni | CW2: 38 + 39 less waiver | CZ2: Estimate | DA2: Estimate
A3: org4code | B3: OPStatus | C3: EOYIn | D3: Date Rcvd | E3: daypctactual24 | F3: daypctbudget25 | G3: daypctbudget24 | H3: 1. Administration (1000) | I3: 2. Instruction (2000) | J3: 3. Attendance-Health (3100, 3200) | K3: 4. Food Services (3400) | L3: 5. Athletics/Student Activities/ Security (3500,3600) | M3: 6. Maintenance (4000) | N3: 7. Employee Benefits (5100) | O3: 8. Insurance (5200) | P3: 9. Retired Employee Insurance (5250) | Q3: 10. Rentals (5300) | R3: 11. Short Term Interest RAN's (5400) | S3: 12. Tuition (9000) | T3: 13. Total School Spending (1 through 12) | U3: 14. School Revenues | V3: 14a) FY25 School Revenues | W3: 14b) FY25 Charter Reimbursement | X3: 14c) Subtotal, School Revenues (14a+14b) | Y3: 15. Net School Spending (13 - 14c) | Z3: 1. Administration (1000) | AA3: 2. Instruction (2000) | AB3: 3. Attendance-Health (3100, 3200) | AC3: 4. Food Services (3400) | AD3: 5. Athletics/Student Activities/ Security (3500,3600) | AE3: 6. Maintenance (4000) | AF3: 7. Employee Benefits (5100) | AG3: 8. Insurance (5200) | AH3: 9. Retired Employee Insurance (5250) | AI3: 10. Rentals (5300) | AJ3: 11. Short Term Interest RAN's (5400) | AK3: 12. Tuition (9000) | AL3: 13. Total School Spending (1 through 12) | AM3: 14. School Revenues | AN3: 14a) FY25 School Revenues | AO3: 14b) FY25 Charter Reimbursement | AP3: 14c) Subtotal, School Revenues (14a+14b) | AQ3: 15. Net School Spending (13 - 14c) | AR3: 15. Net School Spending (13 - 14c) | AS3: 16. FY25 Required Net School Spending | AT3: 17. FY25 Carry-Over Into FY26 | AU3: 18. Total FY25 Requirement (16 + 17) | AV3: 19. Unexpended Net School Spending (18 - 15) | AW3: 20. Percent Unexpended (19 / 16) | AX3: 21. FY25 Carry-Over (19 or 5% of 16 or 0 if 17 > 0) | AY3: 22. Penalty (19 - 21) | BA3: Carryforward | BB3: Total Required NSS FY24 | BC3: Actual NSS FY24 | BD3: Amt Over/Under | BE3: New Amount Over/Under | BF3: Allowable Carryforward | BG3: SC Revenues Budgeted for FY25 | BI3: 23. Administration (1000) | BJ3: 24. Instruction (2000) | BK3: 25. Attendance-Health (3100, 3200) | BL3: 26. Food Services (3400) | BM3: 27. Athletics/Student Activities/ Security (3500,3600) | BN3: 28. Maintenance (4000) | BO3: 29. Employee Benefits (5100) | BP3: 30. Insurance (5200) | BQ3: 31. Retired Employee Insurance (5250) | BR3: 32. Rentals (5300) | BS3: 33. Short Term Interest RAN's (5400) | BT3: 34. Tuition (9000) | BU3: 35. Total School Spending (23 through 34) | BV3: 36. Revenues | BW3: 36a) FY26 Budgeted School Revenues | BX3: 36b) Projected FY26 Charter Reimbursement (Local Districts) | BY3: 36c) Subtotal, Net School Spending Revenues (36a+36b) | BZ3: 37. Net School Spending (35 - 36) | CB3: 23. Administration (1000) | CC3: 24. Instruction (2000) | CD3: 25. Attendance-Health (3100, 3200) | CE3: 26. Food Services (3400) | CF3: 27. Athletics/Student Activities/ Security (3500,3600) | CG3: 28. Maintenance (4000) | CH3: 29. Employee Benefits (5100) | CI3: 30. Insurance (5200) | CJ3: 31. Retired Employee Insurance (5250) | CK3: 32. Rentals (5300) | CL3: 33. Short Term Interest RAN's (5400) | CM3: 34. Tuition (9000) | CN3: 35. Total School Spending (23 through 34) | CO3: 36. Revenues | CP3: 36a) FY26 Budgeted School Revenues | CQ3: 36b) Projected FY26 Charter Reimbursement (Local Districts) | CR3: 36c) Subtotal, Net School Spending Revenues (36a+36b) | CS3: 37. Net School Spending (35 - 36) | CT3: 37. Net School Spending (35 - 36) | CU3: 38. FY26 Required Net School Spending | CV3: 39. Carry-Over from FY25 (21) | CW3: 40. Total FY26 Requirement (38 + 39) | CX3: 41. Deficiency (40 - 37) | CY3: Percent Unexpended | CZ3: Carryover | DA3: Penalty
A4: 0001 | B4: 1 | C4: 1 | D4: 2025-10-22 | E4: 1 | F4: 1 | G4: 1 | H4: 979485.26 | I4: 21780437.01 | J4: 468209.4 | K4: 898 | L4: 566511.84 | M4: 2435042.05 | N4: 50379.47 | O4: 0 | P4: 0 | Q4: 0 | R4: 0 | S4: 2121747.58 | T4: 28402710.61 | V4: 0 | X4: 0 | Y4: 28402710.61 | Z4: 116081 | AA4: 63232 | AB4: 0 | AD4: 0 | AE4: 65542 | AF4: 1334506 | AG4: 4714904 | AH4: 996586 | AI4: 0 | AJ4: 0 | AK4: 1081140.81 | AL4: 8371991.81 | AO4: 151625.8 | AP4: 151625.8 | AQ4: 8220366.01 | AR4: 36623076.62 | AS4: 32236385 | AT4: 0 | AU4: 32236385 | AV4: 0 | AW4: 0 | AX4: 0 | AY4: 0 | BA4: 0 | BB4: 31287579 | BC4: 35096907.28 | BD4: 3809328.283 | BE4: 3809328.283 | BF4: 0 | BG4: 0 | BI4: 1490530 | BJ4: 22123930.37 | BK4: 443225 | BL4: 0 | BM4: 288861.25 | BN4: 2602038.04 | BO4: 50000 | BP4: 0 | BQ4: 0 | BR4: 0 | BS4: 0 | BT4: 2823956 | BU4: 29822540.66 | BW4: 0 | BY4: 0 | BZ4: 29822540.66 | CB4: 123710 | CC4: 65790 | CD4: 0 | CF4: 0 | CG4: 68946 | CH4: 1431923 | CI4: 5180651 | CJ4: 1100063 | CK4: 0 | CL4: 0 | CM4: 1304229.57 | CN4: 9275312.57 | CQ4: 208810 | CR4: 208810 | CS4: 9066502.57 | CT4: 38889043.23 | CU4: 33612890 | CV4: 0 | CW4: 33612890 | CX4: 0 | CY4: 0 | CZ4: 0 | DA4: 0
A5: 0002 | B5: 0 | C5: 0 | H5: 0 | I5: 0 | J5: 0 | K5: 0 | L5: 0 | M5: 0 | N5: 0 | O5: 0 | P5: 0 | Q5: 0 | R5: 0 | S5: 0 | T5: 0 | V5: 0 | X5: 0 | Y5: 0 | Z5: 0 | AA5: 0 | AB5: 0 | AD5: 0 | AE5: 0 | AF5: 0 | AG5: 0 | AH5: 0 | AI5: 0 | AJ5: 0 | AK5: 0 | AL5: 0 | AO5: 0 | AP5: 0 | AQ5: 0 | AR5: 0 | AS5: 0 | AT5: 0 | AU5: 0 | AV5: 0 | AW5: 0 | AX5: 0 | AY5: 0 | BA5: 0 | BB5: 0 | BC5: 0 | BD5: 0 | BE5: 0 | BF5: 0 | BG5: 0 | BI5: 0 | BJ5: 0 | BK5: 0 | BL5: 0 | BM5: 0 | BN5: 0 | BO5: 0 | BP5: 0 | BQ5: 0 | BR5: 0 | BS5: 0 | BT5: 0 | BU5: 0 | BW5: 0 | BY5: 0 | BZ5: 0 | CB5: 0 | CC5: 0 | CD5: 0 | CF5: 0 | CG5: 0 | CH5: 0 | CI5: 0 | CJ5: 0 | CK5: 0 | CL5: 0 | CM5: 0 | CN5: 0 | CQ5: 0 | CR5: 0 | CS5: 0 | CT5: 0 | CU5: 0 | CV5: 0 | CW5: 0 | CX5: 0 | CY5: 0 | CZ5: 0 | DA5: 0
A6: 0003 | B6: 1 | C6: 1 | D6: 2025-10-27 | E6: 1 | F6: 1 | G6: 1 | H6: 702836.63 | I6: 8911502.84 | J6: 208501.32 | K6: 0 | L6: 71294.94 | M6: 1232609.17 | N6: 0 | O6: 0 | P6: 0 | Q6: 0 | R6: 0 | S6: 3531242.32 | T6: 14657987.22 | V6: 0 | X6: 0 | Y6: 14657987.22 | Z6: 83363 | AA6: 0 | AB6: 0 | AD6: 0 | AE6: 129694 | AF6: 452905 | AG6: 1171323 | AH6: 466375 | AI6: 0 | AJ6: 0 | AK6: 285210.82 | AL6: 2588870.82 | AO6: 19864.2 | AP6: 19864.2 | AQ6: 2569006.62 | AR6: 17226993.84 | AS6: 16145186 | AT6: 0 | AU6: 16145186 | AV6: 0 | AW6: 0 | AX6: 0 | AY6: 0 | BA6: 0 | BB6: 15911255 | BC6: 16863449.45 | BD6: 952194.4496 | BE6: 952194.4496 | BF6: 0 | BG6: 0 | BI6: 836485 | BJ6: 9129205 | BK6: 199778 | BL6: 0 | BM6: 76033 | BN6: 1439032 | BO6: 0 | BP6: 0 | BQ6: 0 | BR6: 0 | BS6: 0 | BT6: 3468433 | BU6: 15148966 | BW6: 0 | BY6: 0 | BZ6: 15148966 | CB6: 94360 | CC6: 0 | CD6: 0 | CF6: 0 | CG6: 0 | CH6: 461311 | CI6: 1389911 | CJ6: 397505.88 | CK6: 0 | CL6: 0 | CM6: 344904.19 | CN6: 2687992.07 | CQ6: 4707.434639 | CR6: 4707.434639 | CS6: 2683284.635 | CT6: 17832250.64 | CU6: 16750670 | CV6: 0 | CW6: 16750670 | CX6: 0 | CY6: 0 | CZ6: 0 | DA6: 0
A7: 0004 | B7: 0 | C7: 0 | H7: 0 | I7: 0 | J7: 0 | K7: 0 | L7: 0 | M7: 0 | N7: 0 | O7: 0 | P7: 0 | Q7: 0 | R7: 0 | S7: 0 | T7: 0 | V7: 0 | X7: 0 | Y7: 0 | Z7: 0 | AA7: 0 | AB7: 0 | AD7: 0 | AE7: 0 | AF7: 0 | AG7: 0 | AH7: 0 | AI7: 0 | AJ7: 0 | AK7: 0 | AL7: 0 | AO7: 0 | AP7: 0 | AQ7: 0 | AR7: 0 | AS7: 0 | AT7: 0 | AU7: 0 | AV7: 0 | AW7: 0 | AX7: 0 | AY7: 0 | BA7: 0 | BB7: 0 | BC7: 0 | BD7: 0 | BE7: 0 | BF7: 0 | BG7: 0 | BI7: 0 | BJ7: 0 | BK7: 0 | BL7: 0 | BM7: 0 | BN7: 0 | BO7: 0 | BP7: 0 | BQ7: 0 | BR7: 0 | BS7: 0 | BT7: 0 | BU7: 0 | BW7: 0 | BY7: 0 | BZ7: 0 | CB7: 0 | CC7: 0 | CD7: 0 | CF7: 0 | CG7: 0 | CH7: 0 | CI7: 0 | CJ7: 0 | CK7: 0 | CL7: 0 | CM7: 0 | CN7: 0 | CQ7: 0 | CR7: 0 | CS7: 0 | CT7: 0 | CU7: 0 | CV7: 0 | CW7: 0 | CX7: 0 | CY7: 0 | CZ7: 0 | DA7: 0
A8: 0005 | B8: 1 | C8: 1 | D8: 2025-09-29 | E8: 1 | F8: 1 | G8: 1 | H8: 1029088 | I8: 40669232 | J8: 152062 | K8: 0 | L8: 827930.75 | M8: 898488.84 | N8: 178488 | O8: 0 | P8: 0 | Q8: 10237 | R8: 0 | S8: 4576838 | T8: 48342364.59 | V8: 61900 | X8: 61900 | Y8: 48280464.59 | Z8: 596233 | AA8: 0 | AB8: 1255189 | AD8: 0 | AE8: 5429558 | AF8: 4662910 | AG8: 7219831 | AH8: 1830213 | AI8: 0 | AJ8: 0 | AK8: 2039941.279 | AL8: 23033875.28 | AO8: 283427.4 | AP8: 283427.4 | AQ8: 22750447.88 | AR8: 71030912.47 | AS8: 52988778 | AT8: 0 | AU8: 52988778 | AV8: 0 | AW8: 0 | AX8: 0 | AY8: 0 | BA8: 111502 | BB8: 50397491 | BC8: 68614263.47 | BD8: 18216772.47 | BE8: 18105270.47 | BF8: 0 | BG8: 61900 | BI8: 1037605 | BJ8: 45317642 | BK8: 0 | BL8: 0 | BM8: 107328 | BN8: 0 | BO8: 0 | BP8: 0 | BQ8: 0 | BR8: 0 | BS8: 0 | BT8: 4148292 | BU8: 50610867 | BW8: 77076 | BY8: 77076 | BZ8: 50533791 | CB8: 622138 | CC8: 0 | CD8: 1349675 | CF8: 0 | CG8: 6331111 | CH8: 4839010 | CI8: 7877565 | CJ8: 1840219 | CK8: 0 | CL8: 0 | CM8: 2436490.239 | CN8: 25296208.24 | CQ8: 452708.9483 | CR8: 452708.9483 | CS8: 24843499.29 | CT8: 75377290.29 | CU8: 55345476 | CV8: 0 | CW8: 55345476 | CX8: 0 | CY8: 0 | CZ8: 0 | DA8: 0
A9: 0006 | B9: 0 | C9: 0 | H9: 0 | I9: 0 | J9: 0 | K9: 0 | L9: 0 | M9: 0 | N9: 0 | O9: 0 | P9: 0 | Q9: 0 | R9: 0 | S9: 0 | T9: 0 | V9: 0 | X9: 0 | Y9: 0 | Z9: 0 | AA9: 0 | AB9: 0 | AD9: 0 | AE9: 0 | AF9: 0 | AG9: 0 | AH9: 0 | AI9: 0 | AJ9: 0 | AK9: 0 | AL9: 0 | AO9: 0 | AP9: 0 | AQ9: 0 | AR9: 0 | AS9: 0 | AT9: 0 | AU9: 0 | AV9: 0 | AW9: 0 | AX9: 0 | AY9: 0 | BA9: 0 | BB9: 0 | BC9: 0 | BD9: 0 | BE9: 0 | BF9: 0 | BG9: 0 | BI9: 0 | BJ9: 0 | BK9: 0 | BL9: 0 | BM9: 0 | BN9: 0 | BO9: 0 | BP9: 0 | BQ9: 0 | BR9: 0 | BS9: 0 | BT9: 0 | BU9: 0 | BW9: 0 | BY9: 0 | BZ9: 0 | CB9: 0 | CC9: 0 | CD9: 0 | CF9: 0 | CG9: 0 | CH9: 0 | CI9: 0 | CJ9: 0 | CK9: 0 | CL9: 0 | CM9: 0 | CN9: 0 | CQ9: 0 | CR9: 0 | CS9: 0 | CT9: 0 | CU9: 0 | CV9: 0 | CW9: 0 | CX9: 0 | CY9: 0 | CZ9: 0 | DA9: 0
A10: 0007 | B10: 1 | C10: 1 | D10: 2025-09-23 | E10: 1 | F10: 1 | G10: 1 | H10: 692769.96 | I10: 21787876.85 | J10: 463258.55 | K10: 725 | L10: 455446.52 | M10: 3385709.37 | N10: 1489729 | O10: 4941666.6 | P10: 390216.62 | Q10: 108000 | R10: 0 | S10: 2515886.75 | T10: 36231285.22 | V10: 0 | X10: 0 | Y10: 36231285.22 | Z10: 260616.05 | AA10: 0 | AB10: 0 | AD10: 0 | AE10: 37500 | AF10: 0 | AG10: 0 | AH10: 1946475 | AI10: 0 | AJ10: 0 | AK10: 2484996.09 | AL10: 4729587.14 | AO10: 497231 | AP10: 497231 | AQ10: 4232356.14 | AR10: 40463641.36 | AS10: 28829720 | AT10: 0 | AU10: 28829720 | AV10: 0 | AW10: 0 | AX10: 0 | AY10: 0 | BA10: 0 | BB10: 27706889 | BC10: 39196298.21 | BD10: 11489409.21 | BE10: 11489409.21 | BF10: 0 | BG10: 0 | BI10: 1057546 | BJ10: 22302169 | BK10: 469997 | BL10: 0 | BM10: 551082 | BN10: 3339951 | BO10: 1536966 | BP10: 5655031 | BQ10: 450068 | BR10: 0 | BS10: 0 | BT10: 2748095 | BU10: 38110905 | BW10: 0 | BY10: 0 | BZ10: 38110905 | CB10: 293165.63 | CC10: 0 | CD10: 0 | CF10: 0 | CG10: 37500 | CH10: 0 | CI10: 0 | CJ10: 2260532 | CK10: 0 | CL10: 0 | CM10: 2676934.66 | CN10: 5268132.29 | CQ10: 304799.6694 | CR10: 304799.6694 | CS10: 4963332.621 | CT10: 43074237.62 | CU10: 30244289 | CV10: 0 | CW10: 30244289 | CX10: 0 | CY10: 0 | CZ10: 0 | DA10: 0
A11: 0008 | B11: 1 | C11: 1 | D11: 2025-09-18 | E11: 1 | F11: 1 | G11: 1 | H11: 1095870 | I11: 17394966 | J11: 344576 | K11: 0 | L11: 122250 | M11: 2305400 | N11: 23411 | O11: 3131357 | P11: 1727296 | Q11: 0 | R11: 0 | S11: 163391 | T11: 26308517 | V11: 0 | X11: 0 | Y11: 26308517 | Z11: 137551 | AA11: 0 | AB11: 0 | AD11: 0 | AE11: 0 | AF11: 1526801 | AG11: 0 | AH11: 0 | AI11: 0 | AJ11: 0 | AK11: 2113334.32 | AL11: 3777686.32 | AO11: 89669 | AP11: 89669 | AQ11: 3688017.32 | AR11: 29996534.32 | AS11: 17500933 | AT11: 0 | AU11: 17500933 | AV11: 0 | AW11: 0 | AX11: 0 | AY11: 0 | BA11: 0 | BB11: 17448921 | BC11: 29136158.5 | BD11: 11687237.5 | BE11: 11687237.5 | BF11: 0 | BG11: 0 | BI11: 1106851 | BJ11: 17681142 | BK11: 435343 | BL11: 0 | BM11: 0 | BN11: 1960373 | BO11: 15000 | BP11: 4265285 | BQ11: 1991110 | BR11: 0 | BS11: 0 | BT11: 75000 | BU11: 27530104 | BW11: 0 | BY11: 0 | BZ11: 27530104 | CB11: 158575 | CC11: 0 | CD11: 0 | CF11: 0 | CG11: 0 | CH11: 1526801 | CI11: 0 | CJ11: 0 | CK11: 0 | CL11: 0 | CM11: 2253102.38 | CN11: 3938478.38 | CQ11: 177984.7016 | CR11: 177984.7016 | CS11: 3760493.678 | CT11: 31290597.68 | CU11: 18435029 | CV11: 0 | CW11: 18435029 | CX11: 0 | CY11: 0 | CZ11: 0 | DA11: 0
A12: 0009 | B12: 1 | C12: 1 | D12: 2025-11-20 | E12: 1 | F12: 1 | G12: 1 | H12: 3742574.48 | I12: 79279074.54 | J12: 1524096.63 | K12: 16738 | L12: 1274646 | M12: 4359068 | N12: 125120 | O12: 1137360 | P12: 0 | Q12: 0 | R12: 0 | S12: 4308263 | T12: 95766940.65 | V12: 0 | X12: 0 | Y12: 95766940.65 | Z12: 240845.8 | AA12: 0 | AB12: 0 | AD12: 4000 | AE12: 8911224.93 | AF12: 2057672 | AG12: 12114101 | AH12: 2592518.4 | AI12: 0 | AJ12: 0 | AK12: 338454.9 | AL12: 26258817.03 | AO12: 0 | AP12: 0 | AQ12: 26258817.03 | AR12: 122025757.7 | AS12: 74410097 | AT12: 0 | AU12: 74410097 | AV12: 0 | AW12: 0 | AX12: 0 | AY12: 0 | BA12: 0 | BB12: 72244408 | BC12: 118032099.2 | BD12: 45787691.17 | BE12: 45787691.17 | BF12: 0 | BG12: 0 | BI12: 3598375.7 | BJ12: 82235146.74 | BK12: 1632024.11 | BL12: 0 | BM12: 1353293.46 | BN12: 4650517.23 | BO12: 223000.31 | BP12: 1261809 | BQ12: 0 | BR12: 0 | BS12: 0 | BT12: 4448637 | BU12: 99402803.55 | BW12: 0 | BY12: 0 | BZ12: 99402803.55 | CB12: 231489 | CC12: 0 | CD12: 0 | CF12: 4080 | CG12: 8221723 | CH12: 2156831 | CI12: 17000749 | CJ12: 3033245.7 | CK12: 0 | CL12: 0 | CM12: 314731.64 | CN12: 30962849.34 | CQ12: 0 | CR12: 0 | CS12: 30962849.34 | CT12: 130365652.9 | CU12: 77426406 | CV12: 0 | CW12: 77426406 | CX12: 0 | CY12: 0 | CZ12: 0 | DA12: 0
A13: 0010 | B13: 1 | C13: 1 | D13: 2025-11-04 | E13: 1 | F13: 1 | G13: 0.9995338654 | H13: 3893779.63 | I13: 74918279.09 | J13: 2196633.95 | K13: 30030 | L13: 1575657.33 | M13: 7337453.55 | N13: 49707.05 | O13: 0 | P13: 0 | Q13: 0 | R13: 0 | S13: 3908293.79 | T13: 93909834.39 | V13: 0 | X13: 0 | Y13: 93909834.39 | Z13: 662557.9309 | AA13: 150699.9 | AB13: 0 | AD13: 103983.15 | AE13: 686677.7664 | AF13: 6756216.44 | AG13: 12446413.57 | AH13: 2832538 | AI13: 0 | AJ13: 0 | AK13: 559485.83 | AL13: 24198572.59 | AO13: 72420.2 | AP13: 72420.2 | AQ13: 24126152.39 | AR13: 118035986.8 | AS13: 78223272 | AT13: 0 | AU13: 78223272 | AV13: 0 | AW13: 0 | AX13: 0 | AY13: 0 | BA13: 469381.28 | BB13: 74896749 | BC13: 109074009 | BD13: 34177260.05 | BE13: 33707878.77 | BF13: 0 | BG13: 0 | BI13: 4279487.62 | BJ13: 80659242.37 | BK13: 2187300.62 | BL13: 100000 | BM13: 1557273.02 | BN13: 8622425.18 | BO13: 4487.6 | BP13: 0 | BQ13: 0 | BR13: 0 | BS13: 0 | BT13: 4320200.58 | BU13: 101730417 | BW13: 0 | BY13: 0 | BZ13: 101730417 | CB13: 749581.3798 | CC13: 180002.46 | CD13: 0 | CF13: 106062.81 | CG13: 622341.56 | CH13: 6756216.44 | CI13: 12446413.57 | CJ13: 2832538 | CK13: 0 | CL13: 0 | CM13: 678111.39 | CN13: 24371267.61 | CQ13: 115564.944 | CR13: 115564.944 | CS13: 24255702.67 | CT13: 125986119.7 | CU13: 82152454 | CV13: 0 | CW13: 82152454 | CX13: 0 | CY13: 0 | CZ13: 0 | DA13: 0
A14: 0011 | B14: 0 | C14: 0 | D14: 2025-12-03 | H14: 0 | I14: 0 | J14: 0 | K14: 0 | L14: 0 | M14: 0 | N14: 0 | O14: 0 | P14: 0 | Q14: 0 | R14: 0 | S14: 0 | T14: 0 | V14: 0 | X14: 0 | Y14: 0 | Z14: 0 | AA14: 0 | AB14: 0 | AD14: 0 | AE14: 0 | AF14: 0 | AG14: 0 | AH14: 0 | AI14: 0 | AJ14: 0 | AK14: 0 | AL14: 0 | AO14: 0 | AP14: 0 | AQ14: 0 | AR14: 0 | AS14: 0 | AT14: 0 | AU14: 0 | AV14: 0 | AW14: 0 | AX14: 0 | AY14: 0 | BA14: 0 | BB14: 0 | BC14: 0 | BD14: 0 | BE14: 0 | BF14: 0 | BG14: 0 | BI14: 0 | BJ14: 0 | BK14: 0 | BL14: 0 | BM14: 0 | BN14: 0 | BO14: 0 | BP14: 0 | BQ14: 0 | BR14: 0 | BS14: 0 | BT14: 0 | BU14: 0 | BW14: 0 | BY14: 0 | BZ14: 0 | CB14: 0 | CC14: 0 | CD14: 0 | CF14: 0 | CG14: 0 | CH14: 0 | CI14: 0 | CJ14: 0 | CK14: 0 | CL14: 0 | CM14: 0 | CN14: 0 | CQ14: 0 | CR14: 0 | CS14: 0 | CT14: 0 | CU14: 0 | CV14: 0 | CW14: 0 | CX14: 0 | CY14: 0 | CZ14: 0 | DA14: 0
A15: 0012 | B15: 0 | C15: 0 | D15: 2025-10-17 | H15: 0 | I15: 0 | J15: 0 | K15: 0 | L15: 0 | M15: 0 | N15: 0 | O15: 0 | P15: 0 | Q15: 0 | R15: 0 | S15: 0 | T15: 0 | V15: 0 | X15: 0 | Y15: 0 | Z15: 0 | AA15: 0 | AB15: 0 | AD15: 0 | AE15: 0 | AF15: 0 | AG15: 0 | AH15: 0 | AI15: 0 | AJ15: 0 | AK15: 0 | AL15: 0 | AO15: 0 | AP15: 0 | AQ15: 0 | AR15: 0 | AS15: 0 | AT15: 0 | AU15: 0 | AV15: 0 | AW15: 0 | AX15: 0 | AY15: 0 | BA15: 0 | BB15: 0 | BC15: 0 | BD15: 0 | BE15: 0 | BF15: 0 | BG15: 0 | BI15: 0 | BJ15: 0 | BK15: 0 | BL15: 0 | BM15: 0 | BN15: 0 | BO15: 0 | BP15: 0 | BQ15: 0 | BR15: 0 | BS15: 0 | BT15: 0 | BU15: 0 | BW15: 0 | BY15: 0 | BZ15: 0 | CB15: 0 | CC15: 0 | CD15: 0 | CF15: 0 | CG15: 0 | CH15: 0 | CI15: 0 | CJ15: 0 | CK15: 0 | CL15: 0 | CM15: 0 | CN15: 0 | CQ15: 0 | CR15: 0 | CS15: 0 | CT15: 0 | CU15: 0 | CV15: 0 | CW15: 0 | CX15: 0 | CY15: 0 | CZ15: 0 | DA15: 0
A16: 0013 | B16: 0 | C16: 0 | D16: 2025-10-17 | H16: 0 | I16: 0 | J16: 0 | K16: 0 | L16: 0 | M16: 0 | N16: 0 | O16: 0 | P16: 0 | Q16: 0 | R16: 0 | S16: 0 | T16: 0 | V16: 0 | X16: 0 | Y16: 0 | Z16: 0 | AA16: 0 | AB16: 0 | AD16: 0 | AE16: 0 | AF16: 0 | AG16: 0 | AH16: 0 | AI16: 0 | AJ16: 0 | AK16: 0 | AL16: 0 | AO16: 0 | AP16: 0 | AQ16: 0 | AR16: 0 | AS16: 252309 | AT16: 13634.9 | AU16: 265943.9 | AV16: -265943.9 | AW16: -1.054040482 | AX16: 12615.45 | AY16: 0 | BA16: 0 | BB16: 272698 | BC16: 237254 | BD16: -35444 | BE16: -35444 | BF16: 0 | BG16: 0 | BI16: 0 | BJ16: 0 | BK16: 0 | BL16: 0 | BM16: 0 | BN16: 0 | BO16: 0 | BP16: 0 | BQ16: 0 | BR16: 0 | BS16: 0 | BT16: 0 | BU16: 0 | BW16: 0 | BY16: 0 | BZ16: 0 | CB16: 0 | CC16: 0 | CD16: 0 | CF16: 0 | CG16: 0 | CH16: 0 | CI16: 0 | CJ16: 0 | CK16: 0 | CL16: 0 | CM16: 0 | CN16: 0 | CQ16: 0 | CR16: 0 | CS16: 0 | CT16: 0 | CU16: 275866 | CV16: 12615.45 | CW16: 288481.45 | CX16: -288481.45 | CY16: 0 | CZ16: 288481.45 | DA16: 0
A17: 0014 | B17: 1 | C17: 1 | D17: 2025-09-30 | E17: 1 | F17: 1 | G17: 1 | H17: 2248439.47 | I17: 30755558.45 | J17: 808148.46 | K17: 3401.96 | L17: 881255 | M17: 3332381.63 | N17: 33450 | O17: 0 | P17: 0 | Q17: 0 | R17: 0 | S17: 1972839 | T17: 40035473.97 | V17: 0 | X17: 0 | Y17: 40035473.97 | Z17: 0 | AA17: 0 | AB17: 0 | AD17: 0 | AE17: 68383 | AF17: 2071967 | AG17: 4841469.4 | AH17: 931590 | AI17: 0 | AJ17: 0 | AK17: 185582.8 | AL17: 8098992.2 | AO17: 35856 | AP17: 35856 | AQ17: 8063136.2 | AR17: 48098610.17 | AS17: 38361802 | AT17: 0 | AU17: 38361802 | AV17: 0 | AW17: 0 | AX17: 0 | AY17: 0 | BA17: 0 | BB17: 36758231 | BC17: 44531803.97 | BD17: 7773572.971 | BE17: 7773572.971 | BF17: 0 | BG17: 0 | BI17: 2166609 | BJ17: 31716660 | BK17: 863427 | BL17: 4000 | BM17: 596089 | BN17: 3401511 | BO17: 50000 | BP17: 300 | BQ17: 0 | BR17: 0 | BS17: 0 | BT17: 2817101 | BU17: 41615697 | BW17: 0 | BY17: 0 | BZ17: 41615697 | CB17: 0 | CC17: 0 | CD17: 0 | CF17: 0 | CG17: 81317.16 | CH17: 2237445 | CI17: 5277473 | CJ17: 1024749 | CK17: 0 | CL17: 0 | CM17: 199214.78 | CN17: 8820198.94 | CQ17: 17941.02808 | CR17: 17941.02808 | CS17: 8802257.912 | CT17: 50417954.91 | CU17: 40537648 | CV17: 0 | CW17: 40537648 | CX17: 0 | CY17: 0 | CZ17: 0 | DA17: 0
A18: 0015 | B18: 0 | C18: 0 | D18: 2025-10-21 | H18: 0 | I18: 0 | J18: 0 | K18: 0 | L18: 0 | M18: 0 | N18: 0 | O18: 0 | P18: 0 | Q18: 0 | R18: 0 | S18: 0 | T18: 0 | V18: 0 | X18: 0 | Y18: 0 | Z18: 0 | AA18: 0 | AB18: 0 | AD18: 0 | AE18: 0 | AF18: 0 | AG18: 0 | AH18: 0 | AI18: 0 | AJ18: 0 | AK18: 0 | AL18: 0 | AO18: 0 | AP18: 0 | AQ18: 0 | AR18: 0 | AS18: 0 | AT18: 796.808 | AU18: 796.808 | AV18: -796.808 | AW18: 0 | AX18: 796.808 | AY18: 0 | BA18: 0 | BB18: 796.808 | BC18: 0 | BD18: -796.808 | BE18: -796.808 | BF18: 0 | BG18: 0 | BI18: 0 | BJ18: 0 | BK18: 0 | BL18: 0 | BM18: 0 | BN18: 0 | BO18: 0 | BP18: 0 | BQ18: 0 | BR18: 0 | BS18: 0 | BT18: 0 | BU18: 0 | BW18: 0 | BY18: 0 | BZ18: 0 | CB18: 0 | CC18: 0 | CD18: 0 | CF18: 0 | CG18: 0 | CH18: 0 | CI18: 0 | CJ18: 0 | CK18: 0 | CL18: 0 | CM18: 0 | CN18: 0 | CQ18: 0 | CR18: 0 | CS18: 0 | CT18: 0 | CU18: 0 | CV18: 796.808 | CW18: 796.808 | CX18: -796.808 | CY18: 0 | CZ18: 796.808 | DA18: 0
A19: 0016 | B19: 1 | C19: 1 | D19: 2025-10-16 | E19: 1 | F19: 1 | G19: 1 | H19: 4186513 | I19: 61410534.47 | J19: 1334649 | K19: 0 | L19: 957017 | M19: 11587455.99 | N19: 2287097 | O19: 15196287 | P19: 0 | Q19: 0 | R19: 0 | S19: 3965494.81 | T19: 100925048.3 | V19: 161051.37 | X19: 161051.37 | Y19: 100763996.9 | Z19: 916584.47 | AA19: 0 | AB19: 1000 | AD19: 82847.91 | AE19: 0 | AF19: 0 | AG19: 0 | AH19: 0 | AI19: 0 | AJ19: 0 | AK19: 3380736.97 | AL19: 4381169.35 | AO19: 0 | AP19: 0 | AQ19: 4381169.35 | AR19: 105145166.2 | AS19: 102004503 | AT19: 1791549.008 | AU19: 103796052 | AV19: 0 | AW19: 0 | AX19: 0 | AY19: 0 | BA19: 81051.37 | BB19: 97105121 | BC19: 95313571.99 | BD19: -1791549.008 | BE19: -1872600.378 | BF19: 81051.37 | BG19: 80000 | BI19: 4177097 | BJ19: 67001076 | BK19: 1440800 | BL19: 0 | BM19: 1031400 | BN19: 10256333.41 | BO19: 2783760.5 | BP19: 17130055.29 | BQ19: 0 | BR19: 0 | BS19: 0 | BT19: 2715039 | BU19: 106535561.2 | BW19: 80000 | BY19: 80000 | BZ19: 106455561.2 | CB19: 983838.8 | CC19: 0 | CD19: 1000 | CF19: 72000 | CG19: 0 | CH19: 0 | CI19: 0 | CJ19: 895968.69 | CK19: 0 | CL19: 0 | CM19: 3291783.72 | CN19: 5244591.21 | CQ19: 0 | CR19: 0 | CS19: 5244591.21 | CT19: 111700152.4 | CU19: 110074456 | CV19: 0 | CW19: 110074456 | CX19: 0 | CY19: 0 | CZ19: 0 | DA19: 0
A20: 0017 | B20: 1 | C20: 1 | D20: 2025-10-30 | E20: 1 | F20: 1 | G20: 1 | H20: 794097.87 | I20: 24732371.77 | J20: 735263.34 | K20: 0 | L20: 623229.69 | M20: 2643368.16 | N20: 36804.87 | O20: 0 | P20: 0 | Q20: 0 | R20: 0 | S20: 677165.74 | T20: 30242301.44 | V20: 0 | X20: 0 | Y20: 30242301.44 | Z20: 277298.87 | AA20: 0 | AB20: 0 | AD20: 13720.57 | AE20: 223119.5 | AF20: 2389823.48 | AG20: 4718695.92 | AH20: 2525135 | AI20: 0 | AJ20: 0 | AK20: 205218.43 | AL20: 10353011.77 | AO20: 0 | AP20: 0 | AQ20: 10353011.77 | AR20: 40595313.21 | AS20: 33139220 | AT20: 0 | AU20: 33139220 | AV20: 0 | AW20: 0 | AX20: 0 | AY20: 0 | BA20: 0 | BB20: 32176028 | BC20: 38260562.25 | BD20: 6084534.252 | BE20: 6084534.252 | BF20: 0 | BG20: 0 | BI20: 1107230 | BJ20: 25944484.6 | BK20: 115056.21 | BL20: 0 | BM20: 1329556.12 | BN20: 2438050.74 | BO20: 55000 | BP20: 0 | BQ20: 0 | BR20: 0 | BS20: 0 | BT20: 573939.69 | BU20: 31563317.36 | BW20: 0 | BY20: 0 | BZ20: 31563317.36 | CB20: 279525.71 | CC20: 0 | CD20: 0 | CF20: 0 | CG20: 205340.19 | CH20: 2146822.75 | CI20: 4476396.32 | CJ20: 2380454 | CK20: 0 | CL20: 0 | CM20: 228343.82 | CN20: 9716882.79 | CQ20: 0 | CR20: 0 | CS20: 9716882.79 | CT20: 41280200.15 | CU20: 34548898 | CV20: 0 | CW20: 34548898 | CX20: 0 | CY20: 0 | CZ20: 0 | DA20: 0
A21: 0018 | B21: 1 | C21: 1 | D21: 2025-10-30 | E21: 1 | F21: 1 | G21: 1 | H21: 559797.58 | I21: 8198855.88 | J21: 155763.38 | K21: 0 | L21: 194962.87 | M21: 1182493.68 | N21: 87314.77 | O21: 0 | P21: 0 | Q21: 0 | R21: 0 | S21: 396425.79 | T21: 10775613.95 | V21: 0 | X21: 0 | Y21: 10775613.95 | Z21: 158365 | AA21: 0 | AB21: 0 | AD21: 0 | AE21: 192698 | AF21: 778577.44 | AG21: 1957560 | AH21: 275230 | AI21: 0 | AJ21: 0 | AK21: 445684.98 | AL21: 3808115.42 | AO21: 125428.4 | AP21: 125428.4 | AQ21: 3682687.02 | AR21: 14458300.97 | AS21: 9880363 | AT21: 0 | AU21: 9880363 | AV21: 0 | AW21: 0 | AX21: 0 | AY21: 0 | BA21: 101597.11 | BB21: 9536789 | BC21: 13241047.4 | BD21: 3704258.399 | BE21: 3602661.289 | BF21: 0 | BG21: 0 | BI21: 608591.72 | BJ21: 9663504.63 | BK21: 170576 | BL21: 0 | BM21: 256236 | BN21: 1224731.02 | BO21: 53596.23 | BP21: 0 | BQ21: 0 | BR21: 0 | BS21: 0 | BT21: 601339 | BU21: 12578574.6 | BW21: 0 | BY21: 0 | BZ21: 12578574.6 | CB21: 174075 | CC21: 0 | CD21: 0 | CF21: 0 | CG21: 217191.8 | CH21: 593514.8 | CI21: 1886765 | CJ21: 532165 | CK21: 0 | CL21: 0 | CM21: 365245.14 | CN21: 3768956.74 | CQ21: 27392.47925 | CR21: 27392.47925 | CS21: 3741564.261 | CT21: 16320138.86 | CU21: 10349489 | CV21: 0 | CW21: 10349489 | CX21: 0 | CY21: 0 | CZ21: 0 | DA21: 0
A22: 0019 | B22: 0 | C22: 0 | D22: 2025-10-13 | H22: 0 | I22: 0 | J22: 0 | K22: 0 | L22: 0 | M22: 0 | N22: 0 | O22: 0 | P22: 0 | Q22: 0 | R22: 0 | S22: 0 | T22: 0 | V22: 0 | X22: 0 | Y22: 0 | Z22: 0 | AA22: 0 | AB22: 0 | AD22: 0 | AE22: 0 | AF22: 0 | AG22: 0 | AH22: 0 | AI22: 0 | AJ22: 0 | AK22: 0 | AL22: 0 | AO22: 0 | AP22: 0 | AQ22: 0 | AR22: 0 | AS22: 0 | AT22: 0 | AU22: 0 | AV22: 0 | AW22: 0 | AX22: 0 | AY22: 0 | BA22: 0 | BB22: 0 | BC22: 0 | BD22: 0 | BE22: 0 | BF22: 0 | BG22: 0 | BI22: 0 | BJ22: 0 | BK22: 0 | BL22: 0 | BM22: 0 | BN22: 0 | BO22: 0 | BP22: 0 | BQ22: 0 | BR22: 0 | BS22: 0 | BT22: 0 | BU22: 0 | BW22: 0 | BY22: 0 | BZ22: 0 | CB22: 0 | CC22: 0 | CD22: 0 | CF22: 0 | CG22: 0 | CH22: 0 | CI22: 0 | CJ22: 0 | CK22: 0 | CL22: 0 | CM22: 0 | CN22: 0 | CQ22: 0 | CR22: 0 | CS22: 0 | CT22: 0 | CU22: 0 | CV22: 0 | CW22: 0 | CX22: 0 | CY22: 0 | CZ22: 0 | DA22: 0
A23: 0020 | B23: 1 | C23: 1 | D23: 2025-10-28 | E23: 1 | F23: 1 | G23: 1 | H23: 1800102.53 | I23: 66952268.4 | J23: 1923086.64 | K23: 1686.77 | L23: 1173273.87 | M23: 8491305.41 | N23: 105093.9 | O23: 50000 | P23: 0 | Q23: 0 | R23: 0 | S23: 4453880.45 | T23: 84950697.97 | V23: 0 | X23: 0 | Y23: 84950697.97 | Z23: 2100978.74 | AA23: 0 | AB23: 0 | AD23: 0 | AE23: 0 | AF23: 2946418.291 | AG23: 8622259.81 | AH23: 3513960.064 | AI23: 0 | AJ23: 0 | AK23: 8476326.91 | AL23: 25659943.82 | AO23: 1424318.8 | AP23: 1424318.8 | AQ23: 24235625.02 | AR23: 109186323 | AS23: 89214280 | AT23: 0 | AU23: 89214280 | AV23: 0 | AW23: 0 | AX23: 0 | AY23: 0 | BA23: 136584.22 | BB23: 84542110 | BC23: 100799203.8 | BD23: 16257093.83 | BE23: 16120509.61 | BF23: 0 | BG23: 0 | BI23: 1951341.32 | BJ23: 70795192.27 | BK23: 1915937.36 | BL23: 3000 | BM23: 1255701.15 | BN23: 8830615.46 | BO23: 65000 | BP23: 0 | BQ23: 0 | BR23: 0 | BS23: 0 | BT23: 2892959.58 | BU23: 87709747.14 | BW23: 0 | BY23: 0 | BZ23: 87709747.14 | CB23: 2152165.72 | CC23: 0 | CD23: 0 | CF23: 0 | CG23: 0 | CH23: 3191044.912 | CI23: 8571738.21 | CJ23: 4292038.872 | CK23: 0 | CL23: 0 | CM23: 9181798.87 | CN23: 27388786.58 | CQ23: 1008544.416 | CR23: 1008544.416 | CS23: 26380242.17 | CT23: 114089989.3 | CU23: 94547936 | CV23: 0 | CW23: 94547936 | CX23: 0 | CY23: 0 | CZ23: 0 | DA23: 0
A24: 0021 | B24: 0 | C24: 0 | D24: 2025-10-17 | H24: 0 | I24: 0 | J24: 0 | K24: 0 | L24: 0 | M24: 0 | N24: 0 | O24: 0 | P24: 0 | Q24: 0 | R24: 0 | S24: 0 | T24: 0 | V24: 0 | X24: 0 | Y24: 0 | Z24: 0 | AA24: 0 | AB24: 0 | AD24: 0 | AE24: 0 | AF24: 0 | AG24: 0 | AH24: 0 | AI24: 0 | AJ24: 0 | AK24: 0 | AL24: 0 | AO24: 0 | AP24: 0 | AQ24: 0 | AR24: 0 | AS24: 0 | AT24: 0 | AU24: 0 | AV24: 0 | AW24: 0 | AX24: 0 | AY24: 0 | BA24: 0 | BB24: 0 | BC24: 0 | BD24: 0 | BE24: 0 | BF24: 0 | BG24: 0 | BI24: 0 | BJ24: 0 | BK24: 0 | BL24: 0 | BM24: 0 | BN24: 0 | BO24: 0 | BP24: 0 | BQ24: 0 | BR24: 0 | BS24: 0 | BT24: 0 | BU24: 0 | BW24: 0 | BY24: 0 | BZ24: 0 | CB24: 0 | CC24: 0 | CD24: 0 | CF24: 0 | CG24: 0 | CH24: 0 | CI24: 0 | CJ24: 0 | CK24: 0 | CL24: 0 | CM24: 0 | CN24: 0 | CQ24: 0 | CR24: 0 | CS24: 0 | CT24: 0 | CU24: 0 | CV24: 0 | CW24: 0 | CX24: 0 | CY24: 0 | CZ24: 0 | DA24: 0
A25: 0022 | B25: 0 | C25: 0 | H25: 0 | I25: 0 | J25: 0 | K25: 0 | L25: 0 | M25: 0 | N25: 0 | O25: 0 | P25: 0 | Q25: 0 | R25: 0 | S25: 0 | T25: 0 | V25: 0 | X25: 0 | Y25: 0 | Z25: 0 | AA25: 0 | AB25: 0 | AD25: 0 | AE25: 0 | AF25: 0 | AG25: 0 | AH25: 0 | AI25: 0 | AJ25: 0 | AK25: 0 | AL25: 0 | AO25: 0 | AP25: 0 | AQ25: 0 | AR25: 0 | AS25: 275631 | AT25: 5.08 | AU25: 275636.08 | AV25: -275636.08 | AW25: -1.00001843 | AX25: 13781.55 | AY25: 0 | BA25: 0 | BB25: 266284 | BC25: 266278.92 | BD25: -5.08 | BE25: -5.08 | BF25: 0 | BG25: 0 | BI25: 0 | BJ25: 0 | BK25: 0 | BL25: 0 | BM25: 0 | BN25: 0 | BO25: 0 | BP25: 0 | BQ25: 0 | BR25: 0 | BS25: 0 | BT25: 0 | BU25: 0 | BW25: 0 | BY25: 0 | BZ25: 0 | CB25: 0 | CC25: 0 | CD25: 0 | CF25: 0 | CG25: 0 | CH25: 0 | CI25: 0 | CJ25: 0 | CK25: 0 | CL25: 0 | CM25: 25689.94 | CN25: 25689.94 | CQ25: 0 | CR25: 0 | CS25: 25689.94 | CT25: 25689.94 | CU25: 364414 | CV25: 13781.55 | CW25: 378195.55 | CX25: -352505.61 | CY25: 0 | CZ25: 352505.61 | DA25: 0
A26: 0023 | B26: 1 | C26: 1 | D26: 2025-10-06 | E26: 1 | F26: 1 | G26: 1 | H26: 2974183 | I26: 37336751 | J26: 618863 | K26: 6737 | L26: 1285350 | M26: 3180311 | N26: 243184 | O26: 0 | P26: 0 | Q26: 0 | R26: 0 | S26: 3241034 | T26: 48886413 | V26: 0 | X26: 0 | Y26: 48886413 | Z26: 580441 | AA26: 0 | AB26: 0 | AD26: 0 | AE26: 0 | AF26: 2403077 | AG26: 6392065 | AH26: 1197269 | AI26: 0 | AJ26: 0 | AK26: 80248.90024 | AL26: 10653100.9 | AO26: 0 | AP26: 0 | AQ26: 10653100.9 | AR26: 59539513.9 | AS26: 35021978 | AT26: 0 | AU26: 35021978 | AV26: 0 | AW26: 0 | AX26: 0 | AY26: 0 | BA26: 106736 | BB26: 33464417 | BC26: 55156096.34 | BD26: 21691679.34 | BE26: 21584943.34 | BF26: 0 | BG26: 0 | BI26: 1947125 | BJ26: 39245671 | BK26: 695920 | BL26: 12360 | BM26: 1312508 | BN26: 3179032 | BO26: 119675 | BP26: 0 | BQ26: 0 | BR26: 0 | BS26: 0 | BT26: 3050690 | BU26: 49562981 | BW26: 0 | BY26: 0 | BZ26: 49562981 | CB26: 629079 | CC26: 0 | CD26: 0 | CF26: 0 | CG26: 0 | CH26: 2669786 | CI26: 6917294 | CJ26: 1279795 | CK26: 0 | CL26: 0 | CM26: 121643.7202 | CN26: 11617597.72 | CQ26: 0 | CR26: 0 | CS26: 11617597.72 | CT26: 61180578.72 | CU26: 35745088 | CV26: 0 | CW26: 35745088 | CX26: 0 | CY26: 0 | CZ26: 0 | DA26: 0
A27: 0024 | B27: 1 | C27: 1 | D27: 2025-10-21 | E27: 1 | F27: 1 | G27: 1 | H27: 1224081.72 | I27: 19726254.48 | J27: 585047.46 | K27: 0 | L27: 461976.93 | M27: 3221062.28 | N27: 22244 | O27: 3941896.07 | P27: 301868.29 | Q27: 0 | R27: 0 | S27: 567959.34 | T27: 30052390.57 | V27: 0 | X27: 0 | Y27: 30052390.57 | Z27: 253094 | AA27: 1729 | AB27: 0 | AD27: 0 | AE27: 3015 | AF27: 1470284 | AG27: 280836 | AH27: 0 | AI27: 0 | AJ27: 0 | AK27: 1651705.43 | AL27: 3660663.43 | AO27: 38632 | AP27: 38632 | AQ27: 3622031.43 | AR27: 33674422 | AS27: 28680410 | AT27: 0 | AU27: 28680410 | AV27: 0 | AW27: 0 | AX27: 0 | AY27: 0 | BA27: 0 | BB27: 27973238 | BC27: 32434984.22 | BD27: 4461746.22 | BE27: 4461746.22 | BF27: 0 | BG27: 0 | BI27: 1252157 | BJ27: 20822454 | BK27: 645617 | BL27: 0 | BM27: 464226 | BN27: 2689579 | BO27: 0 | BP27: 5611279 | BQ27: 0 | BR27: 0 | BS27: 0 | BT27: 1038479 | BU27: 32523791 | BW27: 0 | BY27: 0 | BZ27: 32523791 | CB27: 273216 | CC27: 0 | CD27: 0 | CF27: 0 | CG27: 3042 | CH27: 1518686 | CI27: 280836 | CJ27: 0 | CK27: 0 | CL27: 0 | CM27: 1859901.22 | CN27: 3935681.22 | CQ27: 167085.5726 | CR27: 167085.5726 | CS27: 3768595.647 | CT27: 36292386.65 | CU27: 29787660 | CV27: 0 | CW27: 29787660 | CX27: 0 | CY27: 0 | CZ27: 0 | DA27: 0
A28: 0025 | B28: 1 | C28: 1 | D28: 2025-12-12 | E28: 1 | F28: 1 | G28: 1 | H28: 936287.23 | I28: 23273318.25 | J28: 393510.08 | K28: 0 | L28: 768392 | M28: 2906122.41 | N28: 28023.94 | O28: 0 | P28: 0 | Q28: 0 | R28: 0 | S28: 2266997.56 | T28: 30572651.47 | V28: 0 | X28: 0 | Y28: 30572651.47 | Z28: 543951 | AA28: 0 | AB28: 0 | AD28: 0 | AE28: 0 | AF28: 1298946 | AG28: 6168924 | AH28: 548771.2 | AI28: 0 | AJ28: 0 | AK28: 4025635.65 | AL28: 12586227.85 | AO28: 400135.4 | AP28: 400135.4 | AQ28: 12186092.45 | AR28: 42758743.92 | AS28: 31022708 | AT28: 0 | AU28: 31022708 | AV28: 0 | AW28: 0 | AX28: 0 | AY28: 0 | BA28: 261267.9 | BB28: 29660512 | BC28: 41074905.82 | BD28: 11414393.82 | BE28: 11153125.92 | BF28: 0 | BG28: 0 | BI28: 1083294 | BJ28: 24237116 | BK28: 409489 | BL28: 0 | BM28: 805032 | BN28: 3478231 | BO28: 65200 | BP28: 0 | BQ28: 0 | BR28: 0 | BS28: 0 | BT28: 2841441 | BU28: 32919803 | BW28: 0 | BY28: 0 | BZ28: 32919803 | CB28: 579623 | CC28: 0 | CD28: 0 | CF28: 0 | CG28: 0 | CH28: 1356933 | CI28: 6382369 | CJ28: 629714.7 | CK28: 0 | CL28: 0 | CM28: 4091033.42 | CN28: 13039673.12 | CQ28: 60978.24438 | CR28: 60978.24438 | CS28: 12978694.88 | CT28: 45898497.88 | CU28: 32694776 | CV28: 0 | CW28: 32694776 | CX28: 0 | CY28: 0 | CZ28: 0 | DA28: 0
A29: 0026 | B29: 1 | C29: 1 | D29: 2025-10-17 | E29: 1 | F29: 1 | G29: 1 | H29: 2143854 | I29: 50134297 | J29: 916964 | K29: 0 | L29: 605993 | M29: 976612 | N29: 53089 | O29: 0 | P29: 0 | Q29: 0 | R29: 0 | S29: 8676938 | T29: 63507747 | V29: 0 | X29: 0 | Y29: 63507747 | Z29: 538187 | AA29: 0 | AB29: 2800 | AD29: 136550 | AE29: 6895955 | AF29: 3575675 | AG29: 8242306 | AH29: 1486659.2 | AI29: 0 | AJ29: 0 | AK29: 267948 | AL29: 21146080.2 | AO29: 16440.6 | AP29: 16440.6 | AQ29: 21129639.6 | AR29: 84637386.6 | AS29: 60144184 | AT29: 0 | AU29: 60144184 | AV29: 0 | AW29: 0 | AX29: 0 | AY29: 0 | BA29: 80521 | BB29: 57423976 | BC29: 78295732.74 | BD29: 20871756.74 | BE29: 20791235.74 | BF29: 0 | BG29: 0 | BI29: 2146454 | BJ29: 53015150 | BK29: 1328027 | BL29: 0 | BM29: 712498 | BN29: 404537 | BO29: 0 | BP29: 0 | BQ29: 0 | BR29: 0 | BS29: 0 | BT29: 9610571 | BU29: 67217237 | BW29: 0 | BY29: 0 | BZ29: 67217237 | CB29: 566756 | CC29: 0 | CD29: 2829 | CF29: 190308 | CG29: 7124968 | CH29: 3851087 | CI29: 8647504 | CJ29: 1713924.9 | CK29: 0 | CL29: 0 | CM29: 284701 | CN29: 22382077.9 | CQ29: 16673 | CR29: 16673 | CS29: 22365404.9 | CT29: 89582641.9 | CU29: 62812297 | CV29: 0 | CW29: 62812297 | CX29: 0 | CY29: 0 | CZ29: 0 | DA29: 0
A30: 0027 | B30: 1 | C30: 1 | D30: 2025-09-29 | E30: 1 | F30: 1 | G30: 1 | H30: 458550 | I30: 7158818 | J30: 177389 | K30: 0 | L30: 2272 | M30: 880284 | N30: 38311 | O30: 0 | P30: 0 | Q30: 0 | R30: 0 | S30: 214160 | T30: 8929784 | V30: 106250 | X30: 106250 | Y30: 8823534 | Z30: 62100 | AA30: 0 | AB30: 0 | AD30: 0 | AE30: 5000 | AF30: 469570 | AG30: 982322 | AH30: 93174 | AI30: 0 | AJ30: 0 | AK30: 48092.06 | AL30: 1660258.06 | AO30: 0 | AP30: 0 | AQ30: 1660258.06 | AR30: 10483792.06 | AS30: 9240413 | AT30: 0 | AU30: 9240413 | AV30: 0 | AW30: 0 | AX30: 0 | AY30: 0 | BA30: 0 | BB30: 8929788 | BC30: 10179735.03 | BD30: 1249947.034 | BE30: 1249947.034 | BF30: 0 | BG30: 106250 | BI30: 511029 | BJ30: 7405317 | BK30: 166757 | BL30: 0 | BM30: 18800 | BN30: 1078097 | BO30: 0 | BP30: 0 | BQ30: 0 | BR30: 0 | BS30: 0 | BT30: 190702 | BU30: 9370702 | BW30: 137500 | BY30: 137500 | BZ30: 9233202 | CB30: 68345 | CC30: 0 | CD30: 0 | CF30: 0 | CG30: 5000 | CH30: 493048 | CI30: 1031437 | CJ30: 97333 | CK30: 0 | CL30: 0 | CM30: 55370.06 | CN30: 1750533.06 | CQ30: 0 | CR30: 0 | CS30: 1750533.06 | CT30: 10983735.06 | CU30: 9551060 | CV30: 0 | CW30: 9551060 | CX30: 0 | CY30: 0 | CZ30: 0 | DA30: 0
A31: 0028 | B31: 0 | C31: 0 | H31: 0 | I31: 0 | J31: 0 | K31: 0 | L31: 0 | M31: 0 | N31: 0 | O31: 0 | P31: 0 | Q31: 0 | R31: 0 | S31: 0 | T31: 0 | V31: 0 | X31: 0 | Y31: 0 | Z31: 0 | AA31: 0 | AB31: 0 | AD31: 0 | AE31: 0 | AF31: 0 | AG31: 0 | AH31: 0 | AI31: 0 | AJ31: 0 | AK31: 0 | AL31: 0 | AO31: 0 | AP31: 0 | AQ31: 0 | AR31: 0 | AS31: 0 | AT31: 0 | AU31: 0 | AV31: 0 | AW31: 0 | AX31: 0 | AY31: 0 | BA31: 0 | BB31: 0 | BC31: 0 | BD31: 0 | BE31: 0 | BF31: 0 | BG31: 0 | BI31: 0 | BJ31: 0 | BK31: 0 | BL31: 0 | BM31: 0 | BN31: 0 | BO31: 0 | BP31: 0 | BQ31: 0 | BR31: 0 | BS31: 0 | BT31: 0 | BU31: 0 | BW31: 0 | BY31: 0 | BZ31: 0 | CB31: 0 | CC31: 0 | CD31: 0 | CF31: 0 | CG31: 0 | CH31: 0 | CI31: 0 | CJ31: 0 | CK31: 0 | CL31: 0 | CM31: 0 | CN31: 0 | CQ31: 0 | CR31: 0 | CS31: 0 | CT31: 0 | CU31: 0 | CV31: 0 | CW31: 0 | CX31: 0 | CY31: 0 | CZ31: 0 | DA31: 0
A32: 0029 | B32: 0 | C32: 0 | D32: 2025-10-17 | H32: 0 | I32: 0 | J32: 0 | K32: 0 | L32: 0 | M32: 0 | N32: 0 | O32: 0 | P32: 0 | Q32: 0 | R32: 0 | S32: 0 | T32: 0 | V32: 0 | X32: 0 | Y32: 0 | Z32: 0 | AA32: 0 | AB32: 0 | AD32: 0 | AE32: 0 | AF32: 0 | AG32: 0 | AH32: 0 | AI32: 0 | AJ32: 0 | AK32: 0 | AL32: 0 | AO32: 0 | AP32: 0 | AQ32: 0 | AR32: 0 | AS32: 0 | AT32: 0 | AU32: 0 | AV32: 0 | AW32: 0 | AX32: 0 | AY32: 0 | BA32: 0 | BB32: 0 | BC32: 0 | BD32: 0 | BE32: 0 | BF32: 0 | BG32: 0 | BI32: 0 | BJ32: 0 | BK32: 0 | BL32: 0 | BM32: 0 | BN32: 0 | BO32: 0 | BP32: 0 | BQ32: 0 | BR32: 0 | BS32: 0 | BT32: 0 | BU32: 0 | BW32: 0 | BY32: 0 | BZ32: 0 | CB32: 0 | CC32: 0 | CD32: 0 | CF32: 0 | CG32: 0 | CH32: 0 | CI32: 0 | CJ32: 0 | CK32: 0 | CL32: 0 | CM32: 0 | CN32: 0 | CQ32: 0 | CR32: 0 | CS32: 0 | CT32: 0 | CU32: 0 | CV32: 0 | CW32: 0 | CX32: 0 | CY32: 0 | CZ32: 0 | DA32: 0
A33: 0030 | B33: 1 | C33: 1 | D33: 2025-09-30 | E33: 1 | F33: 1 | G33: 1 | H33: 2542177 | I33: 48780737 | J33: 1173947 | K33: 0 | L33: 889840 | M33: 4707477 | N33: 919885 | O33: 10738013 | P33: 0 | Q33: 166835 | R33: 0 | S33: 5265573 | T33: 75184484 | V33: 0 | X33: 0 | Y33: 75184484 | Z33: 848230 | AA33: 0 | AB33: 0 | AD33: 162212 | AE33: 149371 | AF33: 2753835 | AG33: 557026 | AH33: 2850154 | AI33: 0 | AJ33: 0 | AK33: 1081987.945 | AL33: 8402815.945 | AO33: 202970.2 | AP33: 202970.2 | AQ33: 8199845.745 | AR33: 83384329.75 | AS33: 64176965 | AT33: 0 | AU33: 64176965 | AV33: 0 | AW33: 0 | AX33: 0 | AY33: 0 | BA33: 61865 | BB33: 61798815 | BC33: 77717783.11 | BD33: 15918968.11 | BE33: 15857103.11 | BF33: 0 | BG33: 0 | BI33: 2468922 | BJ33: 52265231 | BK33: 1269978 | BL33: 0 | BM33: 1003319 | BN33: 4635880 | BO33: 1136676 | BP33: 12168482 | BQ33: 0 | BR33: 170000 | BS33: 0 | BT33: 6260079 | BU33: 81378567 | BW33: 220000 | BY33: 220000 | BZ33: 81158567 | CB33: 897930 | CC33: 0 | CD33: 0 | CF33: 164934 | CG33: 151727 | CH33: 2867916 | CI33: 519926 | CJ33: 3019602 | CK33: 0 | CL33: 0 | CM33: 1151710.235 | CN33: 8773745.235 | CQ33: 61474.29995 | CR33: 61474.29995 | CS33: 8712270.935 | CT33: 89870837.94 | CU33: 67260044 | CV33: 0 | CW33: 67260044 | CX33: 0 | CY33: 0 | CZ33: 0 | DA33: 0
A34: 0031 | B34: 1 | C34: 1 | D34: 2025-09-11 | E34: 1 | F34: 1 | G34: 1 | H34: 1737011 | I34: 61912762 | J34: 1341370 | K34: 3218 | L34: 1297529 | M34: 6402056 | N34: 131715 | O34: 11700 | P34: 0 | Q34: 0 | R34: 0 | S34: 3687102 | T34: 76524463 | V34: 1006000 | X34: 1006000 | Y34: 75518463 | Z34: 0 | AA34: 0 | AB34: 0 | AD34: 0 | AE34: 0 | AF34: 4434027 | AG34: 9421639 | AH34: 3337549 | AI34: 0 | AJ34: 0 | AK34: 1715439.66 | AL34: 18908654.66 | AO34: 88468 | AP34: 88468 | AQ34: 18820186.66 | AR34: 94338649.66 | AS34: 73072729 | AT34: 0 | AU34: 73072729 | AV34: 0 | AW34: 0 | AX34: 0 | AY34: 0 | BA34: 0 | BB34: 69705258 | BC34: 91106972.01 | BD34: 21401714.01 | BE34: 21401714.01 | BF34: 0 | BG34: 1006000 | BI34: 1652956 | BJ34: 63633461 | BK34: 1471785 | BL34: 0 | BM34: 1300739 | BN34: 6670877 | BO34: 150000 | BP34: 11700 | BQ34: 0 | BR34: 0 | BS34: 0 | BT34: 3888694 | BU34: 78780212 | BW34: 1006000 | BY34: 1006000 | BZ34: 77774212 | CB34: 0 | CC34: 0 | CD34: 0 | CF34: 0 | CG34: 0 | CH34: 5334629 | CI34: 9386056 | CJ34: 3525462 | CK34: 0 | CL34: 0 | CM34: 2062996.17 | CN34: 20309143.17 | CQ34: 176365 | CR34: 176365 | CS34: 20132778.17 | CT34: 97906990.17 | CU34: 76486743 | CV34: 0 | CW34: 76486743 | CX34: 0 | CY34: 0 | CZ34: 0 | DA34: 0
A35: 0032 | B35: 0 | C35: 0 | D35: 2025-11-26 | H35: 0 | I35: 0 | J35: 0 | K35: 0 | L35: 0 | M35: 0 | N35: 0 | O35: 0 | P35: 0 | Q35: 0 | R35: 0 | S35: 0 | T35: 0 | V35: 0 | X35: 0 | Y35: 0 | Z35: 0 | AA35: 0 | AB35: 0 | AD35: 0 | AE35: 0 | AF35: 0 | AG35: 0 | AH35: 0 | AI35: 0 | AJ35: 0 | AK35: 392009 | AL35: 392009 | AO35: 0 | AP35: 0 | AQ35: 392009 | AR35: 392009 | AS35: 397650 | AT35: 0 | AU35: 397650 | AV35: -5641 | AW35: -0.01418584182 | AX35: 5641 | AY35: 0 | BA35: 0 | BB35: 432068 | BC35: 451142 | BD35: 19074 | BE35: 19074 | BF35: 0 | BG35: 0 | BI35: 0 | BJ35: 0 | BK35: 0 | BL35: 0 | BM35: 0 | BN35: 0 | BO35: 0 | BP35: 0 | BQ35: 0 | BR35: 0 | BS35: 0 | BT35: 0 | BU35: 0 | BW35: 0 | BY35: 0 | BZ35: 0 | CB35: 0 | CC35: 0 | CD35: 0 | CF35: 0 | CG35: 0 | CH35: 0 | CI35: 0 | CJ35: 0 | CK35: 0 | CL35: 0 | CM35: 0 | CN35: 0 | CQ35: 0 | CR35: 0 | CS35: 0 | CT35: 0 | CU35: 354213 | CV35: 5641 | CW35: 359854 | CX35: -359854 | CY35: 0 | CZ35: 359854 | DA35: 0
A36: 0033 | B36: 0 | C36: 0 | H36: 0 | I36: 0 | J36: 0 | K36: 0 | L36: 0 | M36: 0 | N36: 0 | O36: 0 | P36: 0 | Q36: 0 | R36: 0 | S36: 0 | T36: 0 | V36: 0 | X36: 0 | Y36: 0 | Z36: 0 | AA36: 0 | AB36: 0 | AD36: 0 | AE36: 0 | AF36: 0 | AG36: 0 | AH36: 0 | AI36: 0 | AJ36: 0 | AK36: 0 | AL36: 0 | AO36: 0 | AP36: 0 | AQ36: 0 | AR36: 0 | AS36: 250518 | AT36: 12257.55 | AU36: 262775.55 | AV36: -262775.55 | AW36: -1.048928819 | AX36: 12525.9 | AY36: 0 | BA36: 0 | BB36: 245151 | BC36: 220107 | BD36: -25044 | BE36: -25044 | BF36: 0 | BG36: 0 | BI36: 0 | BJ36: 0 | BK36: 0 | BL36: 0 | BM36: 0 | BN36: 0 | BO36: 0 | BP36: 0 | BQ36: 0 | BR36: 0 | BS36: 0 | BT36: 0 | BU36: 0 | BW36: 0 | BY36: 0 | BZ36: 0 | CB36: 0 | CC36: 0 | CD36: 0 | CF36: 0 | CG36: 0 | CH36: 0 | CI36: 0 | CJ36: 0 | CK36: 0 | CL36: 0 | CM36: 0 | CN36: 0 | CQ36: 0 | CR36: 0 | CS36: 0 | CT36: 0 | CU36: 240370 | CV36: 12525.9 | CW36: 252895.9 | CX36: -252895.9 | CY36: 0 | CZ36: 252895.9 | DA36: 0
A37: 0034 | B37: 0 | C37: 0 | D37: 2025-10-21 | H37: 0 | I37: 0 | J37: 0 | K37: 0 | L37: 0 | M37: 0 | N37: 0 | O37: 0 | P37: 0 | Q37: 0 | R37: 0 | S37: 0 | T37: 0 | V37: 0 | X37: 0 | Y37: 0 | Z37: 0 | AA37: 0 | AB37: 0 | AD37: 0 | AE37: 0 | AF37: 0 | AG37: 0 | AH37: 0 | AI37: 0 | AJ37: 0 | AK37: 0 | AL37: 0 | AO37: 0 | AP37: 0 | AQ37: 0 | AR37: 0 | AS37: 0 | AT37: 848.4 | AU37: 848.4 | AV37: -848.4 | AW37: 0 | AX37: 848.4 | AY37: 0 | BA37: 0 | BB37: 848.4 | BC37: 0 | BD37: -848.4 | BE37: -848.4 | BF37: 0 | BG37: 0 | BI37: 0 | BJ37: 0 | BK37: 0 | BL37: 0 | BM37: 0 | BN37: 0 | BO37: 0 | BP37: 0 | BQ37: 0 | BR37: 0 | BS37: 0 | BT37: 0 | BU37: 0 | BW37: 0 | BY37: 0 | BZ37: 0 | CB37: 0 | CC37: 0 | CD37: 0 | CF37: 0 | CG37: 0 | CH37: 0 | CI37: 0 | CJ37: 0 | CK37: 0 | CL37: 0 | CM37: 0 | CN37: 0 | CQ37: 0 | CR37: 0 | CS37: 0 | CT37: 0 | CU37: 17899 | CV37: 848.4 | CW37: 18747.4 | CX37: -18747.4 | CY37: 0 | CZ37: 18747.4 | DA37: 0
A38: 0035 | B38: 1 | C38: 1 | D38: 2025-10-31 | E38: 0.9743481751 | F38: 0.9946311976 | G38: 0.9933913359 | H38: 48024223.39 | I38: 927991350.3 | J38: 26091631.54 | K38: 3655950.34 | L38: 15114150.79 | M38: 117761799.5 | N38: 9924708.767 | O38: 165869255 | P38: 0 | Q38: 3263684.413 | R38: 0 | S38: 33636878.63 | T38: 1351333633 | V38: 2577353.821 | X38: 2577353.821 | Y38: 1348756279 | Z38: 7075659.284 | AA38: 742096 | AB38: 2013079.618 | AD38: 0 | AE38: 0 | AF38: 0 | AG38: 0 | AH38: 30281090.44 | AI38: 0 | AJ38: 0 | AK38: 264440202.3 | AL38: 304552127.7 | AO38: 24024048.2 | AP38: 24024048.2 | AQ38: 280528079.5 | AR38: 1629284358 | AS38: 1182075543 | AT38: 0 | AU38: 1182075543 | AV38: 0 | AW38: 0 | AX38: 0 | AY38: 0 | BA38: 0 | BB38: 1111185851 | BC38: 1515403720 | BD38: 404217869.3 | BE38: 404217869.3 | BF38: 0 | BG38: 2577353.821 | BI38: 57147780.74 | BJ38: 850912158.5 | BK38: 68187341.46 | BL38: 9220125 | BM38: 14138740 | BN38: 126030937.5 | BO38: 12796704.18 | BP38: 165167289 | BQ38: 0 | BR38: 10695798.41 | BS38: 0 | BT38: 55142526 | BU38: 1369439401 | BW38: 3332014.512 | BY38: 3332014.512 | BZ38: 1366107386 | CB38: 7317750.806 | CC38: 676561.6 | CD38: 2196555.954 | CF38: 0 | CG38: 0 | CH38: 0 | CI38: 0 | CJ38: 37359606.02 | CK38: 0 | CL38: 0 | CM38: 289856819.4 | CN38: 337407293.7 | CQ38: 27380123.31 | CR38: 27380123.31 | CS38: 310027170.4 | CT38: 1676134557 | CU38: 1252532101 | CV38: 0 | CW38: 1252532101 | CX38: 0 | CY38: 0 | CZ38: 0 | DA38: 0
A39: 0036 | B39: 1 | C39: 1 | D39: 2025-09-24 | E39: 1 | F39: 1 | G39: 1 | H39: 929003.38 | I39: 20068797.31 | J39: 344182.5 | K39: 0 | L39: 470512.13 | M39: 1775741.73 | N39: 68313.24 | O39: 0 | P39: 0 | Q39: 0 | R39: 0 | S39: 722145.82 | T39: 24378696.11 | V39: 40000 | X39: 40000 | Y39: 24338696.11 | Z39: 0 | AA39: 0 | AB39: 0 | AD39: 0 | AE39: 52313.94 | AF39: 952035.66 | AG39: 5983865.84 | AH39: 1292301.6 | AI39: 0 | AJ39: 0 | AK39: 3303738.37 | AL39: 11584255.41 | AO39: 57721.8 | AP39: 57721.8 | AQ39: 11526533.61 | AR39: 35865229.72 | AS39: 24968979 | AT39: 0 | AU39: 24968979 | AV39: 0 | AW39: 0 | AX39: 0 | AY39: 0 | BA39: 0 | BB39: 23881940 | BC39: 34230427.71 | BD39: 10348487.71 | BE39: 10348487.71 | BF39: 0 | BG39: 40000 | BI39: 920628 | BJ39: 21090379 | BK39: 387031 | BL39: 0 | BM39: 549562 | BN39: 1591882 | BO39: 35018 | BP39: 0 | BQ39: 0 | BR39: 0 | BS39: 0 | BT39: 912678 | BU39: 25487178 | BW39: 80000 | BY39: 80000 | BZ39: 25407178 | CB39: 0 | CC39: 0 | CD39: 0 | CF39: 0 | CG39: 53720.8 | CH39: 966696.63 | CI39: 6241692.62 | CJ39: 1540123.2 | CK39: 0 | CL39: 0 | CM39: 3430417.9 | CN39: 12232651.15 | CQ39: 74534 | CR39: 74534 | CS39: 12158117.15 | CT39: 37565295.15 | CU39: 25664708 | CV39: 0 | CW39: 25664708 | CX39: 0 | CY39: 0 | CZ39: 0 | DA39: 0
A40: 0037 | B40: 0 | C40: 0 | D40: 2025-11-07 | H40: 0 | I40: 0 | J40: 0 | K40: 0 | L40: 0 | M40: 0 | N40: 0 | O40: 0 | P40: 0 | Q40: 0 | R40: 0 | S40: 0 | T40: 0 | V40: 0 | X40: 0 | Y40: 0 | Z40: 0 | AA40: 0 | AB40: 0 | AD40: 0 | AE40: 0 | AF40: 0 | AG40: 0 | AH40: 0 | AI40: 0 | AJ40: 0 | AK40: 109688.66 | AL40: 109688.66 | AO40: 0 | AP40: 0 | AQ40: 109688.66 | AR40: 109688.66 | AS40: 102225 | AT40: 5750.8 | AU40: 107975.8 | AV40: 0 | AW40: 0 | AX40: 0 | AY40: 0 | BA40: 0 | BB40: 123583.25 | BC40: 102898 | BD40: -20685.25 | BE40: -20685.25 | BF40: 0 | BG40: 0 | BI40: 0 | BJ40: 0 | BK40: 0 | BL40: 0 | BM40: 0 | BN40: 0 | BO40: 0 | BP40: 0 | BQ40: 0 | BR40: 0 | BS40: 0 | BT40: 0 | BU40: 0 | BW40: 0 | BY40: 0 | BZ40: 0 | CB40: 0 | CC40: 0 | CD40: 0 | CF40: 0 | CG40: 0 | CH40: 0 | CI40: 0 | CJ40: 0 | CK40: 0 | CL40: 0 | CM40: 159277 | CN40: 159277 | CQ40: 0 | CR40: 0 | CS40: 159277 | CT40: 159277 | CU40: 90780 | CV40: 0 | CW40: 90780 | CX40: 0 | CY40: 0 | CZ40: 0 | DA40: 0
A41: 0038 | B41: 1 | C41: 1 | D41: 2025-09-25 | E41: 1 | F41: 1 | G41: 1 | H41: 806052 | I41: 9803792 | J41: 191805 | K41: 72945 | L41: 0 | M41: 1415486 | N41: 34720 | O41: 1571313 | P41: 474379 | Q41: 0 | R41: 0 | S41: 496000 | T41: 14866492 | V41: 0 | X41: 0 | Y41: 14866492 | Z41: 112086.68 | AA41: 0 | AB41: 5000 | AD41: 154894 | AE41: 165783 | AF41: 561242 | AG41: 65476 | AH41: 148059 | AI41: 0 | AJ41: 0 | AK41: 19098 | AL41: 1231638.68 | AO41: 1655.8 | AP41: 1655.8 | AQ41: 1229982.88 | AR41: 16096474.88 | AS41: 9072414 | AT41: 0 | AU41: 9072414 | AV41: 0 | AW41: 0 | AX41: 0 | AY41: 0 | BA41: 931 | BB41: 8573561 | BC41: 14924927 | BD41: 6351366 | BE41: 6350435 | BF41: 0 | BG41: 0 | BI41: 667599 | BJ41: 10965490 | BK41: 205663 | BL41: 54105 | BM41: 3000 | BN41: 1090404 | BO41: 38000 | BP41: 1632361 | BQ41: 530257 | BR41: 60671 | BS41: 0 | BT41: 697385 | BU41: 15944935 | BW41: 0 | BY41: 0 | BZ41: 15944935 | CB41: 119008 | CC41: 0 | CD41: 5000 | CF41: 159063 | CG41: 172913 | CH41: 624233 | CI41: 69314 | CJ41: 153931 | CK41: 0 | CL41: 0 | CM41: 19872 | CN41: 1323334 | CQ41: 1194.690506 | CR41: 1194.690506 | CS41: 1322139.309 | CT41: 17267074.31 | CU41: 9568097 | CV41: 0 | CW41: 9568097 | CX41: 0 | CY41: 0 | CZ41: 0 | DA41: 0
A42: 0039 | B42: 0 | C42: 0 | D42: 2025-10-31 | H42: 0 | I42: 0 | J42: 0 | K42: 0 | L42: 0 | M42: 0 | N42: 0 | O42: 0 | P42: 0 | Q42: 0 | R42: 0 | S42: 0 | T42: 0 | V42: 0 | X42: 0 | Y42: 0 | Z42: 0 | AA42: 0 | AB42: 0 | AD42: 0 | AE42: 0 | AF42: 0 | AG42: 0 | AH42: 0 | AI42: 0 | AJ42: 0 | AK42: 0 | AL42: 0 | AO42: 0 | AP42: 0 | AQ42: 0 | AR42: 0 | AS42: 334059 | AT42: 21228.05 | AU42: 355287.05 | AV42: -355287.05 | AW42: -1.063545811 | AX42: 16702.95 | AY42: 0 | BA42: 0 | BB42: 450874.05 | BC42: 0 | BD42: -450874.05 | BE42: -450874.05 | BF42: 0 | BG42: 0 | BI42: 0 | BJ42: 0 | BK42: 0 | BL42: 0 | BM42: 0 | BN42: 0 | BO42: 0 | BP42: 0 | BQ42: 0 | BR42: 0 | BS42: 0 | BT42: 0 | BU42: 0 | BW42: 0 | BY42: 0 | BZ42: 0 | CB42: 0 | CC42: 0 | CD42: 0 | CF42: 0 | CG42: 0 | CH42: 0 | CI42: 0 | CJ42: 0 | CK42: 0 | CL42: 0 | CM42: 0 | CN42: 0 | CQ42: 0 | CR42: 0 | CS42: 0 | CT42: 0 | CU42: 242328 | CV42: 16702.95 | CW42: 259030.95 | CX42: -259030.95 | CY42: 0 | CZ42: 259030.95 | DA42: 0
A43: 0040 | B43: 1 | C43: 1 | D43: 2025-11-19 | E43: 1 | F43: 1 | G43: 1 | H43: 1654178.87 | I43: 62788056.67 | J43: 1291005.57 | K43: 0 | L43: 1530968.06 | M43: 1361646.494 | N43: 89101.08 | O43: 42729 | P43: 0 | Q43: 0 | R43: 0 | S43: 4603260.6 | T43: 73360946.34 | V43: 0 | X43: 0 | Y43: 73360946.34 | Z43: 787100.43 | AA43: 0 | AB43: 0 | AD43: 1253327.08 | AE43: 7737075.37 | AF43: 4584359.14 | AG43: 7389780.81 | AH43: 2625929.776 | AI43: 0 | AJ43: 0 | AK43: 747364.32 | AL43: 25124936.93 | AO43: 208952.2 | AP43: 208952.2 | AQ43: 24915984.73 | AR43: 98276931.07 | AS43: 76368108 | AT43: 0 | AU43: 76368108 | AV43: 0 | AW43: 0 | AX43: 0 | AY43: 0 | BA43: 685163.71 | BB43: 72501249 | BC43: 92464256.95 | BD43: 19963007.95 | BE43: 19277844.24 | BF43: 0 | BG43: 0 | BI43: 1694639.28 | BJ43: 68936430.47 | BK43: 1408952.57 | BL43: 0 | BM43: 1358972.99 | BN43: 108950.92 | BO43: 100000 | BP43: 42810 | BQ43: 0 | BR43: 0 | BS43: 0 | BT43: 4419790 | BU43: 78070546.23 | BW43: 0 | BY43: 0 | BZ43: 78070546.23 | CB43: 896904.52 | CC43: 0 | CD43: 0 | CF43: 0 | CG43: 7973582.21 | CH43: 4937818.54 | CI43: 7102559 | CJ43: 3384150.498 | CK43: 0 | CL43: 0 | CM43: 1012326.44 | CN43: 25307341.21 | CQ43: 239670.9674 | CR43: 239670.9674 | CS43: 25067670.24 | CT43: 103138216.5 | CU43: 79564346 | CV43: 0 | CW43: 79564346 | CX43: 0 | CY43: 0 | CZ43: 0 | DA43: 0
A44: 0041 | B44: 1 | C44: 0 | G44: 1
A45: 0042 | B45: 0 | C45: 0 | D45: 2025-11-10 | H45: 0 | I45: 0 | J45: 0 | K45: 0 | L45: 0 | M45: 0 | N45: 0 | O45: 0 | P45: 0 | Q45: 0 | R45: 0 | S45: 0 | T45: 0 | V45: 0 | X45: 0 | Y45: 0 | Z45: 0 | AA45: 0 | AB45: 0 | AD45: 0 | AE45: 0 | AF45: 0 | AG45: 0 | AH45: 0 | AI45: 0 | AJ45: 0 | AK45: 2728530.3 | AL45: 2728530.3 | AO45: 0 | AP45: 0 | AQ45: 2728530.3 | AR45: 2728530.3 | AS45: 334820 | AT45: 0 | AU45: 334820 | AV45: 0 | AW45: 0 | AX45: 0 | AY45: 0 | BA45: 0 | BB45: 228660 | BC45: 2620193.63 | BD45: 2391533.63 | BE45: 2391533.63 | BF45: 0 | BG45: 0 | BI45: 0 | BJ45: 0 | BK45: 0 | BL45: 0 | BM45: 0 | BN45: 0 | BO45: 0 | BP45: 0 | BQ45: 0 | BR45: 0 | BS45: 0 | BT45: 0 | BU45: 0 | BW45: 0 | BY45: 0 | BZ45: 0 | CB45: 0 | CC45: 0 | CD45: 0 | CF45: 0 | CG45: 0 | CH45: 0 | CI45: 0 | CJ45: 0 | CK45: 0 | CL45: 0 | CM45: 3838404 | CN45: 3838404 | CQ45: 0 | CR45: 0 | CS45: 3838404 | CT45: 3838404 | CU45: 448617 | CV45: 0 | CW45: 448617 | CX45: 0 | CY45: 0 | CZ45: 0 | DA45: 0
A46: 0043 | B46: 1 | C46: 1 | D46: 2025-10-02 | E46: 1 | F46: 1 | G46: 1 | H46: 121294 | I46: 2998048 | J46: 74296 | K46: 0 | L46: 800 | M46: 296189 | N46: 0 | O46: 0 | P46: 0 | Q46: 0 | R46: 0 | S46: 541248 | T46: 4031875 | V46: 0 | X46: 0 | Y46: 4031875 | Z46: 124395 | AA46: 0 | AB46: 0 | AD46: 0 | AE46: 0 | AF46: 260986 | AG46: 310753 | AH46: 36412.8 | AI46: 0 | AJ46: 0 | AK46: 159510.05 | AL46: 892056.85 | AO46: 43724.8 | AP46: 43724.8 | AQ46: 848332.05 | AR46: 4880207.05 | AS46: 3675840 | AT46: 0 | AU46: 3675840 | AV46: 0 | AW46: 0 | AX46: 0 | AY46: 0 | BA46: 0 | BB46: 3511282 | BC46: 4696553.174 | BD46: 1185271.174 | BE46: 1185271.174 | BF46: 0 | BG46: 0 | BI46: 142877 | BJ46: 3118565 | BK46: 92250 | BL46: 0 | BM46: 0 | BN46: 389009 | BO46: 0 | BP46: 0 | BQ46: 0 | BR46: 0 | BS46: 0 | BT46: 491750 | BU46: 4234451 | BW46: 0 | BY46: 0 | BZ46: 4234451 | CB46: 129615 | CC46: 0 | CD46: 0 | CF46: 0 | CG46: 0 | CH46: 277528 | CI46: 335057 | CJ46: 0 | CK46: 0 | CL46: 0 | CM46: 195446.82 | CN46: 937646.82 | CQ46: 34582.59916 | CR46: 34582.59916 | CS46: 903064.2208 | CT46: 5137515.221 | CU46: 3708078 | CV46: 0 | CW46: 3708078 | CX46: 0 | CY46: 0 | CZ46: 0 | DA46: 0
A47: 0044 | B47: 1 | C47: 1 | D47: 2025-12-22 | E47: 0.9958080984 | F47: 0.9949096101 | G47: 0.9933763608
A48: 0045 | B48: 1 | C48: 1 | D48: 2025-10-02 | E48: 1 | F48: 1 | G48: 1 | H48: 126686 | I48: 2624209.48 | J48: 82590 | K48: 0 | L48: 0 | M48: 398413 | N48: 0 | O48: 0 | P48: 0 | Q48: 0 | R48: 0 | S48: 320382 | T48: 3552280.48 | V48: 0 | X48: 0 | Y48: 3552280.48 | Z48: 50567.4 | AA48: 0 | AB48: 0 | AD48: 0 | AE48: 0 | AF48: 118022 | AG48: 370331.4 | AH48: 29629.6 | AI48: 0 | AJ48: 0 | AK48: 93861.39 | AL48: 662411.79 | AO48: 9316 | AP48: 9316 | AQ48: 653095.79 | AR48: 4205376.27 | AS48: 3341939 | AT48: 0 | AU48: 3341939 | AV48: 0 | AW48: 0 | AX48: 0 | AY48: 0 | BA48: 0 | BB48: 3240939 | BC48: 3862162.732 | BD48: 621223.7316 | BE48: 621223.7316 | BF48: 0 | BG48: 0 | BI48: 158027 | BJ48: 2951045 | BK48: 0 | BL48: 0 | BM48: 94815 | BN48: 294890 | BO48: 0 | BP48: 0 | BQ48: 0 | BR48: 0 | BS48: 0 | BT48: 258830 | BU48: 3757607 | BW48: 0 | BY48: 0 | BZ48: 3757607 | CB48: 56019 | CC48: 0 | CD48: 0 | CF48: 0 | CG48: 0 | CH48: 127116.27 | CI48: 406802 | CJ48: 49076.1 | CK48: 0 | CL48: 0 | CM48: 92038.45 | CN48: 731051.82 | CQ48: 392 | CR48: 392 | CS48: 730659.82 | CT48: 4488266.82 | CU48: 3413899 | CV48: 0 | CW48: 3413899 | CX48: 0 | CY48: 0 | CZ48: 0 | DA48: 0
A49: 0046 | B49: 1 | C49: 1 | D49: 2025-11-21 | E49: 1 | F49: 1 | G49: 1 | H49: 4681448.7 | I49: 112958212.9 | J49: 1363472.06 | K49: 0 | L49: 2061216.6 | M49: 5716839.39 | N49: 42521.47 | O49: 54781.58 | P49: 0 | Q49: 244051.58 | R49: 0 | S49: 4939294.5 | T49: 132061838.8 | V49: 0 | X49: 0 | Y49: 132061838.8 | Z49: 3561498 | AA49: 0 | AB49: 0 | AD49: 203984 | AE49: 10685129 | AF49: 10871719 | AG49: 24159037 | AH49: 2433527.2 | AI49: 0 | AJ49: 0 | AK49: 281638.67 | AL49: 52196532.87 | AO49: 117647.4 | AP49: 117647.4 | AQ49: 52078885.47 | AR49: 184140724.2 | AS49: 92647588 | AT49: 0 | AU49: 92647588 | AV49: 0 | AW49: 0 | AX49: 0 | AY49: 0 | BA49: 0 | BB49: 89785825 | BC49: 173064309.4 | BD49: 83278484.4 | BE49: 83278484.4 | BF49: 0 | BG49: 0 | BI49: 4996324 | BJ49: 120575349 | BK49: 1607841 | BL49: 0 | BM49: 1911445 | BN49: 5334738 | BO49: 0 | BP49: 52000 | BQ49: 0 | BR49: 1500 | BS49: 0 | BT49: 2968628 | BU49: 137447825 | BW49: 0 | BY49: 0 | BZ49: 137447825 | CB49: 3883006 | CC49: 0 | CD49: 0 | CF49: 469859 | CG49: 10936200 | CH49: 11040534 | CI49: 26472313 | CJ49: 2485718.1 | CK49: 0 | CL49: 0 | CM49: 198707.55 | CN49: 55486337.65 | CQ49: 6738.341087 | CR49: 6738.341087 | CS49: 55479599.31 | CT49: 192927424.3 | CU49: 96417427 | CV49: 0 | CW49: 96417427 | CX49: 0 | CY49: 0 | CZ49: 0 | DA49: 0
A50: 0047 | B50: 0 | C50: 0 | D50: 2025-12-23 | H50: 0 | I50: 0 | J50: 0 | K50: 0 | L50: 0 | M50: 0 | N50: 0 | O50: 0 | P50: 0 | Q50: 0 | R50: 0 | S50: 0 | T50: 0 | V50: 0 | X50: 0 | Y50: 0 | Z50: 0 | AA50: 0 | AB50: 0 | AD50: 0 | AE50: 0 | AF50: 0 | AG50: 0 | AH50: 0 | AI50: 0 | AJ50: 0 | AK50: 0 | AL50: 0 | AO50: 0 | AP50: 0 | AQ50: 0 | AR50: 0 | AS50: 22086 | AT50: 1082.2 | AU50: 23168.2 | AV50: -23168.2 | AW50: -1.048999366 | AX50: 1104.3 | AY50: 0 | BA50: 0 | BB50: 22706.55 | BC50: 20076 | BD50: -2630.55 | BE50: -2630.55 | BF50: 0 | BG50: 0 | BI50: 0 | BJ50: 0 | BK50: 0 | BL50: 0 | BM50: 0 | BN50: 0 | BO50: 0 | BP50: 0 | BQ50: 0 | BR50: 0 | BS50: 0 | BT50: 0 | BU50: 0 | BW50: 0 | BY50: 0 | BZ50: 0 | CB50: 0 | CC50: 0 | CD50: 0 | CF50: 0 | CG50: 0 | CH50: 0 | CI50: 0 | CJ50: 0 | CK50: 0 | CL50: 0 | CM50: 21693 | CN50: 21693 | CQ50: 0 | CR50: 0 | CS50: 21693 | CT50: 21693 | CU50: 0 | CV50: 1104.3 | CW50: 1104.3 | CX50: 0 | CY50: 0 | CZ50: 0 | DA50: 0
A51: 0048 | B51: 1 | C51: 1 | D51: 2025-09-30 | E51: 1 | F51: 1 | G51: 1 | H51: 2672334.24 | I51: 55620302.25 | J51: 1470661 | K51: 0 | L51: 1617149.73 | M51: 6111415 | N51: 395000 | O51: 292439 | P51: 0 | Q51: 0 | R51: 0 | S51: 7010440 | T51: 75189741.22 | V51: 0 | X51: 0 | Y51: 75189741.22 | Z51: 870717 | AA51: 0 | AB51: 0 | AD51: 0 | AE51: 0 | AF51: 4340915 | AG51: 8128235 | AH51: 2849337 | AI51: 0 | AJ51: 0 | AK51: 444404.19 | AL51: 16633608.19 | AO51: 112471 | AP51: 112471 | AQ51: 16521137.19 | AR51: 91710878.41 | AS51: 49033422 | AT51: 0 | AU51: 49033422 | AV51: 0 | AW51: 0 | AX51: 0 | AY51: 0 | BA51: 0 | BB51: 46173964 | BC51: 85986969.86 | BD51: 39813005.86 | BE51: 39813005.86 | BF51: 0 | BG51: 0 | BI51: 2649316 | BJ51: 60176689 | BK51: 1569211 | BL51: 0 | BM51: 1651329 | BN51: 5856129 | BO51: 0 | BP51: 319551 | BQ51: 0 | BR51: 0 | BS51: 0 | BT51: 6719519 | BU51: 78941744 | BW51: 0 | BY51: 0 | BZ51: 78941744 | CB51: 759566 | CC51: 0 | CD51: 0 | CF51: 0 | CG51: 0 | CH51: 4620008 | CI51: 9359754 | CJ51: 3338827 | CK51: 0 | CL51: 0 | CM51: 448585.35 | CN51: 18526740.35 | CQ51: 44048.06012 | CR51: 44048.06012 | CS51: 18482692.29 | CT51: 97424436.29 | CU51: 51628002 | CV51: 0 | CW51: 51628002 | CX51: 0 | CY51: 0 | CZ51: 0 | DA51: 0
A52: 0049 | B52: 1 | C52: 1 | D52: 2025-09-30 | E52: 0.9950368109 | F52: 0.992898827 | G52: 0.9947475397 | H52: 8641684.655 | I52: 165402819.1 | J52: 3093346.17 | K52: 980000.7 | L52: 3585519.6 | M52: 16829487.4 | N52: 9997347.081 | O52: 36766359.69 | P52: 0 | Q52: 345974.0504 | R52: 0 | S52: 6717696 | T52: 252360234.5 | V52: 0 | X52: 0 | Y52: 252360234.5 | Z52: 1730444.268 | AA52: 0 | AB52: 3264176.98 | AD52: 1622089.666 | AE52: 2828181.383 | AF52: 0 | AG52: 0 | AH52: 6175233.733 | AI52: 0 | AJ52: 0 | AK52: 19964528.9 | AL52: 35584654.93 | AO52: 1528015.2 | AP52: 1528015.2 | AQ52: 34056639.73 | AR52: 286416874.2 | AS52: 118963463 | AT52: 0 | AU52: 118963463 | AV52: 0 | AW52: 0 | AX52: 0 | AY52: 0 | BA52: 1791599.23 | BB52: 112732474 | BC52: 258714584.2 | BD52: 145982110.2 | BE52: 144190511 | BF52: 0 | BG52: 0 | BI52: 10341271.64 | BJ52: 173938380 | BK52: 3469433 | BL52: 629848 | BM52: 3562686 | BN52: 18661239.55 | BO52: 6644062.925 | BP52: 38885061.58 | BQ52: 0 | BR52: 371651.9599 | BS52: 0 | BT52: 7271087 | BU52: 263774721.7 | BW52: 0 | BY52: 0 | BZ52: 263774721.7 | CB52: 1909471.307 | CC52: 0 | CD52: 3564082.46 | CF52: 1630180.56 | CG52: 2200668.308 | CH52: 0 | CI52: 0 | CJ52: 6161965.328 | CK52: 0 | CL52: 0 | CM52: 22693534.26 | CN52: 38159902.22 | CQ52: 2840086.583 | CR52: 2840086.583 | CS52: 35319815.64 | CT52: 299094537.3 | CU52: 129510667 | CV52: 0 | CW52: 129510667 | CX52: 0 | CY52: 0 | CZ52: 0 | DA52: 0
A53: 0050 | B53: 1 | C53: 1 | D53: 2025-12-22 | E53: 1 | F53: 1 | G53: 1 | H53: 1892472.64 | I53: 46592179.79 | J53: 1220420 | K53: 0 | L53: 1171604 | M53: 3729834.21 | N53: 0 | O53: 0 | P53: 0 | Q53: 0 | R53: 0 | S53: 4276429 | T53: 58882939.64 | V53: 100000 | X53: 100000 | Y53: 58782939.64 | Z53: 306180 | AA53: 0 | AB53: 0 | AD53: 0 | AE53: 846643 | AF53: 2407915 | AG53: 8068258 | AH53: 2050664 | AI53: 0 | AJ53: 0 | AK53: 466388.09 | AL53: 14146048.09 | AO53: 0 | AP53: 0 | AQ53: 14146048.09 | AR53: 72928987.73 | AS53: 45596132 | AT53: 0 | AU53: 45596132 | AV53: 0 | AW53: 0 | AX53: 0 | AY53: 0 | BA53: 0 | BB53: 43350135 | BC53: 66418541.87 | BD53: 23068406.87 | BE53: 23068406.87 | BF53: 0 | BG53: 100000 | BI53: 2324246 | BJ53: 45039741 | BK53: 1205883 | BL53: 0 | BM53: 682583 | BN53: 3774625 | BO53: 0 | BP53: 0 | BQ53: 0 | BR53: 0 | BS53: 0 | BT53: 3625000 | BU53: 56652078 | BW53: 100000 | BY53: 100000 | BZ53: 56552078 | CB53: 321787 | CC53: 0 | CD53: 0 | CF53: 0 | CG53: 935793 | CH53: 2538960 | CI53: 7706652 | CJ53: 2356788 | CK53: 0 | CL53: 0 | CM53: 584052.4 | CN53: 14444032.4 | CQ53: 123870 | CR53: 123870 | CS53: 14320162.4 | CT53: 70872240.4 | CU53: 47593994 | CV53: 0 | CW53: 47593994 | CX53: 0 | CY53: 0 | CZ53: 0 | DA53: 0
A54: 0051 | B54: 1 | C54: 1 | D54: 2025-12-08 | E54: 1 | F54: 1 | G54: 1 | H54: 325412 | I54: 10224489 | J54: 173652 | K54: 0 | L54: 166711 | M54: 1284847 | N54: 0 | O54: 0 | P54: 0 | Q54: 0 | R54: 0 | S54: 187819 | T54: 12362930 | V54: 0 | X54: 0 | Y54: 12362930 | Z54: 0 | AA54: 0 | AB54: 0 | AD54: 0 | AE54: 0 | AF54: 0 | AG54: 623208 | AH54: 233497 | AI54: 0 | AJ54: 0 | AK54: 0 | AL54: 856705 | AO54: 0 | AP54: 0 | AQ54: 856705 | AR54: 13219635 | AS54: 7101494 | AT54: 0 | AU54: 7101494 | AV54: 0 | AW54: 0 | AX54: 0 | AY54: 0 | BA54: 0 | BB54: 6865945 | BC54: 13506822 | BD54: 6640877 | BE54: 6640877 | BF54: 0 | BG54: 0 | BI54: 363746 | BJ54: 10893351 | BK54: 175329 | BL54: 0 | BM54: 4000 | BN54: 1221927 | BO54: 0 | BP54: 0 | BQ54: 0 | BR54: 0 | BS54: 0 | BT54: 366610 | BU54: 13024963 | BW54: 0 | BY54: 0 | BZ54: 13024963 | CB54: 93495 | CC54: 0 | CD54: 0 | CF54: 0 | CG54: 0 | CH54: 0 | CI54: 707513 | CJ54: 285552 | CK54: 0 | CL54: 0 | CM54: 0 | CN54: 1086560 | CQ54: 0 | CR54: 0 | CS54: 1086560 | CT54: 14111523 | CU54: 7504857 | CV54: 0 | CW54: 7504857 | CX54: 0 | CY54: 0 | CZ54: 0 | DA54: 0
A55: 0052 | B55: 1 | C55: 1 | D55: 2025-09-29 | E55: 1 | F55: 1 | G55: 1 | H55: 728057 | I55: 16591737 | J55: 363347 | K55: 174341 | L55: 695521 | M55: 1811053 | N55: 315535 | O55: 291196 | P55: 21062 | Q55: 0 | R55: 0 | S55: 1696357 | T55: 22688206 | V55: 0 | X55: 0 | Y55: 22688206 | Z55: 0 | AA55: 0 | AB55: 0 | AD55: 0 | AE55: 253822 | AF55: 1825628 | AG55: 3036675 | AH55: 944647 | AI55: 0 | AJ55: 0 | AK55: 1501449.4 | AL55: 7562221.4 | AO55: 263829.2 | AP55: 263829.2 | AQ55: 7298392.2 | AR55: 29986598.2 | AS55: 22033938 | AT55: 0 | AU55: 22033938 | AV55: 0 | AW55: 0 | AX55: 0 | AY55: 0 | BA55: 0 | BB55: 21283331 | BC55: 27845633.36 | BD55: 6562302.356 | BE55: 6562302.356 | BF55: 0 | BG55: 0 | BI55: 806088.4915 | BJ55: 18499125.72 | BK55: 374783.796 | BL55: 197384.0624 | BM55: 749236.2702 | BN55: 1902564.5 | BO55: 279000 | BP55: 315335 | BQ55: 25000 | BR55: 0 | BS55: 0 | BT55: 2946570.84 | BU55: 26095088.68 | BW55: 0 | BY55: 0 | BZ55: 26095088.68 | CB55: 0 | CC55: 0 | CD55: 0 | CF55: 0 | CG55: 273131 | CH55: 2017408.288 | CI55: 3339769.491 | CJ55: 1039112.151 | CK55: 0 | CL55: 0 | CM55: 1757611.85 | CN55: 8427032.78 | CQ55: 285009.7122 | CR55: 285009.7122 | CS55: 8142023.068 | CT55: 34237111.75 | CU55: 22700467 | CV55: 0 | CW55: 22700467 | CX55: 0 | CY55: 0 | CZ55: 0 | DA55: 0
A56: 0053 | B56: 0 | C56: 0 | D56: 2025-12-08 | H56: 0 | I56: 0 | J56: 0 | K56: 0 | L56: 0 | M56: 0 | N56: 0 | O56: 0 | P56: 0 | Q56: 0 | R56: 0 | S56: 0 | T56: 0 | V56: 0 | X56: 0 | Y56: 0 | Z56: 0 | AA56: 0 | AB56: 0 | AD56: 0 | AE56: 0 | AF56: 0 | AG56: 0 | AH56: 0 | AI56: 0 | AJ56: 0 | AK56: 257954 | AL56: 257954 | AO56: 0 | AP56: 0 | AQ56: 257954 | AR56: 257954 | AS56: 224548 | AT56: 8491.3 | AU56: 233039.3 | AV56: 0 | AW56: 0 | AX56: 0 | AY56: 0 | BA56: 0 | BB56: 177607.6 | BC56: 101952 | BD56: -75655.6 | BE56: -75655.6 | BF56: 0 | BG56: 0 | BI56: 0 | BJ56: 0 | BK56: 0 | BL56: 0 | BM56: 0 | BN56: 0 | BO56: 0 | BP56: 0 | BQ56: 0 | BR56: 0 | BS56: 0 | BT56: 0 | BU56: 0 | BW56: 0 | BY56: 0 | BZ56: 0 | CB56: 0 | CC56: 0 | CD56: 0 | CF56: 0 | CG56: 0 | CH56: 0 | CI56: 0 | CJ56: 0 | CK56: 0 | CL56: 0 | CM56: 272000 | CN56: 272000 | CQ56: 0 | CR56: 0 | CS56: 272000 | CT56: 272000 | CU56: 240366 | CV56: 0 | CW56: 240366 | CX56: 0 | CY56: 0 | CZ56: 0 | DA56: 0
A57: 0054 | B57: 0 | C57: 0 | D57: 2025-11-12 | H57: 0 | I57: 0 | J57: 0 | K57: 0 | L57: 0 | M57: 0 | N57: 0 | O57: 0 | P57: 0 | Q57: 0 | R57: 0 | S57: 0 | T57: 0 | V57: 0 | X57: 0 | Y57: 0 | Z57: 0 | AA57: 0 | AB57: 0 | AD57: 0 | AE57: 0 | AF57: 0 | AG57: 0 | AH57: 0 | AI57: 0 | AJ57: 0 | AK57: 0 | AL57: 0 | AO57: 0 | AP57: 0 | AQ57: 0 | AR57: 0 | AS57: 0 | AT57: 784.9 | AU57: 784.9 | AV57: -784.9 | AW57: 0 | AX57: 784.9 | AY57: 0 | BA57: 0 | BB57: 784.9 | BC57: 0 | BD57: -784.9 | BE57: -784.9 | BF57: 0 | BG57: 0 | BI57: 0 | BJ57: 0 | BK57: 0 | BL57: 0 | BM57: 0 | BN57: 0 | BO57: 0 | BP57: 0 | BQ57: 0 | BR57: 0 | BS57: 0 | BT57: 0 | BU57: 0 | BW57: 0 | BY57: 0 | BZ57: 0 | CB57: 0 | CC57: 0 | CD57: 0 | CF57: 0 | CG57: 0 | CH57: 0 | CI57: 0 | CJ57: 0 | CK57: 0 | CL57: 0 | CM57: 0 | CN57: 0 | CQ57: 0 | CR57: 0 | CS57: 0 | CT57: 0 | CU57: 0 | CV57: 784.9 | CW57: 784.9 | CX57: -784.9 | CY57: 0 | CZ57: 784.9 | DA57: 0
A58: 0055 | B58: 0 | C58: 0 | D58: 2025-11-24 | H58: 0 | I58: 0 | J58: 0 | K58: 0 | L58: 0 | M58: 0 | N58: 0 | O58: 0 | P58: 0 | Q58: 0 | R58: 0 | S58: 0 | T58: 0 | V58: 0 | X58: 0 | Y58: 0 | Z58: 0 | AA58: 0 | AB58: 0 | AD58: 0 | AE58: 0 | AF58: 0 | AG58: 0 | AH58: 0 | AI58: 0 | AJ58: 0 | AK58: 0 | AL58: 0 | AO58: 0 | AP58: 0 | AQ58: 0 | AR58: 0 | AS58: 0 | AT58: 0 | AU58: 0 | AV58: 0 | AW58: 0 | AX58: 0 | AY58: 0 | BA58: 0 | BB58: 0 | BC58: 0 | BD58: 0 | BE58: 0 | BF58: 0 | BG58: 0 | BI58: 0 | BJ58: 0 | BK58: 0 | BL58: 0 | BM58: 0 | BN58: 0 | BO58: 0 | BP58: 0 | BQ58: 0 | BR58: 0 | BS58: 0 | BT58: 0 | BU58: 0 | BW58: 0 | BY58: 0 | BZ58: 0 | CB58: 0 | CC58: 0 | CD58: 0 | CF58: 0 | CG58: 0 | CH58: 0 | CI58: 0 | CJ58: 0 | CK58: 0 | CL58: 0 | CM58: 0 | CN58: 0 | CQ58: 0 | CR58: 0 | CS58: 0 | CT58: 0 | CU58: 0 | CV58: 0 | CW58: 0 | CX58: 0 | CY58: 0 | CZ58: 0 | DA58: 0
A59: 0056 | B59: 1 | C59: 1 | D59: 2025-09-30 | E59: 1 | F59: 1 | G59: 1 | H59: 2473118 | I59: 53926124.75 | J59: 868497 | K59: 110591 | L59: 1427168 | M59: 5195309 | N59: 171777 | O59: 0 | P59: 0 | Q59: 0 | R59: 0 | S59: 4504646 | T59: 68677230.75 | V59: 0 | X59: 0 | Y59: 68677230.75 | Z59: 241883 | AA59: 0 | AB59: 0 | AD59: 0 | AE59: 1841278 | AF59: 3744227 | AG59: 9421680 | AH59: 2597401 | AI59: 0 | AJ59: 0 | AK59: 1769949.67 | AL59: 19616418.67 | AO59: 0 | AP59: 0 | AQ59: 19616418.67 | AR59: 88293649.42 | AS59: 67143896 | AT59: 0 | AU59: 67143896 | AV59: 0 | AW59: 0 | AX59: 0 | AY59: 0 | BA59: 11480 | BB59: 63812308 | BC59: 82940441.54 | BD59: 19128133.54 | BE59: 19116653.54 | BF59: 0 | BG59: 0 | BI59: 4000093 | BJ59: 56992076 | BK59: 980041 | BL59: 25000 | BM59: 1374540 | BN59: 3624737 | BO59: 98606 | BP59: 0 | BQ59: 0 | BR59: 0 | BS59: 0 | BT59: 3512269 | BU59: 70607362 | BW59: 0 | BY59: 0 | BZ59: 70607362 | CB59: 251702 | CC59: 0 | CD59: 0 | CF59: 0 | CG59: 1864130 | CH59: 4058038 | CI59: 10698864 | CJ59: 3000648 | CK59: 0 | CL59: 0 | CM59: 1687542.22 | CN59: 21560924.22 | CQ59: 0 | CR59: 0 | CS59: 21560924.22 | CT59: 92168286.22 | CU59: 70603389 | CV59: 0 | CW59: 70603389 | CX59: 0 | CY59: 0 | CZ59: 0 | DA59: 0
A60: 0057 | B60: 1 | C60: 1 | D60: 2025-11-06 | E60: 1 | F60: 1 | G60: 1 | H60: 4953143 | I60: 76039932 | J60: 3413474 | K60: 0 | L60: 3152550 | M60: 10540685 | N60: 5826757 | O60: 14084324 | P60: 1943326 | Q60: 59280 | R60: 0 | S60: 17316440 | T60: 137329911 | V60: 493000 | X60: 493000 | Y60: 136836911 | Z60: 1375041 | AA60: 21777 | AB60: 0 | AD60: 0 | AE60: 250971 | AF60: 0 | AG60: 0 | AH60: 0 | AI60: 0 | AJ60: 0 | AK60: 18456238.45 | AL60: 20104027.45 | AO60: 2295705 | AP60: 2295705 | AQ60: 17808322.45 | AR60: 154645233.4 | AS60: 146924933 | AT60: 0 | AU60: 146924933 | AV60: 0 | AW60: 0 | AX60: 0 | AY60: 0 | BA60: 0 | BB60: 138863180 | BC60: 139150947.5 | BD60: 287767.4866 | BE60: 287767.4866 | BF60: 0 | BG60: 493000 | BI60: 8240052 | BJ60: 85396992 | BK60: 3388766 | BL60: 0 | BM60: 1543567 | BN60: 9937966 | BO60: 5848573 | BP60: 13726544 | BQ60: 1966000 | BR60: 0 | BS60: 0 | BT60: 14906268 | BU60: 144954728 | BW60: 0 | BY60: 0 | BZ60: 144954728 | CB60: 1375041 | CC60: 21777 | CD60: 250971 | CF60: 0 | CG60: 0 | CH60: 0 | CI60: 0 | CJ60: 0 | CK60: 0 | CL60: 0 | CM60: 20141869.84 | CN60: 21789658.84 | CQ60: 2125501.965 | CR60: 2125501.965 | CS60: 19664156.88 | CT60: 164618884.9 | CU60: 155824471 | CV60: 0 | CW60: 155824471 | CX60: 0 | CY60: 0 | CZ60: 0 | DA60: 0
A61: 0058 | B61: 0 | C61: 0 | D61: 2025-12-08 | H61: 0 | I61: 0 | J61: 0 | K61: 0 | L61: 0 | M61: 0 | N61: 0 | O61: 0 | P61: 0 | Q61: 0 | R61: 0 | S61: 0 | T61: 0 | V61: 0 | X61: 0 | Y61: 0 | Z61: 0 | AA61: 0 | AB61: 0 | AD61: 0 | AE61: 0 | AF61: 0 | AG61: 0 | AH61: 0 | AI61: 0 | AJ61: 0 | AK61: 547430 | AL61: 547430 | AO61: 0 | AP61: 0 | AQ61: 547430 | AR61: 547430 | AS61: 24819 | AT61: 0 | AU61: 24819 | AV61: 0 | AW61: 0 | AX61: 0 | AY61: 0 | BA61: 0 | BB61: 32982 | BC61: 564446 | BD61: 531464 | BE61: 531464 | BF61: 0 | BG61: 0 | BI61: 0 | BJ61: 0 | BK61: 0 | BL61: 0 | BM61: 0 | BN61: 0 | BO61: 0 | BP61: 0 | BQ61: 0 | BR61: 0 | BS61: 0 | BT61: 0 | BU61: 0 | BW61: 0 | BY61: 0 | BZ61: 0 | CB61: 0 | CC61: 0 | CD61: 0 | CF61: 0 | CG61: 0 | CH61: 0 | CI61: 0 | CJ61: 0 | CK61: 0 | CL61: 0 | CM61: 586213 | CN61: 586213 | CQ61: 0 | CR61: 0 | CS61: 586213 | CT61: 586213 | CU61: 24984 | CV61: 0 | CW61: 24984 | CX61: 0 | CY61: 0 | CZ61: 0 | DA61: 0
A62: 0059 | B62: 0 | C62: 0 | D62: 2025-12-05 | H62: 0 | I62: 0 | J62: 0 | K62: 0 | L62: 0 | M62: 0 | N62: 0 | O62: 0 | P62: 0 | Q62: 0 | R62: 0 | S62: 0 | T62: 0 | V62: 0 | X62: 0 | Y62: 0 | Z62: 0 | AA62: 0 | AB62: 0 | AD62: 0 | AE62: 0 | AF62: 0 | AG62: 0 | AH62: 0 | AI62: 0 | AJ62: 0 | AK62: 156922 | AL62: 156922 | AO62: 0 | AP62: 0 | AQ62: 156922 | AR62: 156922 | AS62: 131729 | AT62: 0 | AU62: 131729 | AV62: 0 | AW62: 0 | AX62: 0 | AY62: 0 | BA62: 0 | BB62: 120019 | BC62: 142340 | BD62: 22321 | BE62: 22321 | BF62: 0 | BG62: 0 | BI62: 0 | BJ62: 0 | BK62: 0 | BL62: 0 | BM62: 0 | BN62: 0 | BO62: 0 | BP62: 0 | BQ62: 0 | BR62: 0 | BS62: 0 | BT62: 0 | BU62: 0 | BW62: 0 | BY62: 0 | BZ62: 0 | CB62: 0 | CC62: 0 | CD62: 0 | CF62: 0 | CG62: 0 | CH62: 0 | CI62: 0 | CJ62: 0 | CK62: 0 | CL62: 0 | CM62: 234793 | CN62: 234793 | CQ62: 0 | CR62: 0 | CS62: 234793 | CT62: 234793 | CU62: 156189 | CV62: 0 | CW62: 156189 | CX62: 0 | CY62: 0 | CZ62: 0 | DA62: 0
A63: 0060 | B63: 0 | C63: 0 | D63: 2025-12-05 | H63: 0 | I63: 0 | J63: 0 | K63: 0 | L63: 0 | M63: 0 | N63: 0 | O63: 0 | P63: 0 | Q63: 0 | R63: 0 | S63: 0 | T63: 0 | V63: 0 | X63: 0 | Y63: 0 | Z63: 0 | AA63: 0 | AB63: 0 | AD63: 0 | AE63: 0 | AF63: 0 | AG63: 0 | AH63: 0 | AI63: 0 | AJ63: 0 | AK63: 338949 | AL63: 338949 | AO63: 0 | AP63: 0 | AQ63: 338949 | AR63: 338949 | AS63: 338454 | AT63: 17516.9 | AU63: 355970.9 | AV63: -17021.9 | AW63: -0.05029309744 | AX63: 16922.7 | AY63: 0 | BA63: 0 | BB63: 354456.41 | BC63: 324981 | BD63: -29475.41 | BE63: -29475.41 | BF63: 0 | BG63: 0 | BI63: 0 | BJ63: 0 | BK63: 0 | BL63: 0 | BM63: 0 | BN63: 0 | BO63: 0 | BP63: 0 | BQ63: 0 | BR63: 0 | BS63: 0 | BT63: 0 | BU63: 0 | BW63: 0 | BY63: 0 | BZ63: 0 | CB63: 0 | CC63: 0 | CD63: 0 | CF63: 0 | CG63: 0 | CH63: 0 | CI63: 0 | CJ63: 0 | CK63: 0 | CL63: 0 | CM63: 350000 | CN63: 350000 | CQ63: 0 | CR63: 0 | CS63: 350000 | CT63: 350000 | CU63: 360640 | CV63: 16922.7 | CW63: 377562.7 | CX63: -27562.7 | CY63: 0 | CZ63: 27562.7 | DA63: 0
A64: 0061 | B64: 1 | C64: 1 | D64: 2025-11-24 | E64: 1 | F64: 1 | G64: 1 | H64: 4534030.54 | I64: 83240539.07 | J64: 366535.92 | K64: 0 | L64: 1607771.61 | M64: 13960880.96 | N64: 166300.7 | O64: 25225.15 | P64: 0 | Q64: 0 | R64: 0 | S64: 4102203.5 | T64: 108003487.5 | V64: 0 | X64: 0 | Y64: 108003487.5 | Z64: 988308 | AA64: 0 | AB64: 176707 | AD64: 229355.02 | AE64: 158094 | AF64: 6746664.53 | AG64: 11750339.26 | AH64: 2848481.68 | AI64: 0 | AJ64: 0 | AK64: 8615356.443 | AL64: 31513305.93 | AO64: 1254848.4 | AP64: 1254848.4 | AQ64: 30258457.53 | AR64: 138261945 | AS64: 129158251 | AT64: 0 | AU64: 129158251 | AV64: 0 | AW64: 0 | AX64: 0 | AY64: 0 | BA64: 8287553.37 | BB64: 122693363 | BC64: 132100943.3 | BD64: 9407580.275 | BE64: 1120026.905 | BF64: 0 | BG64: 0 | BI64: 4955416 | BJ64: 92063810 | BK64: 251260 | BL64: 0 | BM64: 1515782 | BN64: 12529581 | BO64: 355000 | BP64: 32000 | BQ64: 0 | BR64: 0 | BS64: 0 | BT64: 5950000 | BU64: 117652849 | BW64: 0 | BY64: 0 | BZ64: 117652849 | CB64: 980903.64 | CC64: 0 | CD64: 263846.35 | CF64: 0 | CG64: 164758.99 | CH64: 7467290.13 | CI64: 13200381.9 | CJ64: 3608380.64 | CK64: 0 | CL64: 0 | CM64: 9614700.383 | CN64: 35300262.03 | CQ64: 944616.5095 | CR64: 944616.5095 | CS64: 34355645.52 | CT64: 152008494.5 | CU64: 136705069 | CV64: 0 | CW64: 136705069 | CX64: 0 | CY64: 0 | CZ64: 0 | DA64: 0
A65: 0062 | B65: 0 | C65: 0 | H65: 0 | I65: 0 | J65: 0 | K65: 0 | L65: 0 | M65: 0 | N65: 0 | O65: 0 | P65: 0 | Q65: 0 | R65: 0 | S65: 0 | T65: 0 | V65: 0 | X65: 0 | Y65: 0 | Z65: 0 | AA65: 0 | AB65: 0 | AD65: 0 | AE65: 0 | AF65: 0 | AG65: 0 | AH65: 0 | AI65: 0 | AJ65: 0 | AK65: 0 | AL65: 0 | AO65: 0 | AP65: 0 | AQ65: 0 | AR65: 0 | AS65: 0 | AT65: 0 | AU65: 0 | AV65: 0 | AW65: 0 | AX65: 0 | AY65: 0 | BA65: 0 | BB65: 0 | BC65: 0 | BD65: 0 | BE65: 0 | BF65: 0 | BG65: 0 | BI65: 0 | BJ65: 0 | BK65: 0 | BL65: 0 | BM65: 0 | BN65: 0 | BO65: 0 | BP65: 0 | BQ65: 0 | BR65: 0 | BS65: 0 | BT65: 0 | BU65: 0 | BW65: 0 | BY65: 0 | BZ65: 0 | CB65: 0 | CC65: 0 | CD65: 0 | CF65: 0 | CG65: 0 | CH65: 0 | CI65: 0 | CJ65: 0 | CK65: 0 | CL65: 0 | CM65: 0 | CN65: 0 | CQ65: 0 | CR65: 0 | CS65: 0 | CT65: 0 | CU65: 0 | CV65: 0 | CW65: 0 | CX65: 0 | CY65: 0 | CZ65: 0 | DA65: 0
A66: 0063 | B66: 1 | C66: 1 | D66: 2025-09-29 | E66: 1 | F66: 1 | G66: 1 | H66: 169380.05 | I66: 1502519.15 | J66: 1587.7 | K66: 0 | L66: 0 | M66: 187901.35 | N66: 0 | O66: 387562.18 | P66: 94375.76 | Q66: 26619 | R66: 0 | S66: 420848.82 | T66: 2790794.01 | V66: 0 | X66: 0 | Y66: 2790794.01 | Z66: 28000 | AA66: 0 | AB66: 0 | AD66: 0 | AE66: 113371 | AF66: 116841 | AG66: 0 | AH66: 0 | AI66: 0 | AJ66: 0 | AK66: 191062.63 | AL66: 449274.63 | AO66: 11540.4 | AP66: 11540.4 | AQ66: 437734.23 | AR66: 3228528.24 | AS66: 2889718 | AT66: 0 | AU66: 2889718 | AV66: 0 | AW66: 0 | AX66: 0 | AY66: 0 | BA66: 0 | BB66: 2564219 | BC66: 2904389.706 | BD66: 340170.7063 | BE66: 340170.7063 | BF66: 0 | BG66: 0 | BI66: 154059 | BJ66: 1689960 | BK66: 1500 | BL66: 0 | BM66: 0 | BN66: 152638 | BO66: 35000 | BP66: 341550 | BQ66: 130140.8 | BR66: 25646 | BS66: 0 | BT66: 325725.64 | BU66: 2856219.44 | BW66: 0 | BY66: 0 | BZ66: 2856219.44 | CB66: 28000 | CC66: 0 | CD66: 0 | CF66: 0 | CG66: 0 | CH66: 116841 | CI66: 0 | CJ66: 0 | CK66: 0 | CL66: 0 | CM66: 221153.15 | CN66: 365994.15 | CQ66: 15420 | CR66: 15420 | CS66: 350574.15 | CT66: 3206793.59 | CU66: 2998079 | CV66: 0 | CW66: 2998079 | CX66: 0 | CY66: 0 | CZ66: 0 | DA66: 0
A67: 0064 | B67: 1 | C67: 1 | D67: 2025-11-13 | E67: 1 | F67: 1 | G67: 1 | H67: 894828 | I67: 22080613 | J67: 520500 | K67: 0 | L67: 720496 | M67: 1228103 | N67: 32372 | O67: 0 | P67: 0 | Q67: 0 | R67: 0 | S67: 2479316 | T67: 27956228 | V67: 20000 | X67: 20000 | Y67: 27936228 | Z67: 178331 | AA67: 0 | AB67: 0 | AD67: 0 | AE67: 1664707 | AF67: 1126355 | AG67: 4734687 | AH67: 789147 | AI67: 0 | AJ67: 0 | AK67: 1902860.73 | AL67: 10396087.73 | AO67: 251079.4 | AP67: 251079.4 | AQ67: 10145008.33 | AR67: 38081236.33 | AS67: 34438021 | AT67: 0 | AU67: 34438021 | AV67: 0 | AW67: 0 | AX67: 0 | AY67: 0 | BA67: 0 | BB67: 32534279 | BC67: 35733053.76 | BD67: 3198774.756 | BE67: 3198774.756 | BF67: 0 | BG67: 20000 | BI67: 730399 | BJ67: 23200789 | BK67: 546100 | BL67: 0 | BM67: 862564 | BN67: 1406738 | BO67: 71000 | BP67: 0 | BQ67: 0 | BR67: 0 | BS67: 0 | BT67: 2897676 | BU67: 29715266 | BW67: 26640 | BY67: 26640 | BZ67: 29688626 | CB67: 217391 | CC67: 0 | CD67: 0 | CF67: 0 | CG67: 1671053 | CH67: 1151966 | CI67: 5476342 | CJ67: 889981 | CK67: 0 | CL67: 0 | CM67: 1978397.35 | CN67: 11385130.35 | CQ67: 132115.7984 | CR67: 132115.7984 | CS67: 11253014.55 | CT67: 40941640.55 | CU67: 36558782 | CV67: 0 | CW67: 36558782 | CX67: 0 | CY67: 0 | CZ67: 0 | DA67: 0
A68: 0065 | B68: 1 | C68: 1 | D68: 2025-09-29 | E68: 1 | F68: 1 | G68: 1 | H68: 808150.26 | I68: 19042236.83 | J68: 375420.76 | K68: 0 | L68: 698602.61 | M68: 2172086.67 | N68: 0 | O68: 3443.52 | P68: 0 | Q68: 60000 | R68: 0 | S68: 1098576.52 | T68: 24258517.17 | V68: 0 | X68: 0 | Y68: 24258517.17 | Z68: 203556 | AA68: 0 | AB68: 0 | AD68: 0 | AE68: 730330.75 | AF68: 1570139.427 | AG68: 3879719.728 | AH68: 732707.216 | AI68: 0 | AJ68: 0 | AK68: 139170.59 | AL68: 7255623.711 | AO68: 10095.2 | AP68: 10095.2 | AQ68: 7245528.511 | AR68: 31504045.68 | AS68: 17839057 | AT68: 0 | AU68: 17839057 | AV68: 0 | AW68: 0 | AX68: 0 | AY68: 0 | BA68: 232.06 | BB68: 16722880 | BC68: 29229555.84 | BD68: 12506675.84 | BE68: 12506443.78 | BF68: 0 | BG68: 0 | BI68: 1051044.38 | BJ68: 19226503.36 | BK68: 396018 | BL68: 0 | BM68: 469803.94 | BN68: 1674257.1 | BO68: 0 | BP68: 10000 | BQ68: 0 | BR68: 0 | BS68: 0 | BT68: 1309552.23 | BU68: 24137179.01 | BW68: 0 | BY68: 0 | BZ68: 24137179.01 | CB68: 211434 | CC68: 0 | CD68: 0 | CF68: 0 | CG68: 756781.5 | CH68: 1586361.673 | CI68: 4360538.834 | CJ68: 931315.6957 | CK68: 0 | CL68: 0 | CM68: 183699.37 | CN68: 8030131.072 | CQ68: 45841 | CR68: 45841 | CS68: 7984290.072 | CT68: 32121469.08 | CU68: 18340792 | CV68: 0 | CW68: 18340792 | CX68: 0 | CY68: 0 | CZ68: 0 | DA68: 0
A69: 0066 | B69: 0 | C69: 0 | D69: 2025-12-08 | H69: 0 | I69: 0 | J69: 0 | K69: 0 | L69: 0 | M69: 0 | N69: 0 | O69: 0 | P69: 0 | Q69: 0 | R69: 0 | S69: 0 | T69: 0 | V69: 0 | X69: 0 | Y69: 0 | Z69: 0 | AA69: 0 | AB69: 0 | AD69: 0 | AE69: 0 | AF69: 0 | AG69: 0 | AH69: 0 | AI69: 0 | AJ69: 0 | AK69: 314958.3 | AL69: 314958.3 | AO69: 0 | AP69: 0 | AQ69: 314958.3 | AR69: 314958.3 | AS69: 0 | AT69: 0 | AU69: 0 | AV69: 0 | AW69: 0 | AX69: 0 | AY69: 0 | BA69: 0 | BB69: 0 | BC69: 294088 | BD69: 294088 | BE69: 294088 | BF69: 0 | BG69: 0 | BI69: 0 | BJ69: 0 | BK69: 0 | BL69: 0 | BM69: 0 | BN69: 0 | BO69: 0 | BP69: 0 | BQ69: 0 | BR69: 0 | BS69: 0 | BT69: 0 | BU69: 0 | BW69: 0 | BY69: 0 | BZ69: 0 | CB69: 0 | CC69: 0 | CD69: 0 | CF69: 0 | CG69: 0 | CH69: 0 | CI69: 0 | CJ69: 0 | CK69: 0 | CL69: 0 | CM69: 378894 | CN69: 378894 | CQ69: 0 | CR69: 0 | CS69: 378894 | CT69: 378894 | CU69: 0 | CV69: 0 | CW69: 0 | CX69: 0 | CY69: 0 | CZ69: 0 | DA69: 0
A70: 0067 | B70: 1 | C70: 1 | D70: 2025-10-03 | E70: 1 | F70: 1 | G70: 1 | H70: 1215443.5 | I70: 36654314.61 | J70: 752161.55 | K70: 0 | L70: 212685.04 | M70: 4265241.86 | N70: 101584.4 | O70: 186052 | P70: 0 | Q70: 0 | R70: 0 | S70: 264836.08 | T70: 43652319.04 | V70: 0 | X70: 0 | Y70: 43652319.04 | Z70: 0 | AA70: 0 | AB70: 0 | AD70: 0 | AE70: 0 | AF70: 1683737 | AG70: 4359200 | AH70: 664259.2 | AI70: 0 | AJ70: 0 | AK70: 48712 | AL70: 6755908.2 | AO70: 12028.2 | AP70: 12028.2 | AQ70: 6743880 | AR70: 50396199.04 | AS70: 24173454 | AT70: 0 | AU70: 24173454 | AV70: 0 | AW70: 0 | AX70: 0 | AY70: 0 | BA70: 27622.21 | BB70: 23075622 | BC70: 48568100.34 | BD70: 25492478.34 | BE70: 25464856.13 | BF70: 0 | BG70: 0 | BI70: 1394702 | BJ70: 37827290 | BK70: 760887 | BL70: 0 | BM70: 274650 | BN70: 4159868 | BO70: 70000 | BP70: 199537 | BQ70: 0 | BR70: 0 | BS70: 0 | BT70: 101772 | BU70: 44788706 | BW70: 0 | BY70: 0 | BZ70: 44788706 | CB70: 0 | CC70: 0 | CD70: 0 | CF70: 0 | CG70: 0 | CH70: 1772835 | CI70: 5150887 | CJ70: 883009.17 | CK70: 0 | CL70: 0 | CM70: 0 | CN70: 7806731.17 | CQ70: 0 | CR70: 0 | CS70: 7806731.17 | CT70: 52595437.17 | CU70: 24705221 | CV70: 0 | CW70: 24705221 | CX70: 0 | CY70: 0 | CZ70: 0 | DA70: 0
A71: 0068 | B71: 1 | C71: 1 | D71: 2025-10-28 | E71: 1 | F71: 1 | G71: 1 | H71: 106316.24 | I71: 1601553.07 | J71: 69236.61 | K71: 0 | L71: 0 | M71: 300769.25 | N71: 0 | O71: 35964.23 | P71: 0 | Q71: 0 | R71: 0 | S71: 0 | T71: 2113839.4 | V71: 0 | X71: 0 | Y71: 2113839.4 | Z71: 20907 | AA71: 0 | AB71: 0 | AD71: 0 | AE71: 71000 | AF71: 148182 | AG71: 362719 | AH71: 44165.6 | AI71: 0 | AJ71: 0 | AK71: 8000 | AL71: 654973.6 | AO71: 0 | AP71: 0 | AQ71: 654973.6 | AR71: 2768813 | AS71: 1444143 | AT71: 0 | AU71: 1444143 | AV71: 0 | AW71: 0 | AX71: 0 | AY71: 0 | BA71: 297 | BB71: 1414438 | BC71: 2400536.161 | BD71: 986098.1612 | BE71: 985801.1612 | BF71: 0 | BG71: 0 | BI71: 121442.46 | BJ71: 1710687.09 | BK71: 73751.2 | BL71: 0 | BM71: 750 | BN71: 306343.5 | BO71: 0 | BP71: 43800 | BQ71: 0 | BR71: 0 | BS71: 0 | BT71: 0 | BU71: 2256774.25 | BW71: 0 | BY71: 0 | BZ71: 2256774.25 | CB71: 23221 | CC71: 0 | CD71: 0 | CF71: 0 | CG71: 0 | CH71: 185869 | CI71: 461667 | CJ71: 68504.4 | CK71: 0 | CL71: 0 | CM71: 8000 | CN71: 747261.4 | CQ71: 0 | CR71: 0 | CS71: 747261.4 | CT71: 3004035.65 | CU71: 1644083 | CV71: 0 | CW71: 1644083 | CX71: 0 | CY71: 0 | CZ71: 0 | DA71: 0
A72: 0069 | B72: 0 | C72: 0 | H72: 0 | I72: 0 | J72: 0 | K72: 0 | L72: 0 | M72: 0 | N72: 0 | O72: 0 | P72: 0 | Q72: 0 | R72: 0 | S72: 0 | T72: 0 | V72: 0 | X72: 0 | Y72: 0 | Z72: 0 | AA72: 0 | AB72: 0 | AD72: 0 | AE72: 0 | AF72: 0 | AG72: 0 | AH72: 0 | AI72: 0 | AJ72: 0 | AK72: 0 | AL72: 0 | AO72: 0 | AP72: 0 | AQ72: 0 | AR72: 0 | AS72: 129360.12 | AT72: 7072.006 | AU72: 136432.126 | AV72: -136432.126 | AW72: -1.054669136 | AX72: 6468.006 | AY72: 0 | BA72: 0 | BB72: 147287.326 | BC72: 0 | BD72: -147287.326 | BE72: -147287.326 | BF72: 0 | BG72: 0 | BI72: 0 | BJ72: 0 | BK72: 0 | BL72: 0 | BM72: 0 | BN72: 0 | BO72: 0 | BP72: 0 | BQ72: 0 | BR72: 0 | BS72: 0 | BT72: 0 | BU72: 0 | BW72: 0 | BY72: 0 | BZ72: 0 | CB72: 0 | CC72: 0 | CD72: 0 | CF72: 0 | CG72: 0 | CH72: 0 | CI72: 0 | CJ72: 0 | CK72: 0 | CL72: 0 | CM72: 0 | CN72: 0 | CQ72: 0 | CR72: 0 | CS72: 0 | CT72: 0 | CU72: 131397.12 | CV72: 6468.006 | CW72: 137865.126 | CX72: -137865.126 | CY72: 0 | CZ72: 137865.126 | DA72: 0
A73: 0070 | B73: 0 | C73: 0 | D73: 2025-12-04 | H73: 0 | I73: 0 | J73: 0 | K73: 0 | L73: 0 | M73: 0 | N73: 0 | O73: 0 | P73: 0 | Q73: 0 | R73: 0 | S73: 0 | T73: 0 | V73: 0 | X73: 0 | Y73: 0 | Z73: 0 | AA73: 0 | AB73: 0 | AD73: 0 | AE73: 0 | AF73: 0 | AG73: 0 | AH73: 0 | AI73: 0 | AJ73: 0 | AK73: 459624 | AL73: 459624 | AO73: 0 | AP73: 0 | AQ73: 459624 | AR73: 459624 | AS73: 333766.48 | AT73: 15497.974 | AU73: 349264.454 | AV73: 0 | AW73: 0 | AX73: 0 | AY73: 0 | BA73: 0 | BB73: 328067.48 | BC73: 260236 | BD73: -67831.48 | BE73: -67831.48 | BF73: 0 | BG73: 0 | BI73: 0 | BJ73: 0 | BK73: 0 | BL73: 0 | BM73: 0 | BN73: 0 | BO73: 0 | BP73: 0 | BQ73: 0 | BR73: 0 | BS73: 0 | BT73: 0 | BU73: 0 | BW73: 0 | BY73: 0 | BZ73: 0 | CB73: 0 | CC73: 0 | CD73: 0 | CF73: 0 | CG73: 0 | CH73: 0 | CI73: 0 | CJ73: 0 | CK73: 0 | CL73: 0 | CM73: 625020 | CN73: 625020 | CQ73: 0 | CR73: 0 | CS73: 625020 | CT73: 625020 | CU73: 483326 | CV73: 0 | CW73: 483326 | CX73: 0 | CY73: 0 | CZ73: 0 | DA73: 0
A74: 0071 | B74: 1 | C74: 1 | D74: 2025-11-14 | E74: 1 | F74: 1 | G74: 1 | H74: 1745297.22 | I74: 42591603.88 | J74: 887619.06 | K74: 0 | L74: 560648.6 | M74: 377618.45 | N74: 72678.76 | O74: 0 | P74: 0 | Q74: 114620.09 | R74: 0 | S74: 1563584.92 | T74: 47913670.98 | V74: 255000 | X74: 255000 | Y74: 47658670.98 | Z74: 472013 | AA74: 0 | AB74: 0 | AD74: 0 | AE74: 6036480 | AF74: 1390113 | AG74: 5618941 | AH74: 2111580 | AI74: 0 | AJ74: 0 | AK74: 908124.2849 | AL74: 16537251.28 | AO74: 68762 | AP74: 68762 | AQ74: 16468489.28 | AR74: 64127160.26 | AS74: 44559358 | AT74: 0 | AU74: 44559358 | AV74: 0 | AW74: 0 | AX74: 0 | AY74: 0 | BA74: 164183.45 | BB74: 42331707 | BC74: 60918538.83 | BD74: 18586831.83 | BE74: 18422648.38 | BF74: 0 | BG74: 255000 | BI74: 1945322 | BJ74: 44539590 | BK74: 940551 | BL74: 0 | BM74: 595912 | BN74: 445840 | BO74: 0 | BP74: 0 | BQ74: 0 | BR74: 0 | BS74: 0 | BT74: 1765243 | BU74: 50232458 | BW74: 275000 | BY74: 275000 | BZ74: 49957458 | CB74: 494669 | CC74: 0 | CD74: 0 | CF74: 15000 | CG74: 6230632 | CH74: 1507114 | CI74: 6324040 | CJ74: 2111580 | CK74: 0 | CL74: 0 | CM74: 790217.9749 | CN74: 17473252.97 | CQ74: 23102 | CR74: 23102 | CS74: 17450150.97 | CT74: 67407608.97 | CU74: 46865547 | CV74: 0 | CW74: 46865547 | CX74: 0 | CY74: 0 | CZ74: 0 | DA74: 0
A75: 0072 | B75: 1 | C75: 1 | D75: 2025-10-07 | E75: 1 | F75: 1 | G75: 1 | H75: 1152874.8 | I75: 38626962.93 | J75: 838439.44 | K75: 0 | L75: 1312466.66 | M75: 3884122.39 | N75: 148917.03 | O75: 384 | P75: 0 | Q75: 134203.19 | R75: 0 | S75: 1945369.07 | T75: 48043739.51 | V75: 0 | X75: 0 | Y75: 48043739.51 | Z75: 717046 | AA75: 0 | AB75: 0 | AD75: 0 | AE75: 0 | AF75: 1747833.75 | AG75: 4985820.81 | AH75: 1269919.99 | AI75: 0 | AJ75: 0 | AK75: 556338.2701 | AL75: 9276958.82 | AO75: 38621.6 | AP75: 38621.6 | AQ75: 9238337.22 | AR75: 57282076.73 | AS75: 46957050 | AT75: 0 | AU75: 46957050 | AV75: 0 | AW75: 0 | AX75: 0 | AY75: 0 | BA75: 6161.54 | BB75: 45280694 | BC75: 55674669.58 | BD75: 10393975.58 | BE75: 10387814.04 | BF75: 0 | BG75: 0 | BI75: 1259757.97 | BJ75: 40811712.44 | BK75: 828631 | BL75: 0 | BM75: 1186515.32 | BN75: 4005197.74 | BO75: 60000 | BP75: 1000 | BQ75: 0 | BR75: 120000 | BS75: 0 | BT75: 2213604.87 | BU75: 50486419.34 | BW75: 0 | BY75: 0 | BZ75: 50486419.34 | CB75: 788646.76 | CC75: 0 | CD75: 0 | CF75: 0 | CG75: 0 | CH75: 1778510.86 | CI75: 5635334.62 | CJ75: 1552052.92 | CK75: 0 | CL75: 0 | CM75: 678897.1301 | CN75: 10433442.29 | CQ75: 30737.16035 | CR75: 30737.16035 | CS75: 10402705.13 | CT75: 60889124.47 | CU75: 48722739 | CV75: 0 | CW75: 48722739 | CX75: 0 | CY75: 0 | CZ75: 0 | DA75: 0
A76: 0073 | B76: 1 | C76: 1 | D76: 2025-09-25 | E76: 1 | F76: 1 | G76: 1 | H76: 1958251.27 | I76: 41927672.49 | J76: 935050 | K76: 0 | L76: 965688 | M76: 5489613.38 | N76: 10900 | O76: 74706 | P76: 0 | Q76: 90037 | R76: 0 | S76: 2733678 | T76: 54185596.14 | V76: 0 | X76: 0 | Y76: 54185596.14 | Z76: 1322369.3 | AA76: 0 | AB76: 0 | AD76: 0 | AE76: 0 | AF76: 888891 | AG76: 7055134 | AH76: 1417005.6 | AI76: 0 | AJ76: 0 | AK76: 932112.77 | AL76: 11615512.67 | AO76: 180530.4 | AP76: 180530.4 | AQ76: 11434982.27 | AR76: 65620578.41 | AS76: 39060888 | AT76: 0 | AU76: 39060888 | AV76: 0 | AW76: 0 | AX76: 0 | AY76: 0 | BA76: 53473 | BB76: 34648058 | BC76: 61748152.22 | BD76: 27100094.22 | BE76: 27046621.22 | BF76: 0 | BG76: 0 | BI76: 4610904 | BJ76: 42331773 | BK76: 952151 | BL76: 0 | BM76: 957405 | BN76: 5777787.5 | BO76: 20000 | BP76: 63699 | BQ76: 0 | BR76: 95000 | BS76: 0 | BT76: 3689939 | BU76: 58498658.5 | BW76: 0 | BY76: 0 | BZ76: 58498658.5 | CB76: 827170 | CC76: 0 | CD76: 0 | CF76: 0 | CG76: 0 | CH76: 915558 | CI76: 8617309 | CJ76: 1594131.3 | CK76: 0 | CL76: 0 | CM76: 1104080.64 | CN76: 13058248.94 | CQ76: 126867 | CR76: 126867 | CS76: 12931381.94 | CT76: 71430040.44 | CU76: 40986144 | CV76: 0 | CW76: 40986144 | CX76: 0 | CY76: 0 | CZ76: 0 | DA76: 0
A77: 0074 | B77: 1 | C77: 1 | D77: 2025-11-06 | E77: 1 | F77: 1 | G77: 1 | H77: 232282.87 | I77: 3957076.11 | J77: 93321.16 | K77: 0 | L77: 1544.72 | M77: 629256.79 | N77: 6340.1 | O77: 96456.38 | P77: 0 | Q77: 0 | R77: 0 | S77: 0 | T77: 5016278.13 | V77: 0 | X77: 0 | Y77: 5016278.13 | Z77: 73154 | AA77: 0 | AB77: 0 | AD77: 53760 | AE77: 152000 | AF77: 293059 | AG77: 719638 | AH77: 92824 | AI77: 0 | AJ77: 0 | AK77: 216102.3074 | AL77: 1600537.307 | AO77: 11231.2 | AP77: 11231.2 | AQ77: 1589306.107 | AR77: 6605584.237 | AS77: 4112720 | AT77: 0 | AU77: 4112720 | AV77: 0 | AW77: 0 | AX77: 0 | AY77: 0 | BA77: 14774 | BB77: 4020735 | BC77: 6676615.126 | BD77: 2655880.126 | BE77: 2641106.126 | BF77: 0 | BG77: 0 | BI77: 238295 | BJ77: 4332480 | BK77: 97622 | BL77: 0 | BM77: 1000 | BN77: 506666 | BO77: 30500 | BP77: 84568 | BQ77: 0 | BR77: 0 | BS77: 0 | BT77: 0 | BU77: 5291131 | BW77: 0 | BY77: 0 | BZ77: 5291131 | CB77: 22767 | CC77: 0 | CD77: 0 | CF77: 60000 | CG77: 91500 | CH77: 321742 | CI77: 887066 | CJ77: 117433.8 | CK77: 0 | CL77: 0 | CM77: 282121.3074 | CN77: 1782630.107 | CQ77: 16019 | CR77: 16019 | CS77: 1766611.107 | CT77: 7057742.107 | CU77: 4106958 | CV77: 0 | CW77: 4106958 | CX77: 0 | CY77: 0 | CZ77: 0 | DA77: 0
A78: 0075 | B78: 0 | C78: 0 | H78: 0 | I78: 0 | J78: 0 | K78: 0 | L78: 0 | M78: 0 | N78: 0 | O78: 0 | P78: 0 | Q78: 0 | R78: 0 | S78: 0 | T78: 0 | V78: 0 | X78: 0 | Y78: 0 | Z78: 0 | AA78: 0 | AB78: 0 | AD78: 0 | AE78: 0 | AF78: 0 | AG78: 0 | AH78: 0 | AI78: 0 | AJ78: 0 | AK78: 0 | AL78: 0 | AO78: 0 | AP78: 0 | AQ78: 0 | AR78: 0 | AS78: 0 | AT78: 0 | AU78: 0 | AV78: 0 | AW78: 0 | AX78: 0 | AY78: 0 | BA78: 0 | BB78: 0 | BC78: 0 | BD78: 0 | BE78: 0 | BF78: 0 | BG78: 0 | BI78: 0 | BJ78: 0 | BK78: 0 | BL78: 0 | BM78: 0 | BN78: 0 | BO78: 0 | BP78: 0 | BQ78: 0 | BR78: 0 | BS78: 0 | BT78: 0 | BU78: 0 | BW78: 0 | BY78: 0 | BZ78: 0 | CB78: 0 | CC78: 0 | CD78: 0 | CF78: 0 | CG78: 0 | CH78: 0 | CI78: 0 | CJ78: 0 | CK78: 0 | CL78: 0 | CM78: 0 | CN78: 0 | CQ78: 0 | CR78: 0 | CS78: 0 | CT78: 0 | CU78: 0 | CV78: 0 | CW78: 0 | CX78: 0 | CY78: 0 | CZ78: 0 | DA78: 0
A79: 0076 | B79: 0 | C79: 0 | D79: 2025-10-20 | H79: 0 | I79: 0 | J79: 0 | K79: 0 | L79: 0 | M79: 0 | N79: 0 | O79: 0 | P79: 0 | Q79: 0 | R79: 0 | S79: 0 | T79: 0 | V79: 0 | X79: 0 | Y79: 0 | Z79: 0 | AA79: 0 | AB79: 0 | AD79: 0 | AE79: 0 | AF79: 0 | AG79: 0 | AH79: 0 | AI79: 0 | AJ79: 0 | AK79: 10564.02 | AL79: 10564.02 | AO79: 0 | AP79: 0 | AQ79: 10564.02 | AR79: 10564.02 | AS79: 16860 | AT79: 0 | AU79: 16860 | AV79: -6295.98 | AW79: -0.3734270463 | AX79: 843 | AY79: 0 | BA79: 0 | BB79: 0 | BC79: 27872.78 | BD79: 27872.78 | BE79: 27872.78 | BF79: 0 | BG79: 0 | BI79: 0 | BJ79: 0 | BK79: 0 | BL79: 0 | BM79: 0 | BN79: 0 | BO79: 0 | BP79: 0 | BQ79: 0 | BR79: 0 | BS79: 0 | BT79: 0 | BU79: 0 | BW79: 0 | BY79: 0 | BZ79: 0 | CB79: 0 | CC79: 0 | CD79: 0 | CF79: 0 | CG79: 0 | CH79: 0 | CI79: 0 | CJ79: 0 | CK79: 0 | CL79: 0 | CM79: 0 | CN79: 0 | CQ79: 0 | CR79: 0 | CS79: 0 | CT79: 0 | CU79: 17727 | CV79: 843 | CW79: 18570 | CX79: -18570 | CY79: 0 | CZ79: 18570 | DA79: 0
A80: 0077 | B80: 1 | C80: 1 | D80: 2025-10-08 | E80: 1 | F80: 1 | G80: 1 | H80: 594029.93 | I80: 12447292.28 | J80: 338602.39 | K80: 0 | L80: 303158.76 | M80: 1246713.46 | N80: 934.86 | O80: 0 | P80: 0 | Q80: 0 | R80: 0 | S80: 410728.59 | T80: 15341460.27 | V80: 0 | X80: 0 | Y80: 15341460.27 | Z80: 168420 | AA80: 0 | AB80: 0 | AD80: 132344.28 | AE80: 45000 | AF80: 476092 | AG80: 2297670.44 | AH80: 178222.78 | AI80: 0 | AJ80: 0 | AK80: 387293.32 | AL80: 3685042.82 | AO80: 0 | AP80: 0 | AQ80: 3685042.82 | AR80: 19026503.09 | AS80: 17889999 | AT80: 0 | AU80: 17889999 | AV80: 0 | AW80: 0 | AX80: 0 | AY80: 0 | BA80: 21.25 | BB80: 17382311 | BC80: 18408367.05 | BD80: 1026056.053 | BE80: 1026034.803 | BF80: 0 | BG80: 0 | BI80: 1187106 | BJ80: 12507025 | BK80: 337545 | BL80: 4986 | BM80: 346656 | BN80: 996595 | BO80: 0 | BP80: 0 | BQ80: 0 | BR80: 0 | BS80: 0 | BT80: 577693 | BU80: 15957606 | BW80: 0 | BY80: 0 | BZ80: 15957606 | CB80: 170033.01 | CC80: 0 | CD80: 0 | CF80: 134756.15 | CG80: 30000 | CH80: 517733 | CI80: 2465159.24 | CJ80: 178223 | CK80: 0 | CL80: 0 | CM80: 372496.6 | CN80: 3868401 | CQ80: 0 | CR80: 0 | CS80: 3868401 | CT80: 19826007 | CU80: 18517197 | CV80: 0 | CW80: 18517197 | CX80: 0 | CY80: 0 | CZ80: 0 | DA80: 0
A81: 0078 | B81: 1 | C81: 0 | G81: 1
A82: 0079 | B82: 1 | C82: 1 | D82: 2025-10-08 | E82: 1 | F82: 1 | G82: 1 | H82: 2093830 | I82: 29706247 | J82: 775283 | K82: 0 | L82: 1148730 | M82: 4437877 | N82: 199260 | O82: 0 | P82: 0 | Q82: 0 | R82: 0 | S82: 1576157 | T82: 39937384 | V82: 0 | X82: 0 | Y82: 39937384 | Z82: 98821 | AA82: 0 | AB82: 0 | AD82: 0 | AE82: 282600 | AF82: 2964030 | AG82: 6058946 | AH82: 2600513 | AI82: 0 | AJ82: 0 | AK82: 4039105.83 | AL82: 16044015.83 | AO82: 220883.4 | AP82: 220883.4 | AQ82: 15823132.43 | AR82: 55760516.43 | AS82: 55545119 | AT82: 758393.317 | AU82: 56303512.32 | AV82: -542995.887 | AW82: -0.009775762421 | AX82: 542995.887 | AY82: 0 | BA82: 0 | BB82: 54570266.6 | BC82: 53811873.29 | BD82: -758393.317 | BE82: -758393.317 | BF82: 0 | BG82: 0 | BI82: 2015579 | BJ82: 32903845 | BK82: 1062696 | BL82: 0 | BM82: 998173 | BN82: 4367184 | BO82: 293176 | BP82: 0 | BQ82: 0 | BR82: 0 | BS82: 0 | BT82: 73468 | BU82: 41714121 | BW82: 0 | BY82: 0 | BZ82: 41714121 | CB82: 167251 | CC82: 0 | CD82: 0 | CF82: 0 | CG82: 232400 | CH82: 3150135 | CI82: 7098678 | CJ82: 2886236 | CK82: 0 | CL82: 0 | CM82: 3663313.96 | CN82: 17198013.96 | CQ82: 0 | CR82: 0 | CS82: 17198013.96 | CT82: 58912134.96 | CU82: 56922608 | CV82: 542995.887 | CW82: 57465603.89 | CX82: 0 | CY82: 0 | CZ82: 0 | DA82: 0
A83: 0080 | B83: 0 | C83: 0 | H83: 0 | I83: 0 | J83: 0 | K83: 0 | L83: 0 | M83: 0 | N83: 0 | O83: 0 | P83: 0 | Q83: 0 | R83: 0 | S83: 0 | T83: 0 | V83: 0 | X83: 0 | Y83: 0 | Z83: 0 | AA83: 0 | AB83: 0 | AD83: 0 | AE83: 0 | AF83: 0 | AG83: 0 | AH83: 0 | AI83: 0 | AJ83: 0 | AK83: 0 | AL83: 0 | AO83: 0 | AP83: 0 | AQ83: 0 | AR83: 0 | AS83: 0 | AT83: 824.55 | AU83: 824.55 | AV83: -824.55 | AW83: 0 | AX83: 824.55 | AY83: 0 | BA83: 0 | BB83: 16491 | BC83: 0 | BD83: -16491 | BE83: -16491 | BF83: 0 | BG83: 0 | BI83: 0 | BJ83: 0 | BK83: 0 | BL83: 0 | BM83: 0 | BN83: 0 | BO83: 0 | BP83: 0 | BQ83: 0 | BR83: 0 | BS83: 0 | BT83: 0 | BU83: 0 | BW83: 0 | BY83: 0 | BZ83: 0 | CB83: 0 | CC83: 0 | CD83: 0 | CF83: 0 | CG83: 0 | CH83: 0 | CI83: 0 | CJ83: 0 | CK83: 0 | CL83: 0 | CM83: 0 | CN83: 0 | CQ83: 0 | CR83: 0 | CS83: 0 | CT83: 0 | CU83: 17354 | CV83: 824.55 | CW83: 18178.55 | CX83: -18178.55 | CY83: 0 | CZ83: 18178.55 | DA83: 0
A84: 0081 | B84: 0 | C84: 0 | H84: 0 | I84: 0 | J84: 0 | K84: 0 | L84: 0 | M84: 0 | N84: 0 | O84: 0 | P84: 0 | Q84: 0 | R84: 0 | S84: 0 | T84: 0 | V84: 0 | X84: 0 | Y84: 0 | Z84: 0 | AA84: 0 | AB84: 0 | AD84: 0 | AE84: 0 | AF84: 0 | AG84: 0 | AH84: 0 | AI84: 0 | AJ84: 0 | AK84: 0 | AL84: 0 | AO84: 0 | AP84: 0 | AQ84: 0 | AR84: 0 | AS84: 0 | AT84: 694.4 | AU84: 694.4 | AV84: -694.4 | AW84: 0 | AX84: 694.4 | AY84: 0 | BA84: 0 | BB84: 694.4 | BC84: 0 | BD84: -694.4 | BE84: -694.4 | BF84: 0 | BG84: 0 | BI84: 0 | BJ84: 0 | BK84: 0 | BL84: 0 | BM84: 0 | BN84: 0 | BO84: 0 | BP84: 0 | BQ84: 0 | BR84: 0 | BS84: 0 | BT84: 0 | BU84: 0 | BW84: 0 | BY84: 0 | BZ84: 0 | CB84: 0 | CC84: 0 | CD84: 0 | CF84: 0 | CG84: 0 | CH84: 0 | CI84: 0 | CJ84: 0 | CK84: 0 | CL84: 0 | CM84: 0 | CN84: 0 | CQ84: 0 | CR84: 0 | CS84: 0 | CT84: 0 | CU84: 0 | CV84: 694.4 | CW84: 694.4 | CX84: -694.4 | CY84: 0 | CZ84: 694.4 | DA84: 0
A85: 0082 | B85: 1 | C85: 1 | D85: 2025-11-24 | E85: 1 | F85: 1 | G85: 1 | H85: 1256117.61 | I85: 33268820.89 | J85: 416681.51 | K85: 0 | L85: 1121206.22 | M85: 3298022.21 | N85: 33000 | O85: 0 | P85: 0 | Q85: 0 | R85: 0 | S85: 1342527.23 | T85: 40736375.67 | V85: 0 | X85: 0 | Y85: 40736375.67 | Z85: 385915 | AA85: 0 | AB85: 22699 | AD85: 0 | AE85: 713403 | AF85: 1466814 | AG85: 6174142 | AH85: 872829.6 | AI85: 0 | AJ85: 0 | AK85: 257423.25 | AL85: 9893225.85 | AO85: 51707.4 | AP85: 51707.4 | AQ85: 9841518.45 | AR85: 50577894.12 | AS85: 34711429 | AT85: 0 | AU85: 34711429 | AV85: 0 | AW85: 0 | AX85: 0 | AY85: 0 | BA85: 62378.98 | BB85: 33659011 | BC85: 48327500.63 | BD85: 14668489.63 | BE85: 14606110.65 | BF85: 0 | BG85: 0 | BI85: 1372885 | BJ85: 34367394 | BK85: 465143 | BL85: 3000 | BM85: 1063081 | BN85: 3435133 | BO85: 35000 | BP85: 0 | BQ85: 0 | BR85: 0 | BS85: 0 | BT85: 822398 | BU85: 41564034 | BW85: 0 | BY85: 0 | BZ85: 41564034 | CB85: 414771 | CC85: 0 | CD85: 22180 | CF85: 0 | CG85: 707094 | CH85: 1632471 | CI85: 6438975 | CJ85: 1027736.1 | CK85: 0 | CL85: 0 | CM85: 311662 | CN85: 10554889.1 | CQ85: 62700.307 | CR85: 62700.307 | CS85: 10492188.79 | CT85: 52056222.79 | CU85: 36200931 | CV85: 0 | CW85: 36200931 | CX85: 0 | CY85: 0 | CZ85: 0 | DA85: 0
A86: 0083 | B86: 1 | C86: 1 | D86: 2025-10-30 | E86: 1 | F86: 1 | G86: 0.9306261685 | H86: 1238483 | I86: 18938381 | J86: 367011 | K86: 44832 | L86: 836414 | M86: 1338712 | N86: 313250 | O86: 6867 | P86: 0 | Q86: 0 | R86: 0 | S86: 1429681 | T86: 24513631 | V86: 0 | X86: 0 | Y86: 24513631 | Z86: 222083.6982 | AA86: 0 | AB86: 0 | AD86: 92583 | AE86: 1836860.625 | AF86: 976335 | AG86: 2937667 | AH86: 1026973 | AI86: 0 | AJ86: 0 | AK86: 531002.41 | AL86: 7623504.733 | AO86: 24520 | AP86: 24520 | AQ86: 7598984.733 | AR86: 32112615.73 | AS86: 27821994 | AT86: 0 | AU86: 27821994 | AV86: 0 | AW86: 0 | AX86: 0 | AY86: 0 | BA86: 11244 | BB86: 26867274 | BC86: 31205131.17 | BD86: 4337857.175 | BE86: 4326613.175 | BF86: 0 | BG86: 0 | BI86: 1116561 | BJ86: 19176402 | BK86: 333577 | BL86: 26000 | BM86: 826748 | BN86: 1419827 | BO86: 77000 | BP86: 7072 | BQ86: 0 | BR86: 0 | BS86: 0 | BT86: 2417060 | BU86: 25400247 | BW86: 0 | BY86: 0 | BZ86: 25400247 | CB86: 228392 | CC86: 0 | CD86: 0 | CF86: 93480 | CG86: 1961269 | CH86: 1057451 | CI86: 3306603 | CJ86: 1048479 | CK86: 0 | CL86: 75183 | CM86: 569661.93 | CN86: 8340518.93 | CQ86: 0 | CR86: 0 | CS86: 8340518.93 | CT86: 33740765.93 | CU86: 28847459 | CV86: 0 | CW86: 28847459 | CX86: 0 | CY86: 0 | CZ86: 0 | DA86: 0
A87: 0084 | B87: 0 | C87: 0 | D87: 2025-11-17 | H87: 0 | I87: 0 | J87: 0 | K87: 0 | L87: 0 | M87: 0 | N87: 0 | O87: 0 | P87: 0 | Q87: 0 | R87: 0 | S87: 0 | T87: 0 | V87: 0 | X87: 0 | Y87: 0 | Z87: 0 | AA87: 0 | AB87: 0 | AD87: 0 | AE87: 0 | AF87: 0 | AG87: 0 | AH87: 0 | AI87: 0 | AJ87: 0 | AK87: 196301.1022 | AL87: 196301.1022 | AO87: 0 | AP87: 0 | AQ87: 196301.1022 | AR87: 196301.1022 | AS87: 328536 | AT87: 16557.8 | AU87: 345093.8 | AV87: -148792.6978 | AW87: -0.4528961751 | AX87: 16426.8 | AY87: 0 | BA87: 0 | BB87: 347451.1 | BC87: 168769 | BD87: -178682.1 | BE87: -178682.1 | BF87: 0 | BG87: 0 | BI87: 0 | BJ87: 0 | BK87: 0 | BL87: 0 | BM87: 0 | BN87: 0 | BO87: 0 | BP87: 0 | BQ87: 0 | BR87: 0 | BS87: 0 | BT87: 0 | BU87: 0 | BW87: 0 | BY87: 0 | BZ87: 0 | CB87: 0 | CC87: 0 | CD87: 0 | CF87: 0 | CG87: 0 | CH87: 0 | CI87: 0 | CJ87: 0 | CK87: 0 | CL87: 0 | CM87: 215405.1022 | CN87: 215405.1022 | CQ87: 0 | CR87: 0 | CS87: 215405.1022 | CT87: 215405.1022 | CU87: 448617 | CV87: 16426.8 | CW87: 465043.8 | CX87: -249638.6978 | CY87: 0 | CZ87: 249638.6978 | DA87: 0
A88: 0085 | B88: 1 | C88: 0 | G88: 1
A89: 0086 | B89: 1 | C89: 1 | D89: 2025-12-12 | E89: 1 | F89: 1 | G89: 1 | H89: 902066.42 | I89: 13727688.15 | J89: 290419.68 | K89: 0 | L89: 202785.11 | M89: 1388705.66 | N89: 19873.44 | O89: 1659 | P89: 0 | Q89: 0 | R89: 0 | S89: 2963293.06 | T89: 19496490.52 | V89: 66000 | X89: 66000 | Y89: 19430490.52 | Z89: 230039.68 | AA89: 0 | AB89: 0 | AD89: 0 | AE89: 254706.44 | AF89: 855045 | AG89: 3190758.5 | AH89: 907815 | AI89: 0 | AJ89: 0 | AK89: 2957809.43 | AL89: 8396174.05 | AO89: 237437.8 | AP89: 237437.8 | AQ89: 8158736.25 | AR89: 27589226.77 | AS89: 23765425 | AT89: 0 | AU89: 23765425 | AV89: 0 | AW89: 0 | AX89: 0 | AY89: 0 | BA89: 0 | BB89: 22559015 | BC89: 24639984.31 | BD89: 2080969.309 | BE89: 2080969.309 | BF89: 0 | BG89: 66000 | BI89: 1244038 | BJ89: 14740125 | BK89: 307524 | BL89: 0 | BM89: 210005 | BN89: 1554150 | BO89: 30000 | BP89: 3000 | BQ89: 0 | BR89: 2100 | BS89: 0 | BT89: 3259806 | BU89: 21350748 | BW89: 66000 | BY89: 66000 | BZ89: 21284748 | CB89: 256413.6 | CC89: 0 | CD89: 0 | CF89: 0 | CG89: 269576.05 | CH89: 876056 | CI89: 3655000 | CJ89: 833400 | CK89: 0 | CL89: 0 | CM89: 3281532.59 | CN89: 9171978.24 | CQ89: 349561.3263 | CR89: 349561.3263 | CS89: 8822416.914 | CT89: 30107164.91 | CU89: 24878449 | CV89: 0 | CW89: 24878449 | CX89: 0 | CY89: 0 | CZ89: 0 | DA89: 0
A90: 0087 | B90: 1 | C90: 1 | D90: 2025-09-30 | E90: 1 | F90: 1 | G90: 1 | H90: 939945 | I90: 27993873 | J90: 948657 | K90: 11397 | L90: 646945 | M90: 1230552 | N90: 72274 | O90: 0 | P90: 0 | Q90: 0 | R90: 0 | S90: 2280435 | T90: 34124078 | V90: 0 | X90: 0 | Y90: 34124078 | Z90: 655143 | AA90: 0 | AB90: 0 | AD90: 91801 | AE90: 1905409 | AF90: 2498802.87 | AG90: 4494178.86 | AH90: 1055924.97 | AI90: 0 | AJ90: 0 | AK90: 698115.69 | AL90: 11399375.39 | AO90: 93143 | AP90: 93143 | AQ90: 11306232.39 | AR90: 45430310.39 | AS90: 34963344 | AT90: 0 | AU90: 34963344 | AV90: 0 | AW90: 0 | AX90: 0 | AY90: 0 | BA90: 3571.95 | BB90: 33881346 | BC90: 45282558.02 | BD90: 11401212.02 | BE90: 11397640.07 | BF90: 0 | BG90: 0 | BI90: 938817 | BJ90: 28054113 | BK90: 951650 | BL90: 0 | BM90: 662813 | BN90: 1247498 | BO90: 0 | BP90: 0 | BQ90: 0 | BR90: 0 | BS90: 0 | BT90: 2981165 | BU90: 34836056 | BW90: 0 | BY90: 0 | BZ90: 34836056 | CB90: 623534 | CC90: 0 | CD90: 0 | CF90: 98188 | CG90: 3099575 | CH90: 2301445 | CI90: 4660370 | CJ90: 1147554 | CK90: 0 | CL90: 0 | CM90: 713124.39 | CN90: 12643790.39 | CQ90: 83796.16769 | CR90: 83796.16769 | CS90: 12559994.22 | CT90: 47396050.22 | CU90: 36308859 | CV90: 0 | CW90: 36308859 | CX90: 0 | CY90: 0 | CZ90: 0 | DA90: 0
A91: 0088 | B91: 1 | C91: 1 | D91: 2025-11-22 | E91: 1 | F91: 1 | G91: 1 | H91: 1650565 | I91: 37635267 | J91: 879170 | K91: 0 | L91: 883002 | M91: 3512655 | N91: 0 | O91: 66990 | P91: 0 | Q91: 0 | R91: 0 | S91: 2160862 | T91: 46788511 | V91: 200000 | X91: 200000 | Y91: 46588511 | Z91: 519598 | AA91: 0 | AB91: 0 | AD91: 0 | AE91: 498132 | AF91: 1521090 | AG91: 5717049 | AH91: 2159976 | AI91: 0 | AJ91: 0 | AK91: 663350.21 | AL91: 11079195.21 | AO91: 89634.6 | AP91: 89634.6 | AQ91: 10989560.61 | AR91: 57578071.61 | AS91: 45701456 | AT91: 0 | AU91: 45701456 | AV91: 0 | AW91: 0 | AX91: 0 | AY91: 0 | BA91: 0 | BB91: 44031696 | BC91: 53923512.38 | BD91: 9891816.379 | BE91: 9891816.379 | BF91: 0 | BG91: 200000 | BI91: 1662729 | BJ91: 38776945 | BK91: 905470 | BL91: 0 | BM91: 864098 | BN91: 3512680 | BO91: 0 | BP91: 452000 | BQ91: 0 | BR91: 0 | BS91: 0 | BT91: 1328000 | BU91: 47501922 | BW91: 0 | BY91: 0 | BZ91: 47501922 | CB91: 27250 | CC91: 0 | CD91: 0 | CF91: 0 | CG91: 504488 | CH91: 1664927 | CI91: 6440637 | CJ91: 2815416 | CK91: 0 | CL91: 0 | CM91: 699250.62 | CN91: 12151968.62 | CQ91: 0 | CR91: 0 | CS91: 12151968.62 | CT91: 59653890.62 | CU91: 47823059 | CV91: 0 | CW91: 47823059 | CX91: 0 | CY91: 0 | CZ91: 0 | DA91: 0
A92: 0089 | B92: 1 | C92: 1 | D92: 2025-09-30 | E92: 1 | F92: 1 | G92: 1 | H92: 284158 | I92: 8645697 | J92: 272982 | K92: 148950 | L92: 7586 | M92: 1049247 | N92: 148467 | O92: 361866 | P92: 18056 | Q92: 0 | R92: 0 | S92: 23923 | T92: 10960932 | V92: 0 | X92: 0 | Y92: 10960932 | Z92: 55027 | AA92: 0 | AB92: 0 | AD92: 0 | AE92: 0 | AF92: 368847 | AG92: 1760254 | AH92: 353426.4 | AI92: 0 | AJ92: 0 | AK92: 1203202.017 | AL92: 3740756.417 | AO92: 230174.8 | AP92: 230174.8 | AQ92: 3510581.617 | AR92: 14471513.62 | AS92: 6750615 | AT92: 0 | AU92: 6750615 | AV92: 0 | AW92: 0 | AX92: 0 | AY92: 0 | BA92: 0 | BB92: 6660865 | BC92: 13376293.4 | BD92: 6715428.405 | BE92: 6715428.405 | BF92: 0 | BG92: 0 | BI92: 318274 | BJ92: 9542681 | BK92: 199060 | BL92: 238198 | BM92: 7631 | BN92: 1060865 | BO92: 162826 | BP92: 430676 | BQ92: 15357.6 | BR92: 1516 | BS92: 0 | BT92: 188236 | BU92: 12165320.6 | BW92: 0 | BY92: 0 | BZ92: 12165320.6 | CB92: 53928 | CC92: 0 | CD92: 0 | CF92: 0 | CG92: 0 | CH92: 378849 | CI92: 1933057 | CJ92: 423449.1 | CK92: 0 | CL92: 0 | CM92: 1066990.017 | CN92: 3856273.117 | CQ92: 50755.77216 | CR92: 50755.77216 | CS92: 3805517.345 | CT92: 15970837.94 | CU92: 6443899 | CV92: 0 | CW92: 6443899 | CX92: 0 | CY92: 0 | CZ92: 0 | DA92: 0
A93: 0090 | B93: 0 | C93: 0 | D93: 2025-11-17 | H93: 0 | I93: 0 | J93: 0 | K93: 0 | L93: 0 | M93: 0 | N93: 0 | O93: 0 | P93: 0 | Q93: 0 | R93: 0 | S93: 0 | T93: 0 | V93: 0 | X93: 0 | Y93: 0 | Z93: 0 | AA93: 0 | AB93: 0 | AD93: 0 | AE93: 0 | AF93: 0 | AG93: 0 | AH93: 0 | AI93: 0 | AJ93: 0 | AK93: 0 | AL93: 0 | AO93: 0 | AP93: 0 | AQ93: 0 | AR93: 0 | AS93: 0 | AT93: 0 | AU93: 0 | AV93: 0 | AW93: 0 | AX93: 0 | AY93: 0 | BA93: 0 | BB93: 0 | BC93: 0 | BD93: 0 | BE93: 0 | BF93: 0 | BG93: 0 | BI93: 0 | BJ93: 0 | BK93: 0 | BL93: 0 | BM93: 0 | BN93: 0 | BO93: 0 | BP93: 0 | BQ93: 0 | BR93: 0 | BS93: 0 | BT93: 0 | BU93: 0 | BW93: 0 | BY93: 0 | BZ93: 0 | CB93: 0 | CC93: 0 | CD93: 0 | CF93: 0 | CG93: 0 | CH93: 0 | CI93: 0 | CJ93: 0 | CK93: 0 | CL93: 0 | CM93: 0 | CN93: 0 | CQ93: 0 | CR93: 0 | CS93: 0 | CT93: 0 | CU93: 0 | CV93: 0 | CW93: 0 | CX93: 0 | CY93: 0 | CZ93: 0 | DA93: 0
A94: 0091 | B94: 1 | C94: 1 | D94: 2025-10-06 | E94: 1 | F94: 1 | G94: 1 | H94: 133473 | I94: 2667066 | J94: 78417 | K94: 0 | L94: 0 | M94: 328350 | N94: 0 | O94: 5019 | P94: 0 | Q94: 1626 | R94: 0 | S94: 949653 | T94: 4163604 | V94: 0 | X94: 0 | Y94: 4163604 | Z94: 0 | AA94: 0 | AB94: 0 | AD94: 0 | AE94: 0 | AF94: 177940 | AG94: 717446 | AH94: 134687.2 | AI94: 0 | AJ94: 0 | AK94: 266401.7935 | AL94: 1296474.994 | AO94: 95844 | AP94: 95844 | AQ94: 1200630.994 | AR94: 5364234.994 | AS94: 2797879 | AT94: 0 | AU94: 2797879 | AV94: 0 | AW94: 0 | AX94: 0 | AY94: 0 | BA94: 0 | BB94: 2671389 | BC94: 5298966.526 | BD94: 2627577.526 | BE94: 2627577.526 | BF94: 0 | BG94: 0 | BI94: 137998 | BJ94: 3035824 | BK94: 0 | BL94: 15000 | BM94: 12500 | BN94: 351686 | BO94: 1111 | BP94: 6518 | BQ94: 0 | BR94: 2870 | BS94: 0 | BT94: 1076180 | BU94: 4639687 | BW94: 91022 | BY94: 91022 | BZ94: 4548665 | CB94: 8493 | CC94: 0 | CD94: 0 | CF94: 0 | CG94: 0 | CH94: 179615 | CI94: 717446 | CJ94: 151523.1 | CK94: 0 | CL94: 0 | CM94: 197609.4835 | CN94: 1254686.584 | CQ94: 36788.92413 | CR94: 36788.92413 | CS94: 1217897.659 | CT94: 5766562.659 | CU94: 2653776 | CV94: 0 | CW94: 2653776 | CX94: 0 | CY94: 0 | CZ94: 0 | DA94: 0
A95: 0092 | B95: 0 | C95: 0 | D95: 2025-12-04 | H95: 0 | I95: 0 | J95: 0 | K95: 0 | L95: 0 | M95: 0 | N95: 0 | O95: 0 | P95: 0 | Q95: 0 | R95: 0 | S95: 0 | T95: 0 | V95: 0 | X95: 0 | Y95: 0 | Z95: 0 | AA95: 0 | AB95: 0 | AD95: 0 | AE95: 0 | AF95: 0 | AG95: 0 | AH95: 0 | AI95: 0 | AJ95: 0 | AK95: 0 | AL95: 0 | AO95: 0 | AP95: 0 | AQ95: 0 | AR95: 0 | AS95: 0 | AT95: 0 | AU95: 0 | AV95: 0 | AW95: 0 | AX95: 0 | AY95: 0 | BA95: 0 | BB95: 0 | BC95: 0 | BD95: 0 | BE95: 0 | BF95: 0 | BG95: 0 | BI95: 0 | BJ95: 0 | BK95: 0 | BL95: 0 | BM95: 0 | BN95: 0 | BO95: 0 | BP95: 0 | BQ95: 0 | BR95: 0 | BS95: 0 | BT95: 0 | BU95: 0 | BW95: 0 | BY95: 0 | BZ95: 0 | CB95: 0 | CC95: 0 | CD95: 0 | CF95: 0 | CG95: 0 | CH95: 0 | CI95: 0 | CJ95: 0 | CK95: 0 | CL95: 0 | CM95: 0 | CN95: 0 | CQ95: 0 | CR95: 0 | CS95: 0 | CT95: 0 | CU95: 0 | CV95: 0 | CW95: 0 | CX95: 0 | CY95: 0 | CZ95: 0 | DA95: 0
A96: 0093 | B96: 1 | C96: 1 | D96: 2025-10-22 | E96: 1 | F96: 1 | G96: 1 | H96: 4301548 | I96: 108477455.3 | J96: 472659 | K96: 0 | L96: 3724438 | M96: 9715891 | N96: 144274 | O96: 0 | P96: 0 | Q96: 0 | R96: 0 | S96: 6389863 | T96: 133226128.3 | V96: 3025763.794 | X96: 3025763.794 | Y96: 130200364.5 | Z96: 605359 | AA96: 0 | AB96: 861341 | AD96: 609801 | AE96: 23855 | AF96: 3279434 | AG96: 13971306 | AH96: 2217010 | AI96: 0 | AJ96: 0 | AK96: 13870598.78 | AL96: 35438704.78 | AO96: 2459963 | AP96: 2459963 | AQ96: 32978741.78 | AR96: 163179106.3 | AS96: 161811105 | AT96: 0 | AU96: 161811105 | AV96: 0 | AW96: 0 | AX96: 0 | AY96: 0 | BA96: 3229383.82 | BB96: 152643280 | BC96: 152846900 | BD96: 203620.0256 | BE96: -3025763.794 | BF96: 3025763.794 | BG96: 0 | BI96: 6062975 | BJ96: 107664607 | BK96: 314790 | BL96: 0 | BM96: 4762503 | BN96: 10995546 | BO96: 0 | BP96: 0 | BQ96: 0 | BR96: 0 | BS96: 0 | BT96: 7139782 | BU96: 136940203 | BW96: 0 | BY96: 0 | BZ96: 136940203 | CB96: 575342 | CC96: 0 | CD96: 864951 | CF96: 250582 | CG96: 20000 | CH96: 3596380 | CI96: 14845846 | CJ96: 2536702 | CK96: 0 | CL96: 0 | CM96: 16109194.22 | CN96: 38798997.22 | CQ96: 2282078.106 | CR96: 2282078.106 | CS96: 36516919.11 | CT96: 173457122.1 | CU96: 172711735 | CV96: 0 | CW96: 172711735 | CX96: 0 | CY96: 0 | CZ96: 0 | DA96: 0
A97: 0094 | B97: 1 | C97: 1 | D97: 2025-09-24 | E97: 1 | F97: 1 | G97: 1 | H97: 1053166.99 | I97: 17123364.49 | J97: 374201.67 | K97: 71298.94 | L97: 731478.29 | M97: 2446046.88 | N97: 9271.28 | O97: 3583 | P97: 0 | Q97: 21669.54 | R97: 0 | S97: 1456318.32 | T97: 23290399.4 | V97: 2337691 | X97: 2337691 | Y97: 20952708.4 | Z97: 459631.18 | AA97: 0 | AB97: 0 | AD97: 71268.8 | AE97: 202320 | AF97: 1050341.56 | AG97: 1947873.27 | AH97: 629516.14 | AI97: 0 | AJ97: 0 | AK97: 351098.94 | AL97: 4712049.89 | AO97: 15392.8 | AP97: 15392.8 | AQ97: 4696657.09 | AR97: 25649365.49 | AS97: 24687013 | AT97: 0 | AU97: 24687013 | AV97: 0 | AW97: 0 | AX97: 0 | AY97: 0 | BA97: 0 | BB97: 23768493 | BC97: 24346237.93 | BD97: 577744.9339 | BE97: 577744.9339 | BF97: 0 | BG97: 2337691 | BI97: 1018015 | BJ97: 18047935 | BK97: 474674 | BL97: 39287 | BM97: 732941 | BN97: 2021921 | BO97: 0 | BP97: 3390 | BQ97: 0 | BR97: 11000 | BS97: 0 | BT97: 1464019 | BU97: 23813182 | BW97: 2160000 | BY97: 2160000 | BZ97: 21653182 | CB97: 485264.97 | CC97: 0 | CD97: 0 | CF97: 137716.2 | CG97: 199049.62 | CH97: 1078509.08 | CI97: 2036164.34 | CJ97: 629516.14 | CK97: 0 | CL97: 0 | CM97: 400964.09 | CN97: 4967184.44 | CQ97: 7578.107934 | CR97: 7578.107934 | CS97: 4959606.332 | CT97: 26612788.33 | CU97: 25896938 | CV97: 0 | CW97: 25896938 | CX97: 0 | CY97: 0 | CZ97: 0 | DA97: 0
A98: 0095 | B98: 1 | C98: 1 | D98: 2025-10-14 | E98: 1 | F98: 1 | G98: 1 | H98: 5062616 | I98: 131760648.8 | J98: 3999933 | K98: 0 | L98: 4544824 | M98: 19327575 | N98: 179765 | O98: 2580714 | P98: 0 | Q98: 503986 | R98: 0 | S98: 10171792 | T98: 178131853.8 | V98: 194759 | X98: 194759 | Y98: 177937094.8 | Z98: 1729593 | AA98: 0 | AB98: 0 | AD98: 0 | AE98: 0 | AF98: 10033913 | AG98: 25553267 | AH98: 7930735 | AI98: 0 | AJ98: 0 | AK98: 34368450.89 | AL98: 79615958.89 | AO98: 5235197.6 | AP98: 5235197.6 | AQ98: 74380761.29 | AR98: 252317856.1 | AS98: 243053150 | AT98: 1098833.198 | AU98: 244151983.2 | AV98: 0 | AW98: 0 | AX98: 0 | AY98: 0 | BA98: 144759 | BB98: 232461997.1 | BC98: 231363163.9 | BD98: -1098833.198 | BE98: -1243592.198 | BF98: 144759 | BG98: 50000 | BI98: 8702117 | BJ98: 146497350 | BK98: 4281810 | BL98: 0 | BM98: 5077052 | BN98: 20259064 | BO98: 220000 | BP98: 2795000 | BQ98: 0 | BR98: 300000 | BS98: 0 | BT98: 9704816 | BU98: 197837209 | BW98: 60000 | BY98: 60000 | BZ98: 197777209 | CB98: 1871982 | CC98: 0 | CD98: 0 | CF98: 0 | CG98: 0 | CH98: 10551802 | CI98: 23658319 | CJ98: 7606034 | CK98: 0 | CL98: 0 | CM98: 38761595.82 | CN98: 82449732.82 | CQ98: 4521580.906 | CR98: 4521580.906 | CS98: 77928151.91 | CT98: 275705360.9 | CU98: 273966514 | CV98: 0 | CW98: 273966514 | CX98: 0 | CY98: 0 | CZ98: 0 | DA98: 0
A99: 0096 | B99: 1 | C99: 1 | D99: 2025-11-03 | E99: 1 | F99: 1 | G99: 1 | H99: 1548820.55 | I99: 42555118 | J99: 1032125.28 | K99: 0 | L99: 1545966.51 | M99: 5932170.28 | N99: 95874.42 | O99: 0 | P99: 0 | Q99: 0 | R99: 0 | S99: 1570553 | T99: 54280628.04 | V99: 55000 | X99: 55000 | Y99: 54225628.04 | Z99: 230972 | AA99: 0 | AB99: 0 | AD99: 0 | AE99: 720108 | AF99: 2912492 | AG99: 9551023 | AH99: 1543254.4 | AI99: 0 | AJ99: 0 | AK99: 3147982.971 | AL99: 18105832.37 | AO99: 278655 | AP99: 278655 | AQ99: 17827177.37 | AR99: 72052805.41 | AS99: 45276621 | AT99: 0 | AU99: 45276621 | AV99: 0 | AW99: 0 | AX99: 0 | AY99: 0 | BA99: 0 | BB99: 42847019 | BC99: 67862240.82 | BD99: 25015221.82 | BE99: 25015221.82 | BF99: 0 | BG99: 55000 | BI99: 2205584 | BJ99: 44742519 | BK99: 1078478 | BL99: 0 | BM99: 1757249 | BN99: 5472974 | BO99: 0 | BP99: 0 | BQ99: 0 | BR99: 0 | BS99: 0 | BT99: 1375000 | BU99: 56631804 | BW99: 5000 | BY99: 5000 | BZ99: 56626804 | CB99: 222753 | CC99: 0 | CD99: 0 | CF99: 0 | CG99: 704912 | CH99: 3146782 | CI99: 11003090 | CJ99: 1974917.7 | CK99: 0 | CL99: 0 | CM99: 3526620.351 | CN99: 20579075.05 | CQ99: 443096.0241 | CR99: 443096.0241 | CS99: 20135979.03 | CT99: 76762783.03 | CU99: 46216368 | CV99: 0 | CW99: 46216368 | CX99: 0 | CY99: 0 | CZ99: 0 | DA99: 0
A100: 0097 | B100: 1 | C100: 1 | D100: 2025-11-25 | E100: 1 | F100: 1 | G100: 1 | H100: 2375535.84 | I100: 56493143.99 | J100: 1800718.92 | K100: 0 | L100: 1634879.91 | M100: 7205429.8 | N100: 125339.43 | O100: 234432.48 | P100: 0 | Q100: 88200 | R100: 0 | S100: 4971217.95 | T100: 74928898.32 | V100: 0 | X100: 0 | Y100: 74928898.32 | Z100: 821921 | AA100: 0 | AB100: 66280 | AD100: 269000 | AE100: 5000 | AF100: 5865715 | AG100: 10300442 | AH100: 3429452 | AI100: 0 | AJ100: 0 | AK100: 6205454.828 | AL100: 26963264.83 | AO100: 239452.2 | AP100: 239452.2 | AQ100: 26723812.63 | AR100: 101652710.9 | AS100: 101071841 | AT100: 780779.6881 | AU100: 101852620.7 | AV100: -199909.7406 | AW100: -0.001977897489 | AX100: 199909.7406 | AY100: 0 | BA100: 0 | BB100: 96678430 | BC100: 95897650.31 | BD100: -780779.6881 | BE100: -780779.6881 | BF100: 0 | BG100: 0 | BI100: 1379434 | BJ100: 64305138 | BK100: 1569485 | BL100: 0 | BM100: 900018 | BN100: 6877410 | BO100: 25000 | BP100: 80000 | BQ100: 0 | BR100: 0 | BS100: 0 | BT100: 6957285 | BU100: 82093770 | BW100: 0 | BY100: 0 | BZ100: 82093770 | CB100: 897523 | CC100: 0 | CD100: 81416 | CF100: 275000 | CG100: 5000 | CH100: 6134050 | CI100: 11774006 | CJ100: 3773459 | CK100: 0 | CL100: 0 | CM100: 7449349.138 | CN100: 30389803.14 | CQ100: 1059695.207 | CR100: 1059695.207 | CS100: 29330107.93 | CT100: 111423877.9 | CU100: 110532275 | CV100: 199909.7406 | CW100: 110732184.7 | CX100: 0 | CY100: 0 | CZ100: 0 | DA100: 0
A101: 0098 | B101: 1 | C101: 1 | D101: 2025-09-29 | E101: 1 | F101: 1 | G101: 1 | H101: 72721.4 | I101: 1044558.04 | J101: 2140.91 | K101: 0 | L101: 300 | M101: 172039.31 | N101: 5790 | O101: 988.36 | P101: 0 | Q101: 7063.53 | R101: 0 | S101: 6426.5 | T101: 1312028.05 | V101: 145166 | X101: 145166 | Y101: 1166862.05 | Z101: 10850 | AA101: 0 | AB101: 0 | AD101: 0 | AE101: 0 | AF101: 76810.8 | AG101: 256004.74 | AH101: 41427.2 | AI101: 0 | AJ101: 0 | AK101: 95622.69 | AL101: 480715.43 | AO101: 32891.4 | AP101: 32891.4 | AQ101: 447824.03 | AR101: 1614686.08 | AS101: 1005379 | AT101: 0 | AU101: 1005379 | AV101: 0 | AW101: 0 | AX101: 0 | AY101: 0 | BA101: 0 | BB101: 985108 | BC101: 1501253.09 | BD101: 516145.09 | BE101: 516145.09 | BF101: 0 | BG101: 145166 | BI101: 68723 | BJ101: 998196.62 | BK101: 41617 | BL101: 0 | BM101: 0 | BN101: 159774 | BO101: 0 | BP101: 973 | BQ101: 0 | BR101: 7350 | BS101: 0 | BT101: 41166.86 | BU101: 1317800.48 | BW101: 163946 | BY101: 163946 | BZ101: 1153854.48 | CB101: 10850 | CC101: 0 | CD101: 0 | CF101: 0 | CG101: 0 | CH101: 76810.8 | CI101: 256004.74 | CJ101: 46605.6 | CK101: 0 | CL101: 0 | CM101: 84901 | CN101: 475172.14 | CQ101: 6232.053881 | CR101: 6232.053881 | CS101: 468940.0861 | CT101: 1622794.566 | CU101: 1021800 | CV101: 0 | CW101: 1021800 | CX101: 0 | CY101: 0 | CZ101: 0 | DA101: 0
A102: 0099 | B102: 1 | C102: 1 | D102: 2025-10-03 | E102: 1 | F102: 1 | G102: 1 | H102: 1476146.64 | I102: 31249052.35 | J102: 545109.19 | K102: 41799.88 | L102: 1015094.54 | M102: 3706429.75 | N102: 60435.45 | O102: 12457 | P102: 0 | Q102: 0 | R102: 0 | S102: 1364056.58 | T102: 39470581.38 | V102: 0 | X102: 0 | Y102: 39470581.38 | Z102: 360797 | AA102: 0 | AB102: 0 | AD102: 0 | AE102: 581747 | AF102: 2589143 | AG102: 5910120 | AH102: 835856 | AI102: 0 | AJ102: 0 | AK102: 2096326.9 | AL102: 12373989.9 | AO102: 10062 | AP102: 10062 | AQ102: 12363927.9 | AR102: 51834509.28 | AS102: 38279575 | AT102: 0 | AU102: 38279575 | AV102: 0 | AW102: 0 | AX102: 0 | AY102: 0 | BA102: 101193.73 | BB102: 36724570 | BC102: 50097832.16 | BD102: 13373262.16 | BE102: 13272068.43 | BF102: 0 | BG102: 0 | BI102: 1668534 | BJ102: 32188475 | BK102: 539542 | BL102: 41634 | BM102: 992884 | BN102: 4104363 | BO102: 0 | BP102: 13500 | BQ102: 0 | BR102: 0 | BS102: 0 | BT102: 1789582 | BU102: 41338514 | BW102: 0 | BY102: 0 | BZ102: 41338514 | CB102: 382536 | CC102: 0 | CD102: 0 | CF102: 0 | CG102: 845632.21 | CH102: 2715366 | CI102: 6415120 | CJ102: 920658 | CK102: 0 | CL102: 0 | CM102: 2172027.01 | CN102: 13451339.22 | CQ102: 56858.21521 | CR102: 56858.21521 | CS102: 13394481 | CT102: 54732995 | CU102: 39846694 | CV102: 0 | CW102: 39846694 | CX102: 0 | CY102: 0 | CZ102: 0 | DA102: 0
A103: 0100 | B103: 1 | C103: 1 | D103: 2025-11-14 | E103: 0.9982353648 | F103: 0.9975970273 | G103: 1 | H103: 6020856.881 | I103: 122264178.7 | J103: 4337471.43 | K103: 0 | L103: 2529655.73 | M103: 11896638.99 | N103: 323635.0127 | O103: 4403.216194 | P103: 0 | Q103: 0 | R103: 0 | S103: 14117072.25 | T103: 161493912.2 | V103: 14500 | X103: 14500 | Y103: 161479412.2 | Z103: 3054183 | AA103: 0 | AB103: 0 | AD103: 0 | AE103: 777726 | AF103: 10238420.98 | AG103: 23543043.68 | AH103: 7057716.689 | AI103: 0 | AJ103: 0 | AK103: 5653831.72 | AL103: 50324922.07 | AO103: 0 | AP103: 0 | AQ103: 50324922.07 | AR103: 211804334.3 | AS103: 164019780 | AT103: 0 | AU103: 164019780 | AV103: 0 | AW103: 0 | AX103: 0 | AY103: 0 | BA103: 9912.38 | BB103: 159351947 | BC103: 200320825.7 | BD103: 40968878.68 | BE103: 40958966.3 | BF103: 0 | BG103: 14500 | BI103: 8734613.405 | BJ103: 129216045 | BK103: 4856407 | BL103: 0 | BM103: 3212814 | BN103: 11199845.25 | BO103: 130366.9771 | BP103: 0 | BQ103: 0 | BR103: 0 | BS103: 0 | BT103: 13927177 | BU103: 171277268.6 | BW103: 14465.1569 | BY103: 14465.1569 | BZ103: 171262803.5 | CB103: 3319366.44 | CC103: 0 | CD103: 0 | CF103: 0 | CG103: 823663.9904 | CH103: 10753347.76 | CI103: 26416640.63 | CJ103: 7815192.071 | CK103: 0 | CL103: 0 | CM103: 7229530.79 | CN103: 56357741.68 | CQ103: 1507876 | CR103: 1507876 | CS103: 54849865.68 | CT103: 226112669.2 | CU103: 173968070 | CV103: 0 | CW103: 173968070 | CX103: 0 | CY103: 0 | CZ103: 0 | DA103: 0
A104: 0101 | B104: 1 | C104: 1 | D104: 2025-09-30 | E104: 1 | F104: 1 | G104: 1 | H104: 1896891.86 | I104: 55906505.06 | J104: 1205713.55 | K104: 0 | L104: 790098.23 | M104: 1039792.36 | N104: 865496.31 | O104: 6679392.06 | P104: 0 | Q104: 0 | R104: 0 | S104: 4776511.34 | T104: 73160400.77 | V104: 0 | X104: 0 | Y104: 73160400.77 | Z104: 559511 | AA104: 0 | AB104: 0 | AD104: 209951 | AE104: 7634745 | AF104: 2526783 | AG104: 1171694 | AH104: 1505447.2 | AI104: 0 | AJ104: 0 | AK104: 5999045.515 | AL104: 19607176.72 | AO104: 433756.2 | AP104: 433756.2 | AQ104: 19173420.52 | AR104: 92333821.29 | AS104: 79622459 | AT104: 0 | AU104: 79622459 | AV104: 0 | AW104: 0 | AX104: 0 | AY104: 0 | BA104: 193520.61 | BB104: 76427456 | BC104: 86523452.81 | BD104: 10095996.81 | BE104: 9902476.205 | BF104: 0 | BG104: 0 | BI104: 1858793.97 | BJ104: 58569889.81 | BK104: 930356.75 | BL104: 0 | BM104: 230837.5 | BN104: 921824 | BO104: 780380 | BP104: 6365845.99 | BQ104: 0 | BR104: 0 | BS104: 0 | BT104: 4983010 | BU104: 74640938.02 | BW104: 0 | BY104: 0 | BZ104: 74640938.02 | CB104: 592408.4 | CC104: 0 | CD104: 0 | CF104: 125245.48 | CG104: 7816613.04 | CH104: 2153443 | CI104: 880114 | CJ104: 2015100 | CK104: 0 | CL104: 0 | CM104: 6299667.375 | CN104: 19882591.3 | CQ104: 255971.1693 | CR104: 255971.1693 | CS104: 19626620.13 | CT104: 94267558.15 | CU104: 82899665 | CV104: 0 | CW104: 82899665 | CX104: 0 | CY104: 0 | CZ104: 0 | DA104: 0
A105: 0102 | B105: 0 | C105: 0 | D105: 2025-11-20 | H105: 0 | I105: 0 | J105: 0 | K105: 0 | L105: 0 | M105: 0 | N105: 0 | O105: 0 | P105: 0 | Q105: 0 | R105: 0 | S105: 0 | T105: 0 | V105: 0 | X105: 0 | Y105: 0 | Z105: 0 | AA105: 0 | AB105: 0 | AD105: 0 | AE105: 0 | AF105: 0 | AG105: 0 | AH105: 0 | AI105: 0 | AJ105: 0 | AK105: 1084346 | AL105: 1084346 | AO105: 0 | AP105: 0 | AQ105: 1084346 | AR105: 1084346 | AS105: 29150.33 | AT105: 56785 | AU105: 85935.33 | AV105: 0 | AW105: 0 | AX105: 0 | AY105: 0 | BA105: 0 | BB105: 1194586.15 | BC105: 982201.54 | BD105: -212384.61 | BE105: -212384.61 | BF105: 0 | BG105: 0 | BI105: 0 | BJ105: 0 | BK105: 0 | BL105: 0 | BM105: 0 | BN105: 0 | BO105: 0 | BP105: 0 | BQ105: 0 | BR105: 0 | BS105: 0 | BT105: 0 | BU105: 0 | BW105: 0 | BY105: 0 | BZ105: 0 | CB105: 0 | CC105: 0 | CD105: 0 | CF105: 0 | CG105: 0 | CH105: 0 | CI105: 0 | CJ105: 0 | CK105: 0 | CL105: 0 | CM105: 2016906 | CN105: 2016906 | CQ105: 0 | CR105: 0 | CS105: 2016906 | CT105: 2016906 | CU105: 30031.33 | CV105: 0 | CW105: 30031.33 | CX105: 0 | CY105: 0 | CZ105: 0 | DA105: 0
A106: 0103 | B106: 1 | C106: 1 | D106: 2025-09-19 | E106: 1 | F106: 1 | G106: 1 | H106: 1067847.74 | I106: 23318970.55 | J106: 602897.86 | K106: 0 | L106: 710092.96 | M106: 2807903.56 | N106: 40346 | O106: 27171 | P106: 0 | Q106: 68484.61 | R106: 0 | S106: 3336426.39 | T106: 31980140.67 | V106: 0 | X106: 0 | Y106: 31980140.67 | Z106: 281363 | AA106: 0 | AB106: 74636 | AD106: 0 | AE106: 0 | AF106: 1985891 | AG106: 5478165 | AH106: 1025152.8 | AI106: 0 | AJ106: 0 | AK106: 1322234.315 | AL106: 10167442.12 | AO106: 17237 | AP106: 17237 | AQ106: 10150205.12 | AR106: 42130345.79 | AS106: 41586508 | AT106: 0 | AU106: 41586508 | AV106: 0 | AW106: 0 | AX106: 0 | AY106: 0 | BA106: 0 | BB106: 38690364 | BC106: 38986620.52 | BD106: 296256.5231 | BE106: 296256.5231 | BF106: 0 | BG106: 0 | BI106: 1081904 | BJ106: 25571192 | BK106: 628597 | BL106: 0 | BM106: 711903 | BN106: 2966443 | BO106: 0 | BP106: 28574 | BQ106: 0 | BR106: 82327 | BS106: 0 | BT106: 2286159 | BU106: 33357099 | BW106: 0 | BY106: 0 | BZ106: 33357099 | CB106: 290625 | CC106: 0 | CD106: 89532 | CF106: 0 | CG106: 0 | CH106: 2175540 | CI106: 7425193 | CJ106: 527486.4 | CK106: 0 | CL106: 0 | CM106: 1399645.165 | CN106: 11908021.57 | CQ106: 6616.279425 | CR106: 6616.279425 | CS106: 11901405.29 | CT106: 45258504.29 | CU106: 45038410 | CV106: 0 | CW106: 45038410 | CX106: 0 | CY106: 0 | CZ106: 0 | DA106: 0
A107: 0104 | B107: 0 | C107: 0 | D107: 2025-10-17 | H107: 0 | I107: 0 | J107: 0 | K107: 0 | L107: 0 | M107: 0 | N107: 0 | O107: 0 | P107: 0 | Q107: 0 | R107: 0 | S107: 0 | T107: 0 | V107: 0 | X107: 0 | Y107: 0 | Z107: 0 | AA107: 0 | AB107: 0 | AD107: 0 | AE107: 0 | AF107: 0 | AG107: 0 | AH107: 0 | AI107: 0 | AJ107: 0 | AK107: 0 | AL107: 0 | AO107: 0 | AP107: 0 | AQ107: 0 | AR107: 0 | AS107: 0 | AT107: 0 | AU107: 0 | AV107: 0 | AW107: 0 | AX107: 0 | AY107: 0 | BA107: 0 | BB107: 0 | BC107: 0 | BD107: 0 | BE107: 0 | BF107: 0 | BG107: 0 | BI107: 0 | BJ107: 0 | BK107: 0 | BL107: 0 | BM107: 0 | BN107: 0 | BO107: 0 | BP107: 0 | BQ107: 0 | BR107: 0 | BS107: 0 | BT107: 0 | BU107: 0 | BW107: 0 | BY107: 0 | BZ107: 0 | CB107: 0 | CC107: 0 | CD107: 0 | CF107: 0 | CG107: 0 | CH107: 0 | CI107: 0 | CJ107: 0 | CK107: 0 | CL107: 0 | CM107: 0 | CN107: 0 | CQ107: 0 | CR107: 0 | CS107: 0 | CT107: 0 | CU107: 0 | CV107: 0 | CW107: 0 | CX107: 0 | CY107: 0 | CZ107: 0 | DA107: 0
A108: 0105 | B108: 1 | C108: 1 | D108: 2025-09-30 | E108: 1 | F108: 1 | G108: 1 | H108: 764189.56 | I108: 12626622.4 | J108: 245538.98 | K108: 0 | L108: 323050.12 | M108: 1338545.27 | N108: 128341.69 | O108: 0 | P108: 0 | Q108: 0 | R108: 0 | S108: 1180455.68 | T108: 16606743.7 | V108: 0 | X108: 0 | Y108: 16606743.7 | Z108: 48605 | AA108: 0 | AB108: 0 | AD108: 0 | AE108: 467173 | AF108: 997216 | AG108: 2404567 | AH108: 644668 | AI108: 0 | AJ108: 0 | AK108: 300595.49 | AL108: 4862824.49 | AO108: 12899.2 | AP108: 12899.2 | AQ108: 4849925.29 | AR108: 21456668.99 | AS108: 17779961 | AT108: 0 | AU108: 17779961 | AV108: 0 | AW108: 0 | AX108: 0 | AY108: 0 | BA108: 0 | BB108: 17091135 | BC108: 21879661.42 | BD108: 4788526.419 | BE108: 4788526.419 | BF108: 0 | BG108: 0 | BI108: 751347 | BJ108: 15308003 | BK108: 0 | BL108: 0 | BM108: 399196 | BN108: 1239710 | BO108: 65000 | BP108: 0 | BQ108: 0 | BR108: 0 | BS108: 0 | BT108: 2056687 | BU108: 19819943 | BW108: 0 | BY108: 0 | BZ108: 19819943 | CB108: 49824 | CC108: 0 | CD108: 0 | CF108: 0 | CG108: 0 | CH108: 1063117 | CI108: 2873825 | CJ108: 764387 | CK108: 0 | CL108: 0 | CM108: 346601.93 | CN108: 5097754.93 | CQ108: 5866 | CR108: 5866 | CS108: 5091888.93 | CT108: 24911831.93 | CU108: 18217536 | CV108: 0 | CW108: 18217536 | CX108: 0 | CY108: 0 | CZ108: 0 | DA108: 0
A109: 0106 | B109: 0 | C109: 0 | H109: 0 | I109: 0 | J109: 0 | K109: 0 | L109: 0 | M109: 0 | N109: 0 | O109: 0 | P109: 0 | Q109: 0 | R109: 0 | S109: 0 | T109: 0 | V109: 0 | X109: 0 | Y109: 0 | Z109: 0 | AA109: 0 | AB109: 0 | AD109: 0 | AE109: 0 | AF109: 0 | AG109: 0 | AH109: 0 | AI109: 0 | AJ109: 0 | AK109: 0 | AL109: 0 | AO109: 0 | AP109: 0 | AQ109: 0 | AR109: 0 | AS109: 0 | AT109: 0 | AU109: 0 | AV109: 0 | AW109: 0 | AX109: 0 | AY109: 0 | BA109: 0 | BB109: 0 | BC109: 0 | BD109: 0 | BE109: 0 | BF109: 0 | BG109: 0 | BI109: 0 | BJ109: 0 | BK109: 0 | BL109: 0 | BM109: 0 | BN109: 0 | BO109: 0 | BP109: 0 | BQ109: 0 | BR109: 0 | BS109: 0 | BT109: 0 | BU109: 0 | BW109: 0 | BY109: 0 | BZ109: 0 | CB109: 0 | CC109: 0 | CD109: 0 | CF109: 0 | CG109: 0 | CH109: 0 | CI109: 0 | CJ109: 0 | CK109: 0 | CL109: 0 | CM109: 0 | CN109: 0 | CQ109: 0 | CR109: 0 | CS109: 0 | CT109: 0 | CU109: 0 | CV109: 0 | CW109: 0 | CX109: 0 | CY109: 0 | CZ109: 0 | DA109: 0
A110: 0107 | B110: 1 | C110: 1 | D110: 2025-11-24 | E110: 1 | F110: 1 | G110: 1 | H110: 1825729 | I110: 34432837.63 | J110: 975544.64 | K110: 978 | L110: 431802.74 | M110: 505518.58 | N110: 152285 | O110: 6757556.97 | P110: 892657 | Q110: 0 | R110: 0 | S110: 4405306 | T110: 50380215.56 | V110: 0 | X110: 0 | Y110: 50380215.56 | Z110: 768387.96 | AA110: 0 | AB110: 0 | AD110: 263013 | AE110: 8387438.7 | AF110: 2296555.81 | AG110: 570521.99 | AH110: 2407449.57 | AI110: 0 | AJ110: 0 | AK110: 2165724.3 | AL110: 16859091.33 | AO110: 0 | AP110: 0 | AQ110: 16859091.33 | AR110: 67239306.89 | AS110: 49375947 | AT110: 0 | AU110: 49375947 | AV110: 0 | AW110: 0 | AX110: 0 | AY110: 0 | BA110: 12446 | BB110: 47045110 | BC110: 63561093.93 | BD110: 16515983.93 | BE110: 16503537.93 | BF110: 0 | BG110: 0 | BI110: 1509423 | BJ110: 36779950 | BK110: 1031266 | BL110: 0 | BM110: 400932 | BN110: 496002 | BO110: 145000 | BP110: 7027250 | BQ110: 900000 | BR110: 1619 | BS110: 0 | BT110: 3700000 | BU110: 51991442 | BW110: 0 | BY110: 0 | BZ110: 51991442 | CB110: 779213.88 | CC110: 0 | CD110: 0 | CF110: 263012.82 | CG110: 6496903.011 | CH110: 2419469 | CI110: 650020 | CJ110: 2609185 | CK110: 0 | CL110: 0 | CM110: 2218001.66 | CN110: 15435805.37 | CQ110: 17147 | CR110: 17147 | CS110: 15418658.37 | CT110: 67410100.37 | CU110: 51506331 | CV110: 0 | CW110: 51506331 | CX110: 0 | CY110: 0 | CZ110: 0 | DA110: 0
A111: 0108 | B111: 0 | C111: 0 | D111: 2025-12-05 | H111: 0 | I111: 0 | J111: 0 | K111: 0 | L111: 0 | M111: 0 | N111: 0 | O111: 0 | P111: 0 | Q111: 0 | R111: 0 | S111: 0 | T111: 0 | V111: 0 | X111: 0 | Y111: 0 | Z111: 0 | AA111: 0 | AB111: 0 | AD111: 0 | AE111: 0 | AF111: 0 | AG111: 0 | AH111: 0 | AI111: 0 | AJ111: 0 | AK111: 252828 | AL111: 252828 | AO111: 0 | AP111: 0 | AQ111: 252828 | AR111: 252828 | AS111: 196335 | AT111: 592.28 | AU111: 196927.28 | AV111: 0 | AW111: 0 | AX111: 0 | AY111: 0 | BA111: 0 | BB111: 193532.28 | BC111: 192940 | BD111: -592.28 | BE111: -592.28 | BF111: 0 | BG111: 0 | BI111: 0 | BJ111: 0 | BK111: 0 | BL111: 0 | BM111: 0 | BN111: 0 | BO111: 0 | BP111: 0 | BQ111: 0 | BR111: 0 | BS111: 0 | BT111: 0 | BU111: 0 | BW111: 0 | BY111: 0 | BZ111: 0 | CB111: 0 | CC111: 0 | CD111: 0 | CF111: 0 | CG111: 0 | CH111: 0 | CI111: 0 | CJ111: 0 | CK111: 0 | CL111: 0 | CM111: 330395 | CN111: 330395 | CQ111: 0 | CR111: 0 | CS111: 330395 | CT111: 330395 | CU111: 252231 | CV111: 0 | CW111: 252231 | CX111: 0 | CY111: 0 | CZ111: 0 | DA111: 0
A112: 0109 | B112: 1 | C112: 0 | D112: 2025-09-30
A113: 0110 | B113: 1 | C113: 1 | D113: 2025-10-24 | E113: 1 | F113: 1 | G113: 1 | H113: 1096550.82 | I113: 34609757.49 | J113: 1068820.74 | K113: 0 | L113: 832864.36 | M113: 3027739.2 | N113: 69107.4 | O113: 4700 | P113: 0 | Q113: 0 | R113: 0 | S113: 1461168.84 | T113: 42170708.85 | V113: 0 | X113: 0 | Y113: 42170708.85 | Z113: 333626.9 | AA113: 0 | AB113: 0 | AD113: 0 | AE113: 45500 | AF113: 1825234.55 | AG113: 4213641.12 | AH113: 645925.12 | AI113: 0 | AJ113: 0 | AK113: 478516.8 | AL113: 7542444.49 | AO113: 40198 | AP113: 40198 | AQ113: 7502246.49 | AR113: 49672955.34 | AS113: 38912994 | AT113: 0 | AU113: 38912994 | AV113: 0 | AW113: 0 | AX113: 0 | AY113: 0 | BA113: 0 | BB113: 37231176 | BC113: 44805578.52 | BD113: 7574402.521 | BE113: 7574402.521 | BF113: 0 | BG113: 0 | BI113: 1143772.61 | BJ113: 36895824.53 | BK113: 937092.89 | BL113: 0 | BM113: 766202.04 | BN113: 2558759.98 | BO113: 96000 | BP113: 4738 | BQ113: 0 | BR113: 0 | BS113: 0 | BT113: 2026883.04 | BU113: 44429273.09 | BW113: 0 | BY113: 0 | BZ113: 44429273.09 | CB113: 346813.1 | CC113: 0 | CD113: 0 | CF113: 0 | CG113: 54800 | CH113: 2008212 | CI113: 4970511.46 | CJ113: 926294.4 | CK113: 0 | CL113: 0 | CM113: 363070.13 | CN113: 8669701.09 | CQ113: 4964.60858 | CR113: 4964.60858 | CS113: 8664736.481 | CT113: 53094009.57 | CU113: 41165405 | CV113: 0 | CW113: 41165405 | CX113: 0 | CY113: 0 | CZ113: 0 | DA113: 0
A114: 0111 | B114: 1 | C114: 1 | D114: 2026-01-20 | E114: 1 | F114: 1 | G114: 1 | H114: 627383 | I114: 6398550.46 | J114: 0 | K114: 0 | L114: 177628.3 | M114: 547643.72 | N114: 30031.39 | O114: 0 | P114: 0 | Q114: 0 | R114: 0 | S114: 830835 | T114: 8612071.87 | V114: 65930 | X114: 65930 | Y114: 8546141.87 | Z114: 86077.89 | AA114: 0 | AB114: 0 | AD114: 0 | AE114: 15645.76 | AF114: 500780 | AG114: 1105578 | AH114: 447100.8 | AI114: 0 | AJ114: 0 | AK114: 752253.37 | AL114: 2907435.82 | AO114: 30490 | AP114: 30490 | AQ114: 2876945.82 | AR114: 11423087.69 | AS114: 10750093 | AT114: 0 | AU114: 10750093 | AV114: 0 | AW114: 0 | AX114: 0 | AY114: 0 | BA114: 0 | BB114: 10432749 | BC114: 11291107.71 | BD114: 858358.7091 | BE114: 858358.7091 | BF114: 0 | BG114: 65930 | BI114: 753052 | BJ114: 6430488 | BK114: 159462 | BL114: 0 | BM114: 259366 | BN114: 853501 | BO114: 8182 | BP114: 0 | BQ114: 0 | BR114: 0 | BS114: 0 | BT114: 1445315 | BU114: 9909366 | BW114: 0 | BY114: 0 | BZ114: 9909366 | CB114: 149298 | CC114: 0 | CD114: 0 | CF114: 0 | CG114: 1775.33 | CH114: 489818.15 | CI114: 1005169.5 | CJ114: 508906.8 | CK114: 212734.77 | CL114: 0 | CM114: 741457.73 | CN114: 3109160.28 | CQ114: 36819 | CR114: 36819 | CS114: 3072341.28 | CT114: 12981707.28 | CU114: 11268606 | CV114: 0 | CW114: 11268606 | CX114: 0 | CY114: 0 | CZ114: 0 | DA114: 0
A115: 0112 | B115: 0 | C115: 0 | D115: 2025-11-05 | H115: 0 | I115: 0 | J115: 0 | K115: 0 | L115: 0 | M115: 0 | N115: 0 | O115: 0 | P115: 0 | Q115: 0 | R115: 0 | S115: 0 | T115: 0 | V115: 0 | X115: 0 | Y115: 0 | Z115: 0 | AA115: 0 | AB115: 0 | AD115: 0 | AE115: 0 | AF115: 0 | AG115: 0 | AH115: 0 | AI115: 0 | AJ115: 0 | AK115: 0 | AL115: 0 | AO115: 0 | AP115: 0 | AQ115: 0 | AR115: 0 | AS115: 0 | AT115: 0 | AU115: 0 | AV115: 0 | AW115: 0 | AX115: 0 | AY115: 0 | BA115: 0 | BB115: 0 | BC115: 0 | BD115: 0 | BE115: 0 | BF115: 0 | BG115: 0 | BI115: 0 | BJ115: 0 | BK115: 0 | BL115: 0 | BM115: 0 | BN115: 0 | BO115: 0 | BP115: 0 | BQ115: 0 | BR115: 0 | BS115: 0 | BT115: 0 | BU115: 0 | BW115: 0 | BY115: 0 | BZ115: 0 | CB115: 0 | CC115: 0 | CD115: 0 | CF115: 0 | CG115: 0 | CH115: 0 | CI115: 0 | CJ115: 0 | CK115: 0 | CL115: 0 | CM115: 0 | CN115: 0 | CQ115: 0 | CR115: 0 | CS115: 0 | CT115: 0 | CU115: 465972 | CV115: 0 | CW115: 465972 | CX115: -465972 | CY115: 0 | CZ115: 465972 | DA115: 0
A116: 0113 | B116: 0 | C116: 0 | H116: 0 | I116: 0 | J116: 0 | K116: 0 | L116: 0 | M116: 0 | N116: 0 | O116: 0 | P116: 0 | Q116: 0 | R116: 0 | S116: 0 | T116: 0 | V116: 0 | X116: 0 | Y116: 0 | Z116: 0 | AA116: 0 | AB116: 0 | AD116: 0 | AE116: 0 | AF116: 0 | AG116: 0 | AH116: 0 | AI116: 0 | AJ116: 0 | AK116: 0 | AL116: 0 | AO116: 0 | AP116: 0 | AQ116: 0 | AR116: 0 | AS116: 0 | AT116: 0 | AU116: 0 | AV116: 0 | AW116: 0 | AX116: 0 | AY116: 0 | BA116: 0 | BB116: 0 | BC116: 19320 | BD116: 19320 | BE116: 19320 | BF116: 0 | BG116: 0 | BI116: 0 | BJ116: 0 | BK116: 0 | BL116: 0 | BM116: 0 | BN116: 0 | BO116: 0 | BP116: 0 | BQ116: 0 | BR116: 0 | BS116: 0 | BT116: 0 | BU116: 0 | BW116: 0 | BY116: 0 | BZ116: 0 | CB116: 0 | CC116: 0 | CD116: 0 | CF116: 0 | CG116: 0 | CH116: 0 | CI116: 0 | CJ116: 0 | CK116: 0 | CL116: 0 | CM116: 0 | CN116: 0 | CQ116: 0 | CR116: 0 | CS116: 0 | CT116: 0 | CU116: 0 | CV116: 0 | CW116: 0 | CX116: 0 | CY116: 0 | CZ116: 0 | DA116: 0
A117: 0114 | B117: 1 | C117: 0 | G117: 1
A118: 0115 | B118: 0 | C118: 0 | H118: 0 | I118: 0 | J118: 0 | K118: 0 | L118: 0 | M118: 0 | N118: 0 | O118: 0 | P118: 0 | Q118: 0 | R118: 0 | S118: 0 | T118: 0 | V118: 0 | X118: 0 | Y118: 0 | Z118: 0 | AA118: 0 | AB118: 0 | AD118: 0 | AE118: 0 | AF118: 0 | AG118: 0 | AH118: 0 | AI118: 0 | AJ118: 0 | AK118: 0 | AL118: 0 | AO118: 0 | AP118: 0 | AQ118: 0 | AR118: 0 | AS118: 0 | AT118: 0 | AU118: 0 | AV118: 0 | AW118: 0 | AX118: 0 | AY118: 0 | BA118: 0 | BB118: 0 | BC118: 0 | BD118: 0 | BE118: 0 | BF118: 0 | BG118: 0 | BI118: 0 | BJ118: 0 | BK118: 0 | BL118: 0 | BM118: 0 | BN118: 0 | BO118: 0 | BP118: 0 | BQ118: 0 | BR118: 0 | BS118: 0 | BT118: 0 | BU118: 0 | BW118: 0 | BY118: 0 | BZ118: 0 | CB118: 0 | CC118: 0 | CD118: 0 | CF118: 0 | CG118: 0 | CH118: 0 | CI118: 0 | CJ118: 0 | CK118: 0 | CL118: 0 | CM118: 0 | CN118: 0 | CQ118: 0 | CR118: 0 | CS118: 0 | CT118: 0 | CU118: 0 | CV118: 0 | CW118: 0 | CX118: 0 | CY118: 0 | CZ118: 0 | DA118: 0
A119: 0116 | B119: 0 | C119: 0 | D119: 2025-11-05 | H119: 0 | I119: 0 | J119: 0 | K119: 0 | L119: 0 | M119: 0 | N119: 0 | O119: 0 | P119: 0 | Q119: 0 | R119: 0 | S119: 0 | T119: 0 | V119: 0 | X119: 0 | Y119: 0 | Z119: 0 | AA119: 0 | AB119: 0 | AD119: 0 | AE119: 0 | AF119: 0 | AG119: 0 | AH119: 0 | AI119: 0 | AJ119: 0 | AK119: 190369 | AL119: 190369 | AO119: 0 | AP119: 0 | AQ119: 190369 | AR119: 190369 | AS119: 188064 | AT119: 0 | AU119: 188064 | AV119: 0 | AW119: 0 | AX119: 0 | AY119: 0 | BA119: 0 | BB119: 179833.7 | BC119: 212946 | BD119: 33112.3 | BE119: 33112.3 | BF119: 0 | BG119: 0 | BI119: 0 | BJ119: 0 | BK119: 0 | BL119: 0 | BM119: 0 | BN119: 0 | BO119: 0 | BP119: 0 | BQ119: 0 | BR119: 0 | BS119: 0 | BT119: 0 | BU119: 0 | BW119: 0 | BY119: 0 | BZ119: 0 | CB119: 0 | CC119: 0 | CD119: 0 | CF119: 0 | CG119: 0 | CH119: 0 | CI119: 0 | CJ119: 0 | CK119: 0 | CL119: 0 | CM119: 255535 | CN119: 255535 | CQ119: 0 | CR119: 0 | CS119: 255535 | CT119: 255535 | CU119: 167175 | CV119: 0 | CW119: 167175 | CX119: 0 | CY119: 0 | CZ119: 0 | DA119: 0
A120: 0117 | B120: 1 | C120: 1 | D120: 2025-11-12 | E120: 1 | F120: 1 | G120: 1 | H120: 486646.94 | I120: 5294486.5 | J120: 131886.42 | K120: 84302.28 | L120: 287194.24 | M120: 795828.97 | N120: 0 | O120: 0 | P120: 0 | Q120: 0 | R120: 0 | S120: 298083.57 | T120: 7378428.92 | V120: 0 | X120: 0 | Y120: 7378428.92 | Z120: 173207.75 | AA120: 0 | AB120: 0 | AD120: 0 | AE120: 0 | AF120: 467990 | AG120: 78206 | AH120: 0 | AI120: 0 | AJ120: 0 | AK120: 1121478.95 | AL120: 1840882.7 | AO120: 87961.2 | AP120: 87961.2 | AQ120: 1752921.5 | AR120: 9131350.42 | AS120: 6520666 | AT120: 0 | AU120: 6520666 | AV120: 0 | AW120: 0 | AX120: 0 | AY120: 0 | BA120: 0 | BB120: 6528713 | BC120: 9641996.526 | BD120: 3113283.526 | BE120: 3113283.526 | BF120: 0 | BG120: 0 | BI120: 578690.67 | BJ120: 4991743.122 | BK120: 155949.2116 | BL120: 0 | BM120: 320759.8185 | BN120: 757486.136 | BO120: 0 | BP120: 0 | BQ120: 0 | BR120: 0 | BS120: 0 | BT120: 645912.8878 | BU120: 7450541.846 | BW120: 0 | BY120: 0 | BZ120: 7450541.846 | CB120: 169871.25 | CC120: 0 | CD120: 0 | CF120: 0 | CG120: 0 | CH120: 100 | CI120: 0 | CJ120: 0 | CK120: 0 | CL120: 0 | CM120: 1159612.95 | CN120: 1329584.2 | CQ120: 59211.92193 | CR120: 59211.92193 | CS120: 1270372.278 | CT120: 8720914.124 | CU120: 6836473 | CV120: 0 | CW120: 6836473 | CX120: 0 | CY120: 0 | CZ120: 0 | DA120: 0
A121: 0118 | B121: 1 | C121: 0 | G121: 1
A122: 0119 | B122: 0 | C122: 0 | H122: 0 | I122: 0 | J122: 0 | K122: 0 | L122: 0 | M122: 0 | N122: 0 | O122: 0 | P122: 0 | Q122: 0 | R122: 0 | S122: 0 | T122: 0 | V122: 0 | X122: 0 | Y122: 0 | Z122: 0 | AA122: 0 | AB122: 0 | AD122: 0 | AE122: 0 | AF122: 0 | AG122: 0 | AH122: 0 | AI122: 0 | AJ122: 0 | AK122: 0 | AL122: 0 | AO122: 0 | AP122: 0 | AQ122: 0 | AR122: 0 | AS122: 0 | AT122: 0 | AU122: 0 | AV122: 0 | AW122: 0 | AX122: 0 | AY122: 0 | BA122: 0 | BB122: 0 | BC122: 0 | BD122: 0 | BE122: 0 | BF122: 0 | BG122: 0 | BI122: 0 | BJ122: 0 | BK122: 0 | BL122: 0 | BM122: 0 | BN122: 0 | BO122: 0 | BP122: 0 | BQ122: 0 | BR122: 0 | BS122: 0 | BT122: 0 | BU122: 0 | BW122: 0 | BY122: 0 | BZ122: 0 | CB122: 0 | CC122: 0 | CD122: 0 | CF122: 0 | CG122: 0 | CH122: 0 | CI122: 0 | CJ122: 0 | CK122: 0 | CL122: 0 | CM122: 0 | CN122: 0 | CQ122: 0 | CR122: 0 | CS122: 0 | CT122: 0 | CU122: 0 | CV122: 0 | CW122: 0 | CX122: 0 | CY122: 0 | CZ122: 0 | DA122: 0
A123: 0120 | B123: 0 | C123: 0 | H123: 0 | I123: 0 | J123: 0 | K123: 0 | L123: 0 | M123: 0 | N123: 0 | O123: 0 | P123: 0 | Q123: 0 | R123: 0 | S123: 0 | T123: 0 | V123: 0 | X123: 0 | Y123: 0 | Z123: 0 | AA123: 0 | AB123: 0 | AD123: 0 | AE123: 0 | AF123: 0 | AG123: 0 | AH123: 0 | AI123: 0 | AJ123: 0 | AK123: 0 | AL123: 0 | AO123: 0 | AP123: 0 | AQ123: 0 | AR123: 0 | AS123: 0 | AT123: 0 | AU123: 0 | AV123: 0 | AW123: 0 | AX123: 0 | AY123: 0 | BA123: 0 | BB123: 0 | BC123: 0 | BD123: 0 | BE123: 0 | BF123: 0 | BG123: 0 | BI123: 0 | BJ123: 0 | BK123: 0 | BL123: 0 | BM123: 0 | BN123: 0 | BO123: 0 | BP123: 0 | BQ123: 0 | BR123: 0 | BS123: 0 | BT123: 0 | BU123: 0 | BW123: 0 | BY123: 0 | BZ123: 0 | CB123: 0 | CC123: 0 | CD123: 0 | CF123: 0 | CG123: 0 | CH123: 0 | CI123: 0 | CJ123: 0 | CK123: 0 | CL123: 0 | CM123: 0 | CN123: 0 | CQ123: 0 | CR123: 0 | CS123: 0 | CT123: 0 | CU123: 0 | CV123: 0 | CW123: 0 | CX123: 0 | CY123: 0 | CZ123: 0 | DA123: 0
A124: 0121 | B124: 1 | C124: 1 | D124: 2025-10-21 | E124: 1 | F124: 1 | G124: 1 | H124: 51694.23 | I124: 682813.12 | J124: 69192 | K124: 7420 | L124: 0 | M124: 47039 | N124: 0 | O124: 0 | P124: 0 | Q124: 0 | R124: 0 | S124: 831013 | T124: 1689171.35 | V124: 0 | X124: 0 | Y124: 1689171.35 | Z124: 0 | AA124: 0 | AB124: 0 | AD124: 0 | AE124: 0 | AF124: 0 | AG124: 38925 | AH124: 0 | AI124: 0 | AJ124: 0 | AK124: 69508.94 | AL124: 108433.94 | AO124: 12498.6 | AP124: 12498.6 | AQ124: 95935.34 | AR124: 1785106.69 | AS124: 1270683 | AT124: 0 | AU124: 1270683 | AV124: 0 | AW124: 0 | AX124: 0 | AY124: 0 | BA124: 0 | BB124: 1216495 | BC124: 1907757.961 | BD124: 691262.9612 | BE124: 691262.9612 | BF124: 0 | BG124: 0 | BI124: 80271 | BJ124: 940302 | BK124: 0 | BL124: 10000 | BM124: 0 | BN124: 48037 | BO124: 0 | BP124: 0 | BQ124: 0 | BR124: 0 | BS124: 0 | BT124: 835684 | BU124: 1914294 | BW124: 15000 | BY124: 15000 | BZ124: 1899294 | CB124: 0 | CC124: 0 | CD124: 0 | CF124: 0 | CG124: 0 | CH124: 0 | CI124: 0 | CJ124: 34200 | CK124: 0 | CL124: 0 | CM124: 53299.94 | CN124: 87499.94 | CQ124: 0 | CR124: 0 | CS124: 87499.94 | CT124: 1986793.94 | CU124: 1318205 | CV124: 0 | CW124: 1318205 | CX124: 0 | CY124: 0 | CZ124: 0 | DA124: 0
A125: 0122 | B125: 1 | C125: 1 | D125: 2025-10-31 | E125: 1 | F125: 1 | G125: 1 | H125: 1718510.67 | I125: 28265359.12 | J125: 480041.19 | K125: 0 | L125: 1057089.24 | M125: 6477.59 | N125: 0 | O125: 17038 | P125: 0 | Q125: 0 | R125: 0 | S125: 2907176.56 | T125: 34451692.37 | V125: 0 | X125: 0 | Y125: 34451692.37 | Z125: 342983 | AA125: 0 | AB125: 0 | AD125: 0 | AE125: 2722543 | AF125: 96031.44 | AG125: 2290368.44 | AH125: 529117 | AI125: 0 | AJ125: 0 | AK125: 464590.48 | AL125: 6445633.36 | AO125: 24385.4 | AP125: 24385.4 | AQ125: 6421247.96 | AR125: 40872940.33 | AS125: 32076743 | AT125: 0 | AU125: 32076743 | AV125: 0 | AW125: 0 | AX125: 0 | AY125: 0 | BA125: 138242.33 | BB125: 30830615 | BC125: 39866501.04 | BD125: 9035886.037 | BE125: 8897643.707 | BF125: 0 | BG125: 0 | BI125: 2074744 | BJ125: 31557244 | BK125: 0 | BL125: 0 | BM125: 0 | BN125: 0 | BO125: 0 | BP125: 18252 | BQ125: 0 | BR125: 0 | BS125: 0 | BT125: 1821857 | BU125: 35472097 | BW125: 0 | BY125: 0 | BZ125: 35472097 | CB125: 481513.72 | CC125: 0 | CD125: 0 | CF125: 0 | CG125: 2680513 | CH125: 2548817 | CI125: 2573502.18 | CJ125: 688463.1 | CK125: 0 | CL125: 0 | CM125: 559269.06 | CN125: 9532078.06 | CQ125: 98138 | CR125: 98138 | CS125: 9433940.06 | CT125: 44906037.06 | CU125: 33740690 | CV125: 0 | CW125: 33740690 | CX125: 0 | CY125: 0 | CZ125: 0 | DA125: 0
A126: 0123 | B126: 0 | C126: 0 | D126: 2025-10-24 | H126: 0 | I126: 0 | J126: 0 | K126: 0 | L126: 0 | M126: 0 | N126: 0 | O126: 0 | P126: 0 | Q126: 0 | R126: 0 | S126: 0 | T126: 0 | V126: 0 | X126: 0 | Y126: 0 | Z126: 0 | AA126: 0 | AB126: 0 | AD126: 0 | AE126: 0 | AF126: 0 | AG126: 0 | AH126: 0 | AI126: 0 | AJ126: 0 | AK126: 0 | AL126: 0 | AO126: 0 | AP126: 0 | AQ126: 0 | AR126: 0 | AS126: 101711 | AT126: 4122.7 | AU126: 105833.7 | AV126: -105833.7 | AW126: -1.040533472 | AX126: 5085.55 | AY126: 0 | BA126: 0 | BB126: 84808.65 | BC126: 0 | BD126: -84808.65 | BE126: -84808.65 | BF126: 0 | BG126: 0 | BI126: 0 | BJ126: 0 | BK126: 0 | BL126: 0 | BM126: 0 | BN126: 0 | BO126: 0 | BP126: 0 | BQ126: 0 | BR126: 0 | BS126: 0 | BT126: 0 | BU126: 0 | BW126: 0 | BY126: 0 | BZ126: 0 | CB126: 0 | CC126: 0 | CD126: 0 | CF126: 0 | CG126: 0 | CH126: 0 | CI126: 0 | CJ126: 0 | CK126: 0 | CL126: 0 | CM126: 0 | CN126: 0 | CQ126: 0 | CR126: 0 | CS126: 0 | CT126: 0 | CU126: 94932 | CV126: 5085.55 | CW126: 100017.55 | CX126: -100017.55 | CY126: 0 | CZ126: 100017.55 | DA126: 0
A127: 0124 | B127: 0 | C127: 0 | D127: 2025-10-20 | H127: 0 | I127: 0 | J127: 0 | K127: 0 | L127: 0 | M127: 0 | N127: 0 | O127: 0 | P127: 0 | Q127: 0 | R127: 0 | S127: 0 | T127: 0 | V127: 0 | X127: 0 | Y127: 0 | Z127: 0 | AA127: 0 | AB127: 0 | AD127: 0 | AE127: 0 | AF127: 0 | AG127: 0 | AH127: 0 | AI127: 0 | AJ127: 0 | AK127: 0 | AL127: 0 | AO127: 0 | AP127: 0 | AQ127: 0 | AR127: 0 | AS127: 0 | AT127: 2004.05 | AU127: 2004.05 | AV127: -2004.05 | AW127: 0 | AX127: 2004.05 | AY127: 0 | BA127: 0 | BB127: 2004.05 | BC127: 0 | BD127: -2004.05 | BE127: -2004.05 | BF127: 0 | BG127: 0 | BI127: 0 | BJ127: 0 | BK127: 0 | BL127: 0 | BM127: 0 | BN127: 0 | BO127: 0 | BP127: 0 | BQ127: 0 | BR127: 0 | BS127: 0 | BT127: 0 | BU127: 0 | BW127: 0 | BY127: 0 | BZ127: 0 | CB127: 0 | CC127: 0 | CD127: 0 | CF127: 0 | CG127: 0 | CH127: 0 | CI127: 0 | CJ127: 0 | CK127: 0 | CL127: 0 | CM127: 0 | CN127: 0 | CQ127: 0 | CR127: 0 | CS127: 0 | CT127: 0 | CU127: 0 | CV127: 2004.05 | CW127: 2004.05 | CX127: -2004.05 | CY127: 0 | CZ127: 2004.05 | DA127: 0
A128: 0125 | B128: 1 | C128: 1 | D128: 2025-11-18 | E128: 1 | F128: 1 | G128: 1 | H128: 765974 | I128: 11268319.48 | J128: 267364 | K128: 0 | L128: 145603 | M128: 1664634 | N128: 153535 | O128: 0 | P128: 0 | Q128: 0 | R128: 0 | S128: 555645 | T128: 14821074.48 | V128: 465000 | X128: 465000 | Y128: 14356074.48 | Z128: 198739 | AA128: 0 | AB128: 0 | AD128: 0 | AE128: 130620 | AF128: 842968 | AG128: 2595251 | AH128: 673980 | AI128: 0 | AJ128: 0 | AK128: 501821.58 | AL128: 4943379.58 | AO128: 57627.6 | AP128: 57627.6 | AQ128: 4885751.98 | AR128: 19241826.46 | AS128: 10986323 | AT128: 0 | AU128: 10986323 | AV128: 0 | AW128: 0 | AX128: 0 | AY128: 0 | BA128: 67348 | BB128: 10576375 | BC128: 16074234 | BD128: 5497859 | BE128: 5430511 | BF128: 0 | BG128: 465000 | BI128: 759652 | BJ128: 11615591 | BK128: 286485 | BL128: 0 | BM128: 193144 | BN128: 1826497 | BO128: 99000 | BP128: 0 | BQ128: 0 | BR128: 0 | BS128: 0 | BT128: 627256 | BU128: 15407625 | BW128: 2562000 | BY128: 2562000 | BZ128: 12845625 | CB128: 199339 | CC128: 0 | CD128: 0 | CF128: 0 | CG128: 117319 | CH128: 927264 | CI128: 2824503 | CJ128: 741378 | CK128: 0 | CL128: 0 | CM128: 521742 | CN128: 5331545 | CQ128: 23620.32408 | CR128: 23620.32408 | CS128: 5307924.676 | CT128: 18153549.68 | CU128: 11501305 | CV128: 0 | CW128: 11501305 | CX128: 0 | CY128: 0 | CZ128: 0 | DA128: 0
A129: 0126 | B129: 0 | C129: 0 | H129: 0 | I129: 0 | J129: 0 | K129: 0 | L129: 0 | M129: 0 | N129: 0 | O129: 0 | P129: 0 | Q129: 0 | R129: 0 | S129: 0 | T129: 0 | V129: 0 | X129: 0 | Y129: 0 | Z129: 0 | AA129: 0 | AB129: 0 | AD129: 0 | AE129: 0 | AF129: 0 | AG129: 0 | AH129: 0 | AI129: 0 | AJ129: 0 | AK129: 0 | AL129: 0 | AO129: 0 | AP129: 0 | AQ129: 0 | AR129: 0 | AS129: 0 | AT129: 0 | AU129: 0 | AV129: 0 | AW129: 0 | AX129: 0 | AY129: 0 | BA129: 0 | BB129: 0 | BC129: 0 | BD129: 0 | BE129: 0 | BF129: 0 | BG129: 0 | BI129: 0 | BJ129: 0 | BK129: 0 | BL129: 0 | BM129: 0 | BN129: 0 | BO129: 0 | BP129: 0 | BQ129: 0 | BR129: 0 | BS129: 0 | BT129: 0 | BU129: 0 | BW129: 0 | BY129: 0 | BZ129: 0 | CB129: 0 | CC129: 0 | CD129: 0 | CF129: 0 | CG129: 0 | CH129: 0 | CI129: 0 | CJ129: 0 | CK129: 0 | CL129: 0 | CM129: 0 | CN129: 0 | CQ129: 0 | CR129: 0 | CS129: 0 | CT129: 0 | CU129: 0 | CV129: 0 | CW129: 0 | CX129: 0 | CY129: 0 | CZ129: 0 | DA129: 0
A130: 0127 | B130: 1 | C130: 1 | D130: 2025-11-25 | E130: 1 | F130: 1 | G130: 1 | H130: 384711 | I130: 4687263 | J130: 125393 | K130: 0 | L130: 153225 | M130: 364811 | N130: 0 | O130: 0 | P130: 0 | Q130: 0 | R130: 0 | S130: 132230 | T130: 5847633 | V130: 0 | X130: 0 | Y130: 5847633 | Z130: 150301 | AA130: 0 | AB130: 0 | AD130: 0 | AE130: 9846 | AF130: 285926 | AG130: 519628 | AH130: 153128 | AI130: 0 | AJ130: 0 | AK130: 1372486.961 | AL130: 2491315.961 | AO130: 143677 | AP130: 143677 | AQ130: 2347638.961 | AR130: 8195271.961 | AS130: 4365891 | AT130: 0 | AU130: 4365891 | AV130: 0 | AW130: 0 | AX130: 0 | AY130: 0 | BA130: 0 | BB130: 4367186 | BC130: 7265608.212 | BD130: 2898422.212 | BE130: 2898422.212 | BF130: 0 | BG130: 0 | BI130: 361996 | BJ130: 5132360 | BK130: 127619 | BL130: 0 | BM130: 86024 | BN130: 341142 | BO130: 0 | BP130: 0 | BQ130: 0 | BR130: 0 | BS130: 0 | BT130: 35725 | BU130: 6084866 | BW130: 0 | BY130: 0 | BZ130: 6084866 | CB130: 153439 | CC130: 0 | CD130: 0 | CF130: 0 | CG130: 17790 | CH130: 304507 | CI130: 699570 | CJ130: 244520.1 | CK130: 0 | CL130: 0 | CM130: 916600.5512 | CN130: 2336426.651 | CQ130: 46829.85498 | CR130: 46829.85498 | CS130: 2289596.796 | CT130: 8374462.796 | CU130: 4254180 | CV130: 0 | CW130: 4254180 | CX130: 0 | CY130: 0 | CZ130: 0 | DA130: 0
A131: 0128 | B131: 1 | C131: 1 | D131: 2025-09-29 | E131: 1 | F131: 1 | G131: 1 | H131: 3128134.22 | I131: 91678397.5 | J131: 3556344.54 | K131: 0 | L131: 2107580.85 | M131: 11249336.79 | N131: 35064.24 | O131: 0 | P131: 0 | Q131: 0 | R131: 0 | S131: 6783959.2 | T131: 118538817.3 | V131: 500000 | X131: 500000 | Y131: 118038817.3 | Z131: 296243 | AA131: 0 | AB131: 0 | AD131: 0 | AE131: 240000 | AF131: 5291522 | AG131: 16078437 | AH131: 4644065 | AI131: 0 | AJ131: 0 | AK131: 7675694.97 | AL131: 34225961.97 | AO131: 924147.8 | AP131: 924147.8 | AQ131: 33301814.17 | AR131: 151340631.5 | AS131: 140921702 | AT131: 0 | AU131: 140921702 | AV131: 0 | AW131: 0 | AX131: 0 | AY131: 0 | BA131: 0 | BB131: 132551888 | BC131: 140568595.3 | BD131: 8016707.337 | BE131: 8016707.337 | BF131: 0 | BG131: 500000 | BI131: 3557892.57 | BJ131: 97010839.78 | BK131: 3683758.98 | BL131: 0 | BM131: 2232846.69 | BN131: 10834770.92 | BO131: 50000 | BP131: 0 | BQ131: 0 | BR131: 0 | BS131: 0 | BT131: 7177678.59 | BU131: 124547787.5 | BW131: 500000 | BY131: 500000 | BZ131: 124047787.5 | CB131: 302138 | CC131: 0 | CD131: 0 | CF131: 0 | CG131: 244800 | CH131: 5397352 | CI131: 16413515 | CJ131: 4565025 | CK131: 0 | CL131: 0 | CM131: 7927595.82 | CN131: 34850425.82 | CQ131: 325903.0337 | CR131: 325903.0337 | CS131: 34524522.79 | CT131: 158572310.3 | CU131: 149713125 | CV131: 0 | CW131: 149713125 | CX131: 0 | CY131: 0 | CZ131: 0 | DA131: 0
A132: 0129 | B132: 0 | C132: 0 | D132: 2025-10-24 | H132: 0 | I132: 0 | J132: 0 | K132: 0 | L132: 0 | M132: 0 | N132: 0 | O132: 0 | P132: 0 | Q132: 0 | R132: 0 | S132: 0 | T132: 0 | V132: 0 | X132: 0 | Y132: 0 | Z132: 0 | AA132: 0 | AB132: 0 | AD132: 0 | AE132: 0 | AF132: 0 | AG132: 0 | AH132: 0 | AI132: 0 | AJ132: 0 | AK132: 43256.36 | AL132: 43256.36 | AO132: 0 | AP132: 0 | AQ132: 43256.36 | AR132: 43256.36 | AS132: 68939 | AT132: 0 | AU132: 68939 | AV132: -25682.64 | AW132: -0.3725415222 | AX132: 3446.95 | AY132: 0 | BA132: 0 | BB132: 67719 | BC132: 83402.16 | BD132: 15683.16 | BE132: 15683.16 | BF132: 0 | BG132: 0 | BI132: 0 | BJ132: 0 | BK132: 0 | BL132: 0 | BM132: 0 | BN132: 0 | BO132: 0 | BP132: 0 | BQ132: 0 | BR132: 0 | BS132: 0 | BT132: 0 | BU132: 0 | BW132: 0 | BY132: 0 | BZ132: 0 | CB132: 0 | CC132: 0 | CD132: 0 | CF132: 0 | CG132: 0 | CH132: 0 | CI132: 0 | CJ132: 0 | CK132: 0 | CL132: 0 | CM132: 130000 | CN132: 130000 | CQ132: 0 | CR132: 0 | CS132: 130000 | CT132: 130000 | CU132: 41935 | CV132: 3446.95 | CW132: 45381.95 | CX132: 0 | CY132: 0 | CZ132: 0 | DA132: 0
A133: 0130 | B133: 0 | C133: 0 | D133: 2025-12-14 | H133: 0 | I133: 0 | J133: 0 | K133: 0 | L133: 0 | M133: 0 | N133: 0 | O133: 0 | P133: 0 | Q133: 0 | R133: 0 | S133: 0 | T133: 0 | V133: 0 | X133: 0 | Y133: 0 | Z133: 0 | AA133: 0 | AB133: 0 | AD133: 0 | AE133: 0 | AF133: 0 | AG133: 0 | AH133: 0 | AI133: 0 | AJ133: 0 | AK133: 95578 | AL133: 95578 | AO133: 0 | AP133: 0 | AQ133: 95578 | AR133: 95578 | AS133: 0 | AT133: 0 | AU133: 0 | AV133: 0 | AW133: 0 | AX133: 0 | AY133: 0 | BA133: 0 | BB133: 0 | BC133: 77525.36 | BD133: 77525.36 | BE133: 77525.36 | BF133: 0 | BG133: 0 | BI133: 0 | BJ133: 0 | BK133: 0 | BL133: 0 | BM133: 0 | BN133: 0 | BO133: 0 | BP133: 0 | BQ133: 0 | BR133: 0 | BS133: 0 | BT133: 0 | BU133: 0 | BW133: 0 | BY133: 0 | BZ133: 0 | CB133: 0 | CC133: 0 | CD133: 0 | CF133: 0 | CG133: 0 | CH133: 0 | CI133: 0 | CJ133: 0 | CK133: 0 | CL133: 0 | CM133: 117973 | CN133: 117973 | CQ133: 0 | CR133: 0 | CS133: 117973 | CT133: 117973 | CU133: 0 | CV133: 0 | CW133: 0 | CX133: 0 | CY133: 0 | CZ133: 0 | DA133: 0
A134: 0131 | B134: 1 | C134: 1 | D134: 2025-12-05 | E134: 1 | F134: 1 | G134: 1 | H134: 2338314.24 | I134: 53685140 | J134: 0 | K134: 0 | L134: 1319084 | M134: 6581723 | N134: 47084 | O134: 0 | P134: 0 | Q134: 361267 | R134: 0 | S134: 2943066 | T134: 67275678.24 | V134: 0 | X134: 0 | Y134: 67275678.24 | Z134: 977032 | AA134: 0 | AB134: 0 | AD134: 0 | AE134: 0 | AF134: 3215976 | AG134: 3973782 | AH134: 2065892 | AI134: 0 | AJ134: 0 | AK134: 174602.47 | AL134: 10407284.47 | AO134: 22112 | AP134: 22112 | AQ134: 10385172.47 | AR134: 77660850.71 | AS134: 46765066 | AT134: 0 | AU134: 46765066 | AV134: 0 | AW134: 0 | AX134: 0 | AY134: 0 | BA134: 0 | BB134: 47357771 | BC134: 71860512.45 | BD134: 24502741.45 | BE134: 24502741.45 | BF134: 0 | BG134: 0 | BI134: 2730235 | BJ134: 53968118 | BK134: 1993131 | BL134: 0 | BM134: 904836 | BN134: 5816099 | BO134: 70000 | BP134: 0 | BQ134: 0 | BR134: 80000 | BS134: 0 | BT134: 1473341 | BU134: 67035760 | BW134: 0 | BY134: 0 | BZ134: 67035760 | CB134: 877899 | CC134: 0 | CD134: 0 | CF134: 0 | CG134: 0 | CH134: 3421036 | CI134: 4297155 | CJ134: 2518744.5 | CK134: 0 | CL134: 0 | CM134: 349977 | CN134: 11464811.5 | CQ134: 165662.5077 | CR134: 165662.5077 | CS134: 11299148.99 | CT134: 78334908.99 | CU134: 47912626 | CV134: 0 | CW134: 47912626 | CX134: 0 | CY134: 0 | CZ134: 0 | DA134: 0
A135: 0132 | B135: 0 | C135: 0 | H135: 0 | I135: 0 | J135: 0 | K135: 0 | L135: 0 | M135: 0 | N135: 0 | O135: 0 | P135: 0 | Q135: 0 | R135: 0 | S135: 0 | T135: 0 | V135: 0 | X135: 0 | Y135: 0 | Z135: 0 | AA135: 0 | AB135: 0 | AD135: 0 | AE135: 0 | AF135: 0 | AG135: 0 | AH135: 0 | AI135: 0 | AJ135: 0 | AK135: 0 | AL135: 0 | AO135: 0 | AP135: 0 | AQ135: 0 | AR135: 0 | AS135: 226952 | AT135: 2021.5 | AU135: 228973.5 | AV135: -228973.5 | AW135: -1.00890717 | AX135: 11347.6 | AY135: 0 | BA135: 0 | BB135: 213547.5 | BC135: 211526 | BD135: -2021.5 | BE135: -2021.5 | BF135: 0 | BG135: 0 | BI135: 0 | BJ135: 0 | BK135: 0 | BL135: 0 | BM135: 0 | BN135: 0 | BO135: 0 | BP135: 0 | BQ135: 0 | BR135: 0 | BS135: 0 | BT135: 0 | BU135: 0 | BW135: 0 | BY135: 0 | BZ135: 0 | CB135: 0 | CC135: 0 | CD135: 0 | CF135: 0 | CG135: 0 | CH135: 0 | CI135: 0 | CJ135: 0 | CK135: 0 | CL135: 0 | CM135: 0 | CN135: 0 | CQ135: 0 | CR135: 0 | CS135: 0 | CT135: 0 | CU135: 227948 | CV135: 11347.6 | CW135: 239295.6 | CX135: -239295.6 | CY135: 0 | CZ135: 239295.6 | DA135: 0
A136: 0133 | B136: 1 | C136: 1 | D136: 2025-10-10 | E136: 1 | F136: 1 | G136: 1 | H136: 569632.34 | I136: 11423050.23 | J136: 299877.53 | K136: 0 | L136: 339848.88 | M136: 1343501.38 | N136: 15748.86 | O136: 21751.77 | P136: 0 | Q136: 0 | R136: 0 | S136: 1578195.25 | T136: 15591606.24 | V136: 0 | X136: 0 | Y136: 15591606.24 | Z136: 190910 | AA136: 0 | AB136: 0 | AD136: 55988.81 | AE136: 975 | AF136: 485193.83 | AG136: 3452107.22 | AH136: 1058672.96 | AI136: 0 | AJ136: 0 | AK136: 848121.09 | AL136: 6091968.91 | AO136: 25491 | AP136: 25491 | AQ136: 6066477.91 | AR136: 21658084.15 | AS136: 21278519 | AT136: 0 | AU136: 21278519 | AV136: 0 | AW136: 0 | AX136: 0 | AY136: 0 | BA136: 0 | BB136: 20493829 | BC136: 21229724.5 | BD136: 735895.503 | BE136: 735895.503 | BF136: 0 | BG136: 0 | BI136: 624858.86 | BJ136: 12285280.6 | BK136: 302123 | BL136: 0 | BM136: 293718.5 | BN136: 1452897.72 | BO136: 0 | BP136: 0 | BQ136: 0 | BR136: 0 | BS136: 0 | BT136: 1363000 | BU136: 16321878.68 | BW136: 0 | BY136: 0 | BZ136: 16321878.68 | CB136: 212351.54 | CC136: 0 | CD136: 0 | CF136: 57668.47 | CG136: 1288.29 | CH136: 552636 | CI136: 3740798.42 | CJ136: 1161581.42 | CK136: 0 | CL136: 0 | CM136: 1026914.86 | CN136: 6753239 | CQ136: 131355 | CR136: 131355 | CS136: 6621884 | CT136: 22943762.68 | CU136: 23413602 | CV136: 0 | CW136: 23413602 | CX136: -469839.32 | CY136: -0.02006693887 | CZ136: 469839.32 | DA136: 0
A137: 0134 | B137: 0 | C137: 0 | D137: 2025-11-17 | H137: 0 | I137: 0 | J137: 0 | K137: 0 | L137: 0 | M137: 0 | N137: 0 | O137: 0 | P137: 0 | Q137: 0 | R137: 0 | S137: 0 | T137: 0 | V137: 0 | X137: 0 | Y137: 0 | Z137: 0 | AA137: 0 | AB137: 0 | AD137: 0 | AE137: 0 | AF137: 0 | AG137: 0 | AH137: 0 | AI137: 0 | AJ137: 0 | AK137: 27905 | AL137: 27905 | AO137: 0 | AP137: 0 | AQ137: 27905 | AR137: 27905 | AS137: 33721 | AT137: 0 | AU137: 33721 | AV137: -5816 | AW137: -0.1724741259 | AX137: 1686.05 | AY137: 0 | BA137: 0 | BB137: 16491 | BC137: 52710 | BD137: 36219 | BE137: 36219 | BF137: 0 | BG137: 0 | BI137: 0 | BJ137: 0 | BK137: 0 | BL137: 0 | BM137: 0 | BN137: 0 | BO137: 0 | BP137: 0 | BQ137: 0 | BR137: 0 | BS137: 0 | BT137: 0 | BU137: 0 | BW137: 0 | BY137: 0 | BZ137: 0 | CB137: 0 | CC137: 0 | CD137: 0 | CF137: 0 | CG137: 0 | CH137: 0 | CI137: 0 | CJ137: 0 | CK137: 0 | CL137: 0 | CM137: 29300 | CN137: 29300 | CQ137: 0 | CR137: 0 | CS137: 29300 | CT137: 29300 | CU137: 24843 | CV137: 1686.05 | CW137: 26529.05 | CX137: 0 | CY137: 0 | CZ137: 0 | DA137: 0
A138: 0135 | B138: 1 | C138: 1 | D138: 2025-10-02 | E138: 1 | F138: 1 | G138: 1 | H138: 72558.5 | I138: 2105589.54 | J138: 67225 | K138: 0 | L138: 1503 | M138: 274484 | N138: 0 | O138: 0 | P138: 0 | Q138: 0 | R138: 0 | S138: 537248 | T138: 3058608.04 | V138: 0 | X138: 0 | Y138: 3058608.04 | Z138: 45809 | AA138: 0 | AB138: 0 | AD138: 0 | AE138: 0 | AF138: 241408 | AG138: 165559.08 | AH138: 61291.2 | AI138: 0 | AJ138: 0 | AK138: 8250 | AL138: 522317.28 | AO138: 7020.8 | AP138: 7020.8 | AQ138: 515296.48 | AR138: 3573904.52 | AS138: 2545553 | AT138: 0 | AU138: 2545553 | AV138: 0 | AW138: 0 | AX138: 0 | AY138: 0 | BA138: 0 | BB138: 2529521 | BC138: 3177758.964 | BD138: 648237.964 | BE138: 648237.964 | BF138: 0 | BG138: 0 | BI138: 120576 | BJ138: 2472605 | BK138: 65669 | BL138: 0 | BM138: 0 | BN138: 235986 | BO138: 0 | BP138: 0 | BQ138: 0 | BR138: 0 | BS138: 0 | BT138: 518862 | BU138: 3413698 | BW138: 0 | BY138: 0 | BZ138: 3413698 | CB138: 55834 | CC138: 0 | CD138: 0 | CF138: 0 | CG138: 0 | CH138: 301421 | CI138: 190788 | CJ138: 86974.2 | CK138: 0 | CL138: 0 | CM138: 8250 | CN138: 643267.2 | CQ138: 0 | CR138: 0 | CS138: 643267.2 | CT138: 4056965.2 | CU138: 2560481 | CV138: 0 | CW138: 2560481 | CX138: 0 | CY138: 0 | CZ138: 0 | DA138: 0
A139: 0136 | B139: 1 | C139: 1 | D139: 2025-11-05 | E139: 1 | F139: 1 | G139: 1 | H139: 1367401.24 | I139: 32499576.54 | J139: 596572.83 | K139: 0 | L139: 1009459.45 | M139: 3382057.82 | N139: 83606.69 | O139: 150447.29 | P139: 0 | Q139: 0 | R139: 0 | S139: 2444161.66 | T139: 41533283.52 | V139: 78678 | X139: 78678 | Y139: 41454605.52 | Z139: 385915 | AA139: 0 | AB139: 0 | AD139: 0 | AE139: 154396.34 | AF139: 1076471.12 | AG139: 2792258.37 | AH139: 693768.04 | AI139: 0 | AJ139: 0 | AK139: 372223.8 | AL139: 5475032.67 | AO139: 25081 | AP139: 25081 | AQ139: 5449951.67 | AR139: 46904557.19 | AS139: 34611807 | AT139: 0 | AU139: 34611807 | AV139: 0 | AW139: 0 | AX139: 0 | AY139: 0 | BA139: 0 | BB139: 32849810 | BC139: 42711118.09 | BD139: 9861308.091 | BE139: 9861308.091 | BF139: 0 | BG139: 78678 | BI139: 1569929.6 | BJ139: 33607602.55 | BK139: 626198 | BL139: 0 | BM139: 824484 | BN139: 2839487.82 | BO139: 0 | BP139: 145700 | BQ139: 0 | BR139: 0 | BS139: 0 | BT139: 1584850 | BU139: 41198251.97 | BW139: 116088.5 | BY139: 116088.5 | BZ139: 41082163.47 | CB139: 393688 | CC139: 0 | CD139: 0 | CF139: 0 | CG139: 171627.72 | CH139: 1208708.83 | CI139: 2945424.51 | CJ139: 827290.935 | CK139: 0 | CL139: 0 | CM139: 366288.57 | CN139: 5913028.565 | CQ139: 9627.13374 | CR139: 9627.13374 | CS139: 5903401.431 | CT139: 46985564.9 | CU139: 36123739 | CV139: 0 | CW139: 36123739 | CX139: 0 | CY139: 0 | CZ139: 0 | DA139: 0
A140: 0137 | B140: 1 | C140: 1 | D140: 2025-10-16 | E140: 1 | F140: 1 | G140: 1 | H140: 3474912.43 | I140: 60249712.06 | J140: 2098514 | K140: 0 | L140: 585036 | M140: 8873617 | N140: 0 | O140: 655881 | P140: 4019583 | Q140: 0 | R140: 0 | S140: 8327926 | T140: 88285181.49 | V140: 173496 | X140: 173496 | Y140: 88111685.49 | Z140: 73400 | AA140: 0 | AB140: 0 | AD140: 0 | AE140: 75000 | AF140: 2496736 | AG140: 7335029 | AH140: 628733 | AI140: 0 | AJ140: 0 | AK140: 15802197.66 | AL140: 26411095.66 | AO140: 1610377.8 | AP140: 1610377.8 | AQ140: 24800717.86 | AR140: 112912403.4 | AS140: 114374878 | AT140: 2274025.046 | AU140: 116648903 | AV140: -3736499.696 | AW140: -0.03266888465 | AX140: 3736499.696 | AY140: 0 | BA140: 173496 | BB140: 110072324.3 | BC140: 107798299.3 | BD140: -2274025.046 | BE140: -2447521.046 | BF140: 173496 | BG140: 0 | BI140: 4793524 | BJ140: 66500575 | BK140: 2970594 | BL140: 0 | BM140: 925335 | BN140: 7895710 | BO140: 0 | BP140: 683085 | BQ140: 4442229 | BR140: 0 | BS140: 0 | BT140: 8316373 | BU140: 96527425 | BW140: 0 | BY140: 0 | BZ140: 96527425 | CB140: 696186 | CC140: 0 | CD140: 0 | CF140: 0 | CG140: 0 | CH140: 2650328 | CI140: 8206201 | CJ140: 602780 | CK140: 0 | CL140: 0 | CM140: 17493567.39 | CN140: 29649062.39 | CQ140: 1244660.952 | CR140: 1244660.952 | CS140: 28404401.44 | CT140: 124931826.4 | CU140: 120721754 | CV140: 3736499.696 | CW140: 124458253.7 | CX140: 0 | CY140: 0 | CZ140: 0 | DA140: 0
A141: 0138 | B141: 1 | C141: 1 | D141: 2025-10-27 | E141: 1 | F141: 1 | G141: 1 | H141: 563665 | I141: 11857013 | J141: 196611 | K141: 0 | L141: 28762 | M141: 1459887 | N141: 9960 | O141: 8834 | P141: 0 | Q141: 0 | R141: 0 | S141: 326469 | T141: 14451201 | V141: 0 | X141: 0 | Y141: 14451201 | Z141: 63521 | AA141: 0 | AB141: 2125 | AD141: 0 | AE141: 30000 | AF141: 636998 | AG141: 3266532 | AH141: 47362.4 | AI141: 0 | AJ141: 0 | AK141: 522084.0991 | AL141: 4568622.499 | AO141: 206278.6 | AP141: 206278.6 | AQ141: 4362343.899 | AR141: 18813544.9 | AS141: 13153653 | AT141: 0 | AU141: 13153653 | AV141: 0 | AW141: 0 | AX141: 0 | AY141: 0 | BA141: 0 | BB141: 12710811 | BC141: 17149189.58 | BD141: 4438378.578 | BE141: 4438378.578 | BF141: 0 | BG141: 0 | BI141: 600732 | BJ141: 12514555 | BK141: 205757 | BL141: 0 | BM141: 28000 | BN141: 1296808 | BO141: 10000 | BP141: 10592 | BQ141: 0 | BR141: 0 | BS141: 0 | BT141: 222537 | BU141: 14888981 | BW141: 0 | BY141: 0 | BZ141: 14888981 | CB141: 63497 | CC141: 0 | CD141: 2125 | CF141: 0 | CG141: 30000 | CH141: 656250 | CI141: 3315716 | CJ141: 54081.9 | CK141: 0 | CL141: 0 | CM141: 581045.3991 | CN141: 4702715.299 | CQ141: 129084.6842 | CR141: 129084.6842 | CS141: 4573630.615 | CT141: 19462611.61 | CU141: 13655027 | CV141: 0 | CW141: 13655027 | CX141: 0 | CY141: 0 | CZ141: 0 | DA141: 0
A142: 0139 | B142: 1 | C142: 1 | D142: 2025-10-01 | E142: 1 | F142: 1 | G142: 1 | H142: 2432208 | I142: 47119994.21 | J142: 773294 | K142: 0 | L142: 1426396 | M142: 4877267 | N142: 0 | O142: 535 | P142: 0 | Q142: 130667 | R142: 0 | S142: 2652423 | T142: 59412784.21 | V142: 0 | X142: 0 | Y142: 59412784.21 | Z142: 622865.1 | AA142: 0 | AB142: 0 | AD142: 0 | AE142: 335350.73 | AF142: 1111656 | AG142: 8217270 | AH142: 467401 | AI142: 0 | AJ142: 0 | AK142: 201100.19 | AL142: 10955643.02 | AO142: 16872.6 | AP142: 16872.6 | AQ142: 10938770.42 | AR142: 70351554.63 | AS142: 53684543 | AT142: 0 | AU142: 53684543 | AV142: 0 | AW142: 0 | AX142: 0 | AY142: 0 | BA142: 0 | BB142: 50873295 | BC142: 67755344.3 | BD142: 16882049.3 | BE142: 16882049.3 | BF142: 0 | BG142: 0 | BI142: 5197721 | BJ142: 47746149 | BK142: 814814 | BL142: 5400 | BM142: 1566222 | BN142: 4513289 | BO142: 0 | BP142: 535 | BQ142: 0 | BR142: 134930 | BS142: 0 | BT142: 1857953 | BU142: 61837013 | BW142: 0 | BY142: 0 | BZ142: 61837013 | CB142: 668674 | CC142: 0 | CD142: 0 | CF142: 0 | CG142: 345568 | CH142: 1139448 | CI142: 8836545 | CJ142: 479086 | CK142: 0 | CL142: 0 | CM142: 201185.81 | CN142: 11670506.81 | CQ142: 5455.925959 | CR142: 5455.925959 | CS142: 11665050.88 | CT142: 73502063.88 | CU142: 56589708 | CV142: 0 | CW142: 56589708 | CX142: 0 | CY142: 0 | CZ142: 0 | DA142: 0
A143: 0140 | B143: 0 | C143: 0 | H143: 0 | I143: 0 | J143: 0 | K143: 0 | L143: 0 | M143: 0 | N143: 0 | O143: 0 | P143: 0 | Q143: 0 | R143: 0 | S143: 0 | T143: 0 | V143: 0 | X143: 0 | Y143: 0 | Z143: 0 | AA143: 0 | AB143: 0 | AD143: 0 | AE143: 0 | AF143: 0 | AG143: 0 | AH143: 0 | AI143: 0 | AJ143: 0 | AK143: 0 | AL143: 0 | AO143: 0 | AP143: 0 | AQ143: 0 | AR143: 0 | AS143: 0 | AT143: 0 | AU143: 0 | AV143: 0 | AW143: 0 | AX143: 0 | AY143: 0 | BA143: 0 | BB143: 0 | BC143: 0 | BD143: 0 | BE143: 0 | BF143: 0 | BG143: 0 | BI143: 0 | BJ143: 0 | BK143: 0 | BL143: 0 | BM143: 0 | BN143: 0 | BO143: 0 | BP143: 0 | BQ143: 0 | BR143: 0 | BS143: 0 | BT143: 0 | BU143: 0 | BW143: 0 | BY143: 0 | BZ143: 0 | CB143: 0 | CC143: 0 | CD143: 0 | CF143: 0 | CG143: 0 | CH143: 0 | CI143: 0 | CJ143: 0 | CK143: 0 | CL143: 0 | CM143: 0 | CN143: 0 | CQ143: 0 | CR143: 0 | CS143: 0 | CT143: 0 | CU143: 0 | CV143: 0 | CW143: 0 | CX143: 0 | CY143: 0 | CZ143: 0 | DA143: 0
A144: 0141 | B144: 1 | C144: 1 | D144: 2026-01-07 | E144: 1 | F144: 1 | G144: 1 | H144: 1518495.35 | I144: 34966891.13 | J144: 0 | K144: 39873.28 | L144: 797299.12 | M144: 3914455.75 | N144: 251035.02 | O144: 20136 | P144: 0 | Q144: 91458.18 | R144: 0 | S144: 1330889.75 | T144: 42930533.58 | V144: 0 | X144: 0 | Y144: 42930533.58 | Z144: 414620 | AA144: 0 | AB144: 0 | AD144: 0 | AE144: 110946 | AF144: 950492 | AG144: 3996500 | AH144: 1835539 | AI144: 0 | AJ144: 0 | AK144: 4749750.96 | AL144: 12057847.96 | AO144: 1008692.8 | AP144: 1008692.8 | AQ144: 11049155.16 | AR144: 53979688.74 | AS144: 35681114 | AT144: 0 | AU144: 35681114 | AV144: 0 | AW144: 0 | AX144: 0 | AY144: 0 | BA144: 0 | BB144: 34207458 | BC144: 53024518.08 | BD144: 18817060.08 | BE144: 18817060.08 | BF144: 0 | BG144: 0 | BI144: 1523707.31 | BJ144: 34687300.59 | BK144: 1011182.57 | BL144: 81000 | BM144: 851376.42 | BN144: 3964135.052 | BO144: 125000 | BP144: 21500 | BQ144: 0 | BR144: 96500 | BS144: 0 | BT144: 3350985.007 | BU144: 45712686.95 | BW144: 0 | BY144: 0 | BZ144: 45712686.95 | CB144: 422221 | CC144: 0 | CD144: 0 | CF144: 0 | CG144: 117082 | CH144: 952664 | CI144: 5464465 | CJ144: 2045295 | CK144: 0 | CL144: 0 | CM144: 4875491.71 | CN144: 13877218.71 | CQ144: 349977.3101 | CR144: 349977.3101 | CS144: 13527241.4 | CT144: 59239928.35 | CU144: 37349316 | CV144: 0 | CW144: 37349316 | CX144: 0 | CY144: 0 | CZ144: 0 | DA144: 0
A145: 0142 | B145: 1 | C145: 1 | D145: 2025-09-17 | E145: 1 | F145: 1 | G145: 1 | H145: 864188.64 | I145: 11746299.43 | J145: 297090.67 | K145: 0 | L145: 450527.17 | M145: 2225712.97 | N145: 44512.5 | O145: 5285 | P145: 0 | Q145: 0 | R145: 0 | S145: 980016 | T145: 16613632.38 | V145: 0 | X145: 0 | Y145: 16613632.38 | Z145: 104827 | AA145: 0 | AB145: 0 | AD145: 0 | AE145: 0 | AF145: 927455 | AG145: 3061223 | AH145: 355221 | AI145: 0 | AJ145: 0 | AK145: 438058.16 | AL145: 4886784.16 | AO145: 41558.4 | AP145: 41558.4 | AQ145: 4845225.76 | AR145: 21458858.14 | AS145: 12995847 | AT145: 0 | AU145: 12995847 | AV145: 0 | AW145: 0 | AX145: 0 | AY145: 0 | BA145: 0 | BB145: 13048570 | BC145: 21112227.92 | BD145: 8063657.922 | BE145: 8063657.922 | BF145: 0 | BG145: 0 | BI145: 1266899 | BJ145: 12379414 | BK145: 210816 | BL145: 0 | BM145: 407709 | BN145: 1884045 | BO145: 0 | BP145: 5185 | BQ145: 0 | BR145: 0 | BS145: 0 | BT145: 1031897 | BU145: 17185965 | BW145: 0 | BY145: 0 | BZ145: 17185965 | CB145: 106175.15 | CC145: 0 | CD145: 0 | CF145: 0 | CG145: 0 | CH145: 886532 | CI145: 3329547 | CJ145: 427623 | CK145: 0 | CL145: 0 | CM145: 384629.61 | CN145: 5134506.76 | CQ145: 9521.961113 | CR145: 9521.961113 | CS145: 5124984.799 | CT145: 22310949.8 | CU145: 12817624 | CV145: 0 | CW145: 12817624 | CX145: 0 | CY145: 0 | CZ145: 0 | DA145: 0
A146: 0143 | B146: 0 | C146: 0 | D146: 2025-11-25 | H146: 0 | I146: 0 | J146: 0 | K146: 0 | L146: 0 | M146: 0 | N146: 0 | O146: 0 | P146: 0 | Q146: 0 | R146: 0 | S146: 0 | T146: 0 | V146: 0 | X146: 0 | Y146: 0 | Z146: 0 | AA146: 0 | AB146: 0 | AD146: 0 | AE146: 0 | AF146: 0 | AG146: 0 | AH146: 0 | AI146: 0 | AJ146: 0 | AK146: 870192 | AL146: 870192 | AO146: 0 | AP146: 0 | AQ146: 870192 | AR146: 870192 | AS146: 686499 | AT146: 0 | AU146: 686499 | AV146: 0 | AW146: 0 | AX146: 0 | AY146: 0 | BA146: 0 | BB146: 572756 | BC146: 735081 | BD146: 162325 | BE146: 162325 | BF146: 0 | BG146: 0 | BI146: 0 | BJ146: 0 | BK146: 0 | BL146: 0 | BM146: 0 | BN146: 0 | BO146: 0 | BP146: 0 | BQ146: 0 | BR146: 0 | BS146: 0 | BT146: 0 | BU146: 0 | BW146: 0 | BY146: 0 | BZ146: 0 | CB146: 0 | CC146: 0 | CD146: 0 | CF146: 0 | CG146: 0 | CH146: 0 | CI146: 0 | CJ146: 0 | CK146: 0 | CL146: 0 | CM146: 905132 | CN146: 905132 | CQ146: 0 | CR146: 0 | CS146: 905132 | CT146: 905132 | CU146: 741046 | CV146: 0 | CW146: 741046 | CX146: 0 | CY146: 0 | CZ146: 0 | DA146: 0
A147: 0144 | B147: 1 | C147: 1 | D147: 2025-12-16 | E147: 1 | F147: 1 | G147: 1 | H147: 1022330 | I147: 24956524 | J147: 393057 | K147: 1781 | L147: 622316 | M147: 2962516 | N147: 2005845 | O147: 3372478 | P147: 464345.6 | Q147: 0 | R147: 0 | S147: 1489418 | T147: 37290610.6 | V147: 0 | X147: 0 | Y147: 37290610.6 | Z147: 177164 | AA147: 0 | AB147: 0 | AD147: 104358 | AE147: 30000 | AF147: 0 | AG147: 0 | AH147: 0 | AI147: 0 | AJ147: 0 | AK147: 148131 | AL147: 459653 | AO147: 0 | AP147: 0 | AQ147: 459653 | AR147: 37750263.6 | AS147: 21503197 | AT147: 0 | AU147: 21503197 | AV147: 0 | AW147: 0 | AX147: 0 | AY147: 0 | BA147: 57836 | BB147: 20567036 | BC147: 35254204.16 | BD147: 14687168.16 | BE147: 14629332.16 | BF147: 0 | BG147: 0 | BI147: 984831 | BJ147: 26708624 | BK147: 500240 | BL147: 2500 | BM147: 652700 | BN147: 2731274 | BO147: 2184325 | BP147: 3729906 | BQ147: 400000 | BR147: 60742 | BS147: 0 | BT147: 1279088 | BU147: 39234230 | BW147: 0 | BY147: 0 | BZ147: 39234230 | CB147: 181869 | CC147: 0 | CD147: 0 | CF147: 109030 | CG147: 0 | CH147: 0 | CI147: 0 | CJ147: 0 | CK147: 0 | CL147: 0 | CM147: 137264.05 | CN147: 428163.05 | CQ147: 0 | CR147: 0 | CS147: 428163.05 | CT147: 39662393.05 | CU147: 22263375 | CV147: 0 | CW147: 22263375 | CX147: 0 | CY147: 0 | CZ147: 0 | DA147: 0
A148: 0145 | B148: 1 | C148: 0 | G148: 1
A149: 0146 | B149: 0 | C149: 0 | D149: 2025-12-05 | H149: 0 | I149: 0 | J149: 0 | K149: 0 | L149: 0 | M149: 0 | N149: 0 | O149: 0 | P149: 0 | Q149: 0 | R149: 0 | S149: 0 | T149: 0 | V149: 0 | X149: 0 | Y149: 0 | Z149: 0 | AA149: 0 | AB149: 0 | AD149: 0 | AE149: 0 | AF149: 0 | AG149: 0 | AH149: 0 | AI149: 0 | AJ149: 0 | AK149: 3094058 | AL149: 3094058 | AO149: 0 | AP149: 0 | AQ149: 3094058 | AR149: 3094058 | AS149: 269724 | AT149: 0 | AU149: 269724 | AV149: 0 | AW149: 0 | AX149: 0 | AY149: 0 | BA149: 0 | BB149: 224667 | BC149: 2722936 | BD149: 2498269 | BE149: 2498269 | BF149: 0 | BG149: 0 | BI149: 0 | BJ149: 0 | BK149: 0 | BL149: 0 | BM149: 0 | BN149: 0 | BO149: 0 | BP149: 0 | BQ149: 0 | BR149: 0 | BS149: 0 | BT149: 0 | BU149: 0 | BW149: 0 | BY149: 0 | BZ149: 0 | CB149: 0 | CC149: 0 | CD149: 0 | CF149: 0 | CG149: 0 | CH149: 0 | CI149: 0 | CJ149: 0 | CK149: 0 | CL149: 0 | CM149: 3193975 | CN149: 3193975 | CQ149: 0 | CR149: 0 | CS149: 3193975 | CT149: 3193975 | CU149: 379200 | CV149: 0 | CW149: 379200 | CX149: 0 | CY149: 0 | CZ149: 0 | DA149: 0
A150: 0147 | B150: 0 | C150: 0 | D150: 2025-12-10 | H150: 0 | I150: 0 | J150: 0 | K150: 0 | L150: 0 | M150: 0 | N150: 0 | O150: 0 | P150: 0 | Q150: 0 | R150: 0 | S150: 0 | T150: 0 | V150: 0 | X150: 0 | Y150: 0 | Z150: 0 | AA150: 0 | AB150: 0 | AD150: 0 | AE150: 0 | AF150: 0 | AG150: 0 | AH150: 0 | AI150: 0 | AJ150: 0 | AK150: 0 | AL150: 0 | AO150: 0 | AP150: 0 | AQ150: 0 | AR150: 0 | AS150: 33794 | AT150: 1649.1 | AU150: 35443.1 | AV150: -35443.1 | AW150: -1.048798603 | AX150: 1689.7 | AY150: 0 | BA150: 0 | BB150: 34551.75 | BC150: 0 | BD150: -34551.75 | BE150: -34551.75 | BF150: 0 | BG150: 0 | BI150: 0 | BJ150: 0 | BK150: 0 | BL150: 0 | BM150: 0 | BN150: 0 | BO150: 0 | BP150: 0 | BQ150: 0 | BR150: 0 | BS150: 0 | BT150: 0 | BU150: 0 | BW150: 0 | BY150: 0 | BZ150: 0 | CB150: 0 | CC150: 0 | CD150: 0 | CF150: 0 | CG150: 0 | CH150: 0 | CI150: 0 | CJ150: 0 | CK150: 0 | CL150: 0 | CM150: 27905 | CN150: 27905 | CQ150: 0 | CR150: 0 | CS150: 27905 | CT150: 27905 | CU150: 23685 | CV150: 1689.7 | CW150: 25374.7 | CX150: 0 | CY150: 0 | CZ150: 0 | DA150: 0
A151: 0148 | B151: 0 | C151: 0 | D151: 2025-10-17 | H151: 0 | I151: 0 | J151: 0 | K151: 0 | L151: 0 | M151: 0 | N151: 0 | O151: 0 | P151: 0 | Q151: 0 | R151: 0 | S151: 0 | T151: 0 | V151: 0 | X151: 0 | Y151: 0 | Z151: 0 | AA151: 0 | AB151: 0 | AD151: 0 | AE151: 0 | AF151: 0 | AG151: 0 | AH151: 0 | AI151: 0 | AJ151: 0 | AK151: 0 | AL151: 0 | AO151: 0 | AP151: 0 | AQ151: 0 | AR151: 0 | AS151: 0 | AT151: 993.1 | AU151: 993.1 | AV151: -993.1 | AW151: 0 | AX151: 993.1 | AY151: 0 | BA151: 0 | BB151: 993.1 | BC151: 0 | BD151: -993.1 | BE151: -993.1 | BF151: 0 | BG151: 0 | BI151: 0 | BJ151: 0 | BK151: 0 | BL151: 0 | BM151: 0 | BN151: 0 | BO151: 0 | BP151: 0 | BQ151: 0 | BR151: 0 | BS151: 0 | BT151: 0 | BU151: 0 | BW151: 0 | BY151: 0 | BZ151: 0 | CB151: 0 | CC151: 0 | CD151: 0 | CF151: 0 | CG151: 0 | CH151: 0 | CI151: 0 | CJ151: 0 | CK151: 0 | CL151: 0 | CM151: 0 | CN151: 0 | CQ151: 0 | CR151: 0 | CS151: 0 | CT151: 0 | CU151: 0 | CV151: 993.1 | CW151: 993.1 | CX151: -993.1 | CY151: 0 | CZ151: 993.1 | DA151: 0
A152: 0149 | B152: 1 | C152: 1 | D152: 2025-11-05 | E152: 0.990708055 | F152: 1 | G152: 1 | H152: 7601260.148 | I152: 177473237.8 | J152: 4676846.99 | K152: 186919.09 | L152: 5133866.24 | M152: 25918695.07 | N152: 14730262.52 | O152: 23598067.86 | P152: 0 | Q152: 1886471.257 | R152: 0 | S152: 3505021.16 | T152: 264710648.1 | V152: 1853579 | X152: 1853579 | Y152: 262857069.1 | Z152: 1127401 | AA152: 0 | AB152: 0 | AD152: 0 | AE152: 1330190 | AF152: 0 | AG152: 0 | AH152: 4199282.53 | AI152: 0 | AJ152: 0 | AK152: 39433872.22 | AL152: 46090745.75 | AO152: 6807132.6 | AP152: 6807132.6 | AQ152: 39283613.15 | AR152: 302140682.3 | AS152: 301454148 | AT152: 1075044.834 | AU152: 302529192.8 | AV152: -388510.5348 | AW152: -0.001288788154 | AX152: 388510.5348 | AY152: 0 | BA152: 1853579 | BB152: 286581564.1 | BC152: 285506519.3 | BD152: -1075044.834 | BE152: -2928623.834 | BF152: 1853579 | BG152: 0 | BI152: 14561080 | BJ152: 192868854 | BK152: 5143384 | BL152: 0 | BM152: 5334286.75 | BN152: 18550306 | BO152: 12516495 | BP152: 38099085 | BQ152: 0 | BR152: 3015000 | BS152: 0 | BT152: 3004200 | BU152: 293092690.8 | BW152: 0 | BY152: 0 | BZ152: 293092690.8 | CB152: 1831460 | CC152: 0 | CD152: 0 | CF152: 0 | CG152: 2468153 | CH152: 0 | CI152: 0 | CJ152: 4951709.1 | CK152: 0 | CL152: 0 | CM152: 46252460.1 | CN152: 55503782.2 | CQ152: 6774104.372 | CR152: 6774104.372 | CS152: 48729677.83 | CT152: 341822368.6 | CU152: 333930425 | CV152: 388510.5348 | CW152: 334318935.5 | CX152: 0 | CY152: 0 | CZ152: 0 | DA152: 0
A153: 0150 | B153: 1 | C153: 1 | D153: 2025-09-30 | E153: 1 | F153: 1 | G153: 1 | H153: 391094 | I153: 8022205.62 | J153: 137876 | K153: 4500 | L153: 246518 | M153: 1064093 | N153: 11426 | O153: 14356 | P153: 0 | Q153: 2056 | R153: 0 | S153: 463491 | T153: 10357615.62 | V153: 418641 | X153: 418641 | Y153: 9938974.62 | Z153: 67962 | AA153: 13080 | AB153: 0 | AD153: 84734 | AE153: 24892 | AF153: 510831 | AG153: 1763637 | AH153: 360880 | AI153: 0 | AJ153: 0 | AK153: 611483.57 | AL153: 3437499.57 | AO153: 20249.4 | AP153: 20249.4 | AQ153: 3417250.17 | AR153: 13356224.79 | AS153: 9294590 | AT153: 0 | AU153: 9294590 | AV153: 0 | AW153: 0 | AX153: 0 | AY153: 0 | BA153: 0 | BB153: 8931113 | BC153: 13925739.08 | BD153: 4994626.085 | BE153: 4994626.085 | BF153: 0 | BG153: 418641 | BI153: 431906 | BJ153: 9627828 | BK153: 143189 | BL153: 0 | BM153: 266389 | BN153: 1233398 | BO153: 0 | BP153: 29500 | BQ153: 0 | BR153: 2000 | BS153: 0 | BT153: 802800 | BU153: 12537010 | BW153: 418641 | BY153: 418641 | BZ153: 12118369 | CB153: 66927 | CC153: 13478 | CD153: 0 | CF153: 5856 | CG153: 361060 | CH153: 585912 | CI153: 2183377 | CJ153: 535069 | CK153: 0 | CL153: 0 | CM153: 599434.21 | CN153: 4351113.21 | CQ153: 2364.081045 | CR153: 2364.081045 | CS153: 4348749.129 | CT153: 16467118.13 | CU153: 9569336 | CV153: 0 | CW153: 9569336 | CX153: 0 | CY153: 0 | CZ153: 0 | DA153: 0
A154: 0151 | B154: 1 | C154: 1 | D154: 2025-09-30 | E154: 1 | F154: 1 | G154: 1 | H154: 845830 | I154: 14200510 | J154: 342529 | K154: 0 | L154: 428005 | M154: 1432805 | N154: 45154 | O154: 0 | P154: 0 | Q154: 0 | R154: 0 | S154: 1632849 | T154: 18927682 | V154: 0 | X154: 0 | Y154: 18927682 | Z154: 186507 | AA154: 0 | AB154: 0 | AD154: 0 | AE154: 0 | AF154: 1426598 | AG154: 2315148 | AH154: 479152 | AI154: 0 | AJ154: 0 | AK154: 1761083.97 | AL154: 6168488.97 | AO154: 100001.8 | AP154: 100001.8 | AQ154: 6068487.17 | AR154: 24996169.17 | AS154: 21855002 | AT154: 0 | AU154: 21855002 | AV154: 0 | AW154: 0 | AX154: 0 | AY154: 0 | BA154: 0 | BB154: 20759209 | BC154: 23530123.37 | BD154: 2770914.368 | BE154: 2770914.368 | BF154: 0 | BG154: 0 | BI154: 1015401 | BJ154: 15232885 | BK154: 304004 | BL154: 0 | BM154: 350064 | BN154: 1650968 | BO154: 102458 | BP154: 0 | BQ154: 0 | BR154: 11650 | BS154: 0 | BT154: 1507630 | BU154: 20175060 | BW154: 0 | BY154: 0 | BZ154: 20175060 | CB154: 180137 | CC154: 0 | CD154: 0 | CF154: 0 | CG154: 766932 | CH154: 1426598 | CI154: 2315148 | CJ154: 479152 | CK154: 0 | CL154: 0 | CM154: 1632560.87 | CN154: 6800527.87 | CQ154: 0 | CR154: 0 | CS154: 6800527.87 | CT154: 26975587.87 | CU154: 23315301 | CV154: 0 | CW154: 23315301 | CX154: 0 | CY154: 0 | CZ154: 0 | DA154: 0
A155: 0152 | B155: 1 | C155: 1 | D155: 2025-11-05 | E155: 1 | F155: 1 | G155: 1 | H155: 759459.26 | I155: 9131394.109 | J155: 201918.71 | K155: 0 | L155: 571825.736 | M155: 1933459.33 | N155: 41840 | O155: 1254.04 | P155: 0 | Q155: 0 | R155: 0 | S155: 612401.08 | T155: 13253552.26 | V155: 0 | X155: 0 | Y155: 13253552.26 | Z155: 0 | AA155: 0 | AB155: 0 | AD155: 0 | AE155: 600000 | AF155: 626455 | AG155: 2180650.69 | AH155: 838841.58 | AI155: 0 | AJ155: 0 | AK155: 287473.75 | AL155: 4533421.02 | AO155: 0 | AP155: 0 | AQ155: 4533421.02 | AR155: 17786973.28 | AS155: 7024851 | AT155: 0 | AU155: 7024851 | AV155: 0 | AW155: 0 | AX155: 0 | AY155: 0 | BA155: 5930.99 | BB155: 6767534 | BC155: 15998371.7 | BD155: 9230837.699 | BE155: 9224906.709 | BF155: 0 | BG155: 0 | BI155: 954836 | BJ155: 9573902 | BK155: 228865 | BL155: 0 | BM155: 522612 | BN155: 1589838 | BO155: 0 | BP155: 12000 | BQ155: 0 | BR155: 0 | BS155: 0 | BT155: 505479 | BU155: 13387532 | BW155: 0 | BY155: 0 | BZ155: 13387532 | CB155: 0 | CC155: 0 | CD155: 0 | CF155: 0 | CG155: 400000 | CH155: 635514 | CI155: 2497712 | CJ155: 964218 | CK155: 0 | CL155: 0 | CM155: 290070.87 | CN155: 4787514.87 | CQ155: 0 | CR155: 0 | CS155: 4787514.87 | CT155: 18175046.87 | CU155: 6840967 | CV155: 0 | CW155: 6840967 | CX155: 0 | CY155: 0 | CZ155: 0 | DA155: 0
A156: 0153 | B156: 1 | C156: 1 | D156: 2025-10-02 | E156: 1 | F156: 1 | G156: 1 | H156: 2191383 | I156: 61432756 | J156: 1338298 | K156: 0 | L156: 1146202 | M156: 8298995.78 | N156: 52524 | O156: 13504163 | P156: 3785100 | Q156: 501956 | R156: 0 | S156: 5735661 | T156: 97987038.78 | V156: 0 | X156: 0 | Y156: 97987038.78 | Z156: 604704 | AA156: 0 | AB156: 0 | AD156: 227178 | AE156: 134000 | AF156: 2111887 | AG156: 978761 | AH156: 0 | AI156: 0 | AJ156: 0 | AK156: 2435636.28 | AL156: 6492166.28 | AO156: 134600.4 | AP156: 134600.4 | AQ156: 6357565.88 | AR156: 104344604.7 | AS156: 103734762 | AT156: 0 | AU156: 103734762 | AV156: 0 | AW156: 0 | AX156: 0 | AY156: 0 | BA156: 4856 | BB156: 99599001 | BC156: 99844437.57 | BD156: 245436.5698 | BE156: 240580.5698 | BF156: 0 | BG156: 0 | BI156: 2714216 | BJ156: 66826316 | BK156: 1317908 | BL156: 0 | BM156: 1219860 | BN156: 7230748 | BO156: 100000 | BP156: 14014420 | BQ156: 4542000 | BR156: 495712 | BS156: 0 | BT156: 6077000 | BU156: 104538180 | BW156: 0 | BY156: 0 | BZ156: 104538180 | CB156: 628811 | CC156: 0 | CD156: 0 | CF156: 195000 | CG156: 504000 | CH156: 1793435 | CI156: 1092923 | CJ156: 0 | CK156: 0 | CL156: 0 | CM156: 2934987.43 | CN156: 7149156.43 | CQ156: 368628 | CR156: 368628 | CS156: 6780528.43 | CT156: 111318708.4 | CU156: 111313888 | CV156: 0 | CW156: 111313888 | CX156: 0 | CY156: 0 | CZ156: 0 | DA156: 0
A157: 0154 | B157: 1 | C157: 1 | D157: 2025-09-23 | E157: 1 | F157: 1 | G157: 1 | H157: 146279 | I157: 1625093 | J157: 64341 | K157: 0 | L157: 0 | M157: 315104 | N157: 0 | O157: 6159 | P157: 0 | Q157: 383 | R157: 0 | S157: 12016 | T157: 2169375 | V157: 80000 | X157: 80000 | Y157: 2089375 | Z157: 250 | AA157: 0 | AB157: 0 | AD157: 0 | AE157: 0 | AF157: 117340 | AG157: 407541 | AH157: 0 | AI157: 0 | AJ157: 0 | AK157: 10000 | AL157: 535131 | AO157: 0 | AP157: 0 | AQ157: 535131 | AR157: 2624506 | AS157: 1491818 | AT157: 0 | AU157: 1491818 | AV157: 0 | AW157: 0 | AX157: 0 | AY157: 0 | BA157: 0 | BB157: 1351708 | BC157: 2458408.6 | BD157: 1106700.6 | BE157: 1106700.6 | BF157: 0 | BG157: 80000 | BI157: 137488 | BJ157: 1738461 | BK157: 69401 | BL157: 15000 | BM157: 6000 | BN157: 317910 | BO157: 1226 | BP157: 5191 | BQ157: 0 | BR157: 409 | BS157: 0 | BT157: 55000 | BU157: 2346086 | BW157: 85000 | BY157: 85000 | BZ157: 2261086 | CB157: 250 | CC157: 0 | CD157: 0 | CF157: 0 | CG157: 0 | CH157: 119614 | CI157: 513277 | CJ157: 0 | CK157: 0 | CL157: 0 | CM157: 10000 | CN157: 643141 | CQ157: 0 | CR157: 0 | CS157: 643141 | CT157: 2904227 | CU157: 1498441 | CV157: 0 | CW157: 1498441 | CX157: 0 | CY157: 0 | CZ157: 0 | DA157: 0
A158: 0155 | B158: 1 | C158: 1 | D158: 2025-11-26 | E158: 1 | F158: 1 | G158: 1 | H158: 3703150 | I158: 119656545 | J158: 2280436 | K158: 3937 | L158: 1750038 | M158: 1699038 | N158: 0 | O158: 1503 | P158: 0 | Q158: 0 | R158: 0 | S158: 4283411 | T158: 133378058 | V158: 0 | X158: 0 | Y158: 133378058 | Z158: 524460 | AA158: 0 | AB158: 0 | AD158: 161382 | AE158: 10328269 | AF158: 3080021 | AG158: 24175200 | AH158: 5781282 | AI158: 0 | AJ158: 0 | AK158: 275771.97 | AL158: 44326385.97 | AO158: 139295.4 | AP158: 139295.4 | AQ158: 44187090.57 | AR158: 177565148.6 | AS158: 93775242 | AT158: 0 | AU158: 93775242 | AV158: 0 | AW158: 0 | AX158: 0 | AY158: 0 | BA158: 3358124 | BB158: 90646899 | BC158: 167264081.8 | BD158: 76617182.77 | BE158: 73259058.77 | BF158: 0 | BG158: 0 | BI158: 4017849 | BJ158: 122994038 | BK158: 2325582 | BL158: 0 | BM158: 1797833 | BN158: 1950299 | BO158: 0 | BP158: 1525 | BQ158: 0 | BR158: 0 | BS158: 0 | BT158: 7216610 | BU158: 140303736 | BW158: 0 | BY158: 0 | BZ158: 140303736 | CB158: 544192 | CC158: 0 | CD158: 0 | CF158: 166224 | CG158: 10243252 | CH158: 3141622 | CI158: 24771237 | CJ158: 5854654 | CK158: 0 | CL158: 0 | CM158: 332485.23 | CN158: 45053666.23 | CQ158: 70918.82775 | CR158: 70918.82775 | CS158: 44982747.4 | CT158: 185286483.4 | CU158: 97403751 | CV158: 0 | CW158: 97403751 | CX158: 0 | CY158: 0 | CZ158: 0 | DA158: 0
A159: 0156 | B159: 0 | C159: 0 | D159: 2025-12-19 | H159: 0 | I159: 0 | J159: 0 | K159: 0 | L159: 0 | M159: 0 | N159: 0 | O159: 0 | P159: 0 | Q159: 0 | R159: 0 | S159: 0 | T159: 0 | V159: 0 | X159: 0 | Y159: 0 | Z159: 0 | AA159: 0 | AB159: 0 | AD159: 0 | AE159: 0 | AF159: 0 | AG159: 0 | AH159: 0 | AI159: 0 | AJ159: 0 | AK159: 0 | AL159: 0 | AO159: 0 | AP159: 0 | AQ159: 0 | AR159: 0 | AS159: 0 | AT159: 0 | AU159: 0 | AV159: 0 | AW159: 0 | AX159: 0 | AY159: 0 | BA159: 0 | BB159: 0 | BC159: 0 | BD159: 0 | BE159: 0 | BF159: 0 | BG159: 0 | BI159: 0 | BJ159: 0 | BK159: 0 | BL159: 0 | BM159: 0 | BN159: 0 | BO159: 0 | BP159: 0 | BQ159: 0 | BR159: 0 | BS159: 0 | BT159: 0 | BU159: 0 | BW159: 0 | BY159: 0 | BZ159: 0 | CB159: 0 | CC159: 0 | CD159: 0 | CF159: 0 | CG159: 0 | CH159: 0 | CI159: 0 | CJ159: 0 | CK159: 0 | CL159: 0 | CM159: 0 | CN159: 0 | CQ159: 0 | CR159: 0 | CS159: 0 | CT159: 0 | CU159: 0 | CV159: 0 | CW159: 0 | CX159: 0 | CY159: 0 | CZ159: 0 | DA159: 0
A160: 0157 | B160: 1 | C160: 1 | D160: 2025-12-12 | E160: 1 | F160: 1 | G160: 1 | H160: 707133.15 | I160: 9555016.4 | J160: 174038.31 | K160: 22257.53 | L160: 109552.74 | M160: 1510730.29 | N160: 2856.87 | O160: 50 | P160: 0 | Q160: 0 | R160: 0 | S160: 399495.43 | T160: 12481130.72 | V160: 0 | X160: 0 | Y160: 12481130.72 | Z160: 279415 | AA160: 0 | AB160: 0 | AD160: 0 | AE160: 69310.5 | AF160: 482136 | AG160: 1368483.71 | AH160: 536251.141 | AI160: 0 | AJ160: 0 | AK160: 23678 | AL160: 2759274.351 | AO160: 23678 | AP160: 23678 | AQ160: 2735596.351 | AR160: 15216727.07 | AS160: 7548192 | AT160: 0 | AU160: 7548192 | AV160: 0 | AW160: 0 | AX160: 0 | AY160: 0 | BA160: 81304 | BB160: 7355302 | BC160: 14129455.77 | BD160: 6774153.769 | BE160: 6692849.769 | BF160: 0 | BG160: 0 | BI160: 876582.19 | BJ160: 10006207.75 | BK160: 193484.81 | BL160: 22802.06 | BM160: 144588.5 | BN160: 1588994.67 | BO160: 10000 | BP160: 750 | BQ160: 0 | BR160: 0 | BS160: 0 | BT160: 219722 | BU160: 13063131.98 | BW160: 0 | BY160: 0 | BZ160: 13063131.98 | CB160: 231095.9607 | CC160: 0 | CD160: 0 | CF160: 0 | CG160: 118244 | CH160: 513881 | CI160: 1371824.554 | CJ160: 665573.8122 | CK160: 0 | CL160: 0 | CM160: 0 | CN160: 2900619.326 | CQ160: 9088.603831 | CR160: 9088.603831 | CS160: 2891530.723 | CT160: 15954662.7 | CU160: 8265929 | CV160: 0 | CW160: 8265929 | CX160: 0 | CY160: 0 | CZ160: 0 | DA160: 0
A161: 0158 | B161: 1 | C161: 1 | D161: 2025-10-03 | E161: 1 | F161: 0.9049308078 | G161: 1 | H161: 1224806 | I161: 16989015.77 | J161: 397462 | K161: 0 | L161: 423248 | M161: 3052633 | N161: 23578 | O161: 0 | P161: 0 | Q161: 0 | R161: 0 | S161: 840010 | T161: 22950752.77 | V161: 129000 | X161: 129000 | Y161: 22821752.77 | Z161: 377034 | AA161: 0 | AB161: 0 | AD161: 0 | AE161: 683714 | AF161: 945309 | AG161: 3639447 | AH161: 855596 | AI161: 0 | AJ161: 0 | AK161: 923671.65 | AL161: 7424771.65 | AO161: 0 | AP161: 0 | AQ161: 7424771.65 | AR161: 30246524.42 | AS161: 20961874 | AT161: 0 | AU161: 20961874 | AV161: 0 | AW161: 0 | AX161: 0 | AY161: 0 | BA161: 884 | BB161: 20056952 | BC161: 29230400.4 | BD161: 9173448.403 | BE161: 9172564.403 | BF161: 0 | BG161: 129000 | BI161: 1033583.011 | BJ161: 16280250 | BK161: 405401 | BL161: 35000 | BM161: 486594 | BN161: 2158752.259 | BO161: 0 | BP161: 0 | BQ161: 0 | BR161: 0 | BS161: 0 | BT161: 2137516 | BU161: 22537096.27 | BW161: 99542.38885 | BY161: 99542.38885 | BZ161: 22437553.88 | CB161: 361946.0801 | CC161: 0 | CD161: 0 | CF161: 0 | CG161: 544162.9476 | CH161: 830582.5975 | CI161: 4428527.764 | CJ161: 774255.1794 | CK161: 0 | CL161: 0 | CM161: 1037219.85 | CN161: 7976694.418 | CQ161: 85918 | CR161: 85918 | CS161: 7890776.418 | CT161: 30328330.3 | CU161: 21926879 | CV161: 0 | CW161: 21926879 | CX161: 0 | CY161: 0 | CZ161: 0 | DA161: 0
A162: 0159 | B162: 1 | C162: 1 | D162: 2025-09-30 | E162: 1 | F162: 1 | G162: 1 | H162: 1215457.06 | I162: 30459808.5 | J162: 602715.32 | K162: 61847.77 | L162: 580670.77 | M162: 3240493.25 | N162: 116894.52 | O162: 0 | P162: 0 | Q162: 0 | R162: 0 | S162: 2515743.74 | T162: 38793630.93 | V162: 0 | X162: 0 | Y162: 38793630.93 | Z162: 651263 | AA162: 0 | AB162: 0 | AD162: 67383 | AE162: 1569276 | AF162: 2041564 | AG162: 4308211 | AH162: 1116953.74 | AI162: 0 | AJ162: 0 | AK162: 319607.26 | AL162: 10074258 | AO162: 85348.8 | AP162: 85348.8 | AQ162: 9988909.2 | AR162: 48782540.13 | AS162: 34710107 | AT162: 0 | AU162: 34710107 | AV162: 0 | AW162: 0 | AX162: 0 | AY162: 0 | BA162: 0 | BB162: 33192701 | BC162: 47506747.75 | BD162: 14314046.75 | BE162: 14314046.75 | BF162: 0 | BG162: 0 | BI162: 979359.2 | BJ162: 32323248.03 | BK162: 618223.22 | BL162: 60580 | BM162: 425665 | BN162: 3313259.17 | BO162: 96000 | BP162: 0 | BQ162: 0 | BR162: 0 | BS162: 0 | BT162: 2334805.82 | BU162: 40151140.44 | BW162: 0 | BY162: 0 | BZ162: 40151140.44 | CB162: 693071 | CC162: 0 | CD162: 0 | CF162: 76470 | CG162: 1824300 | CH162: 2205000 | CI162: 4530297 | CJ162: 1174200 | CK162: 0 | CL162: 0 | CM162: 336457.21 | CN162: 10839795.21 | CQ162: 54547.37559 | CR162: 54547.37559 | CS162: 10785247.83 | CT162: 50936388.27 | CU162: 36472170 | CV162: 0 | CW162: 36472170 | CX162: 0 | CY162: 0 | CZ162: 0 | DA162: 0
A163: 0160 | B163: 1 | C163: 1 | D163: 2025-11-25 | E163: 1 | F163: 1 | G163: 1 | H163: 5862060.46 | I163: 182904717.5 | J163: 3155399.37 | K163: 0 | L163: 4183448.93 | M163: 9905651.6 | N163: 1363000.32 | O163: 25453279.57 | P163: 0 | Q163: 888749.16 | R163: 0 | S163: 7739357.78 | T163: 241455664.7 | V163: 0 | X163: 0 | Y163: 241455664.7 | Z163: 2606131.47 | AA163: 0 | AB163: 2788484.36 | AD163: 528611.67 | AE163: 5906867.53 | AF163: 11281373 | AG163: 5598486.16 | AH163: 10120808.28 | AI163: 0 | AJ163: 0 | AK163: 43867078.14 | AL163: 82697840.61 | AO163: 8176587 | AP163: 8176587 | AQ163: 74521253.61 | AR163: 315976918.3 | AS163: 308040584 | AT163: 0 | AU163: 308040584 | AV163: 0 | AW163: 0 | AX163: 0 | AY163: 0 | BA163: 770740.69 | BB163: 289236848 | BC163: 294030323.8 | BD163: 4793475.825 | BE163: 4022735.135 | BF163: 0 | BG163: 0 | BI163: 8613627 | BJ163: 191658650 | BK163: 3907644 | BL163: 0 | BM163: 2704065 | BN163: 8033466 | BO163: 1515132 | BP163: 28309676 | BQ163: 0 | BR163: 894356 | BS163: 0 | BT163: 10033486 | BU163: 255670102 | BW163: 0 | BY163: 0 | BZ163: 255670102 | CB163: 2578837.48 | CC163: 0 | CD163: 2905728.08 | CF163: 528611.67 | CG163: 6801982.81 | CH163: 11281373 | CI163: 5598486.16 | CJ163: 10120808.28 | CK163: 0 | CL163: 0 | CM163: 48489604.71 | CN163: 88305432.19 | CQ163: 5412124.57 | CR163: 5412124.57 | CS163: 82893307.62 | CT163: 338563409.6 | CU163: 330445792 | CV163: 0 | CW163: 330445792 | CX163: 0 | CY163: 0 | CZ163: 0 | DA163: 0
A164: 0161 | B164: 1 | C164: 1 | D164: 2025-11-21 | E164: 1 | F164: 1 | G164: 1 | H164: 952952 | I164: 26962578 | J164: 612352 | K164: 78511 | L164: 705607 | M164: 3899522 | N164: 66348 | O164: 0 | P164: 0 | Q164: 0 | R164: 0 | S164: 2232381 | T164: 35510251 | V164: 0 | X164: 0 | Y164: 35510251 | Z164: 417411 | AA164: 0 | AB164: 0 | AD164: 0 | AE164: 30045 | AF164: 2144462 | AG164: 6760182 | AH164: 507093 | AI164: 0 | AJ164: 0 | AK164: 1465077.919 | AL164: 11324270.92 | AO164: 215038.6 | AP164: 215038.6 | AQ164: 11109232.32 | AR164: 46619483.32 | AS164: 33567358 | AT164: 0 | AU164: 33567358 | AV164: 0 | AW164: 0 | AX164: 0 | AY164: 0 | BA164: 0 | BB164: 32627792 | BC164: 43928407.15 | BD164: 11300615.15 | BE164: 11300615.15 | BF164: 0 | BG164: 0 | BI164: 941757 | BJ164: 28145410 | BK164: 741885 | BL164: 104989 | BM164: 701400 | BN164: 2165129 | BO164: 115500 | BP164: 0 | BQ164: 0 | BR164: 0 | BS164: 0 | BT164: 2461527 | BU164: 35377597 | BW164: 0 | BY164: 0 | BZ164: 35377597 | CB164: 380656 | CC164: 0 | CD164: 0 | CF164: 0 | CG164: 24757 | CH164: 2208796 | CI164: 6962988 | CJ164: 522306 | CK164: 0 | CL164: 0 | CM164: 1823157.219 | CN164: 11922660.22 | CQ164: 254674.5428 | CR164: 254674.5428 | CS164: 11667985.68 | CT164: 47045582.68 | CU164: 34988620 | CV164: 0 | CW164: 34988620 | CX164: 0 | CY164: 0 | CZ164: 0 | DA164: 0
A165: 0162 | B165: 1 | C165: 1 | D165: 2025-10-31 | E165: 0.9996716518 | F165: 1 | G165: 1 | H165: 862051.8538 | I165: 15377543 | J165: 281335 | K165: 0 | L165: 555985 | M165: 1676563.323 | N165: 0 | O165: 3269041.264 | P165: 0 | Q165: 0 | R165: 0 | S165: 732298 | T165: 22754817.44 | V165: 21000 | X165: 21000 | Y165: 22733817.44 | Z165: 0 | AA165: 0 | AB165: 0 | AD165: 0 | AE165: 0 | AF165: 395617.0572 | AG165: 241371.72 | AH165: 1316075.727 | AI165: 0 | AJ165: 0 | AK165: 760687.7105 | AL165: 2713752.215 | AO165: 27170 | AP165: 27170 | AQ165: 2686582.215 | AR165: 25420399.65 | AS165: 21584939 | AT165: 0 | AU165: 21584939 | AV165: 0 | AW165: 0 | AX165: 0 | AY165: 0 | BA165: 17426 | BB165: 20730114 | BC165: 24043451.71 | BD165: 3313337.708 | BE165: 3295911.708 | BF165: 0 | BG165: 21000 | BI165: 941190 | BJ165: 15535501 | BK165: 320792 | BL165: 0 | BM165: 529668 | BN165: 1979044 | BO165: 0 | BP165: 3752258 | BQ165: 0 | BR165: 0 | BS165: 0 | BT165: 1291293 | BU165: 24349746 | BW165: 45000 | BY165: 45000 | BZ165: 24304746 | CB165: 0 | CC165: 0 | CD165: 0 | CF165: 0 | CG165: 0 | CH165: 399213 | CI165: 275000 | CJ165: 1316508 | CK165: 0 | CL165: 0 | CM165: 779042.8105 | CN165: 2769763.811 | CQ165: 0 | CR165: 0 | CS165: 2769763.811 | CT165: 27074509.81 | CU165: 22564041 | CV165: 0 | CW165: 22564041 | CX165: 0 | CY165: 0 | CZ165: 0 | DA165: 0
A166: 0163 | B166: 1 | C166: 1 | D166: 2025-10-29 | E166: 1 | F166: 1 | G166: 1 | H166: 9154349 | I166: 193104329 | J166: 5942097 | K166: 1232219 | L166: 5669016 | M166: 14392323 | N166: 94913 | O166: 0 | P166: 0 | Q166: 753217 | R166: 0 | S166: 9092514 | T166: 239434977 | V166: 0 | X166: 0 | Y166: 239434977 | Z166: 2576880 | AA166: 0 | AB166: 0 | AD166: 0 | AE166: 26778717 | AF166: 19642790 | AG166: 34360886 | AH166: 5812135 | AI166: 0 | AJ166: 0 | AK166: 34986943.97 | AL166: 124158352 | AO166: 4022702 | AP166: 4022702 | AQ166: 120135650 | AR166: 359570627 | AS166: 351967449 | AT166: 0 | AU166: 351967449 | AV166: 0 | AW166: 0 | AX166: 0 | AY166: 0 | BA166: 94849 | BB166: 329943497 | BC166: 331191959.9 | BD166: 1248462.893 | BE166: 1153613.893 | BF166: 0 | BG166: 0 | BI166: 12346016 | BJ166: 208657497 | BK166: 6418492 | BL166: 1037441 | BM166: 9262984 | BN166: 1200350 | BO166: 33157 | BP166: 700000 | BQ166: 0 | BR166: 245925 | BS166: 0 | BT166: 12223106 | BU166: 252124968 | BW166: 0 | BY166: 0 | BZ166: 252124968 | CB166: 2733819 | CC166: 0 | CD166: 0 | CF166: 0 | CG166: 27723257 | CH166: 21720486 | CI166: 37506871 | CJ166: 6375912 | CK166: 0 | CL166: 0 | CM166: 40520856.72 | CN166: 136581201.7 | CQ166: 4022016.421 | CR166: 4022016.421 | CS166: 132559185.3 | CT166: 384684153.3 | CU166: 384629299 | CV166: 0 | CW166: 384629299 | CX166: 0 | CY166: 0 | CZ166: 0 | DA166: 0
A167: 0164 | B167: 1 | C167: 1 | D167: 2025-10-16 | E167: 1 | F167: 1 | G167: 1 | H167: 1283946 | I167: 26278707 | J167: 508130 | K167: 0 | L167: 1054918 | M167: 333893 | N167: 6510 | O167: 35428 | P167: 0 | Q167: 152356 | R167: 0 | S167: 1178454 | T167: 30832342 | V167: 76185 | X167: 76185 | Y167: 30756157 | Z167: 434517 | AA167: 0 | AB167: 0 | AD167: 0 | AE167: 3123740 | AF167: 1575329 | AG167: 4101377 | AH167: 978196 | AI167: 0 | AJ167: 0 | AK167: 208895.58 | AL167: 10422054.58 | AO167: 78608.2 | AP167: 78608.2 | AQ167: 10343446.38 | AR167: 41099603.38 | AS167: 28581036 | AT167: 0 | AU167: 28581036 | AV167: 0 | AW167: 0 | AX167: 0 | AY167: 0 | BA167: 21422 | BB167: 27452372 | BC167: 39170954.58 | BD167: 11718582.58 | BE167: 11697160.58 | BF167: 0 | BG167: 76185 | BI167: 787452 | BJ167: 28500208 | BK167: 502768 | BL167: 0 | BM167: 1003669 | BN167: 1114812 | BO167: 32000 | BP167: 50000 | BQ167: 0 | BR167: 122000 | BS167: 0 | BT167: 1929807 | BU167: 34042716 | BW167: 76185 | BY167: 76185 | BZ167: 33966531 | CB167: 338189 | CC167: 0 | CD167: 0 | CF167: 0 | CG167: 3007743 | CH167: 1649126 | CI167: 4784504 | CJ167: 1225993.5 | CK167: 0 | CL167: 0 | CM167: 254735 | CN167: 11260290.5 | CQ167: 81505.84917 | CR167: 81505.84917 | CS167: 11178784.65 | CT167: 45145315.65 | CU167: 29707299 | CV167: 0 | CW167: 29707299 | CX167: 0 | CY167: 0 | CZ167: 0 | DA167: 0
A168: 0165 | B168: 1 | C168: 1 | D168: 2025-09-29 | E168: 1 | F168: 1 | G168: 1 | H168: 2410159.83 | I168: 69331106.29 | J168: 2254160.92 | K168: 0 | L168: 1279626.95 | M168: 6117089.51 | N168: 34885.8 | O168: 0 | P168: 0 | Q168: 0 | R168: 0 | S168: 6164083.41 | T168: 87591112.71 | V168: 0 | X168: 0 | Y168: 87591112.71 | Z168: 1056438.97 | AA168: 0 | AB168: 0 | AD168: 225129 | AE168: 2726427.1 | AF168: 3855851.88 | AG168: 11305260.47 | AH168: 3641746.99 | AI168: 0 | AJ168: 0 | AK168: 10072238.99 | AL168: 32883093.4 | AO168: 592796.6 | AP168: 592796.6 | AQ168: 32290296.8 | AR168: 119881409.5 | AS168: 121557819 | AT168: 0 | AU168: 121557819 | AV168: -1676409.49 | AW168: -0.01379104614 | AX168: 1676409.49 | AY168: 0 | BA168: 475080.98 | BB168: 117616659 | BC168: 120056903.7 | BD168: 2440244.667 | BE168: 1965163.687 | BF168: 0 | BG168: 0 | BI168: 2186733.28 | BJ168: 74730147.46 | BK168: 1985065.84 | BL168: 0 | BM168: 1130125.89 | BN168: 5839819.84 | BO168: 0 | BP168: 0 | BQ168: 0 | BR168: 0 | BS168: 0 | BT168: 7092512.84 | BU168: 92964405.15 | BW168: 0 | BY168: 0 | BZ168: 92964405.15 | CB168: 1118237.79 | CC168: 0 | CD168: 0 | CF168: 231882.87 | CG168: 2775746.21 | CH168: 3971527.44 | CI168: 12893687.94 | CJ168: 4255706.15 | CK168: 0 | CL168: 0 | CM168: 10873479.99 | CN168: 36120268.39 | CQ168: 831145.1814 | CR168: 831145.1814 | CS168: 35289123.21 | CT168: 128253528.4 | CU168: 130437793 | CV168: 1676409.49 | CW168: 132114202.5 | CX168: -3860674.131 | CY168: -0.02959781857 | CZ168: 3860674.131 | DA168: 0
A169: 0166 | B169: 0 | C169: 0 | H169: 0 | I169: 0 | J169: 0 | K169: 0 | L169: 0 | M169: 0 | N169: 0 | O169: 0 | P169: 0 | Q169: 0 | R169: 0 | S169: 0 | T169: 0 | V169: 0 | X169: 0 | Y169: 0 | Z169: 0 | AA169: 0 | AB169: 0 | AD169: 0 | AE169: 0 | AF169: 0 | AG169: 0 | AH169: 0 | AI169: 0 | AJ169: 0 | AK169: 0 | AL169: 0 | AO169: 0 | AP169: 0 | AQ169: 0 | AR169: 0 | AS169: 0 | AT169: 0 | AU169: 0 | AV169: 0 | AW169: 0 | AX169: 0 | AY169: 0 | BA169: 0 | BB169: 0 | BC169: 0 | BD169: 0 | BE169: 0 | BF169: 0 | BG169: 0 | BI169: 0 | BJ169: 0 | BK169: 0 | BL169: 0 | BM169: 0 | BN169: 0 | BO169: 0 | BP169: 0 | BQ169: 0 | BR169: 0 | BS169: 0 | BT169: 0 | BU169: 0 | BW169: 0 | BY169: 0 | BZ169: 0 | CB169: 0 | CC169: 0 | CD169: 0 | CF169: 0 | CG169: 0 | CH169: 0 | CI169: 0 | CJ169: 0 | CK169: 0 | CL169: 0 | CM169: 0 | CN169: 0 | CQ169: 0 | CR169: 0 | CS169: 0 | CT169: 0 | CU169: 0 | CV169: 0 | CW169: 0 | CX169: 0 | CY169: 0 | CZ169: 0 | DA169: 0
A170: 0167 | B170: 1 | C170: 1 | D170: 2025-09-29 | E170: 1 | F170: 1 | G170: 1 | H170: 1683457.15 | I170: 42902822.45 | J170: 999408.4 | K170: 256519.63 | L170: 1319475.54 | M170: 4708247.49 | N170: 310573.81 | O170: 0 | P170: 0 | Q170: 154450.44 | R170: 0 | S170: 3176344.48 | T170: 55511299.39 | V170: 0 | X170: 0 | Y170: 55511299.39 | Z170: 179267 | AA170: 0 | AB170: 0 | AD170: 0 | AE170: 0 | AF170: 2195533 | AG170: 8811053 | AH170: 2353580 | AI170: 0 | AJ170: 0 | AK170: 1109024.316 | AL170: 14648457.32 | AO170: 0 | AP170: 0 | AQ170: 14648457.32 | AR170: 70159756.71 | AS170: 54839043 | AT170: 0 | AU170: 54839043 | AV170: 0 | AW170: 0 | AX170: 0 | AY170: 0 | BA170: 50601.18 | BB170: 52076187 | BC170: 67470579.94 | BD170: 15394392.94 | BE170: 15343791.76 | BF170: 0 | BG170: 0 | BI170: 1654987.87 | BJ170: 44430901.25 | BK170: 969553 | BL170: 304910.54 | BM170: 1404055.93 | BN170: 4541150.24 | BO170: 297500 | BP170: 0 | BQ170: 0 | BR170: 159175 | BS170: 0 | BT170: 2961331 | BU170: 56723564.83 | BW170: 0 | BY170: 0 | BZ170: 56723564.83 | CB170: 184597 | CC170: 0 | CD170: 0 | CF170: 0 | CG170: 0 | CH170: 2390224 | CI170: 10268192 | CJ170: 2980260 | CK170: 0 | CL170: 0 | CM170: 1210895.666 | CN170: 17034168.67 | CQ170: 57867 | CR170: 57867 | CS170: 16976301.67 | CT170: 73699866.5 | CU170: 57194761 | CV170: 0 | CW170: 57194761 | CX170: 0 | CY170: 0 | CZ170: 0 | DA170: 0
A171: 0168 | B171: 1 | C171: 1 | D171: 2025-10-30 | E171: 1 | F171: 1 | G171: 1 | H171: 1915001.94 | I171: 31799158.23 | J171: 522238.49 | K171: 0 | L171: 733001.08 | M171: 5515860.45 | N171: 151001.82 | O171: 615771.93 | P171: 0 | Q171: 0 | R171: 0 | S171: 3615381.52 | T171: 44867415.46 | V171: 2000 | X171: 2000 | Y171: 44865415.46 | Z171: 379962 | AA171: 0 | AB171: 0 | AD171: 67693 | AE171: 308155 | AF171: 1477985.71 | AG171: 6951571 | AH171: 1214310 | AI171: 0 | AJ171: 0 | AK171: 1442763.78 | AL171: 11842440.49 | AO171: 232199 | AP171: 232199 | AQ171: 11610241.49 | AR171: 56475656.95 | AS171: 33787579 | AT171: 0 | AU171: 33787579 | AV171: 0 | AW171: 0 | AX171: 0 | AY171: 0 | BA171: 0 | BB171: 33316926 | BC171: 54283263.87 | BD171: 20966337.87 | BE171: 20966337.87 | BF171: 0 | BG171: 2000 | BI171: 1690969 | BJ171: 34688460.76 | BK171: 580421.96 | BL171: 76844.48 | BM171: 726468 | BN171: 5359751.8 | BO171: 130396 | BP171: 795515 | BQ171: 0 | BR171: 0 | BS171: 0 | BT171: 3584163 | BU171: 47632990 | BW171: 630000 | BY171: 630000 | BZ171: 47002990 | CB171: 391702 | CC171: 0 | CD171: 0 | CF171: 69723 | CG171: 349276 | CH171: 1687902.06 | CI171: 7486301 | CJ171: 1311454 | CK171: 0 | CL171: 0 | CM171: 1829254.47 | CN171: 13125612.53 | CQ171: 458602.6595 | CR171: 458602.6595 | CS171: 12667009.87 | CT171: 59669999.87 | CU171: 34598464 | CV171: 0 | CW171: 34598464 | CX171: 0 | CY171: 0 | CZ171: 0 | DA171: 0
A172: 0169 | B172: 1 | C172: 1 | D172: 2025-12-06 | E172: 1 | F172: 1 | G172: 1 | H172: 181291 | I172: 5137262 | J172: 92612 | K172: 8242 | L172: 0 | M172: 631642 | N172: 10665 | O172: 0 | P172: 0 | Q172: 15389 | R172: 0 | S172: 327497 | T172: 6404600 | V172: 0 | X172: 0 | Y172: 6404600 | Z172: 109712 | AA172: 0 | AB172: 0 | AD172: 0 | AE172: 0 | AF172: 809536 | AG172: 675003 | AH172: 105724.8 | AI172: 0 | AJ172: 0 | AK172: 29802 | AL172: 1729777.8 | AO172: 0 | AP172: 0 | AQ172: 1729777.8 | AR172: 8134377.8 | AS172: 5147851 | AT172: 0 | AU172: 5147851 | AV172: 0 | AW172: 0 | AX172: 0 | AY172: 0 | BA172: 0 | BB172: 5068217 | BC172: 7794527.2 | BD172: 2726310.2 | BE172: 2726310.2 | BF172: 0 | BG172: 0 | BI172: 179569 | BJ172: 5409091 | BK172: 97521 | BL172: 0 | BM172: 1500 | BN172: 561559 | BO172: 0 | BP172: 200 | BQ172: 0 | BR172: 15500 | BS172: 0 | BT172: 637937 | BU172: 6902877 | BW172: 0 | BY172: 0 | BZ172: 6902877 | CB172: 128419 | CC172: 0 | CD172: 0 | CF172: 0 | CG172: 0 | CH172: 836469 | CI172: 758585 | CJ172: 142014.6 | CK172: 0 | CL172: 0 | CM172: 41022 | CN172: 1906509.6 | CQ172: 21022 | CR172: 21022 | CS172: 1885487.6 | CT172: 8788364.6 | CU172: 5255862 | CV172: 0 | CW172: 5255862 | CX172: 0 | CY172: 0 | CZ172: 0 | DA172: 0
A173: 0170 | B173: 1 | C173: 1 | D173: 2025-10-21 | E173: 1 | F173: 1 | G173: 1 | H173: 2777022.04 | I173: 58139877.95 | J173: 1263451.02 | K173: 0 | L173: 1139991.35 | M173: 2694682.83 | N173: 316442.67 | O173: 0 | P173: 0 | Q173: 0 | R173: 0 | S173: 4413474.79 | T173: 70744942.65 | V173: 0 | X173: 0 | Y173: 70744942.65 | Z173: 359814 | AA173: 0 | AB173: 0 | AD173: 0 | AE173: 3763867 | AF173: 2314962 | AG173: 9045366 | AH173: 2294999 | AI173: 0 | AJ173: 0 | AK173: 8735040.522 | AL173: 26514048.52 | AO173: 476653.2 | AP173: 476653.2 | AQ173: 26037395.32 | AR173: 96782337.97 | AS173: 91366537 | AT173: 0 | AU173: 91366537 | AV173: 0 | AW173: 0 | AX173: 0 | AY173: 0 | BA173: 0 | BB173: 87221685 | BC173: 90313005.31 | BD173: 3091320.311 | BE173: 3091320.311 | BF173: 0 | BG173: 0 | BI173: 4413875.21 | BJ173: 62774178.47 | BK173: 1357949.87 | BL173: 0 | BM173: 1297569.46 | BN173: 2910581.46 | BO173: 0 | BP173: 0 | BQ173: 0 | BR173: 0 | BS173: 0 | BT173: 3995093.53 | BU173: 76749248 | BW173: 0 | BY173: 0 | BZ173: 76749248 | CB173: 392200 | CC173: 0 | CD173: 0 | CF173: 0 | CG173: 3894899 | CH173: 2410466 | CI173: 14169279 | CJ173: 2868749 | CK173: 0 | CL173: 0 | CM173: 9700209.352 | CN173: 33435802.35 | CQ173: 942403.5198 | CR173: 942403.5198 | CS173: 32493398.83 | CT173: 109242646.8 | CU173: 97477475 | CV173: 0 | CW173: 97477475 | CX173: 0 | CY173: 0 | CZ173: 0 | DA173: 0
A174: 0171 | B174: 1 | C174: 1 | D174: 2025-12-11 | E174: 1 | F174: 1 | G174: 1 | H174: 1408671.56 | I174: 45200136.1 | J174: 1179352.73 | K174: 0 | L174: 1137250.95 | M174: 4605416.52 | N174: 127141.94 | O174: 0 | P174: 0 | Q174: 0 | R174: 0 | S174: 72094.72 | T174: 53730064.52 | V174: 0 | X174: 0 | Y174: 53730064.52 | Z174: 500530 | AA174: 0 | AB174: 0 | AD174: 0 | AE174: 480730 | AF174: 1886836 | AG174: 4071583 | AH174: 877332.8 | AI174: 0 | AJ174: 0 | AK174: 1079176.37 | AL174: 8896188.17 | AO174: 67402 | AP174: 67402 | AQ174: 8828786.17 | AR174: 62558850.69 | AS174: 56001156 | AT174: 0 | AU174: 56001156 | AV174: 0 | AW174: 0 | AX174: 0 | AY174: 0 | BA174: 0 | BB174: 54303362 | BC174: 61931989.98 | BD174: 7628627.975 | BE174: 7628627.975 | BF174: 0 | BG174: 0 | BI174: 1494455 | BJ174: 46548685 | BK174: 1181327 | BL174: 0 | BM174: 1081614 | BN174: 4459533 | BO174: 300000 | BP174: 0 | BQ174: 0 | BR174: 0 | BS174: 0 | BT174: 1091530.72 | BU174: 56157144.72 | BW174: 0 | BY174: 0 | BZ174: 56157144.72 | CB174: 536987 | CC174: 0 | CD174: 0 | CF174: 73744.91 | CG174: 495151.9 | CH174: 2179380 | CI174: 4802472 | CJ174: 968151.6 | CK174: 0 | CL174: 0 | CM174: 948215.49 | CN174: 10004102.9 | CQ174: 245972 | CR174: 245972 | CS174: 9758130.9 | CT174: 65915275.62 | CU174: 58039482 | CV174: 0 | CW174: 58039482 | CX174: 0 | CY174: 0 | CZ174: 0 | DA174: 0
A175: 0172 | B175: 1 | C175: 1 | D175: 2025-12-05 | E175: 1 | F175: 1 | G175: 1 | H175: 1059342.76 | I175: 18862570.13 | J175: 635081.1 | K175: 141058.96 | L175: 970483.92 | M175: 741147.95 | N175: 395371.73 | O175: 5399.3 | P175: 0 | Q175: 0 | R175: 0 | S175: 735028.84 | T175: 23545484.69 | V175: 0 | X175: 0 | Y175: 23545484.69 | Z175: 246134.84 | AA175: 0 | AB175: 0 | AD175: 92720.16 | AE175: 4329333 | AF175: 1192708.27 | AG175: 4080819.4 | AH175: 1457254.27 | AI175: 0 | AJ175: 0 | AK175: 1898155.447 | AL175: 13297125.39 | AO175: 166219.4 | AP175: 166219.4 | AQ175: 13130905.99 | AR175: 36676390.68 | AS175: 22208559 | AT175: 0 | AU175: 22208559 | AV175: 0 | AW175: 0 | AX175: 0 | AY175: 0 | BA175: 167967 | BB175: 21382621 | BC175: 34078280.15 | BD175: 12695659.15 | BE175: 12527692.15 | BF175: 0 | BG175: 0 | BI175: 1081166 | BJ175: 19243153 | BK175: 519982 | BL175: 147032 | BM175: 1013399 | BN175: 140000 | BO175: 0 | BP175: 0 | BQ175: 0 | BR175: 0 | BS175: 0 | BT175: 1561536 | BU175: 23706268 | BW175: 0 | BY175: 0 | BZ175: 23706268 | CB175: 251423.97 | CC175: 0 | CD175: 0 | CF175: 98000 | CG175: 4999435.63 | CH175: 1296040.91 | CI175: 5746336.94 | CJ175: 1786286.65 | CK175: 0 | CL175: 0 | CM175: 1850630.857 | CN175: 16028154.96 | CQ175: 59588.73742 | CR175: 59588.73742 | CS175: 15968566.22 | CT175: 39674834.22 | CU175: 23337211 | CV175: 0 | CW175: 23337211 | CX175: 0 | CY175: 0 | CZ175: 0 | DA175: 0
A176: 0173 | B176: 1 | C176: 1 | D176: 2025-12-08 | E176: 1 | F176: 1 | G176: 1 | H176: 201542 | I176: 5824811 | J176: 175064 | K176: 0 | L176: 6555 | M176: 1026640 | N176: 3597 | O176: 0 | P176: 0 | Q176: 16997 | R176: 0 | S176: 275381 | T176: 7530587 | V176: 0 | X176: 0 | Y176: 7530587 | Z176: 146932 | AA176: 0 | AB176: 0 | AD176: 0 | AE176: 0 | AF176: 657670 | AG176: 1151645 | AH176: 151967.2 | AI176: 0 | AJ176: 0 | AK176: 39836.89 | AL176: 2148051.09 | AO176: 22954.4 | AP176: 22954.4 | AQ176: 2125096.69 | AR176: 9655683.69 | AS176: 5059434 | AT176: 0 | AU176: 5059434 | AV176: 0 | AW176: 0 | AX176: 0 | AY176: 0 | BA176: 0 | BB176: 5126126 | BC176: 9175847.025 | BD176: 4049721.025 | BE176: 4049721.025 | BF176: 0 | BG176: 0 | BI176: 215060 | BJ176: 5960249 | BK176: 181624 | BL176: 0 | BM176: 4800 | BN176: 930895 | BO176: 0 | BP176: 200 | BQ176: 0 | BR176: 26350 | BS176: 0 | BT176: 708001 | BU176: 8027179 | BW176: 0 | BY176: 0 | BZ176: 8027179 | CB176: 156440 | CC176: 0 | CD176: 0 | CF176: 0 | CG176: 0 | CH176: 685938 | CI176: 1180828 | CJ176: 202177.8 | CK176: 0 | CL176: 0 | CM176: 8104.89 | CN176: 2233488.69 | CQ176: 3757.042584 | CR176: 3757.042584 | CS176: 2229731.647 | CT176: 10256910.65 | CU176: 5011904 | CV176: 0 | CW176: 5011904 | CX176: 0 | CY176: 0 | CZ176: 0 | DA176: 0
A177: 0174 | B177: 1 | C177: 1 | D177: 2025-10-02 | E177: 1 | F177: 1 | G177: 1 | H177: 1095257.34 | I177: 16026871.56 | J177: 310520.2 | K177: 610 | L177: 426856.05 | M177: 2577308.18 | N177: 58217.54 | O177: 0 | P177: 0 | Q177: 0 | R177: 0 | S177: 1306897.31 | T177: 21802538.18 | V177: 507000 | X177: 507000 | Y177: 21295538.18 | Z177: 506617 | AA177: 0 | AB177: 0 | AD177: 0 | AE177: 5382 | AF177: 954502 | AG177: 4336252 | AH177: 246741.6 | AI177: 0 | AJ177: 0 | AK177: 1711619.43 | AL177: 7761114.03 | AO177: 140627 | AP177: 140627 | AQ177: 7620487.03 | AR177: 28916025.21 | AS177: 18607509 | AT177: 0 | AU177: 18607509 | AV177: 0 | AW177: 0 | AX177: 0 | AY177: 0 | BA177: 0 | BB177: 17768872 | BC177: 27957839.56 | BD177: 10188967.56 | BE177: 10188967.56 | BF177: 0 | BG177: 507000 | BI177: 915173 | BJ177: 18054043.83 | BK177: 323965 | BL177: 15000 | BM177: 401920.53 | BN177: 2097007.4 | BO177: 60000 | BP177: 0 | BQ177: 0 | BR177: 0 | BS177: 0 | BT177: 1928578 | BU177: 23795687.76 | BW177: 640000 | BY177: 640000 | BZ177: 23155687.76 | CB177: 176813 | CC177: 0 | CD177: 0 | CF177: 0 | CG177: 5382 | CH177: 994635 | CI177: 4736523 | CJ177: 279913.5 | CK177: 0 | CL177: 0 | CM177: 1908012.43 | CN177: 8101278.93 | CQ177: 245358.7585 | CR177: 245358.7585 | CS177: 7855920.172 | CT177: 31011607.93 | CU177: 19588909 | CV177: 0 | CW177: 19588909 | CX177: 0 | CY177: 0 | CZ177: 0 | DA177: 0
A178: 0175 | B178: 1 | C178: 1 | D178: 2025-09-25 | E178: 1 | F178: 1 | G178: 1 | H178: 880395 | I178: 32763292 | J178: 592023 | K178: 0 | L178: 1087790 | M178: 4493513 | N178: 94356 | O178: 0 | P178: 0 | Q178: 71634 | R178: 0 | S178: 1385752 | T178: 41368755 | V178: 0 | X178: 0 | Y178: 41368755 | Z178: 363556 | AA178: 0 | AB178: 5549 | AD178: 87455 | AE178: 2534 | AF178: 1305364 | AG178: 3861080 | AH178: 729695 | AI178: 0 | AJ178: 0 | AK178: 39571 | AL178: 6394804 | AO178: 19769 | AP178: 19769 | AQ178: 6375035 | AR178: 47743790 | AS178: 31626330 | AT178: 0 | AU178: 31626330 | AV178: 0 | AW178: 0 | AX178: 0 | AY178: 0 | BA178: 40652 | BB178: 30502096 | BC178: 45127283.9 | BD178: 14625187.9 | BE178: 14584535.9 | BF178: 0 | BG178: 0 | BI178: 1008233 | BJ178: 34307665 | BK178: 639724 | BL178: 20500 | BM178: 1044878 | BN178: 4882939 | BO178: 105000 | BP178: 0 | BQ178: 0 | BR178: 75000 | BS178: 0 | BT178: 863313 | BU178: 42947252 | BW178: 0 | BY178: 0 | BZ178: 42947252 | CB178: 378564 | CC178: 0 | CD178: 4974 | CF178: 91828 | CG178: 3147 | CH178: 1298504 | CI178: 4219488 | CJ178: 846827 | CK178: 0 | CL178: 0 | CM178: 44091 | CN178: 6887423 | CQ178: 8469.166616 | CR178: 8469.166616 | CS178: 6878953.833 | CT178: 49826205.83 | CU178: 32894595 | CV178: 0 | CW178: 32894595 | CX178: 0 | CY178: 0 | CZ178: 0 | DA178: 0
A179: 0176 | B179: 1 | C179: 0 | G179: 1
A180: 0177 | B180: 1 | C180: 1 | D180: 2025-10-20 | E180: 1 | F180: 1 | G180: 1 | H180: 1136999 | I180: 22783432 | J180: 557712 | K180: 0 | L180: 763802 | M180: 3302811 | N180: 61379 | O180: 0 | P180: 0 | Q180: 0 | R180: 0 | S180: 952278 | T180: 29558413 | V180: 0 | X180: 0 | Y180: 29558413 | Z180: 149339 | AA180: 0 | AB180: 0 | AD180: 94686 | AE180: 308560 | AF180: 1980600 | AG180: 3631251 | AH180: 856476.8 | AI180: 0 | AJ180: 0 | AK180: 564134 | AL180: 7585046.8 | AO180: 51636.4 | AP180: 51636.4 | AQ180: 7533410.4 | AR180: 37091823.4 | AS180: 31419716 | AT180: 0 | AU180: 31419716 | AV180: 0 | AW180: 0 | AX180: 0 | AY180: 0 | BA180: 318 | BB180: 30117199 | BC180: 36297289.21 | BD180: 6180090.214 | BE180: 6179772.214 | BF180: 0 | BG180: 0 | BI180: 1125613 | BJ180: 25025773 | BK180: 567574 | BL180: 0 | BM180: 838764 | BN180: 3544631 | BO180: 57500 | BP180: 0 | BQ180: 0 | BR180: 0 | BS180: 0 | BT180: 1442747 | BU180: 32602602 | BW180: 0 | BY180: 0 | BZ180: 32602602 | CB180: 184595 | CC180: 0 | CD180: 0 | CF180: 189331 | CG180: 498630 | CH180: 1980421 | CI180: 3972361 | CJ180: 1036473.3 | CK180: 0 | CL180: 0 | CM180: 631372.96 | CN180: 8493184.26 | CQ180: 50875.86142 | CR180: 50875.86142 | CS180: 8442308.399 | CT180: 41044910.4 | CU180: 32960870 | CV180: 0 | CW180: 32960870 | CX180: 0 | CY180: 0 | CZ180: 0 | DA180: 0
A181: 0178 | B181: 1 | C181: 1 | D181: 2025-09-30 | E181: 1 | F181: 1 | G181: 1 | H181: 1090442.38 | I181: 34034462.84 | J181: 5000 | K181: 0 | L181: 842654.43 | M181: 244909.68 | N181: 0 | O181: 25461 | P181: 0 | Q181: 0 | R181: 0 | S181: 2630478.68 | T181: 38873409.01 | V181: 0 | X181: 0 | Y181: 38873409.01 | Z181: 564644 | AA181: 0 | AB181: 713821 | AD181: 623691 | AE181: 3439475 | AF181: 1742400 | AG181: 7369080 | AH181: 2661010 | AI181: 0 | AJ181: 0 | AK181: 4074229.08 | AL181: 21188350.08 | AO181: 714366 | AP181: 714366 | AQ181: 20473984.08 | AR181: 59347393.09 | AS181: 53741064 | AT181: 0 | AU181: 53741064 | AV181: 0 | AW181: 0 | AX181: 0 | AY181: 0 | BA181: 0 | BB181: 51330399 | BC181: 57225762.97 | BD181: 5895363.97 | BE181: 5895363.97 | BF181: 0 | BG181: 0 | BI181: 1112038.09 | BJ181: 35741271.39 | BK181: 7000 | BL181: 0 | BM181: 685766.03 | BN181: 264181.05 | BO181: 0 | BP181: 37900 | BQ181: 0 | BR181: 0 | BS181: 0 | BT181: 2780482.85 | BU181: 40628639.41 | BW181: 0 | BY181: 0 | BZ181: 40628639.41 | CB181: 577318 | CC181: 0 | CD181: 747047 | CF181: 583237 | CG181: 3527387 | CH181: 1829520 | CI181: 7401209 | CJ181: 2907287 | CK181: 0 | CL181: 0 | CM181: 4856582.22 | CN181: 22429587.22 | CQ181: 943539.1784 | CR181: 943539.1784 | CS181: 21486048.04 | CT181: 62114687.45 | CU181: 56510054 | CV181: 0 | CW181: 56510054 | CX181: 0 | CY181: 0 | CZ181: 0 | DA181: 0
A182: 0179 | B182: 0 | C182: 0 | D182: 2025-12-03 | H182: 0 | I182: 0 | J182: 0 | K182: 0 | L182: 0 | M182: 0 | N182: 0 | O182: 0 | P182: 0 | Q182: 0 | R182: 0 | S182: 0 | T182: 0 | V182: 0 | X182: 0 | Y182: 0 | Z182: 0 | AA182: 0 | AB182: 0 | AD182: 0 | AE182: 0 | AF182: 0 | AG182: 0 | AH182: 0 | AI182: 0 | AJ182: 0 | AK182: 0 | AL182: 0 | AO182: 0 | AP182: 0 | AQ182: 0 | AR182: 0 | AS182: 173569 | AT182: 0 | AU182: 173569 | AV182: -173569 | AW182: -1 | AX182: 8678.45 | AY182: 0 | BA182: 0 | BB182: 170825.3 | BC182: 290395.7 | BD182: 119570.4 | BE182: 119570.4 | BF182: 0 | BG182: 0 | BI182: 0 | BJ182: 0 | BK182: 0 | BL182: 0 | BM182: 0 | BN182: 0 | BO182: 0 | BP182: 0 | BQ182: 0 | BR182: 0 | BS182: 0 | BT182: 0 | BU182: 0 | BW182: 0 | BY182: 0 | BZ182: 0 | CB182: 0 | CC182: 0 | CD182: 0 | CF182: 0 | CG182: 0 | CH182: 0 | CI182: 0 | CJ182: 0 | CK182: 0 | CL182: 0 | CM182: 0 | CN182: 0 | CQ182: 0 | CR182: 0 | CS182: 0 | CT182: 0 | CU182: 152590 | CV182: 8678.45 | CW182: 161268.45 | CX182: -161268.45 | CY182: 0 | CZ182: 161268.45 | DA182: 0
A183: 0180 | B183: 0 | C183: 0 | D183: 2025-11-20 | H183: 0 | I183: 0 | J183: 0 | K183: 0 | L183: 0 | M183: 0 | N183: 0 | O183: 0 | P183: 0 | Q183: 0 | R183: 0 | S183: 0 | T183: 0 | V183: 0 | X183: 0 | Y183: 0 | Z183: 0 | AA183: 0 | AB183: 0 | AD183: 0 | AE183: 0 | AF183: 0 | AG183: 0 | AH183: 0 | AI183: 0 | AJ183: 0 | AK183: 0 | AL183: 0 | AO183: 0 | AP183: 0 | AQ183: 0 | AR183: 0 | AS183: 154013 | AT183: 8634.5 | AU183: 162647.5 | AV183: -162647.5 | AW183: -1.056063449 | AX183: 7700.65 | AY183: 0 | BA183: 0 | BB183: 182794.7 | BC183: 0 | BD183: -182794.7 | BE183: -182794.7 | BF183: 0 | BG183: 0 | BI183: 0 | BJ183: 0 | BK183: 0 | BL183: 0 | BM183: 0 | BN183: 0 | BO183: 0 | BP183: 0 | BQ183: 0 | BR183: 0 | BS183: 0 | BT183: 0 | BU183: 0 | BW183: 0 | BY183: 0 | BZ183: 0 | CB183: 0 | CC183: 0 | CD183: 0 | CF183: 0 | CG183: 0 | CH183: 0 | CI183: 0 | CJ183: 0 | CK183: 0 | CL183: 0 | CM183: 0 | CN183: 0 | CQ183: 0 | CR183: 0 | CS183: 0 | CT183: 0 | CU183: 158369 | CV183: 7700.65 | CW183: 166069.65 | CX183: -166069.65 | CY183: 0 | CZ183: 166069.65 | DA183: 0
A184: 0181 | B184: 1 | C184: 1 | D184: 2025-11-24 | E184: 1 | F184: 1 | G184: 1 | H184: 2070958.1 | I184: 68493772.34 | J184: 2273870 | K184: 0 | L184: 1580546 | M184: 8946871.67 | N184: 138758 | O184: 165307 | P184: 0 | Q184: 1247 | R184: 0 | S184: 12785911 | T184: 96457241.11 | V184: 0 | X184: 0 | Y184: 96457241.11 | Z184: 581647 | AA184: 0 | AB184: 0 | AD184: 439589 | AE184: 446755 | AF184: 4184027 | AG184: 6423619 | AH184: 6964320 | AI184: 0 | AJ184: 0 | AK184: 2827140.48 | AL184: 21867097.48 | AO184: 302611.2 | AP184: 302611.2 | AQ184: 21564486.28 | AR184: 118021727.4 | AS184: 115622808 | AT184: 0 | AU184: 115622808 | AV184: 0 | AW184: 0 | AX184: 0 | AY184: 0 | BA184: 0 | BB184: 109298850 | BC184: 110610482.7 | BD184: 1311632.707 | BE184: 1311632.707 | BF184: 0 | BG184: 0 | BI184: 2177230 | BJ184: 74640961 | BK184: 2376572 | BL184: 0 | BM184: 1847337 | BN184: 8916090 | BO184: 135000 | BP184: 29500 | BQ184: 0 | BR184: 2300 | BS184: 0 | BT184: 9560958 | BU184: 99685948 | BW184: 0 | BY184: 0 | BZ184: 99685948 | CB184: 613749 | CC184: 0 | CD184: 0 | CF184: 446009 | CG184: 490144 | CH184: 4561738 | CI184: 6636317 | CJ184: 7176434 | CK184: 0 | CL184: 0 | CM184: 2531218.83 | CN184: 22455609.83 | CQ184: 0 | CR184: 0 | CS184: 22455609.83 | CT184: 122141557.8 | CU184: 120570223 | CV184: 0 | CW184: 120570223 | CX184: 0 | CY184: 0 | CZ184: 0 | DA184: 0
A185: 0182 | B185: 1 | C185: 1 | D185: 2025-11-10 | E185: 1 | F185: 1 | G185: 1 | H185: 1380072 | I185: 31937021 | J185: 1035806 | K185: 0 | L185: 907690 | M185: 3658748 | N185: 69334 | O185: 0 | P185: 0 | Q185: 0 | R185: 0 | S185: 2094113 | T185: 41082784 | V185: 0 | X185: 0 | Y185: 41082784 | Z185: 265000 | AA185: 0 | AB185: 0 | AD185: 0 | AE185: 0 | AF185: 0 | AG185: 5422338 | AH185: 1993869 | AI185: 0 | AJ185: 1407056 | AK185: 1791502.26 | AL185: 10879765.26 | AO185: 512992.4 | AP185: 512992.4 | AQ185: 10366772.86 | AR185: 51449556.86 | AS185: 45670936 | AT185: 0 | AU185: 45670936 | AV185: 0 | AW185: 0 | AX185: 0 | AY185: 0 | BA185: 4291.23 | BB185: 44333813 | BC185: 53723781.9 | BD185: 9389968.9 | BE185: 9385677.67 | BF185: 0 | BG185: 0 | BI185: 1196077 | BJ185: 33735947 | BK185: 1236078 | BL185: 0 | BM185: 1017242 | BN185: 3388332 | BO185: 40000 | BP185: 0 | BQ185: 0 | BR185: 0 | BS185: 0 | BT185: 1181179 | BU185: 41794855 | BW185: 0 | BY185: 0 | BZ185: 41794855 | CB185: 297000 | CC185: 0 | CD185: 0 | CF185: 0 | CG185: 0 | CH185: 2800000 | CI185: 5540000 | CJ185: 2150000 | CK185: 0 | CL185: 1410000 | CM185: 2202241.91 | CN185: 14399241.91 | CQ185: 464629.6728 | CR185: 464629.6728 | CS185: 13934612.24 | CT185: 55729467.24 | CU185: 48162088 | CV185: 0 | CW185: 48162088 | CX185: 0 | CY185: 0 | CZ185: 0 | DA185: 0
A186: 0183 | B186: 0 | C186: 0 | D186: 2025-10-21 | H186: 0 | I186: 0 | J186: 0 | K186: 0 | L186: 0 | M186: 0 | N186: 0 | O186: 0 | P186: 0 | Q186: 0 | R186: 0 | S186: 0 | T186: 0 | V186: 0 | X186: 0 | Y186: 0 | Z186: 0 | AA186: 0 | AB186: 0 | AD186: 0 | AE186: 0 | AF186: 0 | AG186: 0 | AH186: 0 | AI186: 0 | AJ186: 0 | AK186: 62541 | AL186: 62541 | AO186: 0 | AP186: 0 | AQ186: 62541 | AR186: 62541 | AS186: 36219 | AT186: 2705.25 | AU186: 38924.25 | AV186: 0 | AW186: 0 | AX186: 0 | AY186: 0 | BA186: 0 | BB186: 56712.1 | BC186: 40152 | BD186: -16560.1 | BE186: -16560.1 | BF186: 0 | BG186: 0 | BI186: 0 | BJ186: 0 | BK186: 0 | BL186: 0 | BM186: 0 | BN186: 0 | BO186: 0 | BP186: 0 | BQ186: 0 | BR186: 0 | BS186: 0 | BT186: 0 | BU186: 0 | BW186: 0 | BY186: 0 | BZ186: 0 | CB186: 0 | CC186: 0 | CD186: 0 | CF186: 0 | CG186: 0 | CH186: 0 | CI186: 0 | CJ186: 0 | CK186: 0 | CL186: 0 | CM186: 51422 | CN186: 51422 | CQ186: 0 | CR186: 0 | CS186: 51422 | CT186: 51422 | CU186: 55249 | CV186: 0 | CW186: 55249 | CX186: -3827 | CY186: 0 | CZ186: 3827 | DA186: 0
A187: 0184 | B187: 1 | C187: 1 | D187: 2025-09-25 | E187: 1 | F187: 1 | G187: 1 | H187: 731856 | I187: 10177328 | J187: 205855 | K187: 32593 | L187: 0 | M187: 1128227 | N187: 46109 | O187: 1658656 | P187: 470304 | Q187: 0 | R187: 0 | S187: 304532 | T187: 14755460 | V187: 0 | X187: 0 | Y187: 14755460 | Z187: 106134 | AA187: 0 | AB187: 5000 | AD187: 221225 | AE187: 50000 | AF187: 542126 | AG187: 0 | AH187: 0 | AI187: 0 | AJ187: 0 | AK187: 28025.13 | AL187: 952510.13 | AO187: 3335.4 | AP187: 3335.4 | AQ187: 949174.73 | AR187: 15704634.73 | AS187: 9021160 | AT187: 0 | AU187: 9021160 | AV187: 0 | AW187: 0 | AX187: 0 | AY187: 0 | BA187: 2840 | BB187: 8683564 | BC187: 15064437.2 | BD187: 6380873.2 | BE187: 6378033.2 | BF187: 0 | BG187: 0 | BI187: 660847 | BJ187: 10991571 | BK187: 219312 | BL187: 85988 | BM187: 2000 | BN187: 1201762 | BO187: 55000 | BP187: 1632360 | BQ187: 535041 | BR187: 48433 | BS187: 0 | BT187: 594956 | BU187: 16027270 | BW187: 0 | BY187: 0 | BZ187: 16027270 | CB187: 112591 | CC187: 0 | CD187: 5000 | CF187: 265699 | CG187: 50000 | CH187: 551556 | CI187: 0 | CJ187: 0 | CK187: 0 | CL187: 0 | CM187: 28030.13 | CN187: 1012876.13 | CQ187: 1076.302192 | CR187: 1076.302192 | CS187: 1011799.828 | CT187: 17039069.83 | CU187: 9330790 | CV187: 0 | CW187: 9330790 | CX187: 0 | CY187: 0 | CZ187: 0 | DA187: 0
A188: 0185 | B188: 1 | C188: 1 | D188: 2025-10-17 | E188: 1 | F188: 1 | G188: 1 | H188: 2655428.63 | I188: 55916443.1 | J188: 1333263.08 | K188: 0 | L188: 1270310.15 | M188: 4235739.83 | N188: 110844.43 | O188: 2169.5 | P188: 0 | Q188: 0 | R188: 0 | S188: 4320084.08 | T188: 69844282.8 | V188: 0 | X188: 0 | Y188: 69844282.8 | Z188: 503422 | AA188: 0 | AB188: 20980 | AD188: 95886 | AE188: 735551 | AF188: 5507018.542 | AG188: 10092651.29 | AH188: 1404156 | AI188: 0 | AJ188: 0 | AK188: 4902544.465 | AL188: 23262209.3 | AO188: 830483.6 | AP188: 830483.6 | AQ188: 22431725.7 | AR188: 92276008.5 | AS188: 79260184 | AT188: 0 | AU188: 79260184 | AV188: 0 | AW188: 0 | AX188: 0 | AY188: 0 | BA188: 128840.98 | BB188: 75437511 | BC188: 84877660.57 | BD188: 9440149.569 | BE188: 9311308.589 | BF188: 0 | BG188: 0 | BI188: 2920416 | BJ188: 59838444 | BK188: 1486360 | BL188: 0 | BM188: 1298558 | BN188: 3758167 | BO188: 20000 | BP188: 6500 | BQ188: 0 | BR188: 30000 | BS188: 0 | BT188: 5283822 | BU188: 74642267 | BW188: 0 | BY188: 0 | BZ188: 74642267 | CB188: 527515.45 | CC188: 0 | CD188: 21331 | CF188: 100220.4 | CG188: 772665.5 | CH188: 5855799.975 | CI188: 11180316.11 | CJ188: 1739008.8 | CK188: 0 | CL188: 0 | CM188: 5231706.335 | CN188: 25428563.57 | CQ188: 328686.601 | CR188: 328686.601 | CS188: 25099876.97 | CT188: 99742143.97 | CU188: 86368279 | CV188: 0 | CW188: 86368279 | CX188: 0 | CY188: 0 | CZ188: 0 | DA188: 0
A189: 0186 | B189: 1 | C189: 1 | D189: 2025-09-29 | E189: 1 | F189: 1 | G189: 1 | H189: 783654 | I189: 19165477 | J189: 289133 | K189: 0 | L189: 676022 | M189: 2670104 | N189: 28518 | O189: 0 | P189: 0 | Q189: 0 | R189: 0 | S189: 886944 | T189: 24499852 | V189: 54000 | X189: 54000 | Y189: 24445852 | Z189: 139786 | AA189: 125000 | AB189: 4400 | AD189: 0 | AE189: 64152 | AF189: 1250794 | AG189: 3935865 | AH189: 990224 | AI189: 0 | AJ189: 0 | AK189: 581826.28 | AL189: 7092047.28 | AO189: 7115 | AP189: 7115 | AQ189: 7084932.28 | AR189: 31530784.28 | AS189: 23356798 | AT189: 0 | AU189: 23356798 | AV189: 0 | AW189: 0 | AX189: 0 | AY189: 0 | BA189: 104142 | BB189: 22434599 | BC189: 30720268.76 | BD189: 8285669.756 | BE189: 8181527.756 | BF189: 0 | BG189: 54000 | BI189: 790594 | BJ189: 19853668 | BK189: 268461 | BL189: 0 | BM189: 618394 | BN189: 2203596 | BO189: 14730 | BP189: 0 | BQ189: 0 | BR189: 0 | BS189: 0 | BT189: 811541 | BU189: 24560984 | BW189: 55200 | BY189: 55200 | BZ189: 24505784 | CB189: 155120 | CC189: 125000 | CD189: 4510 | CF189: 0 | CG189: 66132 | CH189: 1463330 | CI189: 4580804 | CJ189: 1158752 | CK189: 0 | CL189: 0 | CM189: 666178.59 | CN189: 8219826.59 | CQ189: 25175.03371 | CR189: 25175.03371 | CS189: 8194651.556 | CT189: 32700435.56 | CU189: 24450359 | CV189: 0 | CW189: 24450359 | CX189: 0 | CY189: 0 | CZ189: 0 | DA189: 0
A190: 0187 | B190: 1 | C190: 1 | D190: 2025-10-31 | E190: 1 | F190: 1 | G190: 1 | H190: 666483.07 | I190: 14408862.46 | J190: 197090.42 | K190: 0 | L190: 370457.79 | M190: 1687875.9 | N190: 0 | O190: 0 | P190: 0 | Q190: 35206.27 | R190: 0 | S190: 1296188.45 | T190: 18662164.36 | V190: 0 | X190: 0 | Y190: 18662164.36 | Z190: 486256.49 | AA190: 0 | AB190: 179.1 | AD190: 0 | AE190: 249255.59 | AF190: 894479.65 | AG190: 2605883.24 | AH190: 538992.67 | AI190: 0 | AJ190: 0 | AK190: 209915.55 | AL190: 4984962.29 | AO190: 13774.8 | AP190: 13774.8 | AQ190: 4971187.49 | AR190: 23633351.85 | AS190: 16984392 | AT190: 0 | AU190: 16984392 | AV190: 0 | AW190: 0 | AX190: 0 | AY190: 0 | BA190: 53637.73 | BB190: 16039203 | BC190: 23469496.57 | BD190: 7430293.573 | BE190: 7376655.843 | BF190: 0 | BG190: 0 | BI190: 721260 | BJ190: 15281655.03 | BK190: 193874 | BL190: 0 | BM190: 329068.25 | BN190: 1338521.54 | BO190: 0 | BP190: 197140 | BQ190: 0 | BR190: 46543 | BS190: 0 | BT190: 1813721.31 | BU190: 19921783.13 | BW190: 0 | BY190: 0 | BZ190: 19921783.13 | CB190: 540664.92 | CC190: 0 | CD190: 179.1 | CF190: 0 | CG190: 394241.49 | CH190: 947833.53 | CI190: 2479094.67 | CJ190: 485709.03 | CK190: 0 | CL190: 0 | CM190: 188981.9 | CN190: 5036704.64 | CQ190: 0 | CR190: 0 | CS190: 5036704.64 | CT190: 24958487.77 | CU190: 17495071 | CV190: 0 | CW190: 17495071 | CX190: 0 | CY190: 0 | CZ190: 0 | DA190: 0
A191: 0188 | B191: 0 | C191: 0 | H191: 0 | I191: 0 | J191: 0 | K191: 0 | L191: 0 | M191: 0 | N191: 0 | O191: 0 | P191: 0 | Q191: 0 | R191: 0 | S191: 0 | T191: 0 | V191: 0 | X191: 0 | Y191: 0 | Z191: 0 | AA191: 0 | AB191: 0 | AD191: 0 | AE191: 0 | AF191: 0 | AG191: 0 | AH191: 0 | AI191: 0 | AJ191: 0 | AK191: 0 | AL191: 0 | AO191: 0 | AP191: 0 | AQ191: 0 | AR191: 0 | AS191: 114354 | AT191: 6034.05 | AU191: 120388.05 | AV191: -120388.05 | AW191: -1.05276641 | AX191: 5717.7 | AY191: 0 | BA191: 0 | BB191: 120681 | BC191: 0 | BD191: -120681 | BE191: -120681 | BF191: 0 | BG191: 0 | BI191: 0 | BJ191: 0 | BK191: 0 | BL191: 0 | BM191: 0 | BN191: 0 | BO191: 0 | BP191: 0 | BQ191: 0 | BR191: 0 | BS191: 0 | BT191: 0 | BU191: 0 | BW191: 0 | BY191: 0 | BZ191: 0 | CB191: 0 | CC191: 0 | CD191: 0 | CF191: 0 | CG191: 0 | CH191: 0 | CI191: 0 | CJ191: 0 | CK191: 0 | CL191: 0 | CM191: 0 | CN191: 0 | CQ191: 0 | CR191: 0 | CS191: 0 | CT191: 0 | CU191: 132039 | CV191: 5717.7 | CW191: 137756.7 | CX191: -137756.7 | CY191: 0 | CZ191: 137756.7 | DA191: 0
A192: 0189 | B192: 1 | C192: 1 | D192: 2025-09-24 | E192: 1 | F192: 1 | G192: 1 | H192: 2204692 | I192: 52729025 | J192: 1103961 | K192: 181763 | L192: 1517952 | M192: 4195175 | N192: 48089 | O192: 0 | P192: 0 | Q192: 0 | R192: 0 | S192: 2687632 | T192: 64668289 | V192: 0 | X192: 0 | Y192: 64668289 | Z192: 384261 | AA192: 0 | AB192: 0 | AD192: 0 | AE192: 1781431 | AF192: 1546188 | AG192: 10064582 | AH192: 1415988.8 | AI192: 0 | AJ192: 0 | AK192: 419172.98 | AL192: 15611623.78 | AO192: 118926 | AP192: 118926 | AQ192: 15492697.78 | AR192: 80160986.78 | AS192: 56878295 | AT192: 0 | AU192: 56878295 | AV192: 0 | AW192: 0 | AX192: 0 | AY192: 0 | BA192: 0 | BB192: 53957476 | BC192: 72455907.91 | BD192: 18498431.91 | BE192: 18498431.91 | BF192: 0 | BG192: 0 | BI192: 2275346 | BJ192: 55265279 | BK192: 1072886 | BL192: 209340 | BM192: 1277649 | BN192: 4416765 | BO192: 80000 | BP192: 0 | BQ192: 0 | BR192: 0 | BS192: 0 | BT192: 4853150 | BU192: 69450415 | BW192: 0 | BY192: 0 | BZ192: 69450415 | CB192: 283554 | CC192: 15000 | CD192: 0 | CF192: 0 | CG192: 1785223 | CH192: 1592574 | CI192: 11815190 | CJ192: 1789657.2 | CK192: 0 | CL192: 0 | CM192: 474779.74 | CN192: 17755977.94 | CQ192: 53301.99097 | CR192: 53301.99097 | CS192: 17702675.95 | CT192: 87153090.95 | CU192: 59591134 | CV192: 0 | CW192: 59591134 | CX192: 0 | CY192: 0 | CZ192: 0 | DA192: 0
A193: 0190 | B193: 0 | C193: 0 | D193: 2025-11-05 | F193: 1 | G193: 1 | H193: 0 | I193: 0 | J193: 0 | K193: 0 | L193: 0 | M193: 0 | N193: 0 | O193: 0 | P193: 0 | Q193: 0 | R193: 0 | S193: 0 | T193: 0 | V193: 0 | X193: 0 | Y193: 0 | Z193: 16765 | AA193: 23528 | AB193: 0 | AD193: 0 | AE193: 114 | AF193: 0 | AG193: 0 | AH193: 0 | AI193: 1080 | AJ193: 0 | AK193: 255729.54 | AL193: 297216.54 | AO193: 3384 | AP193: 3384 | AQ193: 293832.54 | AR193: 293832.54 | AS193: 239379 | AT193: 0 | AU193: 239379 | AV193: 0 | AW193: 0 | AX193: 0 | AY193: 0 | BA193: 0 | BB193: 226109.6 | BC193: 236080.278 | BD193: 9970.678 | BE193: 9970.678 | BF193: 0 | BG193: 0 | BI193: 0 | BJ193: 0 | BK193: 0 | BL193: 0 | BM193: 0 | BN193: 0 | BO193: 0 | BP193: 0 | BQ193: 0 | BR193: 0 | BS193: 0 | BT193: 0 | BU193: 0 | BW193: 0 | BY193: 0 | BZ193: 0 | CB193: 21955 | CC193: 23922 | CD193: 0 | CF193: 0 | CG193: 115 | CH193: 0 | CI193: 3632 | CJ193: 0 | CK193: 1090 | CL193: 0 | CM193: 238237.68 | CN193: 288951.68 | CQ193: 0 | CR193: 0 | CS193: 288951.68 | CT193: 288951.68 | CU193: 234622 | CV193: 0 | CW193: 234622 | CX193: 0 | CY193: 0 | CZ193: 0 | DA193: 0
A194: 0191 | B194: 1 | C194: 1 | D194: 2025-10-16 | E194: 1 | F194: 1 | G194: 1 | H194: 406203.45 | I194: 8352932.82 | J194: 211270.1 | K194: 0 | L194: 148928.34 | M194: 1092022.97 | N194: 42387.3 | O194: 0 | P194: 0 | Q194: 0 | R194: 0 | S194: 408599.8 | T194: 10662344.78 | V194: 0 | X194: 0 | Y194: 10662344.78 | Z194: 130799 | AA194: 0 | AB194: 0 | AD194: 0 | AE194: 100500 | AF194: 981193.56 | AG194: 1599783.1 | AH194: 636377.47 | AI194: 0 | AJ194: 0 | AK194: 881056.6 | AL194: 4329709.73 | AO194: 28048.8 | AP194: 28048.8 | AQ194: 4301660.93 | AR194: 14964005.71 | AS194: 14296277 | AT194: 0 | AU194: 14296277 | AV194: 0 | AW194: 0 | AX194: 0 | AY194: 0 | BA194: 0 | BB194: 14062312 | BC194: 15235627.65 | BD194: 1173315.647 | BE194: 1173315.647 | BF194: 0 | BG194: 0 | BI194: 419933 | BJ194: 8763499 | BK194: 236690 | BL194: 0 | BM194: 159224 | BN194: 1152730 | BO194: 45000 | BP194: 0 | BQ194: 0 | BR194: 0 | BS194: 0 | BT194: 367293 | BU194: 11144369 | BW194: 0 | BY194: 0 | BZ194: 11144369 | CB194: 178065.34 | CC194: 0 | CD194: 0 | CF194: 0 | CG194: 192750 | CH194: 1029052 | CI194: 1703800 | CJ194: 637000 | CK194: 0 | CL194: 0 | CM194: 870737.97 | CN194: 4611405.31 | CQ194: 0 | CR194: 0 | CS194: 4611405.31 | CT194: 15755774.31 | CU194: 14675260 | CV194: 0 | CW194: 14675260 | CX194: 0 | CY194: 0 | CZ194: 0 | DA194: 0
A195: 0192 | B195: 0 | C195: 0 | D195: 2025-10-20 | H195: 0 | I195: 0 | J195: 0 | K195: 0 | L195: 0 | M195: 0 | N195: 0 | O195: 0 | P195: 0 | Q195: 0 | R195: 0 | S195: 0 | T195: 0 | V195: 0 | X195: 0 | Y195: 0 | Z195: 0 | AA195: 0 | AB195: 0 | AD195: 0 | AE195: 0 | AF195: 0 | AG195: 0 | AH195: 0 | AI195: 0 | AJ195: 0 | AK195: 21551 | AL195: 21551 | AO195: 0 | AP195: 0 | AQ195: 21551 | AR195: 21551 | AS195: 16860 | AT195: 0 | AU195: 16860 | AV195: 0 | AW195: 0 | AX195: 0 | AY195: 0 | BA195: 0 | BB195: 16491 | BC195: 20076 | BD195: 3585 | BE195: 3585 | BF195: 0 | BG195: 0 | BI195: 0 | BJ195: 0 | BK195: 0 | BL195: 0 | BM195: 0 | BN195: 0 | BO195: 0 | BP195: 0 | BQ195: 0 | BR195: 0 | BS195: 0 | BT195: 0 | BU195: 0 | BW195: 0 | BY195: 0 | BZ195: 0 | CB195: 0 | CC195: 0 | CD195: 0 | CF195: 0 | CG195: 0 | CH195: 0 | CI195: 0 | CJ195: 0 | CK195: 0 | CL195: 0 | CM195: 23000 | CN195: 23000 | CQ195: 0 | CR195: 0 | CS195: 23000 | CT195: 23000 | CU195: 17359 | CV195: 0 | CW195: 17359 | CX195: 0 | CY195: 0 | CZ195: 0 | DA195: 0
A196: 0193 | B196: 0 | C196: 0 | H196: 0 | I196: 0 | J196: 0 | K196: 0 | L196: 0 | M196: 0 | N196: 0 | O196: 0 | P196: 0 | Q196: 0 | R196: 0 | S196: 0 | T196: 0 | V196: 0 | X196: 0 | Y196: 0 | Z196: 0 | AA196: 0 | AB196: 0 | AD196: 0 | AE196: 0 | AF196: 0 | AG196: 0 | AH196: 0 | AI196: 0 | AJ196: 0 | AK196: 0 | AL196: 0 | AO196: 0 | AP196: 0 | AQ196: 0 | AR196: 0 | AS196: 0 | AT196: 0 | AU196: 0 | AV196: 0 | AW196: 0 | AX196: 0 | AY196: 0 | BA196: 0 | BB196: 0 | BC196: 0 | BD196: 0 | BE196: 0 | BF196: 0 | BG196: 0 | BI196: 0 | BJ196: 0 | BK196: 0 | BL196: 0 | BM196: 0 | BN196: 0 | BO196: 0 | BP196: 0 | BQ196: 0 | BR196: 0 | BS196: 0 | BT196: 0 | BU196: 0 | BW196: 0 | BY196: 0 | BZ196: 0 | CB196: 0 | CC196: 0 | CD196: 0 | CF196: 0 | CG196: 0 | CH196: 0 | CI196: 0 | CJ196: 0 | CK196: 0 | CL196: 0 | CM196: 0 | CN196: 0 | CQ196: 0 | CR196: 0 | CS196: 0 | CT196: 0 | CU196: 0 | CV196: 0 | CW196: 0 | CX196: 0 | CY196: 0 | CZ196: 0 | DA196: 0
A197: 0194 | B197: 0 | C197: 0 | H197: 0 | I197: 0 | J197: 0 | K197: 0 | L197: 0 | M197: 0 | N197: 0 | O197: 0 | P197: 0 | Q197: 0 | R197: 0 | S197: 0 | T197: 0 | V197: 0 | X197: 0 | Y197: 0 | Z197: 0 | AA197: 0 | AB197: 0 | AD197: 0 | AE197: 0 | AF197: 0 | AG197: 0 | AH197: 0 | AI197: 0 | AJ197: 0 | AK197: 0 | AL197: 0 | AO197: 0 | AP197: 0 | AQ197: 0 | AR197: 0 | AS197: 86512 | AT197: 0 | AU197: 86512 | AV197: -86512 | AW197: -1 | AX197: 4325.6 | AY197: 0 | BA197: 0 | BB197: 61214.6 | BC197: 92521.439 | BD197: 31306.839 | BE197: 31306.839 | BF197: 0 | BG197: 0 | BI197: 0 | BJ197: 0 | BK197: 0 | BL197: 0 | BM197: 0 | BN197: 0 | BO197: 0 | BP197: 0 | BQ197: 0 | BR197: 0 | BS197: 0 | BT197: 0 | BU197: 0 | BW197: 0 | BY197: 0 | BZ197: 0 | CB197: 0 | CC197: 0 | CD197: 0 | CF197: 0 | CG197: 0 | CH197: 0 | CI197: 0 | CJ197: 0 | CK197: 0 | CL197: 0 | CM197: 6388.16 | CN197: 6388.16 | CQ197: 0 | CR197: 0 | CS197: 6388.16 | CT197: 6388.16 | CU197: 121480 | CV197: 4325.6 | CW197: 125805.6 | CX197: -119417.44 | CY197: 0 | CZ197: 119417.44 | DA197: 0
A198: 0195 | B198: 0 | C198: 0 | D198: 2025-11-06 | H198: 0 | I198: 0 | J198: 0 | K198: 0 | L198: 0 | M198: 0 | N198: 0 | O198: 0 | P198: 0 | Q198: 0 | R198: 0 | S198: 0 | T198: 0 | V198: 0 | X198: 0 | Y198: 0 | Z198: 0 | AA198: 0 | AB198: 0 | AD198: 0 | AE198: 0 | AF198: 0 | AG198: 0 | AH198: 0 | AI198: 0 | AJ198: 0 | AK198: 103286 | AL198: 103286 | AO198: 0 | AP198: 0 | AQ198: 103286 | AR198: 103286 | AS198: 72922 | AT198: 0 | AU198: 72922 | AV198: 0 | AW198: 0 | AX198: 0 | AY198: 0 | BA198: 0 | BB198: 78958 | BC198: 172610.19 | BD198: 93652.19 | BE198: 93652.19 | BF198: 0 | BG198: 0 | BI198: 0 | BJ198: 0 | BK198: 0 | BL198: 0 | BM198: 0 | BN198: 0 | BO198: 0 | BP198: 0 | BQ198: 0 | BR198: 0 | BS198: 0 | BT198: 0 | BU198: 0 | BW198: 0 | BY198: 0 | BZ198: 0 | CB198: 0 | CC198: 0 | CD198: 0 | CF198: 0 | CG198: 0 | CH198: 0 | CI198: 0 | CJ198: 0 | CK198: 0 | CL198: 0 | CM198: 156650 | CN198: 156650 | CQ198: 0 | CR198: 0 | CS198: 156650 | CT198: 156650 | CU198: 55489 | CV198: 0 | CW198: 55489 | CX198: 0 | CY198: 0 | CZ198: 0 | DA198: 0
A199: 0196 | B199: 1 | C199: 1 | D199: 2025-10-08 | E199: 1 | F199: 1 | G199: 1 | H199: 156964 | I199: 1375560 | J199: 84322 | K199: 0 | L199: 7003 | M199: 275969 | N199: 0 | O199: 0 | P199: 0 | Q199: 6459 | R199: 0 | S199: 2214968 | T199: 4121245 | V199: 3000 | X199: 3000 | Y199: 4118245 | Z199: 287066 | AA199: 0 | AB199: 0 | AD199: 0 | AE199: 133412 | AF199: 149418 | AG199: 294517 | AH199: 79195.2 | AI199: 0 | AJ199: 0 | AK199: 314208.18 | AL199: 1257816.38 | AO199: 125912.8 | AP199: 125912.8 | AQ199: 1131903.58 | AR199: 5250148.58 | AS199: 2982399 | AT199: 0 | AU199: 2982399 | AV199: 0 | AW199: 0 | AX199: 0 | AY199: 0 | BA199: 0 | BB199: 2998777 | BC199: 4920992.8 | BD199: 1922215.8 | BE199: 1922215.8 | BF199: 0 | BG199: 3000 | BI199: 141797 | BJ199: 1443964 | BK199: 68059 | BL199: 0 | BM199: 4946 | BN199: 250603 | BO199: 0 | BP199: 0 | BQ199: 0 | BR199: 6000 | BS199: 0 | BT199: 2398161 | BU199: 4313530 | BW199: 0 | BY199: 0 | BZ199: 4313530 | CB199: 295546 | CC199: 0 | CD199: 0 | CF199: 0 | CG199: 126813 | CH199: 150684 | CI199: 338792 | CJ199: 102417.3 | CK199: 0 | CL199: 0 | CM199: 365510 | CN199: 1379762.3 | CQ199: 45354.29569 | CR199: 45354.29569 | CS199: 1334408.004 | CT199: 5647938.004 | CU199: 3229140 | CV199: 0 | CW199: 3229140 | CX199: 0 | CY199: 0 | CZ199: 0 | DA199: 0
A200: 0197 | B200: 1 | C200: 1 | D200: 2025-09-29 | E200: 1 | F200: 1 | G200: 1 | H200: 1107623 | I200: 29626449 | J200: 416757 | K200: 2599 | L200: 1096323 | M200: 4056795 | N200: 45000 | O200: 493409 | P200: 0 | Q200: 136989 | R200: 0 | S200: 1207330 | T200: 38189274 | V200: 0 | X200: 0 | Y200: 38189274 | Z200: 251324 | AA200: 0 | AB200: 0 | AD200: 0 | AE200: 0 | AF200: 1706614 | AG200: 7488089 | AH200: 1537715.2 | AI200: 0 | AJ200: 0 | AK200: 501876.53 | AL200: 11485618.73 | AO200: 17173.2 | AP200: 17173.2 | AQ200: 11468445.53 | AR200: 49657719.53 | AS200: 25650204 | AT200: 0 | AU200: 25650204 | AV200: 0 | AW200: 0 | AX200: 0 | AY200: 0 | BA200: 0 | BB200: 25201462 | BC200: 45306650.6 | BD200: 20105188.6 | BE200: 20105188.6 | BF200: 0 | BG200: 0 | BI200: 2605536 | BJ200: 31314697 | BK200: 468364 | BL200: 0 | BM200: 1202051 | BN200: 4878621 | BO200: 47500 | BP200: 524407 | BQ200: 0 | BR200: 135000 | BS200: 0 | BT200: 1000000 | BU200: 42176176 | BW200: 0 | BY200: 0 | BZ200: 42176176 | CB200: 265667 | CC200: 0 | CD200: 0 | CF200: 0 | CG200: 0 | CH200: 1903385 | CI200: 7522930 | CJ200: 1695708.9 | CK200: 0 | CL200: 0 | CM200: 51586 | CN200: 11439276.9 | CQ200: 18796.63198 | CR200: 18796.63198 | CS200: 11420480.27 | CT200: 53596656.27 | CU200: 27205001 | CV200: 0 | CW200: 27205001 | CX200: 0 | CY200: 0 | CZ200: 0 | DA200: 0
... 247 more rows

Sheet Report
D1: Massachusetts Department of Elementary and Secondary Education | G1: April 2026
D2: Office of School Finance
D3: Chapter 70 Net School Spending Compliance, FY25
A4: lea lookup------------> | B4: =VLOOKUP(D4, lea, 2, FALSE) -> 0001 | D4: Abington
C5: # | D5: Function | E5: School Committee | F5: City/Town | G5: Total
A6: 8 | B6: 26 | C6: 1 | D6: Administration (1000) | E6: =VLOOKUP($B$4, nsscalc,A6, FALSE) -> 979485.26 | F6: =VLOOKUP($B$4, nsscalc,B6, FALSE) -> 116081 | G6: =SUM(E6:F6) -> 1095566.26
A7: 9 | B7: 27 | C7: 2 | D7: Instruction (2000) | E7: 21780437.01 | F7: 63232 | G7: =SUM(E7:F7) -> 21843669.01
A8: 10 | B8: 28 | C8: 3 | D8: Attendance-Health (3100, 3200) | E8: 468209.4 | F8: 0 | G8: 468209.4
A9: 11 | B9: 29 | C9: 4 | D9: Food Services (3400) | E9: 898 | F9: 0 | G9: 898
A10: 12 | B10: 30 | C10: 5 | D10: Athletics/Student Activities/Security (3500, 3600) | E10: 566511.84 | F10: 0 | G10: 566511.84
A11: 13 | B11: 31 | C11: 6 | D11: Maintenance (4000) | E11: 2435042.05 | F11: 65542 | G11: 2500584.05
A12: 14 | B12: 32 | C12: 7 | D12: Employer Retirement Contributions (5100) | E12: 50379.47 | F12: 1334506 | G12: 1384885.47
A13: 15 | B13: 33 | C13: 8 | D13: Insurance (5200) | E13: 0 | F13: 4714904 | G13: 4714904
A14: 16 | B14: 34 | C14: 9 | D14: Retired Employee Insurance (5250) | E14: 0 | F14: 996586 | G14: 996586
A15: 17 | B15: 35 | C15: 10 | D15: Rentals (5300) | E15: 0 | F15: 0 | G15: 0
A16: 18 | B16: 36 | C16: 11 | D16: Short Term Interest (5400) | E16: 0 | F16: 0 | G16: 0
A17: 19 | B17: 37 | C17: 12 | D17: Tuition (9000) | E17: 2121747.58 | F17: 1081140.81 | G17: 3202888.39
A18: 20 | B18: 38 | C18: 13 | D18: Total School Spending (lines 1 through 12) | E18: 28402710.61 | F18: 8371991.81 | G18: 36774702.42
A19: 21 | B19: 39 | C19: 14 | D19: FY25 School Revenues
A20: 22 | B20: 40 | D20: 14a) FY25 School Revenues * | E20: =VLOOKUP($B$4, nsscalc,A20, FALSE) -> 0 | F20: 0 | G20: 0
A21: 23 | B21: 41 | D21: 14b) FY25 Charter Reimbursement | E21: 0 | F21: 151625.8 | G21: 151625.8
A22: 24 | B22: 42 | D22: 14c) Subtotal, School Revenues (14a + 14b) | E22: 0 | F22: 151625.8 | G22: 151625.8
A23: 25 | B23: 43 | C23: 15 | D23: FY25 Net School Spending (13 - 14) | E23: 28402710.61 | F23: 8220366.01 | G23: 36623076.62
B24: 45 | C24: 16 | D24: FY25 Chapter 70 Required Net School Spending | G24: =VLOOKUP($B$4, nsscalc, B24, FALSE) -> 32236385
B25: 46 | C25: 17 | D25: Carryover from FY24 | G25: 0
B26: 47 | C26: 18 | D26: Total FY25 Net School Spending Requirement (16 + 17) | G26: 32236385
B27: 48 | C27: 19 | D27: Shortfall in Net School Spending (15 - 18) | G27: 0
B28: 49 | C28: 20 | D28: Carryover/Penalty Calculation, Percent Unexpended (19 / 16) | G28: 0
B29: 50 | C29: 21 | D29: FY25 Carry-Over into FY26 (Line 19 or 5% of line 16 ) | G29: 0
B30: 51 | C30: 22 | D30: Penalty (19 - 21) | G30: 0
D31: * Budgeted amounts as reported on FY24 End of Year Pupil and Financial Report, Schedule 19
D33: Massachusetts Department of Elementary and Secondary Education
D34: Office of School Finance
D35: Chapter 70 Net School Spending Compliance, Budgeted FY26
D36: =D4 -> Abington
C37: # | D37: Function | E37: School Committee | F37: City/Town | G37: Total
A38: 61 | B38: 80 | C38: 1 | D38: Administration (1000) | E38: =VLOOKUP($B$4, nsscalc,A38, FALSE) -> 1490530 | F38: =VLOOKUP($B$4, nsscalc,B38, FALSE) -> 123710 | G38: =SUM(E38:F38) -> 1614240
A39: 62 | B39: 81 | C39: 2 | D39: Instruction (2000) | E39: 22123930.37 | F39: 65790 | G39: =SUM(E39:F39) -> 22189720.37
A40: 63 | B40: 82 | C40: 3 | D40: Attendance-Health (3100, 3200) | E40: 443225 | F40: 0 | G40: 443225
A41: 64 | B41: 83 | C41: 4 | D41: Food Services (3400) | E41: 0 | F41: 0 | G41: 0
A42: 65 | B42: 84 | C42: 5 | D42: Athletics/Student Activities/Security (3500, 3600) | E42: 288861.25 | F42: 0 | G42: 288861.25
A43: 66 | B43: 85 | C43: 6 | D43: Maintenance (4000) | E43: 2602038.04 | F43: 68946 | G43: 2670984.04
A44: 67 | B44: 86 | C44: 7 | D44: Employer Retirement Contributions (5100) | E44: 50000 | F44: 1431923 | G44: 1481923
A45: 68 | B45: 87 | C45: 8 | D45: Insurance (5200) | E45: 0 | F45: 5180651 | G45: 5180651
A46: 69 | B46: 88 | C46: 9 | D46: Retired Employee Insurance (5250) | E46: 0 | F46: 1100063 | G46: 1100063
A47: 70 | B47: 89 | C47: 10 | D47: Rentals (5300) | E47: 0 | F47: 0 | G47: 0
A48: 71 | B48: 90 | C48: 11 | D48: Short Term Interest (5400) | E48: 0 | F48: 0 | G48: 0
A49: 72 | B49: 91 | C49: 12 | D49: Tuition (9000) | E49: 2823956 | F49: 1304229.57 | G49: 4128185.57
A50: 73 | B50: 92 | C50: 13 | D50: FY26 Budgeted School Spending (lines 1 through 12) | E50: 29822540.66 | F50: 9275312.57 | G50: 39097853.23
A51: 74 | B51: 93 | C51: 14 | D51: FY26 Budgeted School Revenues
A52: 75 | B52: 94 | D52: 14a) FY26 Budgeted School Revenues | E52: =VLOOKUP($B$4, nsscalc,A52, FALSE) -> 0 | F52: 0 | G52: 0
A53: 76 | B53: 95 | D53: 14b) FY26 Charter Reimb (local districts) | E53: 0 | F53: 208810 | G53: 208810
A54: 77 | B54: 96 | D54: 14c) Subtotal, NSS Revenues (36a + 36b) | E54: 0 | F54: 208810 | G54: 208810
A55: 78 | B55: 97 | C55: 15 | D55: FY26 Net School Spending (13 - 14) | E55: 29822540.66 | F55: 9066502.57 | G55: =SUM(E55:F55) -> 38889043.23
B56: 99 | C56: 16 | D56: FY26 Chapter 70 Required Net School Spending | G56: =VLOOKUP($B$4, nsscalc, B56, FALSE) -> 33612890
B57: 100 | C57: 17 | D57: Carryover from FY25 | G57: =VLOOKUP($B$4, nsscalc, B57, FALSE) -> 0
B58: 101 | C58: 18 | D58: Total FY26 Requirement (16 + 17) | G58: =VLOOKUP($B$4, nsscalc, B58, FALSE) -> 33612890
B59: 102 | C59: 19 | D59: Shortfall in Budgeted FY26 Net School Spending (15 - 18) | G59: =VLOOKUP($B$4, nsscalc, B59, FALSE) -> 0
B60: 103 | C60: 20 | D60: Carryover/Penalty Calculation, Percent Unexpended (19 / 16) | G60: =VLOOKUP($B$4, nsscalc, B60, FALSE) -> 0
C61: End of Worsheet

Sheet funccodes (hidden)
A1: FuncCode | B1: FuncName | C1: FuncSubttl
A2: 1000 | B2: District Administration
A3: 1110 | B3: School Committee | C3: ADMN
A4: 1210 | B4: Superintendent | C4: ADMN
A5: 1220 | B5: Assistant Superintendents | C5: ADMN
A6: 1230 | B6: Other District-Wide Administration | C6: ADMN
A7: 1400 | B7: Administrative Depts (Finance, Personnel)
A8: 1410 | B8: Business and Finance | C8: ADMN
A9: 1420 | B9: Human Resources and Benefits | C9: ADMN
A10: 1430 | B10: Legal Service for School Committee | C10: ADMN
A11: 1435 | B11: Legal Settlements | C11: ADMN
A12: 1450 | B12: District-wide Information Mgmt & Tech | C12: ADMN
A13: 2000 | B13: Instruction
A14: 2100 | B14: Districtwide Academic Leadership
A15: 2110 | B15: Curriculum Directors (Supervisory) | C15: LDRS
A16: 2120 | B16: Department Heads (Non-Supervisory) | C16: LDRS
A17: 2200 | B17: School Building Leadership
A18: 2210 | B18: School Leadership | C18: LDRS
A19: 2220 | B19: Curriculum/Dept Leaders (School Level) | C19: LDRS
A20: 2250 | B20: Admin. Technology (School Level) | C20: LDRS
A21: 2300 | B21: Instruction - Teaching Services
A22: 2305 | B22: Teachers, Classroom | C22: TCHR
A23: 2310 | B23: Teachers, Specialists | C23: TCHR
A24: 2315 | B24: Instructional Coordinators (Non-Supervisory) | C24: LDRS
A25: 2320 | B25: Medical/ Therapeutic Services | C25: TSER
A26: 2325 | B26: Substitute Teachers | C26: TSER
A27: 2330 | B27: Paraprofessionals | C27: TSER
A28: 2340 | B28: Librarians/Media Center Directors | C28: TSER
A29: 2350 | B29: Professional Development
A30: 2351 | B30: Professional Development Leadership | C30: PDEV
A31: 2353 | B31: Instructional Staff-Professional Days | C31: PDEV
A32: 2355 | B32: Substitutes for Prof. Development | C32: PDEV
A33: 2357 | B33: Prof. Dev. Stipends, Providers, Expenses | C33: PDEV
A34: 2400 | B34: Instructional Materials and Equipment
A35: 2410 | B35: Textbooks, Related Software/Media/Matls | C35: MATL
A36: 2415 | B36: Other Instructional Matls (Libraries) | C36: MATL
A37: 2420 | B37: Instructional Equipment | C37: MATL
A38: 2430 | B38: General Classroom Supplies | C38: MATL
A39: 2440 | B39: Other Instructional Services | C39: MATL
A40: 2450 | B40: Instructional Technology
A41: 2451 | B41: Classroom Instructional Technology | C41: MATL
A42: 2453 | B42: Other Instructional Hardware (Libraries) | C42: MATL
A43: 2455 | B43: Instructional Software | C43: MATL
A44: 2700 | B44: Guidance, Counseling and Testing
A45: 2710 | B45: Guidance incl Adjustment Counselors | C45: GUID
A46: 2720 | B46: Testing and Assessment | C46: GUID
A47: 2800 | B47: Psychological Services | C47: GUID
A48: 3000 | B48: Other School Services
A49: 3100 | B49: Attendance and Parent Liaison Services | C49: SERV
A50: 3132 | B50: Attendance/Health (Sched 19, NSS)
A51: 3200 | B51: Medical/Health Services | C51: SERV
A52: 3300 | B52: Transportation Services | C52: SERV
A53: 3399 | B53: Public Transportation Assessment (NIC Expenditures)
A54: 3400 | B54: Food Services | C54: SERV
A55: 3510 | B55: Athletics | C55: SERV
A56: 3512 | B56: Athletics/Activities/Security (Sched 19, NSS)
A57: 3520 | B57: Other Student Activities | C57: SERV
A58: 3600 | B58: School Security | C58: SERV
A59: 4000 | B59: Operation and Plant Maintenance
A60: 4110 | B60: Custodial Services | C60: OPMN
A61: 4120 | B61: Heating of Buildings | C61: OPMN
A62: 4130 | B62: Utility Services | C62: OPMN
A63: 4200 | B63: Operation and Maintenance
A64: 4210 | B64: Maintenance of Grounds | C64: OPMN
A65: 4220 | B65: Maintenance of Buildings | C65: OPMN
A66: 4225 | B66: Building Security System | C66: OPMN
A67: 4230 | B67: Maintenance of Equipment | C67: OPMN
A68: 4300 | B68: Extraordinary Maintenance | C68: OPMN
A69: 4400 | B69: Networking and Telecommunications | C69: OPMN
A70: 4450 | B70: Technology Maintenance | C70: OPMN
A71: 5000 | B71: Fixed Charges
A72: 5100 | B72: Employer Retirement Contributions | C72: BENE
A73: 5150 | B73: Employee Separation Costs | C73: BENE
A74: 5200 | B74: Insurance for Active Employees | C74: BENE
A75: 5250 | B75: Insurance for Retired School Employees | C75: BENE
A76: 5260 | B76: Other Non-Employee Insurance | C76: BENE
A77: 5300 | B77: Rental Lease of Equipment | C77: BENE
A78: 5350 | B78: Rental Lease of Buildings | C78: BENE
A79: 5400 | B79: Short Term Interest RANs | C79: BENE
A80: 5450 | B80: Short Term Interest BANs | C80: DEBT
A81: 5500 | B81: Other Fixed Charges | C81: BENE
A82: 5550 | B82: School Crossing Guards | C82: BENE
A83: 5990 | B83: Indirect Cost Transfers | C83: INDR
A84: 6000 | B84: Community Services
A85: 6200 | B85: Civic Activities | C85: COMM
A86: 6300 | B86: Recreation Services | C86: COMM
A87: 6800 | B87: Health Services to Non-Public Schools | C87: COMM
A88: 6900 | B88: Transportation to Non-Public Schools | C88: COMM
A89: 6910 | B89: Non-public transportation in-district | C89: COMM
A90: 6920 | B90: Non-public transportation out-of-district | C90: COMM
A91: 7000 | B91: Fixed Assets
A92: 7100 | B92: Purchase of Land and Buildings (7100, 7200) | C92: CAPT
A93: 7200 | B93: Purchase of Land and Buildings (7100, 7200) | C93: CAPT
A94: 7300 | B94: Equipment (7300, 7400) | C94: CAPT
A95: 7350 | B95: Capital Technology | C95: CAPT
A96: 7400 | B96: Equipment (7300, 7400) | C96: CAPT
A97: 7500 | B97: Motor Vehicles (7500, 7600) | C97: CAPT
A98: 7600 | B98: Motor Vehicles (7500, 7600) | C98: CAPT
A99: 8000 | B99: Long Term Debt
A100: 8100 | B100: Debt Retirement/School Construction | C100: DEBT
A101: 8200 | B101: Debt Service/School Construction | C101: DEBT
A102: 8400 | B102: Debt Service/Educ and Other (8400, 8600) | C102: DEBT
A103: 8600 | B103: Debt Service/Educ and Other (8400, 8600) | C103: DEBT
A104: 9000 | B104: Payments to Other Districts
A105: 9100 | B105: Tuition to Mass. Schools | C105: TUIT
A106: 9110 | B106: Tuition for School Choice | C106: TUIT
A107: 9120 | B107: Tuition to Commonwealth Charter Schools | C107: TUIT
A108: 9125 | B108: Tuition to Horace Mann Charter Schools | C108: TUIT
A109: 9200 | B109: Tuition to Out-of-State Schools | C109: TUIT
A110: 9300 | B110: Tuition to Non-Public Schools | C110: TUIT
A111: 9400 | B111: Tuition to Collaboratives | C111: TUIT
A112: 9500 | B112: Regional School Assessment | C112: REGL
A113: 9600 | B113: Out-of-district Transportation | C113: ODTR
A114: 9810 | B114: NSS Required Net School Spending (EOY)
A115: 9820 | B115: NSS Carryover (EOY)
A116: ADMN | B116: Administration
A117: BENE | B117: Insurance, Retirement Programs and Other
A118: CAPT | B118: Fixed Assets (Buildings, Equipment)
A119: COMM | B119: Community Activities
A120: DEBT | B120: Debt and BANs
A121: GUID | B121: Guidance, Counseling and Testing
A122: IIII | B122: In-district Expenditure
A123: INDR | B123: Indirect Cost Transfers
A124: LDRS | B124: Instructional Leadership
A125: MATL | B125: Instructional Materials, Equipment and Technology
A126: ODTR | B126: Out-of-district Transportation
A127: OODD | B127: Out-of-district Expenditure
A128: OPMN | B128: Operations and Maintenance
A129: OTHR | B129: Total Other Costs
A130: PDEV | B130: Professional Development
A131: REGL | B131: Regional Assessments
A132: SERV | B132: Pupil Services
A133: SPGR | B133: SPED From Grants, Revolving
A134: TCHR | B134: Teachers
A135: TSER | B135: Other Teaching Services
A136: TTPP | B136: Expenditure (Admin, Instruction, Operations)
A137: TTTT | B137: Grand Total Expenditures
A138: TUIT | B138: Payments to Out-of-District Schools

Sheet lea (hidden)
A1: leaname | B1: lea | E1: Sorted by LEA
A2: Abington | B2: 0001 | E2: 0001 | F2: Abington
A3: Acton | B3: 0002 | E3: 0002 | F3: Acton
A4: Acton Boxborough | B4: 0600 | E4: 0003 | F4: Acushnet
A5: Acushnet | B5: 0003 | E5: 0004 | F5: Adams
A6: Adams | B6: 0004 | E6: 0005 | F6: Agawam
A7: Agawam | B7: 0005 | E7: 0006 | F7: Alford
A8: Alford | B8: 0006 | E8: 0007 | F8: Amesbury
A9: Amesbury | B9: 0007 | E9: 0008 | F9: Amherst
A10: Amherst | B10: 0008 | E10: 0009 | F10: Andover
A11: Amherst Pelham | B11: 0605 | E11: 0010 | F11: Arlington
A12: Andover | B12: 0009 | E12: 0011 | F12: Ashburnham
A13: Arlington | B13: 0010 | E13: 0012 | F13: Ashby
A14: Ashburnham | B14: 0011 | E14: 0013 | F14: Ashfield
A15: Ashburnham Westminster | B15: 0610 | E15: 0014 | F15: Ashland
A16: Ashby | B16: 0012 | E16: 0015 | F16: Athol
A17: Ashfield | B17: 0013 | E17: 0016 | F17: Attleboro
A18: Ashland | B18: 0014 | E18: 0017 | F18: Auburn
A19: Assabet Valley | B19: 0801 | E19: 0018 | F19: Avon
A20: Athol | B20: 0015 | E20: 0019 | F20: Ayer
A21: Athol Royalston | B21: 0615 | E21: 0020 | F21: Barnstable
A22: Attleboro | B22: 0016 | E22: 0021 | F22: Barre
A23: Auburn | B23: 0017 | E23: 0022 | F23: Becket
A24: Avon | B24: 0018 | E24: 0023 | F24: Bedford
A25: Ayer | B25: 0019 | E25: 0024 | F25: Belchertown
A26: Ayer Shirley | B26: 0616 | E26: 0025 | F26: Bellingham
A27: Barnstable | B27: 0020 | E27: 0026 | F27: Belmont
A28: Barre | B28: 0021 | E28: 0027 | F28: Berkley
A29: Becket | B29: 0022 | E29: 0028 | F29: Berlin
A30: Bedford | B30: 0023 | E30: 0029 | F30: Bernardston
A31: Belchertown | B31: 0024 | E31: 0030 | F31: Beverly
A32: Bellingham | B32: 0025 | E32: 0031 | F32: Billerica
A33: Belmont | B33: 0026 | E33: 0032 | F33: Blackstone
A34: Berkley | B34: 0027 | E34: 0033 | F34: Blandford
A35: Berkshire Hills | B35: 0618 | E35: 0034 | F35: Bolton
A36: Berlin | B36: 0028 | E36: 0035 | F36: Boston
A37: Berlin Boylston | B37: 0620 | E37: 0036 | F37: Bourne
A38: Bernardston | B38: 0029 | E38: 0037 | F38: Boxborough
A39: Beverly | B39: 0030 | E39: 0038 | F39: Boxford
A40: Billerica | B40: 0031 | E40: 0039 | F40: Boylston
A41: Blackstone | B41: 0032 | E41: 0040 | F41: Braintree
A42: Blackstone Millville | B42: 0622 | E42: 0041 | F42: Brewster
A43: Blackstone Valley | B43: 0805 | E43: 0042 | F43: Bridgewater
A44: Blandford | B44: 0033 | E44: 0043 | F44: Brimfield
A45: Blue Hills | B45: 0806 | E45: 0044 | F45: Brockton
A46: Bolton | B46: 0034 | E46: 0045 | F46: Brookfield
A47: Boston | B47: 0035 | E47: 0046 | F47: Brookline
A48: Bourne | B48: 0036 | E48: 0047 | F48: Buckland
A49: Boxborough | B49: 0037 | E49: 0048 | F49: Burlington
A50: Boxford | B50: 0038 | E50: 0049 | F50: Cambridge
A51: Boylston | B51: 0039 | E51: 0050 | F51: Canton
A52: Braintree | B52: 0040 | E52: 0051 | F52: Carlisle
A53: Brewster | B53: 0041 | E53: 0052 | F53: Carver
A54: Bridgewater | B54: 0042 | E54: 0053 | F54: Charlemont
A55: Bridgewater Raynham | B55: 0625 | E55: 0054 | F55: Charlton
A56: Brimfield | B56: 0043 | E56: 0055 | F56: Chatham
A57: Bristol County | B57: 0910 | E57: 0056 | F57: Chelmsford
A58: Bristol Plymouth | B58: 0810 | E58: 0057 | F58: Chelsea
A59: Brockton | B59: 0044 | E59: 0058 | F59: Cheshire
A60: Brookfield | B60: 0045 | E60: 0059 | F60: Chester
A61: Brookline | B61: 0046 | E61: 0060 | F61: Chesterfield
A62: Buckland | B62: 0047 | E62: 0061 | F62: Chicopee
A63: Burlington | B63: 0048 | E63: 0062 | F63: Chilmark
A64: Cambridge | B64: 0049 | E64: 0063 | F64: Clarksburg
A65: Canton | B65: 0050 | E65: 0064 | F65: Clinton
A66: Cape Cod | B66: 0815 | E66: 0065 | F66: Cohasset
A67: Carlisle | B67: 0051 | E67: 0066 | F67: Colrain
A68: Carver | B68: 0052 | E68: 0067 | F68: Concord
A69: Central Berkshire | B69: 0635 | E69: 0068 | F69: Conway
A70: Charlemont | B70: 0053 | E70: 0069 | F70: Cummington
A71: Charlton | B71: 0054 | E71: 0070 | F71: Dalton
A72: Chatham | B72: 0055 | E72: 0071 | F72: Danvers
A73: Chelmsford | B73: 0056 | E73: 0072 | F73: Dartmouth
A74: Chelsea | B74: 0057 | E74: 0073 | F74: Dedham
A75: Cheshire | B75: 0058 | E75: 0074 | F75: Deerfield
A76: Chester | B76: 0059 | E76: 0075 | F76: Dennis
A77: Chesterfield | B77: 0060 | E77: 0076 | F77: Dighton
A78: Chesterfield Goshen | B78: 0632 | E78: 0077 | F78: Douglas
A79: Chicopee | B79: 0061 | E79: 0078 | F79: Dover
A80: Chilmark | B80: 0062 | E80: 0079 | F80: Dracut
A81: Clarksburg | B81: 0063 | E81: 0080 | F81: Dudley
A82: Clinton | B82: 0064 | E82: 0081 | F82: Dunstable
A83: Cohasset | B83: 0065 | E83: 0082 | F83: Duxbury
A84: Colrain | B84: 0066 | E84: 0083 | F84: East Bridgewater
A85: Concord | B85: 0067 | E85: 0084 | F85: East Brookfield
A86: Concord Carlisle | B86: 0640 | E86: 0085 | F86: Eastham
A87: Conway | B87: 0068 | E87: 0086 | F87: Easthampton
A88: Cummington | B88: 0069 | E88: 0087 | F88: East Longmeadow
A89: Dalton | B89: 0070 | E89: 0088 | F89: Easton
A90: Danvers | B90: 0071 | E90: 0089 | F90: Edgartown
A91: Dartmouth | B91: 0072 | E91: 0090 | F91: Egremont
A92: Dedham | B92: 0073 | E92: 0091 | F92: Erving
A93: Deerfield | B93: 0074 | E93: 0092 | F93: Essex
A94: Dennis | B94: 0075 | E94: 0093 | F94: Everett
A95: Dennis Yarmouth | B95: 0645 | E95: 0094 | F95: Fairhaven
A96: Dighton | B96: 0076 | E96: 0095 | F96: Fall River
A97: Dighton Rehoboth | B97: 0650 | E97: 0096 | F97: Falmouth
A98: Douglas | B98: 0077 | E98: 0097 | F98: Fitchburg
A99: Dover | B99: 0078 | E99: 0098 | F99: Florida
A100: Dover Sherborn | B100: 0655 | E100: 0099 | F100: Foxborough
A101: Dracut | B101: 0079 | E101: 0100 | F101: Framingham
A102: Dudley | B102: 0080 | E102: 0101 | F102: Franklin
A103: Dudley Charlton | B103: 0658 | E103: 0102 | F103: Freetown
A104: Dunstable | B104: 0081 | E104: 0103 | F104: Gardner
A105: Duxbury | B105: 0082 | E105: 0104 | F105: Gay Head
A106: East Bridgewater | B106: 0083 | E106: 0105 | F106: Georgetown
A107: East Brookfield | B107: 0084 | E107: 0106 | F107: Gill
A108: East Longmeadow | B108: 0087 | E108: 0107 | F108: Gloucester
A109: Eastham | B109: 0085 | E109: 0108 | F109: Goshen
A110: Easthampton | B110: 0086 | E110: 0109 | F110: Gosnold
A111: Easton | B111: 0088 | E111: 0110 | F111: Grafton
A112: Edgartown | B112: 0089 | E112: 0111 | F112: Granby
A113: Egremont | B113: 0090 | E113: 0112 | F113: Granville
A114: Erving | B114: 0091 | E114: 0113 | F114: Great Barrington
A115: Essex | B115: 0092 | E115: 0114 | F115: Greenfield
A116: Essex North Shore | B116: 0817 | E116: 0115 | F116: Groton
A117: Everett | B117: 0093 | E117: 0116 | F117: Groveland
A118: Fairhaven | B118: 0094 | E118: 0117 | F118: Hadley
A119: Fall River | B119: 0095 | E119: 0118 | F119: Halifax
A120: Falmouth | B120: 0096 | E120: 0119 | F120: Hamilton
A121: Farmington River | B121: 0662 | E121: 0120 | F121: Hampden
A122: Fitchburg | B122: 0097 | E122: 0121 | F122: Hancock
A123: Florida | B123: 0098 | E123: 0122 | F123: Hanover
A124: Foxborough | B124: 0099 | E124: 0123 | F124: Hanson
A125: Framingham | B125: 0100 | E125: 0124 | F125: Hardwick
A126: Franklin | B126: 0101 | E126: 0125 | F126: Harvard
A127: Franklin County | B127: 0818 | E127: 0126 | F127: Harwich
A128: Freetown | B128: 0102 | E128: 0127 | F128: Hatfield
A129: Freetown Lakeville | B129: 0665 | E129: 0128 | F129: Haverhill
A130: Frontier | B130: 0670 | E130: 0129 | F130: Hawley
A131: Gardner | B131: 0103 | E131: 0130 | F131: Heath
A132: Gateway | B132: 0672 | E132: 0131 | F132: Hingham
A133: Gay Head | B133: 0104 | E133: 0132 | F133: Hinsdale
A134: Georgetown | B134: 0105 | E134: 0133 | F134: Holbrook
A135: Gill | B135: 0106 | E135: 0134 | F135: Holden
A136: Gill Montague | B136: 0674 | E136: 0135 | F136: Holland
A137: Gloucester | B137: 0107 | E137: 0136 | F137: Holliston
A138: Goshen | B138: 0108 | E138: 0137 | F138: Holyoke
A139: Gosnold | B139: 0109 | E139: 0138 | F139: Hopedale
A140: Grafton | B140: 0110 | E140: 0139 | F140: Hopkinton
A141: Granby | B141: 0111 | E141: 0140 | F141: Hubbardston
A142: Granville | B142: 0112 | E142: 0141 | F142: Hudson
A143: Great Barrington | B143: 0113 | E143: 0142 | F143: Hull
A144: Greater Fall River | B144: 0821 | E144: 0143 | F144: Huntington
A145: Greater Lawrence | B145: 0823 | E145: 0144 | F145: Ipswich
A146: Greater Lowell | B146: 0828 | E146: 0145 | F146: Kingston
A147: Greater New Bedford | B147: 0825 | E147: 0146 | F147: Lakeville
A148: Greenfield | B148: 0114 | E148: 0147 | F148: Lancaster
A149: Groton | B149: 0115 | E149: 0148 | F149: Lanesborough
A150: Groton Dunstable | B150: 0673 | E150: 0149 | F150: Lawrence
A151: Groveland | B151: 0116 | E151: 0150 | F151: Lee
A152: Hadley | B152: 0117 | E152: 0151 | F152: Leicester
A153: Halifax | B153: 0118 | E153: 0152 | F153: Lenox
A154: Hamilton | B154: 0119 | E154: 0153 | F154: Leominster
A155: Hamilton Wenham | B155: 0675 | E155: 0154 | F155: Leverett
A156: Hampden | B156: 0120 | E156: 0155 | F156: Lexington
A157: Hampden Wilbraham | B157: 0680 | E157: 0156 | F157: Leyden
A158: Hampshire | B158: 0683 | E158: 0157 | F158: Lincoln
A159: Hancock | B159: 0121 | E159: 0158 | F159: Littleton
A160: Hanover | B160: 0122 | E160: 0159 | F160: Longmeadow
A161: Hanson | B161: 0123 | E161: 0160 | F161: Lowell
A162: Hardwick | B162: 0124 | E162: 0161 | F162: Ludlow
A163: Harvard | B163: 0125 | E163: 0162 | F163: Lunenburg
A164: Harwich | B164: 0126 | E164: 0163 | F164: Lynn
A165: Hatfield | B165: 0127 | E165: 0164 | F165: Lynnfield
A166: Haverhill | B166: 0128 | E166: 0165 | F166: Malden
A167: Hawlemont | B167: 0685 | E167: 0166 | F167: Manchester
A168: Hawley | B168: 0129 | E168: 0167 | F168: Mansfield
A169: Heath | B169: 0130 | E169: 0168 | F169: Marblehead
A170: Hingham | B170: 0131 | E170: 0169 | F170: Marion
A171: Hinsdale | B171: 0132 | E171: 0170 | F171: Marlborough
A172: Holbrook | B172: 0133 | E172: 0171 | F172: Marshfield
A173: Holden | B173: 0134 | E173: 0172 | F173: Mashpee
A174: Holland | B174: 0135 | E174: 0173 | F174: Mattapoisett
A175: Holliston | B175: 0136 | E175: 0174 | F175: Maynard
A176: Holyoke | B176: 0137 | E176: 0175 | F176: Medfield
A177: Hoosac Valley | B177: 0603 | E177: 0176 | F177: Medford
A178: Hopedale | B178: 0138 | E178: 0177 | F178: Medway
A179: Hopkinton | B179: 0139 | E179: 0178 | F179: Melrose
A180: Hubbardston | B180: 0140 | E180: 0179 | F180: Mendon
A181: Hudson | B181: 0141 | E181: 0180 | F181: Merrimac
A182: Hull | B182: 0142 | E182: 0181 | F182: Methuen
A183: Huntington | B183: 0143 | E183: 0182 | F183: Middleborough
A184: Ipswich | B184: 0144 | E184: 0183 | F184: Middlefield
A185: King Philip | B185: 0690 | E185: 0184 | F185: Middleton
A186: Kingston | B186: 0145 | E186: 0185 | F186: Milford
A187: Lakeville | B187: 0146 | E187: 0186 | F187: Millbury
A188: Lancaster | B188: 0147 | E188: 0187 | F188: Millis
A189: Lanesborough | B189: 0148 | E189: 0188 | F189: Millville
A190: Lawrence | B190: 0149 | E190: 0189 | F190: Milton
A191: Lee | B191: 0150 | E191: 0190 | F191: Monroe
A192: Leicester | B192: 0151 | E192: 0191 | F192: Monson
A193: Lenox | B193: 0152 | E193: 0192 | F193: Montague
A194: Leominster | B194: 0153 | E194: 0193 | F194: Monterey
A195: Leverett | B195: 0154 | E195: 0194 | F195: Montgomery
A196: Lexington | B196: 0155 | E196: 0195 | F196: Mount Washington
A197: Leyden | B197: 0156 | E197: 0196 | F197: Nahant
A198: Lincoln | B198: 0157 | E198: 0197 | F198: Nantucket
A199: Lincoln Sudbury | B199: 0695 | E199: 0198 | F199: Natick
A200: Littleton | B200: 0158 | E200: 0199 | F200: Needham
... 239 more rows
